Workbook

Sheet README
X11: 0

Sheet DAC1a_E
A1: TABLE DAC 1a | B1: Reporting country: | C1: ???
A2: ODA GRANT EQUIVALENT MEASURE | B2: Period: | C2: 2023
A3: 2024 edition | B3: Date: | C3: ???
A5: KEY INDICATORS
A6: GNI | B6: 001
A7: ODA GRANT EQUIVALENT % GNI | B7: 002
A8: POPULATION (millions) | B8: 004
A9: I. OFFICIAL DEVELOPMENT ASSISTANCE (I.A + I.B) * | B9: 1010 | C9: =C10+C24 -> 0
A10: I.A ODA, bilateral total * | B10: 1015 | C10: =C11+C12+C17+C18+C22 -> 0
A11: I.A.1 ODA bilateral grants | B11: 11016
A12: I.A.2 ODA grant equivalents of bilateral loans | B12: 11017 | C12: =C13+C14+C15+C16 -> 0
A13: 1. Loans to LDCs and other LICs | B13: 11019
A14: 2. Loans to LMICs | B14: 11020
A15: 3. Loans to UMICs | B15: 11021
A16: 4. Loans for multi-country agreements | B16: 11022
A17: I.A.3 ODA, grant equivalents of debt relief | B17: 1600
A18: I.A.4 ODA, Grant equivalents of private sector instruments (PSI) | B18: 11040 | C18: =C19+C20+C21 -> 0
A19: 1. Institutional approach, capital increases of ODA-eligible PSI vehicles | B19: 11041
A20: 2. Instrument approach, grant equivalents of individual PSI activities | B20: 11042
A21: 3. Decapitalisations and dividends paid to the government | B21: 11044
A22: I.A.4 ODA, other bilateral, net flows * | B22: 11018 | C22: =C23 -> 0
A23: 1. Private sector instruments - instrument approach * | B23: 11024
A24: I.B ODA, multilateral total | B24: 2000 | C24: =C25+C26 -> 0
A25: I.B.1 ODA, multilateral grants and capital subscriptions | B25: 12100
A26: I.B.2 ODA grant equivalents of multilateral loans | B26: 12110
A27: * Used under the instrument approach if using a transition period for implementing the revised methods for PSI.

Sheet DAC1b_E
A1: TABLE DAC 1b | I1: Reporting country: | K1: ???
A2: DISBURSEMENTS AND COMMITMENTS OF OFFICIAL AND PRIVATE FLOWS | I2: Period: | K2: 2023
A3: 2024 edition | I3: Date: | K3: ???
D5: D I S B U R S E M E N T S | I5: COMMITMENTS
C6: 1160 | D6: 1121 | E6: 1122 | F6: 1120 | G6: 1130 | H6: 1140 | I6: 1151 | J6: 1152 | K6: 1150
A7: Million US dollars | D7: -------- Amounts extended -------- | G7: Amounts received (-) Non grants (2) | H7: NET AMOUNTS | K7: Total commitments
C8: Grant equivalents * | D8: Grants (1) | E8: Non grants | F8: Total amounts extended | I8: Grants (1) | J8: Non grants
A9: KEY INDICATORS | D9: / | E9: / | F9: / | G9: / | H9: / | I9: / | J9: / | K9: /
A10: TOTAL FLOWS % GNI | B10: 003 | D10: / | E10: / | F10: / | G10: / | I10: / | J10: / | K10: /
A11: TOTAL OFFICIAL AND PRIVATE FLOWS (I+II+III+IV+V) | B11: 005 | C11: / | D11: =D12+D91+D124+D137 -> 0 | E11: =E12+E91+E120+E124 -> 0 | F11: =D11+E11 -> 0 | G11: =G12+G91+G120+G124+G137 ->  | H11: =F11+G11 ->  | I11: / | J11: / | K11: /
A12: I. OFFICIAL DEVELOPMENT ASSISTANCE (I.A + I.B) * | B12: 1010 | C12: =C13+C73 -> 0 | D12: =D13+D73 -> 0 | E12: =E13+E73 -> 0 | F12: =D12+E12 -> 0 | G12: =G13+G73 -> 0 | H12: 0 | I12: =I13+I73 -> 0 | J12: =J13+J73 -> 0 | K12: =I12+J12 -> 0
A13: I.A. Bilateral Official Development Assistance by types of aid (1+2+3+4+5+6+7+8+9+10+11) * | B13: 1015 | C13: =C14+C17+C25+C30+C33+C36+C50+C51+C54+C55+C56 -> 0 | D13: =D14+D17+D25+D30+D33+D36+D50+D51 -> 0 | E13: =E14+E17+E25+E36 -> 0 | F13: =D13+E13 -> 0 | G13: =G14+G17+G25+G36+G54+G55 -> 0 | H13: =F13+G13 -> 0 | I13: =I14+I17+I25+I30+I33+I36+I50+I51+I54 -> 0 | J13: =J14+J17+J25+J36+J54 -> 0 | K13: =I13+J13 -> 0
A14: 1. Budget support | B14: 1100 | C14: =SUM(C15:C16) -> 0 | D14: =SUM(D15:D16) -> 0 | E14: =SUM(E15:E16) -> 0 | F14: 0 | G14: 0 | H14: 0 | I14: 0 | J14: 0 | K14: 0
A15: 1.1 General budget support | B15: 1110 | F15: 0 | H15: 0 | K15: 0
A16: 1.2 Sector budget support | B16: 1120 | F16: 0 | H16: 0 | K16: 0
A17: 2. Bilateral core support & pooled programmes & funds | B17: 1200 | C17: =C18+C23+C24 -> 0 | D17: =D18+D23+D24 -> 0 | E17: =E18+E23+E24 -> 0 | F17: 0 | G17: =G18+G23+G24 -> 0 | H17: 0 | I17: =I18+I23+I24 -> 0 | J17: =J18+J23+J24 -> 0 | K17: 0
A18: 2.1 Core support to NGOs and civil society, PPPs & research institutes | B18: 1210 | C18: =SUM(C19:C22) -> 0 | D18: =SUM(D19:D22) -> 0 | E18: =E21+E22 -> 0 | F18: =D18+E18 -> 0 | G18: =G21+G22 -> 0 | H18: 0 | I18: =SUM(I19:I22) -> 0 | J18: =J21+J22 -> 0 | K18: 0
A19: a) Core support to donor country-based NGOs & civil society | B19: 1211 | E19: / | F19: =D19 -> 0 | G19: / | H19: =F19 -> 0 | J19: / | K19: =I19 -> 0
A20: b) Core support to international NGOs | B20: 1212 | E20: / | F20: =D20 -> 0 | G20: / | H20: =F20 -> 0 | J20: / | K20: =I20 -> 0
A21: c) Core support to Public-Private Partnerships (including networks) | B21: 1213 | F21: =D21+E21 -> 0 | H21: =F21+G21 -> 0 | K21: =I21+J21 -> 0
A22: d) Other | B22: 1214 | F22: =D22+E22 -> 0 | H22: 0 | K22: 0
A23: 2.2 Specific-purpose programmes & funds managed by implementing partners | B23: 1220 | F23: =D23+E23 -> 0 | H23: 0 | K23: 0
A24: 2.3 Basket funds/pooled funding | B24: 1230 | F24: =D24+E24 -> 0 | H24: 0 | K24: 0
A25: 3. Project-type interventions | B25: 1300 | C25: =C26+C27 -> 0 | D25: =D26+D27 -> 0 | E25: =E26+E27 -> 0 | F25: =D25+E25 -> 0 | G25: =G26+G27 -> 0 | H25: 0 | I25: =I26+I27 -> 0 | J25: =J26+J27 -> 0 | K25: 0
A26: 3.1 Investment projects | B26: 1310 | F26: 0 | H26: 0 | K26: 0
A27: 3.2 Other projects | B27: 1320 | F27: 0 | H27: 0 | K27: =I27+J27 -> 0
A28: Memo: Projects qualifying as programme-based approaches | B28: 1330 | F28: 0 | H28: 0 | K28: =I28+J28 -> 0
A29: Memo: Cost of donor experts incl. in project-type interventions (optional) | B29: 1301 | F29: 0 | H29: 0 | K29: =I29+J29 -> 0
A30: 4. Experts and other technical assistance | B30: 1400 | C30: =SUM(C31:C32) -> 0 | D30: =SUM(D31:D32) -> 0 | E30: / | F30: =D30 -> 0 | G30: / | H30: =F30 -> 0 | I30: =SUM(I31:I32) -> 0 | J30: / | K30: =I30 -> 0
A31: 4.1 Donor country personnel | B31: 1410 | E31: / | F31: 0 | G31: / | H31: 0 | J31: / | K31: 0
A32: 4.2 Other technical assistance | B32: 1420 | E32: / | F32: 0 | G32: / | H32: 0 | J32: / | K32: 0
A33: 5. Scholarships and student costs in donor countries | B33: 1500 | C33: =SUM(C34:C35) -> 0 | D33: =SUM(D34:D35) -> 0 | E33: / | F33: 0 | G33: / | H33: 0 | I33: =SUM(I34:I35) -> 0 | J33: / | K33: 0
A34: 5.1 Scholarships/training in donor country | B34: 1510 | E34: / | F34: 0 | G34: / | H34: 0 | J34: / | K34: 0
A35: 5.2 Imputed student costs | B35: 1520 | E35: / | F35: 0 | G35: / | H35: 0 | J35: / | K35: 0
A36: 6. Debt relief | B36: 1600 | C36: =C37+C43+C48 -> 0 | D36: =D37+D43 -> 0 | E36: =E37 -> 0 | F36: 0 | G36: =G37+G48 -> 0 | H36: =F36+G36 -> 0 | I36: =I37+I43 -> 0 | J36: =J37 -> 0 | K36: =I36+J36 -> 0
A37: 6.1 Debt forgiveness and debt rescheduling | B37: 1610 | C37: =SUM(C38:C41) -> 0 | D37: =SUM(D38:D41) -> 0 | E37: =SUM(E38:E40) -> 0 | F37: 0 | G37: =SUM(G38:G40) -> 0 | H37: =F37+G37 -> 0 | I37: =SUM(I38:I41) -> 0 | J37: =SUM(J38:J40) -> 0 | K37: =I37+J37 -> 0
A38: a) ODA claims (for rescheduling, only capitalised interest) | B38: 1611 | F38: 0 | H38: =F38+G38 -> 0 | K38: =I38+J38 -> 0
A39: b) OOF claims | B39: 1615 | F39: 0 | H39: =F39+G39 -> 0 | K39: =I39+J39 -> 0
A40: c) Claims of officially supported export credits | B40: 1616 | F40: 0 | H40: =F40+G40 -> 0 | K40: =I40+J40 -> 0
A41: d) Private claims | B41: 1617 | E41: / | F41: =D41 -> 0 | G41: / | H41: =F41 -> 0 | J41: / | K41: =I41 -> 0
A42: Memo: Grants for debt service reduction | B42: 1614 | E42: / | F42: 0 | G42: / | H42: 0 | J42: / | K42: 0
A43: 6.2 Other action on debt | B43: 1620 | C43: =SUM(C44:C47) -> 0 | D43: =SUM(D44:D47) -> 0 | E43: / | F43: =D43 -> 0 | G43: / | H43: 0 | I43: =SUM(I44:I47) -> 0 | J43: / | K43: =I43 -> 0
A44: a) Service payments to third parties | B44: 1621 | E44: / | F44: 0 | G44: / | H44: 0 | J44: / | K44: 0
A45: b) Debt conversion | B45: 1622 | E45: / | F45: 0 | G45: / | H45: 0 | J45: / | K45: 0
A46: c) Debt buybacks | B46: 1623 | E46: / | F46: 0 | G46: / | H46: 0 | J46: / | K46: 0
A47: d) Other | B47: 1624 | E47: / | F47: 0 | G47: / | H47: 0 | J47: / | K47: 0
A48: 6.3 Offsetting entry for debt forgiveness (ODA claims, principal) | B48: 1630 | D48: / | E48: / | F48: / | H48: =G48 -> 0 | I48: / | J48: / | K48: /
A49: Memo: Offsetting entry for forgiven interest (ODA claims, interest) | B49: 1640 | D49: / | E49: / | F49: / | H49: =G49 -> 0 | I49: / | J49: / | K49: /
A50: 7. Administrative costs not included elsewhere | B50: 1700 | E50: / | F50: =D50 -> 0 | G50: / | H50: =F50 -> 0 | J50: / | K50: =I50 -> 0
A51: 8. Other in-donor expenditures | B51: 1800 | C51: =SUM(C52:C53) -> 0 | D51: =SUM(D52:D53) -> 0 | E51: / | F51: =D51 -> 0 | G51: / | H51: =F51 -> 0 | I51: =SUM(I52:I53) -> 0 | J51: / | K51: =I51 -> 0
A52: 8.1 Development awareness | B52: 1810 | E52: / | F52: =D52 -> 0 | G52: / | H52: =F52 -> 0 | J52: / | K52: =I52 -> 0
A53: 8.2 Refugees in donor countries | B53: 1820 | E53: / | F53: =D53 -> 0 | G53: / | H53: =F53 -> 0 | J53: / | K53: =I53 -> 0
A54: 9. Recoveries on bilateral ODA grants and negative commitments | B54: 1900 | D54: / | E54: / | F54: / | H54: =G54 -> 0 | K54: =I54+J54 -> 0
A55: 10. Other loans repayments | B55: 1999 | D55: / | E55: / | F55: / | H55: =G55 -> 0 | I55: / | J55: / | K55: /
A56: 11. ODA, Grant equivalents of private sector instruments (PSI) | B56: 11040 | C56: =SUM(C57:C60) -> 0 | D56: / | E56: / | F56: / | G56: / | H56: / | I56: / | J56: / | K56: /
A57: 11.1 Institutional approach, capital increases of ODA-eligible PSI vehicles | B57: 11041 | D57: / | E57: / | F57: / | G57: / | H57: / | I57: / | J57: / | K57: /
A58: 11.2 Instrument approach, grant equivalents of individual PSI activities | B58: 11042 | D58: / | E58: / | F58: / | G58: / | H58: / | I58: / | J58: / | K58: /
A59: 11.3 Decapitalisations and dividends paid to the government | B59: 11044 | D59: / | E59: / | F59: / | G59: / | H59: / | I59: / | J59: / | K59: /
A60: 11.4 Instrument approach, net flows * | B60: 11024 | D60: / | E60: / | F60: / | G60: / | H60: / | I60: / | J60: / | K60: /
A61: Memo items for PSI:
A62: Institutional approach, grant equivalents of individual PSI activities | B62: 1041 | D62: / | E62: / | F62: / | G62: / | H62: / | I62: / | J62: / | K62: /
A63: Instrument approach, capital increases of ODAeligible PSI vehicles | B63: 1042 | D63: / | E63: / | F63: / | G63: / | H63: / | I63: / | J63: / | K63: /
A64: Decapitalisations and dividends paid to the government | B64: 1045 | D64: / | E64: / | F64: / | G64: / | H64: / | I64: / | J64: / | K64: /
A65: Outstanding ODA equities upon transition to grant equivalent measurement ex ante | B65: 1044 | D65: / | E65: / | F65: / | G65: / | H65: / | I65: / | J65: / | K65: /
A66: Other memo items:
A67: Programme-based approaches (PBAs) | B67: 1901 | F67: =D67+E67 -> 0 | H67: =F67+G67 -> 0 | K67: =I67+J67 -> 0
A68: Free-standing technical co-operation (FTC) | B68: 1902 | F68: =D68+E68 -> 0 | H68: =F68+G68 -> 0 | K68: =I68+J68 -> 0
A69: ODA channelled through private entities (as distinct from support to private sources) | B69: 1903 | F69: 0 | H69: 0 | K69: =I69+J69 -> 0
A70: ODA channelled through multilateral organisations | B70: 1904 | F70: 0 | H70: 0 | K70: 0
A71: Participation in international peacekeeping operations | B71: 1905 | F71: 0 | H71: 0 | K71: 0
A72: Relief food aid | B72: 1906 | F72: 0 | H72: 0 | K72: 0
A73: I.B. Multilateral Official Development Assistance (capital subscriptions are included with grants) | B73: 2000 | C73: =C74+C82 -> 0 | D73: =D74 -> 0 | E73: =E74 -> 0 | F73: 0 | G73: =G74+G82 -> 0 | H73: 0 | I73: =I74+I82 -> 0 | J73: =J74+J82 -> 0 | K73: 0
A74: 1. Multilateral contributions to: | B74: 2100 | C74: =SUM(C75:C81) -> 0 | D74: =SUM(D75:D81) -> 0 | E74: =SUM(E75:E81) -> 0 | F74: 0 | G74: =SUM(G75:G81) -> 0 | H74: 0 | I74: =SUM(I75:I81) -> 0 | J74: =SUM(J75:J81) -> 0 | K74: 0
A75: 1.1 UN agencies | B75: 2101 | F75: =D75+E75 -> 0 | H75: 0 | K75: 0
A76: 1.2 European Union | B76: 2102 | F76: 0 | H76: 0 | K76: 0
A77: 1.3 IDA | B77: 2103 | F77: 0 | H77: 0 | K77: 0
A78: 1.4 Other World Bank (AMCs, IBRD,IFC,MIGA) | B78: 2104 | F78: 0 | H78: 0 | K78: 0
A79: 1.5 Regional development banks | B79: 2105 | F79: =D79+E79 -> 0 | H79: 0 | K79: 0
A80: 1.6 Global Environment Facility | B80: 2106 | F80: 0 | H80: 0 | K80: 0
A81: 1.7 Other agencies | B81: 2108 | F81: 0 | H81: 0 | K81: =I81+J81 -> 0
A82: 2. Recoveries on multilateral ODA grants and capital subscriptions and negative commitments | B82: 2110 | D82: / | E82: / | F82: / | H82: =G82 -> 0 | K82: =I82+J82 -> 0
A83: Memo (bilat. + multilat.):
A84: - HIPC Initiative | B84: 2901 | E84: / | F84: =D84 -> 0 | G84: / | H84: =F84 -> 0 | I84: / | J84: / | K84: /
A85: - IDA Debt Reduction Facility | B85: 2902 | E85: / | F85: =D85 -> 0 | G85: / | H85: =F85 -> 0 | I85: / | J85: / | K85: /
A86: II. PRIVATE SECTOR INSTRUMENTS (PSI) FLOWS | B86: 3400 | C86: / | D86: =D87+D88+D89+D90 -> 0 | E86: =E87+E88+E89+E90 -> 0 | F86: =D86+E86 -> 0 | G86: =G87+G88+G89+G90 -> 0 | H86: =F86+G86 -> 0 | I86: / | J86: / | K86: /
A87: 1. Grants | B87: 3401 | C87: / | F87: 0 | H87: =F87+G87 -> 0 | I87: / | J87: / | K87: /
A88: 2. Debt instruments | B88: 3402 | C88: / | F88: 0 | H88: =F88+G88 -> 0 | I88: / | J88: / | K88: /
A89: 3. Equities and shares in collective investment vehicles | B89: 3403 | C89: / | F89: 0 | H89: =F89+G89 -> 0 | I89: / | J89: / | K89: /
A90: 4. Mezzanine finance instruments | B90: 3404 | C90: / | F90: 0 | H90: =F90+G90 -> 0 | I90: / | J90: / | K90: /
A91: III. OTHER OFFICIAL FLOWS | B91: 200 | C91: / | D91: =D92+D108 -> 0 | E91: =E92+E108 -> 0 | F91: 0 | G91: =G92+G108 ->  | H91: =F91+G91 ->  | I91: =I92+I108 -> 0 | J91: =J92+J108 -> 0 | K91: =I91+J91 -> 0
A92: III.A. Other Official Bilateral Flows | B92: 210 | C92: / | D92: =D93+D106 -> 0 | E92: =E93+E94+E100+E106 -> 0 | F92: 0 | G92: =G93+G94+G100+G106+G107+#REF! ->  | H92: =F92+G92 ->  | I92: =I93+I106 -> 0 | J92: =J93+J94+J100+J106 -> 0 | K92: =I92+J92 -> 0
A93: 1. Budget Support | B93: 2210 | C93: / | F93: 0 | H93: 0 | K93: =I93+J93 -> 0
A94: 2. Investment-related transactions | B94: 2220 | C94: / | D94: / | E94: =E95+E96+E98 -> 0 | F94: =F95+F96+F98 -> 0 | G94: =G95+G96+G98 -> 0 | H94: =H95+H96+H98 -> 0 | I94: / | J94: =J95+J96+J98 -> 0 | K94: =K95+K96+K98 -> 0
A95: 2.1 Through debt | B95: 2221 | C95: / | D95: / | F95: =E95 -> 0 | H95: =F95+G95 -> 0 | I95: / | K95: =J95 -> 0
A96: 2.2 Through equity investments | B96: 2222 | C96: / | D96: / | F96: =E96 -> 0 | H96: =F96+G96 -> 0 | I96: / | K96: =J96 -> 0
A97: of which shares in CIVs | B97: 2223 | C97: / | D97: / | F97: =E97 -> 0 | H97: =F97+G97 -> 0 | I97: / | K97: =J97 -> 0
A98: 2.3 Through mezzanine finance | B98: 2224 | C98: / | D98: / | F98: =E98 -> 0 | H98: =F98+G98 -> 0 | I98: / | K98: =J98 -> 0
A99: Memo: Investment-related transactions, of which to the private sector | B99: 2225 | C99: / | D99: / | F99: =E99 -> 0 | H99: =F99+G99 -> 0 | I99: / | K99: =J99 -> 0
A100: 3. Debt rescheduling | B100: 300 | C100: / | D100: / | E100: =E101+E105 -> 0 | F100: =E100 -> 0 | G100: =G101+G105 -> 0 | H100: 0 | I100: / | J100: =J101+J105 -> 0 | K100: =J100 -> 0
A101: 3.1 Non-concessional rescheduling | B101: 301 | C101: / | D101: / | E101: =SUM(E102:E104) -> 0 | F101: 0 | G101: =SUM(G102:G104) -> 0 | H101: 0 | I101: / | J101: =SUM(J102:J104) -> 0 | K101: 0
A102: a) OOF claims (capitalised interest) | B102: 304 | C102: / | D102: / | F102: 0 | H102: 0 | I102: / | K102: 0
A103: b) Claims of officially supported export credits | B103: 305 | C103: / | D103: / | F103: 0 | H103: 0 | I103: / | K103: 0
A104: c) Private claims | B104: 306 | C104: / | D104: / | F104: 0 | H104: 0 | I104: / | K104: 0
A105: 3.2 OOF component of debt service reduction | B105: 303 | C105: / | D105: / | F105: 0 | H105: 0 | I105: / | K105: 0
A106: 4. Other claims and grants | B106: 298 | C106: /
A107: 5. Offsetting entry for debt relief (claims of OOF, principal) | B107: 1020 | C107: / | D107: / | E107: / | F107: / | H107: =G107 -> 0 | I107: / | J107: / | K107: /
A108: III.B. Transactions with Multilateral Agencies at Market Terms | B108: 325 | C108: / | D108: =D110 -> 0 | E108: =SUM(E109:E110) -> 0 | F108: =D108+E108 -> 0 | G108: =SUM(G109:G110) -> 0 | H108: 0 | I108: =I110 -> 0 | J108: =SUM(J109:J110) -> 0 | K108: =I108+J108 -> 0
A109: 1. Purchase of securities from issuing agencies | B109: 326 | C109: / | D109: / | F109: =E109 -> 0 | H109: 0 | I109: / | K109: =J109 -> 0
A110: 2. Other transactions | B110: 327 | C110: / | F110: =D110+E110 -> 0 | H110: 0 | K110: =I110+J110 -> 0
A111: Memo: - Interest received on OOF, total (bilat.+multilat.) | B111: 7950 | C111: / | D111: / | E111: / | F111: / | G111: =SUM(G112:G113) -> 0 | H111: =G111 -> 0 | I111: / | J111: / | K111: /
A112: - Bilateral | B112: 8000 | C112: / | D112: / | E112: / | F112: / | H112: =G112 -> 0 | I112: / | J112: / | K112: /
A113: - Multilateral | B113: 805 | C113: / | D113: / | E113: / | F113: / | H113: =G113 -> 0 | I113: / | J113: / | K113: /
A114: - Offsetting entry for forgiven interest (claims of OOF, interest) | B114: 7860 | C114: / | D114: / | E114: / | F114: / | H114: =G114 -> 0 | I114: / | J114: / | K114: /
A115: Memo items on development finance interventions (I. ODA + II. PSI flows + III. OOF): | C115: / | D115: / | E115: / | F115: /
A116: 1. Development finance in blended finance packages | B116: 2231 | C116: / | D116: / | H116: =F116+G116 -> 0
A117: of which through funds and facilities | B117: 2232 | C117: / | D117: / | H117: 0
A118: 2. Amounts mobilised from the private sector | B118: 2233 | C118: / | D118: / | H118: 0
A119: of which through guarantees | B119: 2234 | C119: / | D119: / | H119: 0
A120: IV. OFFICIALLY SUPPORTED EXPORT CREDITS | B120: 3000 | C120: / | D120: / | E120: =E121+E122 -> 0 | F120: =E120 -> 0 | G120: =G121+G122+G123 -> 0 | H120: 0 | I120: / | J120: / | K120: /
A121: IV.A. Official direct export credits | B121: 3100 | C121: / | D121: / | F121: =E121 -> 0 | H121: 0 | I121: / | J121: / | K121: /
A122: IV.B. Officially guaranteed or insured export credits | B122: 3200 | C122: / | D122: / | F122: =E122 -> 0 | H122: 0 | I122: / | J122: / | K122: /
A123: IV.C. Offsetting entry for debt relief (export credit claims, principal) | B123: 3102 | C123: / | D123: / | E123: / | F123: / | H123: =G123 -> 0 | I123: / | J123: / | K123: /
A124: V. PRIVATE FLOWS AT MARKET TERMS | B124: 3300 | C124: / | D124: =D136 -> 0 | E124: =E125+E136 -> 0 | F124: =E124+D124 -> 0 | G124: =G125+G136 -> 0 | H124: =F124+G124 -> 0 | I124: / | J124: / | K124: /
A125: V.A. Bilateral Private Flows | B125: 3320 | C125: / | D125: / | E125: =E126+E128 -> 0 | F125: =E125 -> 0 | G125: =G126+G128+G135 -> 0 | H125: =F125+G125 -> 0 | I125: / | J125: / | K125: /
A126: 1. Direct Investment | B126: 340 | C126: / | D126: / | F126: =E126 -> 0 | H126: =F126+G126 -> 0 | I126: / | J126: / | K126: /
A127: of which: New capital outflows | B127: 345 | C127: / | D127: / | F127: =E127 -> 0 | H127: =F127+G127 -> 0 | I127: / | J127: / | K127: /
A128: 2. Other securities and claims | B128: 3530 | C128: / | D128: / | E128: =E129+E132 -> 0 | F128: 0 | G128: =G129+G132 -> 0 | H128: 0 | I128: / | J128: / | K128: /
A129: 2.1 Total banks (long-term) | B129: 3840 | C129: / | D129: / | E129: =E130+E131 -> 0 | F129: 0 | G129: =SUM(G130:G131) -> 0 | H129: 0 | I129: / | J129: / | K129: /
A130: a) Bonds | B130: 751 | C130: / | D130: / | F130: 0 | H130: 0 | I130: / | J130: / | K130: /
A131: b) Other bank | B131: 7530 | C131: / | D131: / | F131: 0 | H131: 0 | I131: / | J131: / | K131: /
A132: 2.2 Non-banks | B132: 3860 | C132: / | D132: / | E132: =SUM(E133:E134) -> 0 | F132: 0 | G132: =SUM(G133:G134) -> 0 | H132: =F132+G132 -> 0 | I132: / | J132: / | K132: /
A133: a) Bonds | B133: 388 | C133: / | D133: / | F133: 0 | H133: 0 | I133: / | J133: / | K133: /
A134: b) Other securities (incl. equities) | B134: 3890 | C134: / | D134: / | F134: 0 | H134: 0 | I134: / | J134: / | K134: /
A135: 3. Offsetting entry for debt relief (other private claims, principal) | B135: 1030 | C135: / | D135: / | E135: / | F135: / | H135: =G135 -> 0 | I135: / | J135: / | K135: /
A136: V.B. Multilateral Private Flows | B136: 359 | C136: / | F136: =D136+E136 -> 0 | H136: =F136+G136 -> 0 | I136: / | J136: / | K136: /
A137: VI. NET PRIVATE GRANTS | B137: 415 | C137: / | D137: =D138 -> 0 | E137: / | F137: =D137 -> 0 | G137: =G139 -> 0 | H137: =F137+G137 -> 0 | I137: / | J137: / | K137: /
A138: derived as: 1. Gross outflow from private sources, less | B138: 425 | C138: / | E138: / | F138: =D138 -> 0 | G138: / | H138: =F138 -> 0 | I138: / | J138: / | K138: /
A139: 2. Support received from official sector | B139: 420 | C139: / | D139: / | E139: / | F139: / | H139: =G139 -> 0 | I139: / | J139: / | K139: /
A140: VII. ITEM ONLY PARTLY COVERED IN DAC RESOURCE FLOW STATISTICS | C140: / | D140: / | E140: / | F140: / | G140: / | H140: / | I140: / | J140: / | K140: /
A141: 1. Total participation in peacebuilding operations (incl. non-ODA) | B141: 207 | C141: / | F141: =D141+E141 -> 0 | H141: =F141+G141 -> 0 | I141: / | J141: / | K141: /
A143: (1) Also includes capital subscriptions to multilateral agencies.
A144: (2) Also includes total recoveries on grants and capital subscriptions (codes 1900 and 2110).
A145: * Used under the instrument approach if using a transition period for implementing the revised methods for PSI.

Sheet CRSDATA
A1: A. Identification data | H1: B.Basic data | N1: 15 | Q1: C. Supplementary data | V1: Asterisk (*) means that reporting in the field is optional | AM1: D. Volume data | AR1: FOR OECD USE ONLY | BC1: E. For non-grant instruments | BN1: 68 | BO1: F. For PSI | BS1: FOR OECD USE ONLY (not to be filled) | BT1: FOR OECD USE ONLY (not to be filled) | BU1: FOR OECD USE ONLY (not to be filled)
A2: Reporting year | B2: Commitment date (dd-mm-yyyy) | C2: Reporting country / organisation | D2: Extending agency | E2: CRS Identification N° | F2: Donor project N° | G2: Nature of submission | H2: Recipient code | I2: Channel of delivery name | J2: Channel code | K2: Bi/Multi | L2: Type of flow (main DAC 1 category) | M2: Type of finance | N2: Co-operation modality (replaces the type of aid) | O2: Short description / Project title | P2: Sector / Purpose code and corresponding shares | Q2: Geographical target area | R2: Regional aid to LDCs (codes 1-5) | S2: Expected starting date | T2: Expected completion date | U2: Description | V2: SDG focus* | W2: Keywords* | X2: Gender equality | Y2: Aid to environment | Z2: DIG | AA2: RMNCH | AB2: Disaster Risk Reduction | AC2: Nutrition* | AD2: Inclusion and empowerment of persons with disabilities* | AE2: FTC | AF2: PBA | AG2: Investment | AH2: Type of blended finance (codes 1-4) | AI2: Biodiversity | AJ2: Climate change - mitigation | AK2: Climate change - adaptation | AL2: Desertification | AM2: Currency | AN2: Commitments | AO2: Capital Expenditure %* | AP2: Amounts extended | AQ2: ODA grant equivalent | AR2: Amounts received (for loans:principal only) | AS2: Amount untied | AT2: Amount partially untied | AU2: Amount tied | AV2: Amount of IRTC | AW2: If project type, amount of experts-commitments* | AX2: If project type, amount of experts-extended* | AY2: Amount of export credit | AZ2: Leveraging mechanism and role/position | BA2: Amounts mobilised from the private sector | BB2: Origin of the funds mobilised | BC2: Type or repayment or type of fee payment | BD2: Number of repayment or fee payment per annum | BE2: Interest rate / Fee rate / Expected return per annum | BF2: Second interest rate | BG2: First repayment date / Exposure reduction starting date (dd-mm-yyyy) | BH2: Final repayment date / Guarantee maturity date / Expected maturity (dd-mm-yyyy) | BI2: Interest received / Guarantee fee received / Dividends received per annum | BJ2: Principal disbursed and still outstanding / Equity disbursed and still held | BK2: Arrears of principal (included in the item 62) | BL2: Arrears of interest / Arrears of guarantee fee | BM2: Guaranteed amount | BN2: Average use of portfolio guarantee % | BO2: PSI flag | BP2: Additionality type | BQ2: Additionality description | BR2: Additionality – development objective | BS2: Income Group | BT2: Discount Rate | BU2: Grant Element
A3: 1 | B3: 2 | C3: 3 | D3: 4 | E3: 5 | F3: 6 | G3: 7 | H3: 8 | I3: 9 | J3: 10 | K3: 11 | L3: 12 | M3: 13 | N3: 14 | O3: 15 | P3: 16 | Q3: 17 | R3: 18 | S3: 19 | T3: 20 | U3: 21 | V3: 22 | W3: 23 | X3: 24 | Y3: 25 | Z3: 26 | AA3: 27 | AB3: 28 | AC3: 29 | AD3: 30 | AE3: 31 | AF3: 32 | AG3: 33 | AH3: 34 | AI3: 35 | AJ3: 36 | AK3: 37 | AL3: 38 | AM3: 39 | AN3: 40 | AO3: 41 | AP3: 42 | AQ3: 43 | AR3: 44 | AS3: 45 | AT3: 46 | AU3: 47 | AV3: 48 | AW3: 49 | AX3: 50 | AY3: 51 | AZ3: 52 | BA3: 53 | BB3: 54 | BC3: 55 | BD3: 56 | BE3: 57 | BF3: 58 | BG3: 59 | BH3: 60 | BI3: 61 | BJ3: 62 | BK3: 63 | BL3: 64 | BM3: 65 | BN3: 66 | BO3: 67 | BP3: 68 | BQ3: 69 | BR3: 70 | BS3: 71 | BT3: 72

Sheet Sheet3 (hidden)
A1: ; Additionality type (67) may only include values NULL, 1,2,3; Reported grant equivalent is different compared with macro's automatic calculation based only on reported terms; NUMBER OF ISSUES : 2 | B1: 2023 | C1: 2019-12-04 | D1: 68 | E1: 1 | F1: 2023100004 | G1: Sovereign loans | H1: 1 | I1: 366 | K1: 44001 | L1: 3 | M1: 10 | N1: 421 | O1: C01 | P1: text | Q1: 24030 | T1: 00:00:00 | U1: 00:00:00 | V1: Sovereign loans | W1: 5 | X1: #COVID-19 | AJ1: 1 | AK1: 1 | AN1: 918 | AO1: 0 | AQ1: 10000 | AR1: 1726.090197 | AS1: 1164.470289 | AT1: 0 | BE1: 1 | BF1: 1 | BG1: 3200 | BI1: 2021-07-15 | BJ1: 2035-03-13 | BR1: 11 | BT1: 0.06 | BU1: Multi | BV1: 0.05 | BW1: 11.64470289
A2: ; Average use of portfolio guarantee (col 66) needs to be reported.; NUMBER OF ISSUES : 1 | B2: 2023 | C2: 2023-01-01 | D2: 68 | E2: 1 | F2: 2023000005 | G2: Loan portfolio guarantee | H2: 1 | I2: 645 | J2: new | K2: 12000 | L2: 1 | M2: 60 | N2: 1102 | O2: C01 | P2: text | Q2: 99810 | T2: 00:00:00 | U2: 00:00:00 | Y2: 2 | AK2: 2 | AN2: 918 | AR2: 371.7098403 | BE2: 1 | BF2: 1 | BG2: text | BH2: 1000 | BI2: 2027-01-01 | BJ2: 2027-01-01 | BK2: 123 | BL2: 4 | BM2: 4 | BO2: 10000 | BQ2: 20 | BR2: 11 | BS2: text | BT2: text | BU2: =IFERROR(IF(M2=60,VLOOKUP(VALUE(TEXT(YEAR($C2),"@")&TEXT($I2,"@")),IncomeGroup!$C$2:$F$50000,4,FALSE),VLOOKUP(VALUE(TEXT(YEAR($C2),"@")&TEXT($I2,"@")),IncomeGroup!$C$2:$F$50000,3,FALSE)),"") -> LMICs | BV2: 0.03 | BW2: 7.434196806
A3: ; Column ODA grant equivalent not reported whereas new disbursement; if reporting under new PSI rules, type of flow = 60 and PSI is two digits in 10,20,21,22,30,40,41,42,50. If under provisional methods - type of flow (10,21), PSI flag may only include values NULL,2,3,4; Additionality type (67) may only include values NULL, 1,2,3; NUMBER OF ISSUES : 3 | B3: 2023 | C3: 2023-05-15 | D3: 68 | E3: 1 | F3: 2023000028a | G3: abc | H3: 1 | I3: 645 | J3: RG | K3: 62000 | L3: 1 | M3: 10 | N3: 422 | O3: C01 | P3: RG | Q3: 24030 | T3: 00:00:00 | U3: 00:00:00 | V3: RG | W3: 8.4 | Y3: 0 | Z3: 0 | AA3: 0 | AB3: 0 | AC3: 0 | AD3: 0 | AE3: 0 | AJ3: 2 | AK3: 0 | AL3: 0 | AM3: 0 | AN3: 918 | AP3: 15000 | AQ3: 15000 | BE3: 1 | BF3: 4 | BG3: 5000 | BI3: 2024-06-18 | BJ3: 2029-08-31 | BQ3: 21 | BR3: 11;13;21 | BT3: text | BU3: =IFERROR(IF(M3=60,VLOOKUP(VALUE(TEXT(YEAR($C3),"@")&TEXT($I3,"@")),IncomeGroup!$C$2:$F$50000,4,FALSE),VLOOKUP(VALUE(TEXT(YEAR($C3),"@")&TEXT($I3,"@")),IncomeGroup!$C$2:$F$50000,3,FALSE)),"") -> LMICs | BW3: 0
A4: ; Column ODA grant equivalent not reported whereas new disbursement; NUMBER OF ISSUES : 1 | B4: 2023 | C4: 2023-05-15 | D4: 68 | E4: 1 | F4: 2023000032 | G4: abc | H4: 1 | I4: 645 | J4: LTRG multilateral | K4: 12000 | L4: 1 | M4: 10 | N4: 4221 | O4: C01 | P4: LTRG multilateral | Q4: 24030 | T4: 00:00:00 | U4: 00:00:00 | V4: LTRG multilateral | W4: 8.4 | Y4: 0 | Z4: 0 | AA4: 0 | AB4: 0 | AC4: 0 | AD4: 0 | AE4: 0 | AJ4: 0 | AK4: 0 | AL4: 0 | AM4: 0 | AN4: 918 | AP4: 15000 | AQ4: 15000 | AS4: 2775.955122 | BE4: 1 | BF4: 4 | BG4: 1000 | BI4: 2024-06-18 | BJ4: 2029-08-31 | BU4: =IFERROR(IF(M4=60,VLOOKUP(VALUE(TEXT(YEAR($C4),"@")&TEXT($I4,"@")),IncomeGroup!$C$2:$F$50000,4,FALSE),VLOOKUP(VALUE(TEXT(YEAR($C4),"@")&TEXT($I4,"@")),IncomeGroup!$C$2:$F$50000,3,FALSE)),"") -> LMICs | BV4: 0.07 | BW4: 18.50636748
A5: ; CRSid duplicate (or not reported); NUMBER OF ISSUES : 1 | B5: 2023 | C5: 2023-01-01 | D5: 68 | E5: 1 | F5: 2023000001 | G5: 123 | H5: 1 | I5: 998 | J5: Institution name | K5: 11004 | L5: 1 | M5: 60 | N5: 110 | O5: B05 | P5: a. Capital increase | Q5: 15170 | T5: 00:00:00 | U5: 00:00:00 | V5: [text] | AJ5: 1 | AN5: 918 | AR5: 100000 | BQ5: 50 | BU5: =IFERROR(IF(M5=60,VLOOKUP(VALUE(TEXT(YEAR($C5),"@")&TEXT($I5,"@")),IncomeGroup!$C$2:$F$50000,4,FALSE),VLOOKUP(VALUE(TEXT(YEAR($C5),"@")&TEXT($I5,"@")),IncomeGroup!$C$2:$F$50000,3,FALSE)),"") -> UMICs | BY5: LMICs | BZ5: =BO5 -> 0 | CA5: =BG5/100000 -> 0 | CB5: =BE5 -> 0 | CC5: =DATEDIF(C5,BJ5,"D")/365.25 ->  | CD5: =DATEDIF(C5,BI5,"D")/365.25 ->  | CE5: 4 | CF5: =CD5-(1/CE5) ->  | CG5: =CC5-CF5 ->  | CH5: =VLOOKUP([3]CRSDATA!M58,'[3]Discount rates gua, rg'!$A:$H,MATCH([3]CRSDATA!BW$4,'[3]Discount rates gua, rg'!$A$1:$H$1,0),FALSE) ->  | CI5: =CA5 -> 0 | CJ5: =CA5 -> 0 | CK5: =((1+CH5)^(1/CE5))-1 ->  | CL5: =CE5*CG5 ->  | CM5: =(1+CH5)^CF5 ->  | CN5: =(1+CH5)^CG5 ->  | CO5: =(CI5*(1-(1/CM5)))/(CE5*CK5) ->  | CP5: =(1/CL5)*(1/CM5)*((1-(1/CN5))/CK5) ->  | CQ5: =(CJ5/(CE5*CL5))*(1/CM5)*((1/CN5)-1+CK5*CL5)/(CK5*CK5) ->  | CR5: =1 / ( (1 + CJ5/CE5)^CL5 -1) +1 ->  | CS5: =( CJ5/CE5 ) * CR5 * ( 1/CM5) * ( (1 - 1/CN5) / CK5) ->  | CT5: =(1-CO5-CP5-CQ5) ->  | CU5: =(1-CO5-CS5) ->  | CV5: =(1-(1+CJ5*CD5)/(1+CH5)^CC5) ->  | CW5: =IF(CB5=1,CT5,IF(CB5=2,CU5,IF(CB5=3,CV5,IF(CB5=5,CT5,"ERROR")))) -> ERROR | CX5: =IF(CW5<0,0,BZ5*CW5) ->  | CY5: =J5 -> Institution name
A6: ; CRSid duplicate (or not reported); NUMBER OF ISSUES : 1 | B6: 2023 | C6: 2023-01-01 | D6: 68 | E6: 1 | F6: 2023000007 | G6: 137 | H6: 1 | I6: 998 | J6: Institution name | K6: 11004 | L6: 1 | M6: 60 | N6: 110 | O6: B05 | P6: o. Decapitalisation | Q6: 41030 | T6: 00:00:00 | U6: 00:00:00 | V6: [text] | AN6: 918 | AR6: -2500 | BQ6: 50 | BU6: =IFERROR(IF(M6=60,VLOOKUP(VALUE(TEXT(YEAR($C6),"@")&TEXT($I6,"@")),IncomeGroup!$C$2:$F$50000,4,FALSE),VLOOKUP(VALUE(TEXT(YEAR($C6),"@")&TEXT($I6,"@")),IncomeGroup!$C$2:$F$50000,3,FALSE)),"") -> UMICs
A7: ; if reporting under new PSI rules, type of flow = 60 and PSI is two digits in 10,20,21,22,30,40,41,42,50. If under provisional methods - type of flow (10,21), PSI flag may only include values NULL,2,3,4; Type of flow 21 and channel is 6**** then PSI_flag can only be 3,4; NUMBER OF ISSUES : 2 | B7: 2023 | C7: 2020-06-30 | D7: 68 | E7: 1 | F7: 2023100015 | G7: Common equity | H7: 1 | I7: 261 | K7: 62000 | L7: 3 | M7: 21 | N7: 510 | O7: C01 | P7: text | Q7: 24030 | T7: 00:00:00 | U7: 00:00:00 | AN7: 918 | AO7: 0 | AQ7: 0 | AR7: 0 | BG7: 1236 | BJ7: 2025-12-31 | BQ7: 21 | BS7: LMICs | BU7: =IFERROR(IF(M7=60,VLOOKUP(VALUE(TEXT(YEAR($C7),"@")&TEXT($I7,"@")),IncomeGroup!$C$2:$F$50000,4,FALSE),VLOOKUP(VALUE(TEXT(YEAR($C7),"@")&TEXT($I7,"@")),IncomeGroup!$C$2:$F$50000,3,FALSE)),"") -> LMICs | BV7: 0.105 | BW7: 38.3472416 | BY7: LMICs | BZ7: =BO7 -> 0 | CA7: =BG7/100000 -> 0.01236 | CB7: =BE7 -> 0 | CC7: =DATEDIF(C7,BJ7,"D")/365.25 -> 5.503080082 | CD7: =DATEDIF(C7,BI7,"D")/365.25 ->  | CE7: 4 | CF7: =CD7-(1/CE7) ->  | CG7: =CC7-CF7 ->  | CH7: =VLOOKUP([3]CRSDATA!M45,'[3]Discount rates gua, rg'!$A:$H,MATCH([3]CRSDATA!BW$4,'[3]Discount rates gua, rg'!$A$1:$H$1,0),FALSE) ->  | CI7: =CA7 -> 0.01236 | CJ7: =CA7 -> 0.01236 | CK7: =((1+CH7)^(1/CE7))-1 ->  | CL7: =CE7*CG7 ->  | CM7: =(1+CH7)^CF7 ->  | CN7: =(1+CH7)^CG7 ->  | CO7: =(CI7*(1-(1/CM7)))/(CE7*CK7) ->  | CP7: =(1/CL7)*(1/CM7)*((1-(1/CN7))/CK7) ->  | CQ7: =(CJ7/(CE7*CL7))*(1/CM7)*((1/CN7)-1+CK7*CL7)/(CK7*CK7) ->  | CR7: =1 / ( (1 + CJ7/CE7)^CL7 -1) +1 ->  | CS7: =( CJ7/CE7 ) * CR7 * ( 1/CM7) * ( (1 - 1/CN7) / CK7) ->  | CT7: =(1-CO7-CP7-CQ7) ->  | CU7: =(1-CO7-CS7) ->  | CV7: =(1-(1+CJ7*CD7)/(1+CH7)^CC7) ->  | CW7: =IF(CB7=1,CT7,IF(CB7=2,CU7,IF(CB7=3,CV7,IF(CB7=5,CT7,"ERROR")))) -> ERROR | CX7: =IF(CW7<0,0,BZ7*CW7) ->  | CY7: =J7 -> 0
A8: ; Warning: for equities, Interest rate, Final repayment date and interest received are needed; if reporting under new PSI rules, type of flow = 60 and PSI is two digits in 10,20,21,22,30,40,41,42,50. If under provisional methods - type of flow (10,21), PSI flag may only include values NULL,2,3,4; NUMBER OF ISSUES : 2 | B8: 2023 | C8: 2020-06-30 | D8: 68 | E8: 1 | F8: 2023103015 | G8: Common equity | H8: 1 | I8: 261 | K8: 62000 | L8: 3 | M8: 10 | N8: 510 | O8: C01 | P8: text | Q8: 24030 | T8: 00:00:00 | U8: 00:00:00 | AN8: 918 | AO8: 0 | AQ8: 0 | AR8: 0 | BG8: 1236 | BJ8: 2025-12-31 | BQ8: 21 | BS8: LMICs | BU8: =IFERROR(IF(M8=60,VLOOKUP(VALUE(TEXT(YEAR($C8),"@")&TEXT($I8,"@")),IncomeGroup!$C$2:$F$50000,4,FALSE),VLOOKUP(VALUE(TEXT(YEAR($C8),"@")&TEXT($I8,"@")),IncomeGroup!$C$2:$F$50000,3,FALSE)),"") -> LMICs | BV8: 0.105 | BW8: 38.3472416 | BY8: LMICs | BZ8: =AQ8 -> 0 | CA8: =BG8/100000 -> 0.01236 | CB8: =BE8 -> 0 | CC8: =DATEDIF(C8,BJ8,"D")/365.25 -> 5.503080082 | CD8: =DATEDIF(C8,BI8,"D")/365.25 ->  | CE8: 4 | CF8: =CD8-(1/CE8) ->  | CG8: =CC8-CF8 ->  | CH8: 0.08 | CI8: =CA8 -> 0.01236 | CJ8: =CA8 -> 0.01236 | CK8: =((1+CH8)^(1/CE8))-1 -> 0.01942654691 | CL8: =CE8*CG8 ->  | CM8: =(1+CH8)^CF8 ->  | CN8: =(1+CH8)^CG8 ->  | CO8: =(CI8*(1-(1/CM8)))/(CE8*CK8) ->  | CP8: =(1/CL8)*(1/CM8)*((1-(1/CN8))/CK8) ->  | CQ8: =(CJ8/(CE8*CL8))*(1/CM8)*((1/CN8)-1+CK8*CL8)/(CK8*CK8) ->  | CR8: =1 / ( (1 + CJ8/CE8)^CL8 -1) +1 ->  | CS8: =( CJ8/CE8 ) * CR8 * ( 1/CM8) * ( (1 - 1/CN8) / CK8) ->  | CT8: =(1-CO8-CP8-CQ8) ->  | CU8: =(1-CO8-CS8) ->  | CV8: =(1-(1+CJ8*CD8)/(1+CH8)^CC8) ->  | CW8: =IF(CB8=1,CT8,IF(CB8=2,CU8,IF(CB8=3,CV8,IF(CB8=5,CT8,"ERROR")))) -> ERROR | CX8: =IF(CW8<0,0,BZ8*CW8) ->  | CY8: =J8 -> 0
B9: 2023 | C9: 2023-10-12 | D9: 68 | E9: 1 | F9: 2023100011 | G9: Common equity | H9: 1 | I9: 229 | K9: 12000 | L9: 1 | M9: 60 | N9: 510 | O9: C01 | P9: text | Q9: 24030 | T9: 00:00:00 | U9: 00:00:00 | V9: Common equity | AN9: 918 | AO9: 10000 | AQ9: 10000 | AR9: 2059.060535 | AS9: 2059.060535 | BG9: 8765 | BJ9: 2030-12-31 | BQ9: 21 | BR9: 11;13;24 | BS9: LMICs | BT9: text | BU9: =IFERROR(IF(M9=60,VLOOKUP(VALUE(TEXT(YEAR($C9),"@")&TEXT($I9,"@")),IncomeGroup!$C$2:$F$50000,4,FALSE),VLOOKUP(VALUE(TEXT(YEAR($C9),"@")&TEXT($I9,"@")),IncomeGroup!$C$2:$F$50000,3,FALSE)),"") -> LMICs | BV9: 0.105 | BW9: 20.59060535
B10: 2023 | C10: 2018-12-14 | D10: 68 | E10: 1 | F10: 2023100012 | G10: Common equity | H10: 1 | I10: 63 | K10: 61000 | L10: 3 | M10: 60 | N10: 510 | O10: C01 | P10: text | Q10: 24030 | T10: 00:00:00 | U10: 00:00:00 | AN10: 918 | AO10: 0 | AQ10: 10000 | AR10: 4782.38685 | AS10: 4782.38685 | BG10: -894 | BJ10: 2025-09-15 | BQ10: 21 | BR10: 11;13;25 | BS10: UMICs | BT10: text | BU10: =IFERROR(IF(M10=60,VLOOKUP(VALUE(TEXT(YEAR($C10),"@")&TEXT($I10,"@")),IncomeGroup!$C$2:$F$50000,4,FALSE),VLOOKUP(VALUE(TEXT(YEAR($C10),"@")&TEXT($I10,"@")),IncomeGroup!$C$2:$F$50000,3,FALSE)),"") -> UMICs | BV10: 0.091 | BW10: 47.8238685 | BY10: LMICs | BZ10: =BO10 -> 0 | CA10: =BG10/100000 -> -0.00894 | CB10: =BE10 -> 0 | CC10: =DATEDIF(C10,BJ10,"D")/365.25 -> 6.754277892 | CD10: =DATEDIF(C10,BI10,"D")/365.25 ->  | CE10: 4 | CF10: =CD10-(1/CE10) ->  | CG10: =CC10-CF10 ->  | CH10: =VLOOKUP([3]CRSDATA!M79,'[3]Discount rates gua, rg'!$A:$H,MATCH([3]CRSDATA!BW$4,'[3]Discount rates gua, rg'!$A$1:$H$1,0),FALSE) ->  | CI10: =CA10 -> -0.00894 | CJ10: =CA10 -> -0.00894 | CK10: =((1+CH10)^(1/CE10))-1 ->  | CL10: =CE10*CG10 ->  | CM10: =(1+CH10)^CF10 ->  | CN10: =(1+CH10)^CG10 ->  | CO10: =(CI10*(1-(1/CM10)))/(CE10*CK10) ->  | CP10: =(1/CL10)*(1/CM10)*((1-(1/CN10))/CK10) ->  | CQ10: =(CJ10/(CE10*CL10))*(1/CM10)*((1/CN10)-1+CK10*CL10)/(CK10*CK10) ->  | CR10: =1 / ( (1 + CJ10/CE10)^CL10 -1) +1 ->  | CS10: =( CJ10/CE10 ) * CR10 * ( 1/CM10) * ( (1 - 1/CN10) / CK10) ->  | CT10: =(1-CO10-CP10-CQ10) ->  | CU10: =(1-CO10-CS10) ->  | CV10: =(1-(1+CJ10*CD10)/(1+CH10)^CC10) ->  | CW10: =IF(CB10=1,CT10,IF(CB10=2,CU10,IF(CB10=3,CV10,IF(CB10=5,CT10,"ERROR")))) -> ERROR | CX10: =IF(CW10<0,0,BZ10*CW10) ->  | CY10: =J10 -> 0
A11: ; Donor country different from 68; Not a Date format; Not a Date format; NUMBER OF ISSUES : 3 | B11: 2023 | C11: 2016-08-12 | D11: 4 | E11: 2 | F11: 2016351111 | G11: 9180Y2 | H11: 3 | I11: 431 | J11: Public sector institutions | K11: 10000 | L11: 1 | M11: 10 | N11: 110 | O11: C01 | P11: FASEP 1064-ETUDE FAISABILITE TRANSPORT PAR CABLE | Q11: 21010 | R11: SALVADOR DE BAHIA | T11: 00:00:00 | U11: 00:00:00 | V11: FASEP 1064-ETUDE FAISABILITE TRANSPORT PAR CABLE | W11: 9.1;9.4 | Y11: 0 | Z11: 1 | AA11: 0 | AB11: 0 | AC11: 0 | AD11: 0 | AE11: 0 | AJ11: 0 | AK11: 0 | AL11: 0 | AM11: 0 | AN11: 918 | AO11: 0 | AQ11: 17.20191 | AR11: 17.20191 | AT11: 0 | AU11: 0 | AV11: 0 | AW11: 0 | BU11: =IFERROR(IF(M11=60,VLOOKUP(VALUE(TEXT(YEAR($C11),"@")&TEXT($I11,"@")),IncomeGroup!$C$2:$F$50000,4,FALSE),VLOOKUP(VALUE(TEXT(YEAR($C11),"@")&TEXT($I11,"@")),IncomeGroup!$C$2:$F$50000,3,FALSE)),"") -> UMICs | BY11: LMICs | BZ11: =BO11 -> 0 | CA11: =BG11/100000 -> 0 | CB11: =BE11 ->  | CC11: =DATEDIF(C11,BJ11,"D")/365.25 ->  | CD11: =DATEDIF(C11,BI11,"D")/365.25 ->  | CE11: 4 | CF11: =CD11-(1/CE11) ->  | CG11: =CC11-CF11 ->  | CH11: =VLOOKUP([3]CRSDATA!M57,'[3]Discount rates gua, rg'!$A:$H,MATCH([3]CRSDATA!BW$4,'[3]Discount rates gua, rg'!$A$1:$H$1,0),FALSE) ->  | CI11: =CA11 -> 0 | CJ11: =CA11 -> 0 | CK11: =((1+CH11)^(1/CE11))-1 ->  | CL11: =CE11*CG11 ->  | CM11: =(1+CH11)^CF11 ->  | CN11: =(1+CH11)^CG11 ->  | CO11: =(CI11*(1-(1/CM11)))/(CE11*CK11) ->  | CP11: =(1/CL11)*(1/CM11)*((1-(1/CN11))/CK11) ->  | CQ11: =(CJ11/(CE11*CL11))*(1/CM11)*((1/CN11)-1+CK11*CL11)/(CK11*CK11) ->  | CR11: =1 / ( (1 + CJ11/CE11)^CL11 -1) +1 ->  | CS11: =( CJ11/CE11 ) * CR11 * ( 1/CM11) * ( (1 - 1/CN11) / CK11) ->  | CT11: =(1-CO11-CP11-CQ11) ->  | CU11: =(1-CO11-CS11) ->  | CV11: =(1-(1+CJ11*CD11)/(1+CH11)^CC11) ->  | CW11: =IF(CB11=1,CT11,IF(CB11=2,CU11,IF(CB11=3,CV11,IF(CB11=5,CT11,"ERROR")))) -> ERROR | CX11: =IF(CW11<0,0,BZ11*CW11) ->  | CY11: =J11 -> Public sector institutions
A12: ; Donor country different from 68; Not a Date format; Not a Date format; NUMBER OF ISSUES : 3 | B12: 2023 | C12: 2017-07-12 | D12: 4 | E12: 2 | F12: 2017352011 | G12: C480A2 | H12: 3 | I12: 285 | J12: Public sector institutions | K12: 10000 | L12: 1 | M12: 10 | N12: 110 | O12: C01 | P12: FASEP 1086-PROJET SMART BASIN | Q12: 14010 | R12: OUGANDA | T12: 00:00:00 | U12: 00:00:00 | V12: FASEP 1086-PROJET SMART BASIN | W12: 6.1;6.2;6.5 | Y12: 0 | Z12: 2 | AA12: 0 | AB12: 0 | AC12: 0 | AD12: 0 | AE12: 0 | AH12: 1 | AJ12: 0 | AK12: 0 | AL12: 0 | AM12: 0 | AN12: 918 | AO12: 0 | AQ12: 199.4412 | AR12: 199.4412 | AT12: 0 | AU12: 0 | AV12: 0 | AW12: 0 | BU12: =IFERROR(IF(M12=60,VLOOKUP(VALUE(TEXT(YEAR($C12),"@")&TEXT($I12,"@")),IncomeGroup!$C$2:$F$50000,4,FALSE),VLOOKUP(VALUE(TEXT(YEAR($C12),"@")&TEXT($I12,"@")),IncomeGroup!$C$2:$F$50000,3,FALSE)),"") -> LDCs | BY12: LMICs | BZ12: =BO12 -> 0 | CA12: =BG12/100000 -> 0 | CB12: =BE12 ->  | CC12: =DATEDIF(C12,BJ12,"D")/365.25 ->  | CD12: =DATEDIF(C12,BI12,"D")/365.25 ->  | CE12: 4 | CF12: =CD12-(1/CE12) ->  | CG12: =CC12-CF12 ->  | CH12: =VLOOKUP([3]CRSDATA!M17,'[3]Discount rates gua, rg'!$A:$H,MATCH([3]CRSDATA!BW$4,'[3]Discount rates gua, rg'!$A$1:$H$1,0),FALSE) -> 0.065 | CI12: =CA12 -> 0 | CJ12: =CA12 -> 0 | CK12: =((1+CH12)^(1/CE12))-1 -> 0.01586828478 | CL12: =CE12*CG12 ->  | CM12: =(1+CH12)^CF12 ->  | CN12: =(1+CH12)^CG12 ->  | CO12: =(CI12*(1-(1/CM12)))/(CE12*CK12) ->  | CP12: =(1/CL12)*(1/CM12)*((1-(1/CN12))/CK12) ->  | CQ12: =(CJ12/(CE12*CL12))*(1/CM12)*((1/CN12)-1+CK12*CL12)/(CK12*CK12) ->  | CR12: =1 / ( (1 + CJ12/CE12)^CL12 -1) +1 ->  | CS12: =( CJ12/CE12 ) * CR12 * ( 1/CM12) * ( (1 - 1/CN12) / CK12) ->  | CT12: =(1-CO12-CP12-CQ12) ->  | CU12: =(1-CO12-CS12) ->  | CV12: =(1-(1+CJ12*CD12)/(1+CH12)^CC12) ->  | CW12: =IF(CB12=1,CT12,IF(CB12=2,CU12,IF(CB12=3,CV12,IF(CB12=5,CT12,"ERROR")))) -> ERROR | CX12: =IF(CW12<0,0,BZ12*CW12) ->  | CY12: =J12 -> Public sector institutions
A13: ; Donor country different from 68; Not a Date format; Not a Date format; NUMBER OF ISSUES : 3 | B13: 2023 | C13: 2015-10-12 | D13: 4 | E13: 2 | F13: 2015352211e | G13: C350E2 | H13: 3 | I13: 550 | J13: Public sector institutions | K13: 10000 | L13: 1 | M13: 10 | N13: 110 | O13: C01 | P13: FASEP 1052-SECTEUR PRIVE-ARAB ISLAMIC BK | Q13: 25020 | R13: PALESTINE | T13: 00:00:00 | U13: 00:00:00 | V13: FASEP 1052-SECTEUR PRIVE-ARAB ISLAMIC BK | W13: 7.1;7.b | Y13: 0 | Z13: 0 | AA13: 0 | AB13: 0 | AC13: 0 | AD13: 0 | AE13: 0 | AH13: 1 | AJ13: 0 | AK13: 0 | AL13: 0 | AM13: 0 | AN13: 918 | AO13: 0 | AQ13: 76.25 | AR13: 76.25 | AT13: 0 | AU13: 0 | AV13: 0 | AW13: 0 | BU13: =IFERROR(IF(M13=60,VLOOKUP(VALUE(TEXT(YEAR($C13),"@")&TEXT($I13,"@")),IncomeGroup!$C$2:$F$50000,4,FALSE),VLOOKUP(VALUE(TEXT(YEAR($C13),"@")&TEXT($I13,"@")),IncomeGroup!$C$2:$F$50000,3,FALSE)),"") -> LMICs | BY13: LMICs | BZ13: =BO13 -> 0 | CA13: =BG13/100000 -> 0 | CB13: =BE13 ->  | CC13: =DATEDIF(C13,BJ13,"D")/365.25 ->  | CD13: =DATEDIF(C13,BI13,"D")/365.25 ->  | CE13: 4 | CF13: =CD13-(1/CE13) ->  | CG13: =CC13-CF13 ->  | CH13: =VLOOKUP([3]CRSDATA!M55,'[3]Discount rates gua, rg'!$A:$H,MATCH([3]CRSDATA!BW$4,'[3]Discount rates gua, rg'!$A$1:$H$1,0),FALSE) ->  | CI13: =CA13 -> 0 | CJ13: =CA13 -> 0 | CK13: =((1+CH13)^(1/CE13))-1 ->  | CL13: =CE13*CG13 ->  | CM13: =(1+CH13)^CF13 ->  | CN13: =(1+CH13)^CG13 ->  | CO13: =(CI13*(1-(1/CM13)))/(CE13*CK13) ->  | CP13: =(1/CL13)*(1/CM13)*((1-(1/CN13))/CK13) ->  | CQ13: =(CJ13/(CE13*CL13))*(1/CM13)*((1/CN13)-1+CK13*CL13)/(CK13*CK13) ->  | CR13: =1 / ( (1 + CJ13/CE13)^CL13 -1) +1 ->  | CS13: =( CJ13/CE13 ) * CR13 * ( 1/CM13) * ( (1 - 1/CN13) / CK13) ->  | CT13: =(1-CO13-CP13-CQ13) ->  | CU13: =(1-CO13-CS13) ->  | CV13: =(1-(1+CJ13*CD13)/(1+CH13)^CC13) ->  | CW13: =IF(CB13=1,CT13,IF(CB13=2,CU13,IF(CB13=3,CV13,IF(CB13=5,CT13,"ERROR")))) -> ERROR | CX13: =IF(CW13<0,0,BZ13*CW13) ->  | CY13: =J13 -> Public sector institutions
A14: ; Exposure reduction starting date (field 59) needs to be reported; Average use of portfolio guarantee (col 66) needs to be reported.; NUMBER OF ISSUES : 2 | B14: 2023 | C14: 2023-01-01 | D14: 68 | E14: 1 | F14: 2023000006 | G14: Loan portfolio guarantee | H14: 1 | I14: 645 | J14: new | K14: 62000 | L14: 1 | M14: 60 | N14: 1102 | O14: C01 | P14: text | Q14: 99810 | T14: 00:00:00 | U14: 00:00:00 | AN14: 918 | AR14: 459.1349011 | BE14: 1 | BF14: 1 | BG14: text | BH14: 1000 | BJ14: 2027-01-01 | BK14: 123 | BL14: 4 | BM14: 4 | BO14: 10000 | BQ14: 20 | BR14: 11 | BS14: text | BT14: text | BU14: =IFERROR(IF(M14=60,VLOOKUP(VALUE(TEXT(YEAR($C14),"@")&TEXT($I14,"@")),IncomeGroup!$C$2:$F$50000,4,FALSE),VLOOKUP(VALUE(TEXT(YEAR($C14),"@")&TEXT($I14,"@")),IncomeGroup!$C$2:$F$50000,3,FALSE)),"") -> LMICs | BV14: 0.035 | BW14: 0 | BY14: LMICs | BZ14: =BO14 -> 10000 | CA14: =BG14/100000 ->  | CB14: =BE14 -> 1 | CC14: =DATEDIF(C14,BJ14,"D")/365.25 -> 4 | CD14: =DATEDIF(C14,BI14,"D")/365.25 ->  | CE14: 4 | CF14: =CD14-(1/CE14) ->  | CG14: =CC14-CF14 ->  | CH14: =VLOOKUP([3]CRSDATA!M166,'[3]Discount rates gua, rg'!$A:$H,MATCH([3]CRSDATA!BW$4,'[3]Discount rates gua, rg'!$A$1:$H$1,0),FALSE) ->  | CI14: =CA14 ->  | CJ14: =CA14 ->  | CK14: =((1+CH14)^(1/CE14))-1 ->  | CL14: =CE14*CG14 ->  | CM14: =(1+CH14)^CF14 ->  | CN14: =(1+CH14)^CG14 ->  | CO14: =(CI14*(1-(1/CM14)))/(CE14*CK14) ->  | CP14: =(1/CL14)*(1/CM14)*((1-(1/CN14))/CK14) ->  | CQ14: =(CJ14/(CE14*CL14))*(1/CM14)*((1/CN14)-1+CK14*CL14)/(CK14*CK14) ->  | CR14: =1 / ( (1 + CJ14/CE14)^CL14 -1) +1 ->  | CS14: =( CJ14/CE14 ) * CR14 * ( 1/CM14) * ( (1 - 1/CN14) / CK14) ->  | CT14: =(1-CO14-CP14-CQ14) ->  | CU14: =(1-CO14-CS14) ->  | CV14: =(1-(1+CJ14*CD14)/(1+CH14)^CC14) ->  | CW14: =IF(CB14=1,CT14,IF(CB14=2,CU14,IF(CB14=3,CV14,IF(CB14=5,CT14,"ERROR")))) ->  | CX14: =IF(CW14<0,0,BZ14*CW14) ->  | CY14: =J14 -> new
A15: ; Exposure reduction starting date (field 59) needs to be reported; NUMBER OF ISSUES : 1 | B15: 2023 | C15: 2023-05-05 | D15: 68 | E15: 1 | F15: 2023100041 | G15: Individual loan guarantee | H15: 1 | I15: 229 | K15: 12000 | L15: 1 | M15: 60 | N15: 1101 | O15: C01 | P15: text | Q15: 24030 | T15: 00:00:00 | U15: 00:00:00 | AN15: 918 | AR15: 693.2389193 | BE15: 1 | BF15: 1 | BG15: 1500 | BJ15: 2030-12-07 | BO15: 10000 | BQ15: 20 | BR15: 11 | BS15: LMICs | BT15: text | BU15: =IFERROR(IF(M15=60,VLOOKUP(VALUE(TEXT(YEAR($C15),"@")&TEXT($I15,"@")),IncomeGroup!$C$2:$F$50000,4,FALSE),VLOOKUP(VALUE(TEXT(YEAR($C15),"@")&TEXT($I15,"@")),IncomeGroup!$C$2:$F$50000,3,FALSE)),"") -> LMICs | BV15: 0.03 | BW15: 6.932389193
A16: ; Final repayment date not reported; For PSI in ODA, fields on additionality (fields 68-70) should be reported; NUMBER OF ISSUES : 2 | B16: 2023 | C16: 2019-10-28 | D16: 68 | E16: 1 | F16: 2023100008 | G16: PSI loans | H16: 1 | I16: 660 | K16: 63000 | L16: 3 | M16: 60 | N16: 421 | O16: C01 | P16: text | Q16: 24030 | T16: 00:00:00 | U16: 00:00:00 | AN16: 918 | AO16: 0 | AQ16: 10000 | AR16: 2310.799079 | AT16: 0 | BE16: 1 | BF16: 1 | BG16: 5293 | BI16: 2025-09-25 | BQ16: 20 | BU16: =IFERROR(IF(M16=60,VLOOKUP(VALUE(TEXT(YEAR($C16),"@")&TEXT($I16,"@")),IncomeGroup!$C$2:$F$50000,4,FALSE),VLOOKUP(VALUE(TEXT(YEAR($C16),"@")&TEXT($I16,"@")),IncomeGroup!$C$2:$F$50000,3,FALSE)),"") -> LDCs | BV16: 0.1 | BW16: 0 | BY16: LMICs | BZ16: =BO16 -> 0 | CA16: =BG16/100000 -> 0.05293 | CB16: =BE16 -> 1 | CC16: =DATEDIF(C16,BJ16,"D")/365.25 ->  | CD16: =DATEDIF(C16,BI16,"D")/365.25 -> 5.911019849 | CE16: 4 | CF16: =CD16-(1/CE16) -> 5.661019849 | CG16: =CC16-CF16 ->  | CH16: =VLOOKUP([3]CRSDATA!M12,'[3]Discount rates gua, rg'!$A:$H,MATCH([3]CRSDATA!BW$4,'[3]Discount rates gua, rg'!$A$1:$H$1,0),FALSE) -> 0.05 | CI16: =CA16 -> 0.05293 | CJ16: =CA16 -> 0.05293 | CK16: =((1+CH16)^(1/CE16))-1 -> 0.01227223443 | CL16: =CE16*CG16 ->  | CM16: =(1+CH16)^CF16 -> 1.318114212 | CN16: =(1+CH16)^CG16 ->  | CO16: =(CI16*(1-(1/CM16)))/(CE16*CK16) -> 0.2602245638 | CP16: =(1/CL16)*(1/CM16)*((1-(1/CN16))/CK16) ->  | CQ16: =(CJ16/(CE16*CL16))*(1/CM16)*((1/CN16)-1+CK16*CL16)/(CK16*CK16) ->  | CR16: =1 / ( (1 + CJ16/CE16)^CL16 -1) +1 ->  | CS16: =( CJ16/CE16 ) * CR16 * ( 1/CM16) * ( (1 - 1/CN16) / CK16) ->  | CT16: =(1-CO16-CP16-CQ16) ->  | CU16: =(1-CO16-CS16) ->  | CV16: =(1-(1+CJ16*CD16)/(1+CH16)^CC16) ->  | CW16: =IF(CB16=1,CT16,IF(CB16=2,CU16,IF(CB16=3,CV16,IF(CB16=5,CT16,"ERROR")))) ->  | CX16: =IF(CW16<0,0,BZ16*CW16) ->  | CY16: =J16 -> 0
A17: ; First repayment date not reported; For PSI in ODA, fields on additionality (fields 68-70) should be reported; NUMBER OF ISSUES : 2 | B17: 2023 | C17: 2023-10-12 | D17: 68 | E17: 1 | F17: 2023100006 | G17: PSI loans | H17: 1 | I17: 229 | K17: 62000 | L17: 1 | M17: 60 | N17: 421 | O17: C01 | P17: text | Q17: 24030 | T17: 00:00:00 | U17: 00:00:00 | AN17: 918 | AO17: 10000 | AQ17: 10000 | AR17: 583.9825007 | AT17: 0 | BE17: 1 | BF17: 1 | BG17: 5660 | BJ17: 2030-12-31 | BQ17: 20 | BU17: =IFERROR(IF(M17=60,VLOOKUP(VALUE(TEXT(YEAR($C17),"@")&TEXT($I17,"@")),IncomeGroup!$C$2:$F$50000,4,FALSE),VLOOKUP(VALUE(TEXT(YEAR($C17),"@")&TEXT($I17,"@")),IncomeGroup!$C$2:$F$50000,3,FALSE)),"") -> LMICs | BV17: 0.075 | BW17: 0 | BY17: LMICs | BZ17: =BO17 -> 0 | CA17: =BG17/100000 -> 0.0566 | CB17: =BE17 -> 1 | CC17: =DATEDIF(C17,BJ17,"D")/365.25 -> 7.219712526 | CD17: =DATEDIF(C17,BI17,"D")/365.25 ->  | CE17: 4 | CF17: =CD17-(1/CE17) ->  | CG17: =CC17-CF17 ->  | CH17: 0.105 | CI17: =CA17 -> 0.0566 | CJ17: =CA17 -> 0.0566 | CK17: =((1+CH17)^(1/CE17))-1 -> 0.02527547619 | CL17: =CE17*CG17 ->  | CM17: =(1+CH17)^CF17 ->  | CN17: =(1+CH17)^CG17 ->  | CO17: =(CI17*(1-(1/CM17)))/(CE17*CK17) ->  | CP17: =(1/CL17)*(1/CM17)*((1-(1/CN17))/CK17) ->  | CQ17: =(CJ17/(CE17*CL17))*(1/CM17)*((1/CN17)-1+CK17*CL17)/(CK17*CK17) ->  | CR17: =1 / ( (1 + CJ17/CE17)^CL17 -1) +1 ->  | CS17: =( CJ17/CE17 ) * CR17 * ( 1/CM17) * ( (1 - 1/CN17) / CK17) ->  | CT17: =(1-CO17-CP17-CQ17) ->  | CU17: =(1-CO17-CS17) ->  | CV17: =(1-(1+CJ17*CD17)/(1+CH17)^CC17) ->  | CW17: =IF(CB17=1,CT17,IF(CB17=2,CU17,IF(CB17=3,CV17,IF(CB17=5,CT17,"ERROR")))) ->  | CX17: =IF(CW17<0,0,BZ17*CW17) ->  | CY17: =J17 -> 0
A18: ; For Bonds (Type of finance 423) or other hybrid instruments (433) please contact the Secretariat; For Bonds (Type of finance 423) or other hybrid instruments (433) please contact the Secretariat; NUMBER OF ISSUES : 2 | B18: 2023 | C18: 2020-06-30 | D18: 68 | E18: 1 | F18: 2023104015 | G18: Common equity | H18: 1 | I18: 261 | K18: 62000 | L18: 3 | M18: 60 | N18: 423 | O18: C01 | P18: text | Q18: 24030 | T18: 00:00:00 | U18: 00:00:00 | AN18: 918 | AO18: 0 | AQ18: 0 | AR18: 0 | BG18: 1236 | BJ18: 2025-12-31 | BQ18: 21 | BS18: LMICs | BU18: =IFERROR(IF(M18=60,VLOOKUP(VALUE(TEXT(YEAR($C18),"@")&TEXT($I18,"@")),IncomeGroup!$C$2:$F$50000,4,FALSE),VLOOKUP(VALUE(TEXT(YEAR($C18),"@")&TEXT($I18,"@")),IncomeGroup!$C$2:$F$50000,3,FALSE)),"") -> LMICs | BV18: 0.105 | BW18: 38.3472416
A19: ; For Capital increase/decrease (modality B05) GEq needs to be reported (field 43); NUMBER OF ISSUES : 1 | B19: 2023 | C19: 2023-01-01 | D19: 68 | E19: 1 | F19: 2023060001 | G19: 123 | H19: 1 | I19: 998 | J19: Institution name | K19: 61004 | L19: 1 | M19: 60 | N19: 110 | O19: B05 | P19: a. Capital increase | Q19: 99810 | T19: 00:00:00 | U19: 00:00:00 | V19: [text] | AN19: 918 | BQ19: 10 | BU19: =IFERROR(IF(M19=60,VLOOKUP(VALUE(TEXT(YEAR($C19),"@")&TEXT($I19,"@")),IncomeGroup!$C$2:$F$50000,4,FALSE),VLOOKUP(VALUE(TEXT(YEAR($C19),"@")&TEXT($I19,"@")),IncomeGroup!$C$2:$F$50000,3,FALSE)),"") -> UMICs
A20: ; for finance_T 4221 and Parent channel 4xxxx, Category must be 10,21; for finance_T 4221, category 60 Parent channel must be 6; for finance_T 4221, category 60 Parent channel must be 6; NUMBER OF ISSUES : 3 | B20: 2023 | C20: 2023-01-01 | D20: 68 | E20: 1 | F20: 2023000020 | G20: Loan-type reimbursable grants | H20: 1 | I20: 645 | J20: new | K20: 44001 | L20: 1 | M20: 60 | N20: 4221 | O20: C01 | P20: text | Q20: 99810 | T20: 00:00:00 | U20: 00:00:00 | V20: LTGR private | AN20: 918 | AO20: 10000 | AQ20: 10000 | AR20: 908.4657786 | AT20: 1000 | BE20: 1 | BF20: 1 | BG20: text | BH20: 1000 | BI20: 2024-01-02 | BJ20: 2027-01-01 | BK20: 123 | BL20: 1.002053388 | BM20: 4 | BQ20: 20 | BR20: 11 | BS20: text | BT20: text | BU20: Multi | BV20: 0.05 | BW20: 9.084657786
A21: ; for finance_T 4221 and Parent channel 4xxxx, Category must be 10,21; for finance_T 4221, category 60 Parent channel must be 6; for finance_T 4221, category 60 Parent channel must be 6; NUMBER OF ISSUES : 3 | B21: 2023 | C21: 2022-01-01 | D21: 68 | E21: 1 | F21: 2023000026 | G21: Loan-type reimbursable grants | H21: 1 | I21: 645 | J21: new | K21: 44001 | L21: 1 | M21: 60 | N21: 4221 | O21: C01 | P21: text | Q21: 99810 | T21: 00:00:00 | U21: 00:00:00 | V21: LTGR private | AN21: 918 | AT21: 1000 | BE21: 1 | BF21: 1 | BG21: text | BH21: 1000 | BI21: 2024-01-02 | BJ21: 2027-01-01 | BK21: 123 | BL21: 1.002053388 | BM21: 4 | BQ21: 20 | BR21: 11 | BS21: text | BT21: text | BU21: Multi | BV21: 0.05 | BW21: 12.45932336 | BY21: LMICs | BZ21: =BO21 -> 0 | CA21: =BG21/100000 ->  | CB21: =BE21 -> 1 | CC21: =DATEDIF(C21,BJ21,"D")/365.25 -> 4.999315537 | CD21: =DATEDIF(C21,BI21,"D")/365.25 -> 2.001368925 | CE21: 4 | CF21: =CD21-(1/CE21) -> 1.751368925 | CG21: =CC21-CF21 -> 3.247946612 | CH21: =VLOOKUP([3]CRSDATA!M9,'[3]Discount rates gua, rg'!$A:$H,MATCH([3]CRSDATA!BW$4,'[3]Discount rates gua, rg'!$A$1:$H$1,0),FALSE) -> 0.035 | CI21: =CA21 ->  | CJ21: =CA21 ->  | CK21: =((1+CH21)^(1/CE21))-1 -> 0.008637445998 | CL21: =CE21*CG21 -> 12.99178645 | CM21: =(1+CH21)^CF21 -> 1.062101603 | CN21: =(1+CH21)^CG21 -> 1.118215373 | CO21: =(CI21*(1-(1/CM21)))/(CE21*CK21) ->  | CP21: =(1/CL21)*(1/CM21)*((1-(1/CN21))/CK21) -> 0.8870093852 | CQ21: =(CJ21/(CE21*CL21))*(1/CM21)*((1/CN21)-1+CK21*CL21)/(CK21*CK21) ->  | CR21: =1 / ( (1 + CJ21/CE21)^CL21 -1) +1 ->  | CS21: =( CJ21/CE21 ) * CR21 * ( 1/CM21) * ( (1 - 1/CN21) / CK21) ->  | CT21: =(1-CO21-CP21-CQ21) ->  | CU21: =(1-CO21-CS21) ->  | CV21: =(1-(1+CJ21*CD21)/(1+CH21)^CC21) ->  | CW21: =IF(CB21=1,CT21,IF(CB21=2,CU21,IF(CB21=3,CV21,IF(CB21=5,CT21,"ERROR")))) ->  | CX21: =IF(CW21<0,0,BZ21*CW21) ->  | CY21: =J21 -> new
A22: ; for finance_T 4221, category 60 Parent channel must be 6; for finance_T 4221, category 60 Parent channel must be 6; NUMBER OF ISSUES : 2 | B22: 2023 | C22: 2022-01-01 | D22: 68 | E22: 1 | F22: 2023000025 | G22: Loan-type reimbursable grants | H22: 1 | I22: 645 | J22: new | K22: 12000 | L22: 1 | M22: 60 | N22: 4221 | O22: C01 | P22: text | Q22: 99810 | T22: 00:00:00 | U22: 00:00:00 | V22: LTGR private | AN22: 918 | AT22: 1000 | BE22: 1 | BF22: 1 | BG22: text | BH22: 1000 | BI22: 2024-01-02 | BJ22: 2027-01-01 | BK22: 123 | BL22: 1.002053388 | BM22: 4 | BQ22: 20 | BR22: 11 | BS22: text | BT22: text | BU22: =IFERROR(IF(M22=60,VLOOKUP(VALUE(TEXT(YEAR($C22),"@")&TEXT($I22,"@")),IncomeGroup!$C$2:$F$50000,4,FALSE),VLOOKUP(VALUE(TEXT(YEAR($C22),"@")&TEXT($I22,"@")),IncomeGroup!$C$2:$F$50000,3,FALSE)),"") -> LMICs | BV22: 0.075 | BW22: 19.16277792 | BY22: LMICs | BZ22: =BO22 -> 0 | CA22: =BG22/100000 ->  | CB22: =BE22 -> 1 | CC22: =DATEDIF(C22,BJ22,"D")/365.25 -> 4.999315537 | CD22: =DATEDIF(C22,BI22,"D")/365.25 -> 2.001368925 | CE22: 4 | CF22: =CD22-(1/CE22) -> 1.751368925 | CG22: =CC22-CF22 -> 3.247946612 | CH22: =VLOOKUP([3]CRSDATA!M10,'[3]Discount rates gua, rg'!$A:$H,MATCH([3]CRSDATA!BW$4,'[3]Discount rates gua, rg'!$A$1:$H$1,0),FALSE) -> 0.05 | CI22: =CA22 ->  | CJ22: =CA22 ->  | CK22: =((1+CH22)^(1/CE22))-1 -> 0.01227223443 | CL22: =CE22*CG22 -> 12.99178645 | CM22: =(1+CH22)^CF22 -> 1.089206639 | CN22: =(1+CH22)^CG22 -> 1.171714251 | CO22: =(CI22*(1-(1/CM22)))/(CE22*CK22) ->  | CP22: =(1/CL22)*(1/CM22)*((1-(1/CN22))/CK22) -> 0.8438822112 | CQ22: =(CJ22/(CE22*CL22))*(1/CM22)*((1/CN22)-1+CK22*CL22)/(CK22*CK22) ->  | CR22: =1 / ( (1 + CJ22/CE22)^CL22 -1) +1 ->  | CS22: =( CJ22/CE22 ) * CR22 * ( 1/CM22) * ( (1 - 1/CN22) / CK22) ->  | CT22: =(1-CO22-CP22-CQ22) ->  | CU22: =(1-CO22-CS22) ->  | CV22: =(1-(1+CJ22*CD22)/(1+CH22)^CC22) ->  | CW22: =IF(CB22=1,CT22,IF(CB22=2,CU22,IF(CB22=3,CV22,IF(CB22=5,CT22,"ERROR")))) ->  | CX22: =IF(CW22<0,0,BZ22*CW22)*75% ->  | CY22: =J22 -> new
A23: ; for Guarantees, 'Additionality type' and 'Development objectives' fields must be reported.; NUMBER OF ISSUES : 1 | B23: 2023 | C23: 2023-05-05 | D23: 68 | E23: 1 | F23: 2023100049 | G23: Loan portfolio guarantee | H23: 1 | I23: 366 | K23: 60000 | L23: 3 | M23: 60 | N23: 1102 | O23: C01 | P23: text | Q23: 24030 | T23: 00:00:00 | U23: 00:00:00 | AN23: 918 | AR23: 0 | AS23: 0 | BE23: 1 | BF23: 1 | BG23: 2800 | BI23: 2030-12-07 | BJ23: 2030-12-07 | BO23: 10000 | BP23: 75 | BQ23: 20 | BS23: UMICs | BU23: =IFERROR(IF(M23=60,VLOOKUP(VALUE(TEXT(YEAR($C23),"@")&TEXT($I23,"@")),IncomeGroup!$C$2:$F$50000,4,FALSE),VLOOKUP(VALUE(TEXT(YEAR($C23),"@")&TEXT($I23,"@")),IncomeGroup!$C$2:$F$50000,3,FALSE)),"") -> UMICs | BV23: 0.021 | BW23: -4.865476851 | BY23: LMICs | BZ23: =BO23 -> 10000 | CA23: =BG23/100000 -> 0.028 | CB23: =BE23 -> 1 | CC23: =DATEDIF(C23,BJ23,"D")/365.25 -> 7.592060233 | CD23: =DATEDIF(C23,BI23,"D")/365.25 -> 7.592060233 | CE23: 4 | CF23: =CD23-(1/CE23) -> 7.342060233 | CG23: =CC23-CF23 -> 0.25 | CH23: =VLOOKUP([3]CRSDATA!M3,'[3]Discount rates gua, rg'!$A:$H,MATCH([3]CRSDATA!BW$4,'[3]Discount rates gua, rg'!$A$1:$H$1,0),FALSE)-0.5% ->  | CI23: =CA23 -> 0.028 | CJ23: =CA23 -> 0.028 | CK23: =((1+CH23)^(1/CE23))-1 ->  | CL23: =CE23*CG23 -> 1 | CM23: =(1+CH23)^CF23 ->  | CN23: =(1+CH23)^CG23 ->  | CO23: =(CI23*(1-(1/CM23)))/(CE23*CK23) ->  | CP23: =(1/CL23)*(1/CM23)*((1-(1/CN23))/CK23) ->  | CQ23: =(CJ23/(CE23*CL23))*(1/CM23)*((1/CN23)-1+CK23*CL23)/(CK23*CK23) ->  | CR23: =1 / ( (1 + CJ23/CE23)^CL23 -1) +1 -> 143.8571429 | CS23: =( CJ23/CE23 ) * CR23 * ( 1/CM23) * ( (1 - 1/CN23) / CK23) ->  | CT23: =(1-CO23-CP23-CQ23) ->  | CU23: =(1-CO23-CS23) ->  | CV23: =(1-(1+CJ23*CD23)/(1+CH23)^CC23) ->  | CW23: =IF(CB23=1,CT23,IF(CB23=2,CU23,IF(CB23=3,CV23,IF(CB23=5,CT23,"ERROR")))) ->  | CX23: =IF(CW23<0,0,BZ23*CW23) ->  | CY23: =J23 -> 0
A24: ; for Guarantees, 'Additionality type' and 'Development objectives' fields must be reported.; NUMBER OF ISSUES : 1 | B24: 2023 | C24: 2023-05-05 | D24: 68 | E24: 1 | F24: 2023100051 | G24: Individual equity guarantee | H24: 1 | I24: 229 | K24: 62000 | L24: 1 | M24: 60 | N24: 1105 | O24: C01 | P24: text | Q24: 24030 | T24: 00:00:00 | U24: 00:00:00 | V24: Equity guarantee public | AN24: 918 | AR24: 2078.086421 | AS24: 2078.086421 | BE24: 1 | BF24: 1 | BG24: 1500 | BI24: 2025-12-07 | BJ24: 2030-12-07 | BO24: 10000 | BQ24: 20 | BS24: LMICs | BU24: =IFERROR(IF(M24=60,VLOOKUP(VALUE(TEXT(YEAR($C24),"@")&TEXT($I24,"@")),IncomeGroup!$C$2:$F$50000,4,FALSE),VLOOKUP(VALUE(TEXT(YEAR($C24),"@")&TEXT($I24,"@")),IncomeGroup!$C$2:$F$50000,3,FALSE)),"") -> LMICs | BV24: 0.065 | BW24: 20.78086421
A25: ; for Guarantees, 'Additionality type' and 'Development objectives' fields must be reported.; NUMBER OF ISSUES : 1 | B25: 2023 | C25: 2023-05-05 | D25: 68 | E25: 1 | F25: 2023100053 | G25: Individual mezz guarantee | H25: 1 | I25: 229 | K25: 62000 | L25: 1 | M25: 60 | N25: 1103 | O25: C01 | P25: text | Q25: 24030 | T25: 00:00:00 | U25: 00:00:00 | AN25: 918 | AR25: 1521.018794 | AS25: 1521.018794 | BE25: 1 | BF25: 1 | BG25: 1500 | BI25: 2025-12-07 | BJ25: 2030-12-07 | BO25: 10000 | BQ25: 20 | BS25: LMICs | BU25: =IFERROR(IF(M25=60,VLOOKUP(VALUE(TEXT(YEAR($C25),"@")&TEXT($I25,"@")),IncomeGroup!$C$2:$F$50000,4,FALSE),VLOOKUP(VALUE(TEXT(YEAR($C25),"@")&TEXT($I25,"@")),IncomeGroup!$C$2:$F$50000,3,FALSE)),"") -> LMICs | BV25: 0.05 | BW25: 15.21018794
A26: ; for Guarantees, 'Additionality type' and 'Development objectives' fields must be reported.; NUMBER OF ISSUES : 1 | B26: 2023 | C26: 2023-05-05 | D26: 68 | E26: 1 | F26: 2023100056 | G26: Other guarantee | H26: 1 | I26: 229 | K26: 62000 | L26: 1 | M26: 60 | N26: 1108 | O26: C01 | P26: text | Q26: 24030 | T26: 00:00:00 | U26: 00:00:00 | V26: Other guarantee | AN26: 918 | AR26: 0 | BE26: 1 | BF26: 1 | BG26: 1500 | BI26: 2030-12-07 | BJ26: 2030-12-07 | BO26: 10000 | BQ26: 20 | BS26: LMICs | BU26: =IFERROR(IF(M26=60,VLOOKUP(VALUE(TEXT(YEAR($C26),"@")&TEXT($I26,"@")),IncomeGroup!$C$2:$F$50000,4,FALSE),VLOOKUP(VALUE(TEXT(YEAR($C26),"@")&TEXT($I26,"@")),IncomeGroup!$C$2:$F$50000,3,FALSE)),"") -> LMICs | BV26: 0.065 | BW26: 0 | BY26: LMICs | BZ26: =AQ26 -> 0 | CA26: =BG26/100000 -> 0.015 | CB26: =BE26 -> 1 | CC26: =DATEDIF(C26,BJ26,"D")/365.25 -> 7.592060233 | CD26: =DATEDIF(C26,BI26,"D")/365.25 -> 7.592060233 | CE26: 4 | CF26: =CD26-(1/CE26) -> 7.342060233 | CG26: =CC26-CF26 -> 0.25 | CH26: 0.05 | CI26: =CA26 -> 0.015 | CJ26: =CA26 -> 0.015 | CK26: =((1+CH26)^(1/CE26))-1 -> 0.01227223443 | CL26: =CE26*CG26 -> 1 | CM26: =(1+CH26)^CF26 -> 1.430780821 | CN26: =(1+CH26)^CG26 -> 1.012272234 | CO26: =(CI26*(1-(1/CM26)))/(CE26*CK26) -> 0.09200064557 | CP26: =(1/CL26)*(1/CM26)*((1-(1/CN26))/CK26) -> 0.6904457571 | CQ26: =(CJ26/(CE26*CL26))*(1/CM26)*((1/CN26)-1+CK26*CL26)/(CK26*CK26) -> 0.002589171589 | CR26: =1 / ( (1 + CJ26/CE26)^CL26 -1) +1 -> 267.6666667 | CS26: =( CJ26/CE26 ) * CR26 * ( 1/CM26) * ( (1 - 1/CN26) / CK26) -> 0.6930349287 | CT26: =(1-CO26-CP26-CQ26) -> 0.2149644257 | CU26: =(1-CO26-CS26) -> 0.2149644257 | CV26: =(1-(1+CJ26*CD26)/(1+CH26)^CC26) -> 0.2309256562 | CW26: =IF(CB26=1,CT26,IF(CB26=2,CU26,IF(CB26=3,CV26,IF(CB26=5,CT26,"ERROR")))) -> 0.2149644257 | CX26: =IF(CW26<0,0,BZ26*CW26) -> 0 | CY26: =J26 -> 0
A27: ; for Guarantees, 'Additionality type' and 'Development objectives' fields must be reported.; Reported grant equivalent is different compared with macro's automatic calculation based only on reported terms; NUMBER OF ISSUES : 2 | B27: 2023 | C27: 2023-05-05 | D27: 68 | E27: 1 | F27: 2023100046 | G27: Loan portfolio guarantee | H27: 1 | I27: 229 | K27: 62000 | L27: 1 | M27: 60 | N27: 1102 | O27: C01 | P27: text | Q27: 24030 | T27: 00:00:00 | U27: 00:00:00 | AN27: 918 | AR27: 1313.462572 | AS27: 985.0969286 | BE27: 1 | BF27: 1 | BG27: 1500 | BI27: 2030-12-07 | BJ27: 2030-12-07 | BO27: 10000 | BP27: 75 | BQ27: 20 | BS27: LMICs | BU27: =IFERROR(IF(M27=60,VLOOKUP(VALUE(TEXT(YEAR($C27),"@")&TEXT($I27,"@")),IncomeGroup!$C$2:$F$50000,4,FALSE),VLOOKUP(VALUE(TEXT(YEAR($C27),"@")&TEXT($I27,"@")),IncomeGroup!$C$2:$F$50000,3,FALSE)),"") -> LMICs | BV27: 0.035 | BW27: 13.13462572 | BY27: LMICs | BZ27: =BO27 -> 10000 | CA27: =BG27/100000 -> 0.015 | CB27: =BE27 -> 1 | CC27: =DATEDIF(C27,BJ27,"D")/365.25 -> 7.592060233 | CD27: =DATEDIF(C27,BI27,"D")/365.25 -> 7.592060233 | CE27: 4 | CF27: =CD27-(1/CE27) -> 7.342060233 | CG27: =CC27-CF27 -> 0.25 | CH27: 0.105 | CI27: =CA27 -> 0.015 | CJ27: =CA27 -> 0.015 | CK27: =((1+CH27)^(1/CE27))-1 -> 0.02527547619 | CL27: =CE27*CG27 -> 1 | CM27: =(1+CH27)^CF27 -> 2.081461858 | CN27: =(1+CH27)^CG27 -> 1.025275476 | CO27: =(CI27*(1-(1/CM27)))/(CE27*CK27) -> 0.077085851 | CP27: =(1/CL27)*(1/CM27)*((1-(1/CN27))/CK27) -> 0.4685877959 | CQ27: =(CJ27/(CE27*CL27))*(1/CM27)*((1/CN27)-1+CK27*CL27)/(CK27*CK27) -> 0.001757204235 | CR27: =1 / ( (1 + CJ27/CE27)^CL27 -1) +1 -> 267.6666667 | CS27: =( CJ27/CE27 ) * CR27 * ( 1/CM27) * ( (1 - 1/CN27) / CK27) -> 0.4703450001 | CT27: =(1-CO27-CP27-CQ27) -> 0.4525691489 | CU27: =(1-CO27-CS27) -> 0.4525691489 | CV27: =(1-(1+CJ27*CD27)/(1+CH27)^CC27) -> 0.4780490026 | CW27: =IF(CB27=1,CT27,IF(CB27=2,CU27,IF(CB27=3,CV27,IF(CB27=5,CT27,"ERROR")))) -> 0.4525691489 | CX27: =IF(CW27<0,0,BZ27*CW27) -> 4525.691489 | CY27: =J27 -> 0
A28: ; for Guarantees, 'Additionality type' and 'Development objectives' fields must be reported.; Reported grant equivalent is different compared with macro's automatic calculation based only on reported terms; NUMBER OF ISSUES : 2 | B28: 2023 | C28: 2023-05-05 | D28: 68 | E28: 1 | F28: 2023100047 | G28: Loan portfolio guarantee | H28: 1 | I28: 63 | K28: 61000 | L28: 3 | M28: 60 | N28: 1102 | O28: C01 | P28: text | Q28: 24030 | T28: 00:00:00 | U28: 00:00:00 | AN28: 918 | AR28: 69.50681216 | AS28: 52.13010912 | BE28: 1 | BF28: 1 | BG28: 2000 | BI28: 2030-12-07 | BJ28: 2030-12-07 | BO28: 10000 | BP28: 75 | BQ28: 20 | BS28: UMICs | BU28: =IFERROR(IF(M28=60,VLOOKUP(VALUE(TEXT(YEAR($C28),"@")&TEXT($I28,"@")),IncomeGroup!$C$2:$F$50000,4,FALSE),VLOOKUP(VALUE(TEXT(YEAR($C28),"@")&TEXT($I28,"@")),IncomeGroup!$C$2:$F$50000,3,FALSE)),"") -> UMICs | BV28: 0.021 | BW28: 0.6950681216 | BY28: LMICs | BZ28: =BO28 -> 10000 | CA28: =BG28/100000 -> 0.02 | CB28: =BE28 -> 1 | CC28: =DATEDIF(C28,BJ28,"D")/365.25 -> 7.592060233 | CD28: =DATEDIF(C28,BI28,"D")/365.25 -> 7.592060233 | CE28: 4 | CF28: =CD28-(1/CE28) -> 7.342060233 | CG28: =CC28-CF28 -> 0.25 | CH28: 0.105 | CI28: =CA28 -> 0.02 | CJ28: =CA28 -> 0.02 | CK28: =((1+CH28)^(1/CE28))-1 -> 0.02527547619 | CL28: =CE28*CG28 -> 1 | CM28: =(1+CH28)^CF28 -> 2.081461858 | CN28: =(1+CH28)^CG28 -> 1.025275476 | CO28: =(CI28*(1-(1/CM28)))/(CE28*CK28) -> 0.1027811347 | CP28: =(1/CL28)*(1/CM28)*((1-(1/CN28))/CK28) -> 0.4685877959 | CQ28: =(CJ28/(CE28*CL28))*(1/CM28)*((1/CN28)-1+CK28*CL28)/(CK28*CK28) -> 0.002342938979 | CR28: =1 / ( (1 + CJ28/CE28)^CL28 -1) +1 -> 201 | CS28: =( CJ28/CE28 ) * CR28 * ( 1/CM28) * ( (1 - 1/CN28) / CK28) -> 0.4709307349 | CT28: =(1-CO28-CP28-CQ28) -> 0.4262881305 | CU28: =(1-CO28-CS28) -> 0.4262881305 | CV28: =(1-(1+CJ28*CD28)/(1+CH28)^CC28) -> 0.4602612687 | CW28: =IF(CB28=1,CT28,IF(CB28=2,CU28,IF(CB28=3,CV28,IF(CB28=5,CT28,"ERROR")))) -> 0.4262881305 | CX28: =IF(CW28<0,0,BZ28*CW28) -> 4262.881305 | CY28: =J28 -> 0
A29: ; for Guarantees, 'Additionality type' and 'Development objectives' fields must be reported.; Reported grant equivalent is different compared with macro's automatic calculation based only on reported terms; NUMBER OF ISSUES : 2 | B29: 2023 | C29: 2023-05-05 | D29: 68 | E29: 1 | F29: 2023100048 | G29: Loan portfolio guarantee | H29: 1 | I29: 660 | K29: 63000 | L29: 3 | M29: 60 | N29: 1102 | O29: C01 | P29: text | Q29: 24030 | T29: 00:00:00 | U29: 00:00:00 | AN29: 918 | AR29: 3277.039738 | AS29: 2457.779804 | BE29: 1 | BF29: 1 | BG29: 500 | BI29: 2030-12-07 | BJ29: 2030-12-07 | BO29: 10000 | BP29: 75 | BQ29: 20 | BS29: LDCs | BU29: =IFERROR(IF(M29=60,VLOOKUP(VALUE(TEXT(YEAR($C29),"@")&TEXT($I29,"@")),IncomeGroup!$C$2:$F$50000,4,FALSE),VLOOKUP(VALUE(TEXT(YEAR($C29),"@")&TEXT($I29,"@")),IncomeGroup!$C$2:$F$50000,3,FALSE)),"") -> LDCs | BV29: 0.06 | BW29: 32.77039738 | BY29: LMICs | BZ29: =BO29 -> 10000 | CA29: =BG29/100000 -> 0.005 | CB29: =BE29 -> 1 | CC29: =DATEDIF(C29,BJ29,"D")/365.25 -> 7.592060233 | CD29: =DATEDIF(C29,BI29,"D")/365.25 -> 7.592060233 | CE29: 4 | CF29: =CD29-(1/CE29) -> 7.342060233 | CG29: =CC29-CF29 -> 0.25 | CH29: 0.105 | CI29: =CA29 -> 0.005 | CJ29: =CA29 -> 0.005 | CK29: =((1+CH29)^(1/CE29))-1 -> 0.02527547619 | CL29: =CE29*CG29 -> 1 | CM29: =(1+CH29)^CF29 -> 2.081461858 | CN29: =(1+CH29)^CG29 -> 1.025275476 | CO29: =(CI29*(1-(1/CM29)))/(CE29*CK29) -> 0.02569528367 | CP29: =(1/CL29)*(1/CM29)*((1-(1/CN29))/CK29) -> 0.4685877959 | CQ29: =(CJ29/(CE29*CL29))*(1/CM29)*((1/CN29)-1+CK29*CL29)/(CK29*CK29) -> 0.0005857347448 | CR29: =1 / ( (1 + CJ29/CE29)^CL29 -1) +1 -> 801 | CS29: =( CJ29/CE29 ) * CR29 * ( 1/CM29) * ( (1 - 1/CN29) / CK29) -> 0.4691735306 | CT29: =(1-CO29-CP29-CQ29) -> 0.5051311857 | CU29: =(1-CO29-CS29) -> 0.5051311857 | CV29: =(1-(1+CJ29*CD29)/(1+CH29)^CC29) -> 0.5136244703 | CW29: =IF(CB29=1,CT29,IF(CB29=2,CU29,IF(CB29=3,CV29,IF(CB29=5,CT29,"ERROR")))) -> 0.5051311857 | CX29: =IF(CW29<0,0,BZ29*CW29) -> 5051.311857 | CY29: =J29 -> 0
A30: ; for Guarantees, 'Additionality type' and 'Development objectives' fields must be reported.; Reported grant equivalent is different compared with macro's automatic calculation based only on reported terms; NUMBER OF ISSUES : 2 | B30: 2023 | C30: 2023-05-05 | D30: 68 | E30: 1 | F30: 2023100050 | G30: Loan portfolio guarantee | H30: 1 | I30: 261 | K30: 62000 | L30: 3 | M30: 60 | N30: 1102 | O30: C01 | P30: text | Q30: 24030 | T30: 00:00:00 | U30: 00:00:00 | AN30: 918 | AR30: 1182.116314 | AS30: 886.5872358 | BE30: 1 | BF30: 1 | BG30: 1700 | BI30: 2030-12-07 | BJ30: 2030-12-07 | BO30: 10000 | BP30: 75 | BQ30: 20 | BS30: LMICs | BU30: =IFERROR(IF(M30=60,VLOOKUP(VALUE(TEXT(YEAR($C30),"@")&TEXT($I30,"@")),IncomeGroup!$C$2:$F$50000,4,FALSE),VLOOKUP(VALUE(TEXT(YEAR($C30),"@")&TEXT($I30,"@")),IncomeGroup!$C$2:$F$50000,3,FALSE)),"") -> LMICs | BV30: 0.035 | BW30: 11.82116314
A31: ; for Guarantees, 'Additionality type' and 'Development objectives' fields must be reported.; Reported grant equivalent is different compared with macro's automatic calculation based only on reported terms; NUMBER OF ISSUES : 2 | B31: 2023 | C31: 2023-05-05 | D31: 68 | E31: 1 | F31: 2023100052 | G31: Equity portfolio guarantee | H31: 1 | I31: 229 | K31: 62000 | L31: 1 | M31: 60 | N31: 1106 | O31: C01 | P31: text | Q31: 24030 | T31: 00:00:00 | U31: 00:00:00 | V31: Equity portfolio guarantee | AN31: 918 | AR31: 2923.423478 | AS31: 2192.567609 | BE31: 1 | BF31: 1 | BG31: 1500 | BI31: 2030-12-07 | BJ31: 2030-12-07 | BO31: 10000 | BP31: 75 | BQ31: 20 | BS31: LMICs | BU31: =IFERROR(IF(M31=60,VLOOKUP(VALUE(TEXT(YEAR($C31),"@")&TEXT($I31,"@")),IncomeGroup!$C$2:$F$50000,4,FALSE),VLOOKUP(VALUE(TEXT(YEAR($C31),"@")&TEXT($I31,"@")),IncomeGroup!$C$2:$F$50000,3,FALSE)),"") -> LMICs | BV31: 0.065 | BW31: 29.23423478
A32: ; for Guarantees, 'Additionality type' and 'Development objectives' fields must be reported.; Reported grant equivalent is different compared with macro's automatic calculation based only on reported terms; NUMBER OF ISSUES : 2 | B32: 2023 | C32: 2023-05-05 | D32: 68 | E32: 1 | F32: 2023100054 | G32: Mezz portfolio guarantee | H32: 1 | I32: 229 | K32: 62000 | L32: 1 | M32: 60 | N32: 1104 | O32: C01 | P32: text | Q32: 24030 | T32: 00:00:00 | U32: 00:00:00 | V32: Mezzanine portfolio guarantee private | AN32: 918 | AR32: 2166.8797 | AS32: 1625.159775 | BE32: 1 | BF32: 1 | BG32: 1500 | BI32: 2030-12-07 | BJ32: 2030-12-07 | BO32: 10000 | BP32: 75 | BQ32: 20 | BS32: LMICs | BU32: =IFERROR(IF(M32=60,VLOOKUP(VALUE(TEXT(YEAR($C32),"@")&TEXT($I32,"@")),IncomeGroup!$C$2:$F$50000,4,FALSE),VLOOKUP(VALUE(TEXT(YEAR($C32),"@")&TEXT($I32,"@")),IncomeGroup!$C$2:$F$50000,3,FALSE)),"") -> LMICs | BV32: 0.05 | BW32: 21.668797
A33: ; for Guarantees, category = 60 and PSI flag in (20,40); for type of flow 60 and finance_T in 1101,1102,1103,1104,1105,1106,1107, Parentchannel must be 1 or 6; NUMBER OF ISSUES : 2 | B33: 2023 | C33: 2023-05-15 | D33: 68 | E33: 1 | F33: 2023000021a | G33: Individual loan guarantee | H33: 1 | I33: 645 | J33: Multilateral guarantee | K33: 44001 | L33: 1 | M33: 60 | N33: 1101 | O33: C01 | P33: Multilateral guarantee | Q33: 24030 | T33: 00:00:00 | U33: 00:00:00 | V33: Multilateral guarantee | W33: 8.4 | Y33: 0 | Z33: 0 | AA33: 0 | AB33: 0 | AC33: 0 | AD33: 0 | AE33: 0 | AJ33: 0 | AK33: 0 | AL33: 0 | AM33: 0 | AN33: 918 | BE33: 1 | BF33: 4 | BG33: 500 | BI33: 2024-06-18 | BJ33: 2029-08-31 | BO33: 15000 | BQ33: 21 | BR33: 11;13;21 | BT33: text | BU33: Multi | BW33: 0 | BY33: LMICs | BZ33: =BO33 -> 15000 | CA33: =BG33/100000 -> 0.005 | CB33: =BE33 -> 1 | CC33: =DATEDIF(C33,BJ33,"D")/365.25 -> 6.29705681 | CD33: =DATEDIF(C33,BI33,"D")/365.25 -> 1.095140315 | CE33: 4 | CF33: =CD33-(1/CE33) -> 0.8451403149 | CG33: =CC33-CF33 -> 5.451916496 | CH33: =VLOOKUP([3]CRSDATA!M65,'[3]Discount rates gua, rg'!$A:$H,MATCH([3]CRSDATA!BW$4,'[3]Discount rates gua, rg'!$A$1:$H$1,0),FALSE) ->  | CI33: =CA33 -> 0.005 | CJ33: =CA33 -> 0.005 | CK33: =((1+CH33)^(1/CE33))-1 ->  | CL33: =CE33*CG33 -> 21.80766598 | CM33: =(1+CH33)^CF33 ->  | CN33: =(1+CH33)^CG33 ->  | CO33: =(CI33*(1-(1/CM33)))/(CE33*CK33) ->  | CP33: =(1/CL33)*(1/CM33)*((1-(1/CN33))/CK33) ->  | CQ33: =(CJ33/(CE33*CL33))*(1/CM33)*((1/CN33)-1+CK33*CL33)/(CK33*CK33) ->  | CR33: =1 / ( (1 + CJ33/CE33)^CL33 -1) +1 -> 37.20954076 | CS33: =( CJ33/CE33 ) * CR33 * ( 1/CM33) * ( (1 - 1/CN33) / CK33) ->  | CT33: =(1-CO33-CP33-CQ33) ->  | CU33: =(1-CO33-CS33) ->  | CV33: =(1-(1+CJ33*CD33)/(1+CH33)^CC33) ->  | CW33: =IF(CB33=1,CT33,IF(CB33=2,CU33,IF(CB33=3,CV33,IF(CB33=5,CT33,"ERROR")))) ->  | CX33: =IF(CW33<0,0,BZ33*CW33) ->  | CY33: =J33 -> Multilateral guarantee
A34: ; for Guarantees, category = 60 and PSI flag in (20,40); NUMBER OF ISSUES : 1 | B34: 2023 | C34: 2023-05-15 | D34: 68 | E34: 1 | F34: 2023000001a | G34: Individual loan guarantee | H34: 1 | I34: 645 | J34: Loan guarantee private | K34: 62000 | L34: 1 | M34: 60 | N34: 1101 | O34: C01 | P34: Loan guarantee private | Q34: 24030 | T34: 00:00:00 | U34: 00:00:00 | V34: Loan guarantee private | W34: 8.4 | Y34: 0 | Z34: 0 | AA34: 0 | AB34: 0 | AC34: 0 | AD34: 0 | AE34: 0 | AJ34: 0 | AK34: 0 | AL34: 0 | AM34: 0 | AN34: 918 | AR34: 1002.484391 | BE34: 1 | BF34: 4 | BG34: 1500 | BI34: 2024-06-18 | BJ34: 2029-08-31 | BO34: 15000 | BQ34: 21 | BR34: 11;13;21 | BT34: text | BU34: =IFERROR(IF(M34=60,VLOOKUP(VALUE(TEXT(YEAR($C34),"@")&TEXT($I34,"@")),IncomeGroup!$C$2:$F$50000,4,FALSE),VLOOKUP(VALUE(TEXT(YEAR($C34),"@")&TEXT($I34,"@")),IncomeGroup!$C$2:$F$50000,3,FALSE)),"") -> LMICs | BV34: 0.035 | BW34: 6.683229271 | BY34: LMICs | BZ34: =BO34 -> 15000 | CA34: =BG34/100000 -> 0.015 | CB34: =BE34 -> 1 | CC34: =DATEDIF(C34,BJ34,"D")/365.25 -> 6.29705681 | CD34: =DATEDIF(C34,BI34,"D")/365.25 -> 1.095140315 | CE34: 4 | CF34: =CD34-(1/CE34) -> 0.8451403149 | CG34: =CC34-CF34 -> 5.451916496 | CH34: =VLOOKUP([3]CRSDATA!M14,'[3]Discount rates gua, rg'!$A:$H,MATCH([3]CRSDATA!BW$4,'[3]Discount rates gua, rg'!$A$1:$H$1,0),FALSE) -> 0.05 | CI34: =CA34 -> 0.015 | CJ34: =CA34 -> 0.015 | CK34: =((1+CH34)^(1/CE34))-1 -> 0.01227223443 | CL34: =CE34*CG34 -> 21.80766598 | CM34: =(1+CH34)^CF34 -> 1.042096485 | CN34: =(1+CH34)^CG34 -> 1.304734929 | CO34: =(CI34*(1-(1/CM34)))/(CE34*CK34) -> 0.01234370475 | CP34: =(1/CL34)*(1/CM34)*((1-(1/CN34))/CK34) -> 0.8374505794 | CQ34: =(CJ34/(CE34*CL34))*(1/CM34)*((1/CN34)-1+CK34*CL34)/(CK34*CK34) -> 0.0373261684 | CR34: =1 / ( (1 + CJ34/CE34)^CL34 -1) +1 -> 12.75783069 | CS34: =( CJ34/CE34 ) * CR34 * ( 1/CM34) * ( (1 - 1/CN34) / CK34) -> 0.8737284473 | CT34: =(1-CO34-CP34-CQ34) -> 0.1128795475 | CU34: =(1-CO34-CS34) -> 0.1139278479 | CV34: =(1-(1+CJ34*CD34)/(1+CH34)^CC34) -> 0.2524400648 | CW34: =IF(CB34=1,CT34,IF(CB34=2,CU34,IF(CB34=3,CV34,IF(CB34=5,CT34,"ERROR")))) -> 0.1128795475 | CX34: =IF(CW34<0,0,BZ34*CW34) -> 1693.193212 | CY34: =J34 -> Loan guarantee private
A35: ; for Guarantees, category = 60 and PSI flag in (20,40); NUMBER OF ISSUES : 1 | B35: 2023 | C35: 2023-05-15 | D35: 68 | E35: 1 | F35: 2023000003a | G35: Individual loan guarantee | H35: 1 | I35: 645 | J35: Loan guarantee public | K35: 12000 | L35: 1 | M35: 60 | N35: 1101 | O35: C01 | P35: Loan guarantee public | Q35: 24030 | T35: 00:00:00 | U35: 00:00:00 | V35: Loan guarantee public | W35: 8.4 | Y35: 0 | Z35: 0 | AA35: 0 | AB35: 0 | AC35: 0 | AD35: 0 | AE35: 0 | AJ35: 0 | AK35: 0 | AL35: 0 | AM35: 0 | AN35: 918 | AR35: 760.357915 | BE35: 1 | BF35: 4 | BG35: 1500 | BI35: 2024-06-18 | BJ35: 2029-08-31 | BO35: 15000 | BQ35: 21 | BR35: 11;13;21 | BT35: text | BU35: =IFERROR(IF(M35=60,VLOOKUP(VALUE(TEXT(YEAR($C35),"@")&TEXT($I35,"@")),IncomeGroup!$C$2:$F$50000,4,FALSE),VLOOKUP(VALUE(TEXT(YEAR($C35),"@")&TEXT($I35,"@")),IncomeGroup!$C$2:$F$50000,3,FALSE)),"") -> LMICs | BV35: 0.03 | BW35: 5.069052767
A36: ; for Guarantees, category = 60 and PSI flag in (20,40); NUMBER OF ISSUES : 1 | B36: 2023 | C36: 2023-05-15 | D36: 68 | E36: 1 | F36: 2023000006a | G36: Loan portfolio guarantee | H36: 1 | I36: 645 | J36: Credit portfolio guarantee public | K36: 12000 | L36: 1 | M36: 60 | N36: 1102 | O36: C01 | P36: Credit portfolio guarantee public | Q36: 24030 | T36: 00:00:00 | U36: 00:00:00 | V36: Credit portfolio guarantee public | W36: 8.4 | Y36: 0 | Z36: 0 | AA36: 0 | AB36: 0 | AC36: 0 | AD36: 0 | AE36: 0 | AJ36: 0 | AK36: 0 | AL36: 0 | AM36: 0 | AN36: 918 | AR36: 570.2684363 | BE36: 1 | BF36: 4 | BI36: 2024-06-18 | BJ36: 2029-08-31 | BO36: 15000 | BP36: 75 | BQ36: 41 | BR36: 11;13;21 | BT36: text | BU36: =IFERROR(IF(M36=60,VLOOKUP(VALUE(TEXT(YEAR($C36),"@")&TEXT($I36,"@")),IncomeGroup!$C$2:$F$50000,4,FALSE),VLOOKUP(VALUE(TEXT(YEAR($C36),"@")&TEXT($I36,"@")),IncomeGroup!$C$2:$F$50000,3,FALSE)),"") -> LMICs | BV36: 0.03 | BW36: 0 | BY36: LMICs | BZ36: =BO36 -> 15000 | CA36: =BG36/100000 -> 0 | CB36: =BE36 -> 1 | CC36: =DATEDIF(C36,BJ36,"D")/365.25 -> 6.29705681 | CD36: =DATEDIF(C36,BI36,"D")/365.25 -> 1.095140315 | CE36: 4 | CF36: =CD36-(1/CE36) -> 0.8451403149 | CG36: =CC36-CF36 -> 5.451916496 | CH36: =VLOOKUP([3]CRSDATA!M4,'[3]Discount rates gua, rg'!$A:$H,MATCH([3]CRSDATA!BW$4,'[3]Discount rates gua, rg'!$A$1:$H$1,0),FALSE) -> 0.035 | CI36: =CA36 -> 0 | CJ36: =CA36 -> 0 | CK36: =((1+CH36)^(1/CE36))-1 -> 0.008637445998 | CL36: =CE36*CG36 -> 21.80766598 | CM36: =(1+CH36)^CF36 -> 1.029500808 | CN36: =(1+CH36)^CG36 -> 1.206295033 | CO36: =(CI36*(1-(1/CM36)))/(CE36*CK36) -> 0 | CP36: =(1/CL36)*(1/CM36)*((1-(1/CN36))/CK36) -> 0.8818891668 | CQ36: =(CJ36/(CE36*CL36))*(1/CM36)*((1/CN36)-1+CK36*CL36)/(CK36*CK36) -> 0 | CR36: =1 / ( (1 + CJ36/CE36)^CL36 -1) +1 ->  | CS36: =( CJ36/CE36 ) * CR36 * ( 1/CM36) * ( (1 - 1/CN36) / CK36) ->  | CT36: =(1-CO36-CP36-CQ36) -> 0.1181108332 | CU36: =(1-CO36-CS36) ->  | CV36: =(1-(1+CJ36*CD36)/(1+CH36)^CC36) -> 0.1947703304 | CW36: =IF(CB36=1,CT36,IF(CB36=2,CU36,IF(CB36=3,CV36,IF(CB36=5,CT36,"ERROR")))) -> 0.1181108332 | CX36: =IF(CW36<0,0,BZ36*CW36)*75% -> 1328.746874 | CY36: =J36 -> Credit portfolio guarantee public
A37: ; for Guarantees, category = 60 and PSI flag in (20,40); NUMBER OF ISSUES : 1 | B37: 2023 | C37: 2023-05-15 | D37: 68 | E37: 1 | F37: 2023000014a | G37: Individual equity guarantee | H37: 1 | I37: 645 | J37: Equity guarantee public | K37: 62000 | L37: 1 | M37: 60 | N37: 1105 | O37: C01 | P37: Equity guarantee public | Q37: 24030 | T37: 00:00:00 | U37: 00:00:00 | V37: Equity guarantee public | W37: 8.4 | Y37: 0 | Z37: 0 | AA37: 0 | AB37: 0 | AC37: 0 | AD37: 0 | AE37: 0 | AJ37: 0 | AK37: 0 | AL37: 0 | AM37: 0 | AN37: 918 | AR37: 1611.883432 | BE37: 1 | BF37: 4 | BG37: 3000 | BI37: 2024-06-18 | BJ37: 2029-08-31 | BO37: 15000 | BQ37: 41 | BR37: 11;13;21 | BT37: text | BU37: =IFERROR(IF(M37=60,VLOOKUP(VALUE(TEXT(YEAR($C37),"@")&TEXT($I37,"@")),IncomeGroup!$C$2:$F$50000,4,FALSE),VLOOKUP(VALUE(TEXT(YEAR($C37),"@")&TEXT($I37,"@")),IncomeGroup!$C$2:$F$50000,3,FALSE)),"") -> LMICs | BV37: 0.065 | BW37: 10.74588955 | BY37: LMICs | BZ37: =BO37 -> 15000 | CA37: =BG37/100000 -> 0.03 | CB37: =BE37 -> 1 | CC37: =DATEDIF(C37,BJ37,"D")/365.25 -> 6.29705681 | CD37: =DATEDIF(C37,BI37,"D")/365.25 -> 1.095140315 | CE37: 4 | CF37: =CD37-(1/CE37) -> 0.8451403149 | CG37: =CC37-CF37 -> 5.451916496 | CH37: 0.105 | CI37: =CA37 -> 0.03 | CJ37: =CA37 -> 0.03 | CK37: =((1+CH37)^(1/CE37))-1 -> 0.02527547619 | CL37: =CE37*CG37 -> 21.80766598 | CM37: =(1+CH37)^CF37 -> 1.088045881 | CN37: =(1+CH37)^CG37 -> 1.723485043 | CO37: =(CI37*(1-(1/CM37)))/(CE37*CK37) -> 0.02401174665 | CP37: =(1/CL37)*(1/CM37)*((1-(1/CN37))/CK37) -> 0.6999488365 | CQ37: =(CJ37/(CE37*CL37))*(1/CM37)*((1/CN37)-1+CK37*CL37)/(CK37*CK37) -> 0.06502252948 | CR37: =1 / ( (1 + CJ37/CE37)^CL37 -1) +1 -> 6.650530032 | CS37: =( CJ37/CE37 ) * CR37 * ( 1/CM37) * ( (1 - 1/CN37) / CK37) -> 0.7613651693 | CT37: =(1-CO37-CP37-CQ37) -> 0.2110168874 | CU37: =(1-CO37-CS37) -> 0.2146230841 | CV37: =(1-(1+CJ37*CD37)/(1+CH37)^CC37) -> 0.4492122207 | CW37: =IF(CB37=1,CT37,IF(CB37=2,CU37,IF(CB37=3,CV37,IF(CB37=5,CT37,"ERROR")))) -> 0.2110168874 | CX37: =IF(CW37<0,0,BZ37*CW37) -> 3165.253311 | CY37: =J37 -> Equity guarantee public
A38: ; for Guarantees, category = 60 and PSI flag in (20,40); NUMBER OF ISSUES : 1 | B38: 2023 | C38: 2023-05-15 | D38: 68 | E38: 1 | F38: 2023000015a | G38: Equity portfolio guarantee | H38: 1 | I38: 645 | J38: Equity portfolio guarantee | K38: 62000 | L38: 1 | M38: 60 | N38: 1106 | O38: C01 | P38: Equity portfolio guarantee | Q38: 24030 | T38: 00:00:00 | U38: 00:00:00 | V38: Equity portfolio guarantee | W38: 8.4 | Y38: 0 | Z38: 0 | AA38: 0 | AB38: 0 | AC38: 0 | AD38: 0 | AE38: 0 | AJ38: 0 | AK38: 0 | AL38: 0 | AM38: 0 | AN38: 918 | AR38: 1208.912574 | BE38: 1 | BF38: 4 | BG38: 3000 | BI38: 2024-06-18 | BJ38: 2029-08-31 | BQ38: 21 | BR38: 11;13;21 | BT38: text | BU38: =IFERROR(IF(M38=60,VLOOKUP(VALUE(TEXT(YEAR($C38),"@")&TEXT($I38,"@")),IncomeGroup!$C$2:$F$50000,4,FALSE),VLOOKUP(VALUE(TEXT(YEAR($C38),"@")&TEXT($I38,"@")),IncomeGroup!$C$2:$F$50000,3,FALSE)),"") -> LMICs | BV38: 0.065 | BW38: 10.74588955 | BY38: LMICs | BZ38: =BO38 -> 0 | CA38: =BG38/100000 -> 0.03 | CB38: =BE38 -> 1 | CC38: =DATEDIF(C38,BJ38,"D")/365.25 -> 6.29705681 | CD38: =DATEDIF(C38,BI38,"D")/365.25 -> 1.095140315 | CE38: 4 | CF38: =CD38-(1/CE38) -> 0.8451403149 | CG38: =CC38-CF38 -> 5.451916496 | CH38: =VLOOKUP([3]CRSDATA!M22,'[3]Discount rates gua, rg'!$A:$H,MATCH([3]CRSDATA!BW$4,'[3]Discount rates gua, rg'!$A$1:$H$1,0),FALSE) -> NULL | CI38: =CA38 -> 0.03 | CJ38: =CA38 -> 0.03 | CK38: =((1+CH38)^(1/CE38))-1 ->  | CL38: =CE38*CG38 -> 21.80766598 | CM38: =(1+CH38)^CF38 ->  | CN38: =(1+CH38)^CG38 ->  | CO38: =(CI38*(1-(1/CM38)))/(CE38*CK38) ->  | CP38: =(1/CL38)*(1/CM38)*((1-(1/CN38))/CK38) ->  | CQ38: =(CJ38/(CE38*CL38))*(1/CM38)*((1/CN38)-1+CK38*CL38)/(CK38*CK38) ->  | CR38: =1 / ( (1 + CJ38/CE38)^CL38 -1) +1 -> 6.650530032 | CS38: =( CJ38/CE38 ) * CR38 * ( 1/CM38) * ( (1 - 1/CN38) / CK38) ->  | CT38: =(1-CO38-CP38-CQ38) ->  | CU38: =(1-CO38-CS38) ->  | CV38: =(1-(1+CJ38*CD38)/(1+CH38)^CC38) ->  | CW38: =IF(CB38=1,CT38,IF(CB38=2,CU38,IF(CB38=3,CV38,IF(CB38=5,CT38,"ERROR")))) ->  | CX38: =IF(CW38<0,0,BZ38*CW38) ->  | CY38: =J38 -> Equity portfolio guarantee
A39: ; for Guarantees, category = 60 and PSI flag in (20,40); NUMBER OF ISSUES : 1 | B39: 2023 | C39: 2023-05-15 | D39: 68 | E39: 1 | F39: 2023000017a | G39: First loss guarantee | H39: 1 | I39: 645 | J39: First-loss guarantee | K39: 62000 | L39: 1 | M39: 60 | N39: 1107 | O39: C01 | P39: First-loss guarantee | Q39: 24030 | T39: 00:00:00 | U39: 00:00:00 | V39: First loss guarantee | W39: 8.4 | Y39: 0 | Z39: 0 | AA39: 0 | AB39: 0 | AC39: 0 | AD39: 0 | AE39: 0 | AJ39: 0 | AK39: 0 | AL39: 0 | AM39: 0 | AN39: 918 | AR39: 1611.883432 | BE39: 1 | BF39: 4 | BG39: 3000 | BI39: 2024-06-18 | BJ39: 2029-08-31 | BO39: 15000 | BQ39: 21 | BR39: 11;13;21 | BT39: text | BU39: =IFERROR(IF(M39=60,VLOOKUP(VALUE(TEXT(YEAR($C39),"@")&TEXT($I39,"@")),IncomeGroup!$C$2:$F$50000,4,FALSE),VLOOKUP(VALUE(TEXT(YEAR($C39),"@")&TEXT($I39,"@")),IncomeGroup!$C$2:$F$50000,3,FALSE)),"") -> LMICs | BV39: 0.065 | BW39: 10.74588955 | BY39: LMICs | BZ39: =AQ39 -> 0 | CA39: =BG39/100000 -> 0.03 | CB39: =BE39 -> 1 | CC39: =DATEDIF(C39,BJ39,"D")/365.25 -> 6.29705681 | CD39: =DATEDIF(C39,BI39,"D")/365.25 -> 1.095140315 | CE39: 4 | CF39: =CD39-(1/CE39) -> 0.8451403149 | CG39: =CC39-CF39 -> 5.451916496 | CH39: 0.08 | CI39: =CA39 -> 0.03 | CJ39: =CA39 -> 0.03 | CK39: =((1+CH39)^(1/CE39))-1 -> 0.01942654691 | CL39: =CE39*CG39 -> 21.80766598 | CM39: =(1+CH39)^CF39 -> 1.067204784 | CN39: =(1+CH39)^CG39 -> 1.521330331 | CO39: =(CI39*(1-(1/CM39)))/(CE39*CK39) -> 0.02431185383 | CP39: =(1/CL39)*(1/CM39)*((1-(1/CN39))/CK39) -> 0.7579436308 | CQ39: =(CJ39/(CE39*CL39))*(1/CM39)*((1/CN39)-1+CK39*CL39)/(CK39*CK39) -> 0.06913876183 | CR39: =1 / ( (1 + CJ39/CE39)^CL39 -1) +1 -> 6.650530032 | CS39: =( CJ39/CE39 ) * CR39 * ( 1/CM39) * ( (1 - 1/CN39) / CK39) -> 0.8244486607 | CT39: =(1-CO39-CP39-CQ39) -> 0.1486057535 | CU39: =(1-CO39-CS39) -> 0.1512394854 | CV39: =(1-(1+CJ39*CD39)/(1+CH39)^CC39) -> 0.363837981 | CW39: =IF(CB39=1,CT39,IF(CB39=2,CU39,IF(CB39=3,CV39,IF(CB39=5,CT39,"ERROR")))) -> 0.1486057535 | CX39: =IF(CW39<0,0,BZ39*CW39) -> 0 | CY39: =J39 -> First-loss guarantee
A40: ; for Guarantees, category = 60 and PSI flag in (20,40); NUMBER OF ISSUES : 1 | B40: 2023 | C40: 2020-01-15 | D40: 68 | E40: 1 | F40: 2023000018a | G40: First loss guarantee | H40: 3 | I40: 645 | J40: First-loss guarantee | K40: 62000 | L40: 1 | M40: 60 | N40: 1107 | O40: C01 | P40: First-loss guarantee | Q40: 24030 | T40: 00:00:00 | U40: 00:00:00 | V40: First loss guarantee | W40: 8.4 | Y40: 0 | Z40: 0 | AA40: 0 | AB40: 0 | AC40: 0 | AD40: 0 | AE40: 0 | AJ40: 0 | AK40: 0 | AL40: 0 | AM40: 0 | AN40: 918 | BE40: 1 | BG40: 3000 | BI40: 2021-02-18 | BJ40: 2026-05-03 | BQ40: 41 | BR40: 11;13;21 | BT40: text | BU40: =IFERROR(IF(M40=60,VLOOKUP(VALUE(TEXT(YEAR($C40),"@")&TEXT($I40,"@")),IncomeGroup!$C$2:$F$50000,4,FALSE),VLOOKUP(VALUE(TEXT(YEAR($C40),"@")&TEXT($I40,"@")),IncomeGroup!$C$2:$F$50000,3,FALSE)),"") -> LMICs | BV40: 0.065 | BW40: 10.74588955 | BY40: LMICs | BZ40: =AQ40 -> 0 | CA40: =BG40/100000 -> 0.03 | CB40: =BE40 -> 1 | CC40: =DATEDIF(C40,BJ40,"D")/365.25 -> 6.29705681 | CD40: =DATEDIF(C40,BI40,"D")/365.25 -> 1.095140315 | CE40: 4 | CF40: =CD40-(1/CE40) -> 0.8451403149 | CG40: =CC40-CF40 -> 5.451916496 | CH40: =VLOOKUP([3]CRSDATA!M73,'[3]Discount rates gua, rg'!$A:$H,MATCH([3]CRSDATA!BW$4,'[3]Discount rates gua, rg'!$A$1:$H$1,0),FALSE) ->  | CI40: =CA40 -> 0.03 | CJ40: =CA40 -> 0.03 | CK40: =((1+CH40)^(1/CE40))-1 ->  | CL40: =CE40*CG40 -> 21.80766598 | CM40: =(1+CH40)^CF40 ->  | CN40: =(1+CH40)^CG40 ->  | CO40: =(CI40*(1-(1/CM40)))/(CE40*CK40) ->  | CP40: =(1/CL40)*(1/CM40)*((1-(1/CN40))/CK40) ->  | CQ40: =(CJ40/(CE40*CL40))*(1/CM40)*((1/CN40)-1+CK40*CL40)/(CK40*CK40) ->  | CR40: =1 / ( (1 + CJ40/CE40)^CL40 -1) +1 -> 6.650530032 | CS40: =( CJ40/CE40 ) * CR40 * ( 1/CM40) * ( (1 - 1/CN40) / CK40) ->  | CT40: =(1-CO40-CP40-CQ40) ->  | CU40: =(1-CO40-CS40) ->  | CV40: =(1-(1+CJ40*CD40)/(1+CH40)^CC40) ->  | CW40: =IF(CB40=1,CT40,IF(CB40=2,CU40,IF(CB40=3,CV40,IF(CB40=5,CT40,"ERROR")))) ->  | CX40: =IF(CW40<0,0,BZ40*CW40) ->  | CY40: =J40 -> First-loss guarantee
A41: ; for Guarantees, category = 60 and PSI flag in (20,40); NUMBER OF ISSUES : 1 | B41: 2023 | C41: 2023-05-15 | D41: 68 | E41: 1 | F41: 2023000022a | G41: Individual loan guarantee | H41: 1 | I41: 645 | J41: Loan guarantee private | K41: 62000 | L41: 1 | M41: 60 | N41: 1101 | O41: C01 | P41: Loan guarantee private | Q41: 24030 | T41: 00:00:00 | U41: 00:00:00 | V41: Loan guarantee private | W41: 8.4 | Y41: 0 | Z41: 0 | AA41: 0 | AB41: 0 | AC41: 0 | AD41: 0 | AE41: 0 | AJ41: 0 | AK41: 0 | AL41: 0 | AM41: 0 | AN41: 918 | AR41: 0 | BE41: 1 | BF41: 4 | BG41: 8000 | BI41: 2024-06-18 | BJ41: 2029-08-31 | BO41: 15000 | BQ41: 41 | BR41: 11;13;21 | BT41: text | BU41: =IFERROR(IF(M41=60,VLOOKUP(VALUE(TEXT(YEAR($C41),"@")&TEXT($I41,"@")),IncomeGroup!$C$2:$F$50000,4,FALSE),VLOOKUP(VALUE(TEXT(YEAR($C41),"@")&TEXT($I41,"@")),IncomeGroup!$C$2:$F$50000,3,FALSE)),"") -> LMICs | BV41: 0.035 | BW41: -15.53747162
A42: ; for Guarantees, category = 60 and PSI flag in (20,40); NUMBER OF ISSUES : 1 | B42: 2023 | C42: 2023-05-15 | D42: 68 | E42: 1 | F42: 2023000023a | G42: Loan portfolio guarantee | H42: 1 | I42: 645 | J42: Credit portfolio guarantee private | K42: 62000 | L42: 1 | M42: 60 | N42: 1102 | O42: C01 | P42: Credit portfolio guarantee private | Q42: 24030 | T42: 00:00:00 | U42: 00:00:00 | V42: Credit portfolio guarantee private | W42: 8.4 | Y42: 0 | Z42: 0 | AA42: 0 | AB42: 0 | AC42: 0 | AD42: 0 | AE42: 0 | AJ42: 0 | AK42: 0 | AL42: 0 | AM42: 0 | AN42: 918 | AR42: 0 | BE42: 1 | BF42: 4 | BG42: 8000 | BI42: 2024-06-18 | BJ42: 2029-08-31 | BO42: 15000 | BQ42: 21 | BR42: 11;13;21 | BT42: text | BU42: =IFERROR(IF(M42=60,VLOOKUP(VALUE(TEXT(YEAR($C42),"@")&TEXT($I42,"@")),IncomeGroup!$C$2:$F$50000,4,FALSE),VLOOKUP(VALUE(TEXT(YEAR($C42),"@")&TEXT($I42,"@")),IncomeGroup!$C$2:$F$50000,3,FALSE)),"") -> LMICs | BV42: 0.035 | BW42: -15.53747162
A43: ; for Guarantees, category = 60 and PSI flag in (20,40); NUMBER OF ISSUES : 1 | B43: 2023 | C43: 2023-05-15 | D43: 68 | E43: 1 | F43: 2023000024a | G43: Individual mezz guarantee | H43: 1 | I43: 645 | J43: Mezzanine guarantee private | K43: 62000 | L43: 1 | M43: 60 | N43: 1103 | O43: C01 | P43: Mezzanine guarantee private | Q43: 24030 | T43: 00:00:00 | U43: 00:00:00 | V43: Mezzanine guarantee private | W43: 8.4 | Y43: 0 | Z43: 0 | AA43: 0 | AB43: 0 | AC43: 0 | AD43: 0 | AE43: 0 | AJ43: 0 | AK43: 0 | AL43: 0 | AM43: 0 | AN43: 918 | AR43: 0 | BE43: 1 | BF43: 4 | BG43: 8000 | BI43: 2024-06-18 | BJ43: 2029-08-31 | BO43: 15000 | BQ43: 41 | BR43: 11;13;21 | BT43: text | BU43: =IFERROR(IF(M43=60,VLOOKUP(VALUE(TEXT(YEAR($C43),"@")&TEXT($I43,"@")),IncomeGroup!$C$2:$F$50000,4,FALSE),VLOOKUP(VALUE(TEXT(YEAR($C43),"@")&TEXT($I43,"@")),IncomeGroup!$C$2:$F$50000,3,FALSE)),"") -> LMICs | BV43: 0.05 | BW43: -10.23565695 | BY43: LMICs | BZ43: =AQ43 -> 0 | CA43: =BG43/100000 -> 0.08 | CB43: =BE43 -> 1 | CC43: =DATEDIF(C43,BJ43,"D")/365.25 -> 6.29705681 | CD43: =DATEDIF(C43,BI43,"D")/365.25 -> 1.095140315 | CE43: 4 | CF43: =CD43-(1/CE43) -> 0.8451403149 | CG43: =CC43-CF43 -> 5.451916496 | CH43: =VLOOKUP([3]CRSDATA!M71,'[3]Discount rates gua, rg'!$A:$H,MATCH([3]CRSDATA!BW$4,'[3]Discount rates gua, rg'!$A$1:$H$1,0),FALSE) ->  | CI43: =CA43 -> 0.08 | CJ43: =CA43 -> 0.08 | CK43: =((1+CH43)^(1/CE43))-1 ->  | CL43: =CE43*CG43 -> 21.80766598 | CM43: =(1+CH43)^CF43 ->  | CN43: =(1+CH43)^CG43 ->  | CO43: =(CI43*(1-(1/CM43)))/(CE43*CK43) ->  | CP43: =(1/CL43)*(1/CM43)*((1-(1/CN43))/CK43) ->  | CQ43: =(CJ43/(CE43*CL43))*(1/CM43)*((1/CN43)-1+CK43*CL43)/(CK43*CK43) ->  | CR43: =1 / ( (1 + CJ43/CE43)^CL43 -1) +1 -> 2.851499834 | CS43: =( CJ43/CE43 ) * CR43 * ( 1/CM43) * ( (1 - 1/CN43) / CK43) ->  | CT43: =(1-CO43-CP43-CQ43) ->  | CU43: =(1-CO43-CS43) ->  | CV43: =(1-(1+CJ43*CD43)/(1+CH43)^CC43) ->  | CW43: =IF(CB43=1,CT43,IF(CB43=2,CU43,IF(CB43=3,CV43,IF(CB43=5,CT43,"ERROR")))) ->  | CX43: =IF(CW43<0,0,BZ43*CW43) ->  | CY43: =J43 -> Mezzanine guarantee private
A44: ; For PSI in ODA, fields on additionality (fields 68-70) should be reported; NUMBER OF ISSUES : 1 | B44: 2023 | C44: 2023-10-12 | D44: 68 | E44: 1 | F44: 2023100021 | G44: Subordinated loans | H44: 1 | I44: 229 | K44: 12000 | L44: 1 | M44: 60 | N44: 431 | O44: C01 | P44: text | Q44: 24030 | T44: 00:00:00 | U44: 00:00:00 | V44: Subordinated loans | AN44: 918 | AO44: 10000 | AQ44: 10000 | AR44: 1019.417611 | AS44: 1019.417611 | BE44: 1 | BF44: 1 | BG44: 5660 | BI44: 2024-06-01 | BJ44: 2030-12-31 | BQ44: 20 | BR44: 11 | BS44: LMICs | BU44: =IFERROR(IF(M44=60,VLOOKUP(VALUE(TEXT(YEAR($C44),"@")&TEXT($I44,"@")),IncomeGroup!$C$2:$F$50000,4,FALSE),VLOOKUP(VALUE(TEXT(YEAR($C44),"@")&TEXT($I44,"@")),IncomeGroup!$C$2:$F$50000,3,FALSE)),"") -> LMICs | BV44: 0.09 | BW44: 10.19417611 | BY44: LMICs | BZ44: =BO44 -> 0 | CA44: =BG44/100000 -> 0.0566 | CB44: =BE44 -> 1 | CC44: =DATEDIF(C44,BJ44,"D")/365.25 -> 7.219712526 | CD44: =DATEDIF(C44,BI44,"D")/365.25 -> 0.6379192334 | CE44: 4 | CF44: =CD44-(1/CE44) -> 0.3879192334 | CG44: =CC44-CF44 -> 6.831793292 | CH44: =VLOOKUP([3]CRSDATA!M53,'[3]Discount rates gua, rg'!$A:$H,MATCH([3]CRSDATA!BW$4,'[3]Discount rates gua, rg'!$A$1:$H$1,0),FALSE) ->  | CI44: =CA44 -> 0.0566 | CJ44: =CA44 -> 0.0566 | CK44: =((1+CH44)^(1/CE44))-1 ->  | CL44: =CE44*CG44 -> 27.32717317 | CM44: =(1+CH44)^CF44 ->  | CN44: =(1+CH44)^CG44 ->  | CO44: =(CI44*(1-(1/CM44)))/(CE44*CK44) ->  | CP44: =(1/CL44)*(1/CM44)*((1-(1/CN44))/CK44) ->  | CQ44: =(CJ44/(CE44*CL44))*(1/CM44)*((1/CN44)-1+CK44*CL44)/(CK44*CK44) ->  | CR44: =1 / ( (1 + CJ44/CE44)^CL44 -1) +1 -> 3.136294112 | CS44: =( CJ44/CE44 ) * CR44 * ( 1/CM44) * ( (1 - 1/CN44) / CK44) ->  | CT44: =(1-CO44-CP44-CQ44) ->  | CU44: =(1-CO44-CS44) ->  | CV44: =(1-(1+CJ44*CD44)/(1+CH44)^CC44) ->  | CW44: =IF(CB44=1,CT44,IF(CB44=2,CU44,IF(CB44=3,CV44,IF(CB44=5,CT44,"ERROR")))) ->  | CX44: =IF(CW44<0,0,BZ44*CW44)*75% ->  | CY44: =J44 -> 0
B45: 2023 | C45: 2019-10-28 | D45: 68 | E45: 1 | F45: 2023100013 | G45: Common equity | H45: 1 | I45: 660 | K45: 63000 | L45: 3 | M45: 60 | N45: 510 | O45: C01 | P45: text | Q45: 24030 | T45: 00:00:00 | U45: 00:00:00 | AN45: 918 | AO45: 0 | AQ45: 10000 | AR45: 5613.942558 | AS45: 5613.942558 | BG45: 2587 | BJ45: 2028-03-01 | BQ45: 21 | BR45: 11;13;26 | BS45: LDCs | BT45: text | BU45: =IFERROR(IF(M45=60,VLOOKUP(VALUE(TEXT(YEAR($C45),"@")&TEXT($I45,"@")),IncomeGroup!$C$2:$F$50000,4,FALSE),VLOOKUP(VALUE(TEXT(YEAR($C45),"@")&TEXT($I45,"@")),IncomeGroup!$C$2:$F$50000,3,FALSE)),"") -> LDCs | BV45: 0.13 | BW45: 56.13942558
B46: 2023 | C46: 2019-12-04 | D46: 68 | E46: 1 | F46: 2023100014 | G46: Common equity | H46: 1 | I46: 366 | K46: 60000 | L46: 3 | M46: 60 | N46: 510 | O46: C01 | P46: text | Q46: 24030 | T46: 00:00:00 | U46: 00:00:00 | AN46: 918 | AO46: 0 | AQ46: 10000 | AR46: 1188.563345 | AS46: 1188.563345 | BG46: 11251 | BJ46: 2030-03-13 | BQ46: 21 | BR46: 11;13;27 | BS46: UMICs | BT46: text | BU46: =IFERROR(IF(M46=60,VLOOKUP(VALUE(TEXT(YEAR($C46),"@")&TEXT($I46,"@")),IncomeGroup!$C$2:$F$50000,4,FALSE),VLOOKUP(VALUE(TEXT(YEAR($C46),"@")&TEXT($I46,"@")),IncomeGroup!$C$2:$F$50000,3,FALSE)),"") -> UMICs | BV46: 0.091 | BW46: 11.88563345
B47: 2023 | C47: 2020-06-30 | D47: 68 | E47: 1 | F47: 2023102015 | G47: Common equity | H47: 1 | I47: 261 | K47: 62000 | L47: 3 | M47: 60 | N47: 510 | O47: C01 | P47: text | Q47: 24030 | T47: 00:00:00 | U47: 00:00:00 | AN47: 918 | AO47: 0 | AQ47: 0 | AR47: 0 | BG47: 1236 | BJ47: 2025-12-31 | BQ47: 21 | BS47: LMICs | BU47: =IFERROR(IF(M47=60,VLOOKUP(VALUE(TEXT(YEAR($C47),"@")&TEXT($I47,"@")),IncomeGroup!$C$2:$F$50000,4,FALSE),VLOOKUP(VALUE(TEXT(YEAR($C47),"@")&TEXT($I47,"@")),IncomeGroup!$C$2:$F$50000,3,FALSE)),"") -> LMICs | BV47: 0.105 | BW47: 38.3472416 | BY47: LMICs | BZ47: =BO47 -> 0 | CA47: =BG47/100000 -> 0.01236 | CB47: =BE47 -> 0 | CC47: =DATEDIF(C47,BJ47,"D")/365.25 -> 5.503080082 | CD47: =DATEDIF(C47,BI47,"D")/365.25 ->  | CE47: 4 | CF47: =CD47-(1/CE47) ->  | CG47: =CC47-CF47 ->  | CH47: =VLOOKUP([3]CRSDATA!M23,'[3]Discount rates gua, rg'!$A:$H,MATCH([3]CRSDATA!BW$4,'[3]Discount rates gua, rg'!$A$1:$H$1,0),FALSE) -> NULL | CI47: =CA47 -> 0.01236 | CJ47: =CA47 -> 0.01236 | CK47: =((1+CH47)^(1/CE47))-1 ->  | CL47: =CE47*CG47 ->  | CM47: =(1+CH47)^CF47 ->  | CN47: =(1+CH47)^CG47 ->  | CO47: =(CI47*(1-(1/CM47)))/(CE47*CK47) ->  | CP47: =(1/CL47)*(1/CM47)*((1-(1/CN47))/CK47) ->  | CQ47: =(CJ47/(CE47*CL47))*(1/CM47)*((1/CN47)-1+CK47*CL47)/(CK47*CK47) ->  | CR47: =1 / ( (1 + CJ47/CE47)^CL47 -1) +1 ->  | CS47: =( CJ47/CE47 ) * CR47 * ( 1/CM47) * ( (1 - 1/CN47) / CK47) ->  | CT47: =(1-CO47-CP47-CQ47) ->  | CU47: =(1-CO47-CS47) ->  | CV47: =(1-(1+CJ47*CD47)/(1+CH47)^CC47) ->  | CW47: =IF(CB47=1,CT47,IF(CB47=2,CU47,IF(CB47=3,CV47,IF(CB47=5,CT47,"ERROR")))) -> ERROR | CX47: =IF(CW47<0,0,BZ47*CW47)*75% ->  | CY47: =J47 -> 0
A48: ; if reporting under new PSI rules, type of flow = 60 and PSI is two digits in 10,20,21,22,30,40,41,42,50. If under provisional methods - type of flow (10,21), PSI flag may only include values NULL,2,3,4; Additionality type (67) may only include values NULL, 1,2,3; Type of flow 21 and channel is 6**** then PSI_flag can only be 3,4; NUMBER OF ISSUES : 3 | B48: 2023 | C48: 2020-06-30 | D48: 68 | E48: 1 | F48: 2023104020 | G48: Shares in collective investment vehicles | H48: 1 | I48: 261 | K48: 62000 | L48: 3 | M48: 21 | N48: 520 | O48: C01 | P48: text | Q48: 24030 | T48: 00:00:00 | U48: 00:00:00 | AN48: 918 | AO48: 0 | AQ48: 0 | AR48: 0 | BG48: 1236 | BJ48: 2025-12-31 | BQ48: 21 | BR48: 11 | BS48: LMICs | BT48: text | BU48: =IFERROR(IF(M48=60,VLOOKUP(VALUE(TEXT(YEAR($C48),"@")&TEXT($I48,"@")),IncomeGroup!$C$2:$F$50000,4,FALSE),VLOOKUP(VALUE(TEXT(YEAR($C48),"@")&TEXT($I48,"@")),IncomeGroup!$C$2:$F$50000,3,FALSE)),"") -> LMICs | BV48: 0.105 | BW48: 38.3472416
B49: 2023 | C49: 2023-10-12 | D49: 68 | E49: 1 | F49: 2023100016 | G49: Shares in collective investment vehicles | H49: 1 | I49: 229 | K49: 12000 | L49: 1 | M49: 60 | N49: 520 | O49: C01 | P49: text | Q49: 24030 | T49: 00:00:00 | U49: 00:00:00 | V49: Shares in collective investment vehicles | AN49: 918 | AO49: 10000 | AQ49: 10000 | AR49: 2059.060535 | AS49: 2059.060535 | BG49: 8765 | BJ49: 2030-12-31 | BQ49: 21 | BR49: 11 | BS49: LMICs | BT49: text | BU49: =IFERROR(IF(M49=60,VLOOKUP(VALUE(TEXT(YEAR($C49),"@")&TEXT($I49,"@")),IncomeGroup!$C$2:$F$50000,4,FALSE),VLOOKUP(VALUE(TEXT(YEAR($C49),"@")&TEXT($I49,"@")),IncomeGroup!$C$2:$F$50000,3,FALSE)),"") -> LMICs | BV49: 0.105 | BW49: 20.59060535
B50: 2023 | C50: 2018-12-14 | D50: 68 | E50: 1 | F50: 2023100017 | G50: Shares in collective investment vehicles | H50: 1 | I50: 63 | K50: 61000 | L50: 3 | M50: 60 | N50: 520 | O50: C01 | P50: text | Q50: 24030 | T50: 00:00:00 | U50: 00:00:00 | AN50: 918 | AO50: 0 | AQ50: 10000 | AR50: 4782.38685 | AS50: 4782.38685 | BG50: -894 | BJ50: 2025-09-15 | BQ50: 21 | BR50: 11 | BS50: UMICs | BT50: text | BU50: =IFERROR(IF(M50=60,VLOOKUP(VALUE(TEXT(YEAR($C50),"@")&TEXT($I50,"@")),IncomeGroup!$C$2:$F$50000,4,FALSE),VLOOKUP(VALUE(TEXT(YEAR($C50),"@")&TEXT($I50,"@")),IncomeGroup!$C$2:$F$50000,3,FALSE)),"") -> UMICs | BV50: 0.091 | BW50: 47.8238685
B51: 2023 | C51: 2019-10-28 | D51: 68 | E51: 1 | F51: 2023100018 | G51: Shares in collective investment vehicles | H51: 1 | I51: 660 | K51: 63000 | L51: 3 | M51: 60 | N51: 520 | O51: C01 | P51: text | Q51: 24030 | T51: 00:00:00 | U51: 00:00:00 | AN51: 918 | AO51: 0 | AQ51: 10000 | AR51: 5613.942558 | AS51: 5613.942558 | BG51: 2587 | BJ51: 2028-03-01 | BQ51: 21 | BR51: 11 | BS51: LDCs | BT51: text | BU51: =IFERROR(IF(M51=60,VLOOKUP(VALUE(TEXT(YEAR($C51),"@")&TEXT($I51,"@")),IncomeGroup!$C$2:$F$50000,4,FALSE),VLOOKUP(VALUE(TEXT(YEAR($C51),"@")&TEXT($I51,"@")),IncomeGroup!$C$2:$F$50000,3,FALSE)),"") -> LDCs | BV51: 0.13 | BW51: 56.13942558
A52: ; For PSI in ODA, fields on additionality (fields 68-70) should be reported; WARNING: for donor effort in equites (etc.) calculated ex post, grant equivalents cannot be calculated in an automated manner.; NUMBER OF ISSUES : 2 | B52: 2023 | C52: 2023-05-15 | D52: 68 | E52: 1 | F52: 2023000038 | G52: abc | H52: 1 | I52: 645 | J52: RBGR multilateral | K52: 61001 | L52: 1 | M52: 60 | N52: 432 | O52: C01 | P52: RBGR multilateral | Q52: 24030 | T52: 00:00:00 | U52: 00:00:00 | V52: RBGR multilateral | W52: 8.4 | Y52: 0 | Z52: 0 | AA52: 0 | AB52: 0 | AC52: 0 | AD52: 0 | AE52: 0 | AJ52: 0 | AK52: 0 | AL52: 0 | AM52: 0 | AN52: 918 | AP52: 15000 | AQ52: 15000 | AR52: 1294.580146 | AS52: 1294.580146 | BE52: 1 | BF52: 4 | BG52: 5000 | BI52: 2024-06-18 | BJ52: 2029-08-31 | BQ52: 42 | BR52: 11;14;22 | BT52: text | BU52: =IFERROR(IF(M52=60,VLOOKUP(VALUE(TEXT(YEAR($C52),"@")&TEXT($I52,"@")),IncomeGroup!$C$2:$F$50000,4,FALSE),VLOOKUP(VALUE(TEXT(YEAR($C52),"@")&TEXT($I52,"@")),IncomeGroup!$C$2:$F$50000,3,FALSE)),"") -> LMICs | BV52: 0.08 | BW52: 8.630534306
A53: ; for type of flow 60 and finance_T 4221, PSI flag must be 20,40,30; NUMBER OF ISSUES : 1 | B53: 2023 | C53: 2023-05-15 | D53: 68 | E53: 1 | F53: 2023000029a | G53: Loan-type reimbursable grants | H53: 1 | I53: 645 | J53: LTGR private | K53: 62000 | L53: 1 | M53: 60 | N53: 4221 | O53: C01 | P53: LTGR private | Q53: 24030 | T53: 00:00:00 | U53: 00:00:00 | V53: LTGR private | W53: 8.4 | Y53: 0 | Z53: 0 | AA53: 0 | AB53: 0 | AC53: 0 | AD53: 0 | AE53: 0 | AJ53: 0 | AK53: 0 | AL53: 0 | AM53: 0 | AN53: 918 | AP53: 15000 | AQ53: 15000 | AR53: 1084.409853 | BE53: 1 | BF53: 4 | BG53: 5000 | BI53: 2024-06-18 | BJ53: 2029-08-31 | BQ53: 41 | BR53: 11;13;21 | BS53: text | BT53: text | BU53: =IFERROR(IF(M53=60,VLOOKUP(VALUE(TEXT(YEAR($C53),"@")&TEXT($I53,"@")),IncomeGroup!$C$2:$F$50000,4,FALSE),VLOOKUP(VALUE(TEXT(YEAR($C53),"@")&TEXT($I53,"@")),IncomeGroup!$C$2:$F$50000,3,FALSE)),"") -> LMICs | BV53: 0.075 | BW53: 7.229399021
A54: ; for type of flow 60 and finance_T 4222, PSI flag 22,42 (ex-post), ODA Grant equivalent should be reported; NUMBER OF ISSUES : 1 | B54: 2023 | C54: 2022-01-01 | D54: 68 | E54: 1 | F54: 2023000028 | G54: Reflow-based reimbursable grants | H54: 1 | I54: 645 | J54: new | K54: 12000 | L54: 1 | M54: 60 | N54: 4222 | O54: C01 | P54: text | Q54: 99810 | T54: 00:00:00 | U54: 00:00:00 | V54: RBGR public | AN54: 918 | AT54: 1000 | BE54: 1 | BF54: 1 | BG54: text | BH54: 1000 | BI54: 2024-01-02 | BJ54: 2027-01-01 | BK54: 123 | BL54: 1.002053388 | BM54: 4 | BQ54: 22 | BR54: 11 | BS54: text | BT54: text | BU54: =IFERROR(IF(M54=60,VLOOKUP(VALUE(TEXT(YEAR($C54),"@")&TEXT($I54,"@")),IncomeGroup!$C$2:$F$50000,4,FALSE),VLOOKUP(VALUE(TEXT(YEAR($C54),"@")&TEXT($I54,"@")),IncomeGroup!$C$2:$F$50000,3,FALSE)),"") -> LMICs | BV54: 0.105 | BW54: 26.28865851
A55: ; for type of flow 60 and finance_T 4222, PSI flag 22,42 (ex-post), ODA Grant equivalent should be reported; NUMBER OF ISSUES : 1 | B55: 2023 | C55: 2022-01-01 | D55: 68 | E55: 1 | F55: 2023000029 | G55: Reflow-based reimbursable grants | H55: 1 | I55: 645 | J55: new | K55: 44001 | L55: 1 | M55: 60 | N55: 4222 | O55: C01 | P55: text | Q55: 99810 | T55: 00:00:00 | U55: 00:00:00 | V55: RBGR multilateral | AN55: 918 | AT55: 1000 | BE55: 1 | BF55: 1 | BG55: text | BH55: 1000 | BI55: 2024-01-02 | BJ55: 2027-01-01 | BK55: 123 | BL55: 1.002053388 | BM55: 4 | BQ55: 42 | BR55: 11 | BS55: text | BT55: text | BU55: Multi | BV55: 0.08 | BW55: 20.41613595 | BY55: LMICs | BZ55: =AQ55 -> 0 | CA55: =BG55/100000 ->  | CB55: =BE55 -> 1 | CC55: =DATEDIF(C55,BJ55,"D")/365.25 -> 4.999315537 | CD55: =DATEDIF(C55,BI55,"D")/365.25 -> 2.001368925 | CE55: 4 | CF55: =CD55-(1/CE55) -> 1.751368925 | CG55: =CC55-CF55 -> 3.247946612 | CH55: 0.08 | CI55: =CA55 ->  | CJ55: =CA55 ->  | CK55: =((1+CH55)^(1/CE55))-1 -> 0.01942654691 | CL55: =CE55*CG55 -> 12.99178645 | CM55: =(1+CH55)^CF55 -> 1.144293225 | CN55: =(1+CH55)^CG55 -> 1.28398093 | CO55: =(CI55*(1-(1/CM55)))/(CE55*CK55) ->  | CP55: =(1/CL55)*(1/CM55)*((1-(1/CN55))/CK55) -> 0.7658236817 | CQ55: =(CJ55/(CE55*CL55))*(1/CM55)*((1/CN55)-1+CK55*CL55)/(CK55*CK55) ->  | CR55: =1 / ( (1 + CJ55/CE55)^CL55 -1) +1 ->  | CS55: =( CJ55/CE55 ) * CR55 * ( 1/CM55) * ( (1 - 1/CN55) / CK55) ->  | CT55: =(1-CO55-CP55-CQ55) ->  | CU55: =(1-CO55-CS55) ->  | CV55: =(1-(1+CJ55*CD55)/(1+CH55)^CC55) ->  | CW55: =IF(CB55=1,CT55,IF(CB55=2,CU55,IF(CB55=3,CV55,IF(CB55=5,CT55,"ERROR")))) ->  | CX55: =IF(CW55<0,0,BZ55*CW55) ->  | CY55: =J55 -> new
A56: ; for type of flow 60 and finance_T in 431,432,510,520 Parentchannel must be <> 4; Reported grant equivalent is different compared with macro's automatic calculation based only on reported terms; NUMBER OF ISSUES : 2 | B56: 2023 | C56: 2023-05-15 | D56: 68 | E56: 1 | F56: 2023000036 | G56: Preferred equity | H56: 1 | I56: 645 | J56: RBGR multilateral | K56: 44001 | L56: 1 | M56: 60 | N56: 432 | O56: C01 | P56: RBGR multilateral | Q56: 24030 | T56: 00:00:00 | U56: 00:00:00 | V56: Preferred equity | W56: 8.4 | Y56: 0 | Z56: 0 | AA56: 0 | AB56: 0 | AC56: 0 | AD56: 0 | AE56: 0 | AJ56: 0 | AK56: 0 | AL56: 0 | AM56: 0 | AN56: 918 | AP56: 15000 | AQ56: 15000 | AR56: 1294.580146 | AS56: 494.3168132 | BE56: 1 | BF56: 4 | BG56: 5000 | BI56: 2024-06-18 | BJ56: 2029-08-31 | BQ56: 41 | BR56: 11;13;22 | BS56: text | BT56: text | BU56: Multi | BV56: 0.05 | BW56: 3.295445421 | BY56: LMICs | BZ56: =BO56 -> 0 | CA56: =BG56/100000 -> 0.05 | CB56: =BE56 -> 1 | CC56: =DATEDIF(C56,BJ56,"D")/365.25 -> 6.29705681 | CD56: =DATEDIF(C56,BI56,"D")/365.25 -> 1.095140315 | CE56: 4 | CF56: =CD56-(1/CE56) -> 0.8451403149 | CG56: =CC56-CF56 -> 5.451916496 | CH56: =VLOOKUP([3]CRSDATA!M48,'[3]Discount rates gua, rg'!$A:$H,MATCH([3]CRSDATA!BW$4,'[3]Discount rates gua, rg'!$A$1:$H$1,0),FALSE) ->  | CI56: =CA56 -> 0.05 | CJ56: =CA56 -> 0.05 | CK56: =((1+CH56)^(1/CE56))-1 ->  | CL56: =CE56*CG56 -> 21.80766598 | CM56: =(1+CH56)^CF56 ->  | CN56: =(1+CH56)^CG56 ->  | CO56: =(CI56*(1-(1/CM56)))/(CE56*CK56) ->  | CP56: =(1/CL56)*(1/CM56)*((1-(1/CN56))/CK56) ->  | CQ56: =(CJ56/(CE56*CL56))*(1/CM56)*((1/CN56)-1+CK56*CL56)/(CK56*CK56) ->  | CR56: =1 / ( (1 + CJ56/CE56)^CL56 -1) +1 -> 4.213862959 | CS56: =( CJ56/CE56 ) * CR56 * ( 1/CM56) * ( (1 - 1/CN56) / CK56) ->  | CT56: =(1-CO56-CP56-CQ56) ->  | CU56: =(1-CO56-CS56) ->  | CV56: =(1-(1+CJ56*CD56)/(1+CH56)^CC56) ->  | CW56: =IF(CB56=1,CT56,IF(CB56=2,CU56,IF(CB56=3,CV56,IF(CB56=5,CT56,"ERROR")))) ->  | CX56: =IF(CW56<0,0,BZ56*CW56)*75% ->  | CY56: =J56 -> RBGR multilateral
A57: ; Grant equivalent can only be calculated for issuances of ODA-eligible development guarantees (issuance date needs to be in the reporting year); NUMBER OF ISSUES : 1 | B57: 2023 | C57: 2020-01-15 | D57: 68 | E57: 1 | F57: 2023000009a | G57: Individual mezz guarantee | H57: 3 | I57: 645 | J57: Mezzanine guarantee public | K57: 12000 | L57: 1 | M57: 60 | N57: 1103 | O57: C01 | P57: Mezzanine guarantee public | Q57: 24030 | T57: 00:00:00 | U57: 00:00:00 | V57: Mezzanine guarantee public | W57: 8.4 | Y57: 0 | Z57: 0 | AA57: 0 | AB57: 0 | AC57: 0 | AD57: 0 | AE57: 0 | AJ57: 0 | AK57: 0 | AL57: 0 | AM57: 0 | AN57: 918 | BG57: 1750 | BI57: 2021-02-18 | BJ57: 2026-05-03 | BO57: 15000 | BQ57: 20 | BR57: 11;13;21 | BT57: text | BU57: =IFERROR(IF(M57=60,VLOOKUP(VALUE(TEXT(YEAR($C57),"@")&TEXT($I57,"@")),IncomeGroup!$C$2:$F$50000,4,FALSE),VLOOKUP(VALUE(TEXT(YEAR($C57),"@")&TEXT($I57,"@")),IncomeGroup!$C$2:$F$50000,3,FALSE)),"") -> LMICs | BV57: 0.05 | BW57: 10.46012353
A58: ; Grant equivalent can only be calculated for issuances of ODA-eligible development guarantees (issuance date needs to be in the reporting year); NUMBER OF ISSUES : 1 | B58: 2023 | C58: 2020-01-15 | D58: 68 | E58: 1 | F58: 2023000011a | G58: Mezz portfolio guarantee | H58: 3 | I58: 645 | J58: Mezzanine portfolio guarantee private | K58: 62000 | L58: 1 | M58: 60 | N58: 1104 | O58: C01 | P58: Mezzanine portfolio guarantee private | Q58: 24030 | T58: 00:00:00 | U58: 00:00:00 | V58: Mezzanine portfolio guarantee private | W58: 8.4 | Y58: 0 | Z58: 0 | AA58: 0 | AB58: 0 | AC58: 0 | AD58: 0 | AE58: 0 | AJ58: 0 | AK58: 0 | AL58: 0 | AM58: 0 | AN58: 918 | AR58: 1176.763897 | BE58: 1 | BF58: 4 | BG58: 1750 | BI58: 2021-02-18 | BJ58: 2026-05-03 | BO58: 15000 | BP58: 75 | BQ58: 20 | BR58: 11;13;21 | BT58: text | BU58: =IFERROR(IF(M58=60,VLOOKUP(VALUE(TEXT(YEAR($C58),"@")&TEXT($I58,"@")),IncomeGroup!$C$2:$F$50000,4,FALSE),VLOOKUP(VALUE(TEXT(YEAR($C58),"@")&TEXT($I58,"@")),IncomeGroup!$C$2:$F$50000,3,FALSE)),"") -> LMICs | BV58: 0.05 | BW58: 10.46012353
A59: ; Grant equivalent not reported; for finance_T 4221, category 60 Parent channel must be 6; for finance_T 4221, category 60 Parent channel must be 6; NUMBER OF ISSUES : 3 | B59: 2023 | C59: 2023-01-01 | D59: 68 | E59: 1 | F59: 2023000019 | G59: Loan-type reimbursable grants | H59: 1 | I59: 645 | J59: new | K59: 12000 | L59: 1 | M59: 60 | N59: 4221 | O59: C01 | P59: text | Q59: 99810 | T59: 00:00:00 | U59: 00:00:00 | V59: LTGR private | AN59: 918 | AO59: 10000 | AQ59: 10000 | AT59: 1000 | BE59: 1 | BF59: 1 | BG59: text | BH59: 1000 | BI59: 2024-01-02 | BJ59: 2027-01-01 | BK59: 123 | BL59: 1.002053388 | BM59: 4 | BQ59: 20 | BR59: 11 | BS59: text | BT59: text | BU59: =IFERROR(IF(M59=60,VLOOKUP(VALUE(TEXT(YEAR($C59),"@")&TEXT($I59,"@")),IncomeGroup!$C$2:$F$50000,4,FALSE),VLOOKUP(VALUE(TEXT(YEAR($C59),"@")&TEXT($I59,"@")),IncomeGroup!$C$2:$F$50000,3,FALSE)),"") -> LMICs | BV59: 0.075 | BW59: 14.10357828
A60: ; Grant equivalent not reported; For PSI in ODA, fields on additionality (fields 68-70) should be reported; Grant equivalent not reported; NUMBER OF ISSUES : 3 | B60: 2023 | C60: 2019-12-04 | D60: 68 | E60: 1 | F60: 2023100009 | G60: PSI loans | H60: 1 | I60: 366 | K60: 60000 | L60: 3 | M60: 60 | N60: 421 | O60: C01 | P60: text | Q60: 24030 | T60: 00:00:00 | U60: 00:00:00 | AN60: 918 | AO60: 0 | AQ60: 10000 | AS60: 1364.915833 | AT60: 0 | BE60: 1 | BF60: 1 | BG60: 3200 | BI60: 2021-07-15 | BJ60: 2030-03-13 | BQ60: 20 | BR60: 11;13;35 | BT60: text | BU60: =IFERROR(IF(M60=60,VLOOKUP(VALUE(TEXT(YEAR($C60),"@")&TEXT($I60,"@")),IncomeGroup!$C$2:$F$50000,4,FALSE),VLOOKUP(VALUE(TEXT(YEAR($C60),"@")&TEXT($I60,"@")),IncomeGroup!$C$2:$F$50000,3,FALSE)),"") -> UMICs | BV60: 0.061 | BW60: 13.64915833
A61: ; Grant equivalent not reported; Grant equivalent not reported; NUMBER OF ISSUES : 2 | B61: 2023 | C61: 2023-10-12 | D61: 68 | E61: 1 | F61: 2023100031 | G61: Loan-type reimbursable grants | H61: 1 | I61: 229 | K61: 62000 | L61: 1 | M61: 60 | N61: 4221 | O61: C01 | P61: text | Q61: 24030 | T61: 00:00:00 | U61: 00:00:00 | V61: LTGR private | AN61: 918 | AO61: 10000 | AQ61: 10000 | AS61: 583.9825007 | BE61: 1 | BF61: 1 | BG61: 5660 | BI61: 2024-06-01 | BJ61: 2030-12-31 | BQ61: 20 | BR61: 11;13;28 | BS61: LMICs | BT61: text | BU61: =IFERROR(IF(M61=60,VLOOKUP(VALUE(TEXT(YEAR($C61),"@")&TEXT($I61,"@")),IncomeGroup!$C$2:$F$50000,4,FALSE),VLOOKUP(VALUE(TEXT(YEAR($C61),"@")&TEXT($I61,"@")),IncomeGroup!$C$2:$F$50000,3,FALSE)),"") -> LMICs | BV61: 0.075 | BW61: 5.839825007 | BY61: LMICs | BZ61: =BO61 -> 0 | CA61: =BG61/100000 -> 0.0566 | CB61: =BE61 -> 1 | CC61: =DATEDIF(C61,BJ61,"D")/365.25 -> 7.219712526 | CD61: =DATEDIF(C61,BI61,"D")/365.25 -> 0.6379192334 | CE61: 4 | CF61: =CD61-(1/CE61) -> 0.3879192334 | CG61: =CC61-CF61 -> 6.831793292 | CH61: =VLOOKUP([3]CRSDATA!M41,'[3]Discount rates gua, rg'!$A:$H,MATCH([3]CRSDATA!BW$4,'[3]Discount rates gua, rg'!$A$1:$H$1,0),FALSE)-0.5% ->  | CI61: =CA61 -> 0.0566 | CJ61: =CA61 -> 0.0566 | CK61: =((1+CH61)^(1/CE61))-1 ->  | CL61: =CE61*CG61 -> 27.32717317 | CM61: =(1+CH61)^CF61 ->  | CN61: =(1+CH61)^CG61 ->  | CO61: =(CI61*(1-(1/CM61)))/(CE61*CK61) ->  | CP61: =(1/CL61)*(1/CM61)*((1-(1/CN61))/CK61) ->  | CQ61: =(CJ61/(CE61*CL61))*(1/CM61)*((1/CN61)-1+CK61*CL61)/(CK61*CK61) ->  | CR61: =1 / ( (1 + CJ61/CE61)^CL61 -1) +1 -> 3.136294112 | CS61: =( CJ61/CE61 ) * CR61 * ( 1/CM61) * ( (1 - 1/CN61) / CK61) ->  | CT61: =(1-CO61-CP61-CQ61) ->  | CU61: =(1-CO61-CS61) ->  | CV61: =(1-(1+CJ61*CD61)/(1+CH61)^CC61) ->  | CW61: =IF(CB61=1,CT61,IF(CB61=2,CU61,IF(CB61=3,CV61,IF(CB61=5,CT61,"ERROR")))) ->  | CX61: =IF(CW61<0,0,BZ61*CW61) ->  | CY61: =J61 -> 0
A62: ; Grant equivalent not reported; NUMBER OF ISSUES : 1 | B62: 2023 | C62: 2023-01-01 | D62: 68 | E62: 1 | F62: 2023000022 | G62: Reflow-based reimbursable grants | H62: 1 | I62: 645 | J62: new | K62: 12000 | L62: 1 | M62: 60 | N62: 4222 | O62: C01 | P62: text | Q62: 99810 | T62: 00:00:00 | U62: 00:00:00 | V62: RBGR public | AN62: 918 | AO62: 10000 | AQ62: 10000 | AS62: 3225.440038 | AT62: 1000 | BE62: 1 | BF62: 1 | BG62: text | BH62: 1000 | BI62: 2024-01-02 | BJ62: 2027-01-01 | BK62: 123 | BL62: 1.002053388 | BM62: 4 | BQ62: 21 | BR62: 11 | BS62: text | BT62: text | BU62: =IFERROR(IF(M62=60,VLOOKUP(VALUE(TEXT(YEAR($C62),"@")&TEXT($I62,"@")),IncomeGroup!$C$2:$F$50000,4,FALSE),VLOOKUP(VALUE(TEXT(YEAR($C62),"@")&TEXT($I62,"@")),IncomeGroup!$C$2:$F$50000,3,FALSE)),"") -> LMICs | BV62: 0.105 | BW62: 32.25440038
A63: ; Grant equivalent not reported; NUMBER OF ISSUES : 1 | B63: 2023 | C63: 2020-01-15 | D63: 68 | E63: 1 | F63: 2023000002a | G63: abc | H63: 3 | I63: 645 | J63: Loan guarantee private | K63: 62000 | L63: 1 | M63: 60 | N63: 110 | O63: C01 | P63: Loan guarantee private | Q63: 24030 | T63: 00:00:00 | U63: 00:00:00 | V63: Loan guarantee private | W63: 8.4 | Y63: 0 | Z63: 0 | AA63: 0 | AB63: 0 | AC63: 0 | AD63: 0 | AE63: 0 | AJ63: 0 | AK63: 0 | AL63: 0 | AM63: 0 | AN63: 918 | AQ63: 15000 | BE63: 1 | BF63: 4 | BG63: 1500 | BH63: text | BI63: 2021-02-18 | BJ63: 2026-05-03 | BQ63: 41 | BR63: 11;13;21 | BT63: text | BU63: =IFERROR(IF(M63=60,VLOOKUP(VALUE(TEXT(YEAR($C63),"@")&TEXT($I63,"@")),IncomeGroup!$C$2:$F$50000,4,FALSE),VLOOKUP(VALUE(TEXT(YEAR($C63),"@")&TEXT($I63,"@")),IncomeGroup!$C$2:$F$50000,3,FALSE)),"") -> LMICs | BV63: 0.035 | BW63: 0 | BY63: LMICs | BZ63: =AQ63 -> 15000 | CA63: =BG63/100000 -> 0.015 | CB63: =BE63 -> 1 | CC63: =DATEDIF(C63,BJ63,"D")/365.25 -> 6.29705681 | CD63: =DATEDIF(C63,BI63,"D")/365.25 -> 1.095140315 | CE63: 4 | CF63: =CD63-(1/CE63) -> 0.8451403149 | CG63: =CC63-CF63 -> 5.451916496 | CH63: =VLOOKUP([3]CRSDATA!M31,'[3]Discount rates gua, rg'!$A:$H,MATCH([3]CRSDATA!BW$4,'[3]Discount rates gua, rg'!$A$1:$H$1,0),FALSE)-0.5% ->  | CI63: =CA63 -> 0.015 | CJ63: =CA63 -> 0.015 | CK63: =((1+CH63)^(1/CE63))-1 ->  | CL63: =CE63*CG63 -> 21.80766598 | CM63: =(1+CH63)^CF63 ->  | CN63: =(1+CH63)^CG63 ->  | CO63: =(CI63*(1-(1/CM63)))/(CE63*CK63) ->  | CP63: =(1/CL63)*(1/CM63)*((1-(1/CN63))/CK63) ->  | CQ63: =(CJ63/(CE63*CL63))*(1/CM63)*((1/CN63)-1+CK63*CL63)/(CK63*CK63) ->  | CR63: =1 / ( (1 + CJ63/CE63)^CL63 -1) +1 -> 12.75783069 | CS63: =( CJ63/CE63 ) * CR63 * ( 1/CM63) * ( (1 - 1/CN63) / CK63) ->  | CT63: =(1-CO63-CP63-CQ63) ->  | CU63: =(1-CO63-CS63) ->  | CV63: =(1-(1+CJ63*CD63)/(1+CH63)^CC63) ->  | CW63: =IF(CB63=1,CT63,IF(CB63=2,CU63,IF(CB63=3,CV63,IF(CB63=5,CT63,"ERROR")))) ->  | CX63: =IF(CW63<0,0,BZ63*CW63) ->  | CY63: =J63 -> Loan guarantee private
A64: ; Grant equivalent not reported; NUMBER OF ISSUES : 1 | B64: 2023 | C64: 2023-05-15 | D64: 68 | E64: 1 | F64: 2023000030a | G64: Loan-type reimbursable grants | H64: 1 | I64: 645 | J64: LTGR private | K64: 62000 | L64: 1 | M64: 60 | N64: 4221 | O64: C01 | P64: LTGR private | Q64: 24030 | T64: 00:00:00 | U64: 00:00:00 | V64: LTGR private | W64: 8.4 | Y64: 0 | Z64: 0 | AA64: 0 | AB64: 0 | AC64: 0 | AD64: 0 | AE64: 0 | AJ64: 0 | AK64: 0 | AL64: 0 | AM64: 0 | AN64: 918 | AP64: 15000 | AQ64: 15000 | AR64: 0 | AS64: 0 | BE64: 1 | BF64: 4 | BG64: 15000 | BI64: 2024-06-18 | BJ64: 2029-08-31 | BQ64: 20 | BR64: 11;13;21 | BS64: text | BT64: text | BU64: =IFERROR(IF(M64=60,VLOOKUP(VALUE(TEXT(YEAR($C64),"@")&TEXT($I64,"@")),IncomeGroup!$C$2:$F$50000,4,FALSE),VLOOKUP(VALUE(TEXT(YEAR($C64),"@")&TEXT($I64,"@")),IncomeGroup!$C$2:$F$50000,3,FALSE)),"") -> LMICs | BV64: 0.075 | BW64: -24.23231127 | BY64: LMICs | BZ64: =AQ64 -> 15000 | CA64: =BG64/100000 -> 0.15 | CB64: =BE64 -> 1 | CC64: =DATEDIF(C64,BJ64,"D")/365.25 -> 6.29705681 | CD64: =DATEDIF(C64,BI64,"D")/365.25 -> 1.095140315 | CE64: 4 | CF64: =CD64-(1/CE64) -> 0.8451403149 | CG64: =CC64-CF64 -> 5.451916496 | CH64: =VLOOKUP([3]CRSDATA!M33,'[3]Discount rates gua, rg'!$A:$H,MATCH([3]CRSDATA!BW$4,'[3]Discount rates gua, rg'!$A$1:$H$1,0),FALSE) -> 0.075 | CI64: =CA64 -> 0.15 | CJ64: =CA64 -> 0.15 | CK64: =((1+CH64)^(1/CE64))-1 -> 0.0182446011 | CL64: =CE64*CG64 -> 21.80766598 | CM64: =(1+CH64)^CF64 -> 1.063027646 | CN64: =(1+CH64)^CG64 -> 1.483325027 | CO64: =(CI64*(1-(1/CM64)))/(CE64*CK64) -> 0.1218662435 | CP64: =(1/CL64)*(1/CM64)*((1-(1/CN64))/CK64) -> 0.7703974583 | CQ64: =(CJ64/(CE64*CL64))*(1/CM64)*((1/CN64)-1+CK64*CL64)/(CK64*CK64) -> 0.350059411 | CR64: =1 / ( (1 + CJ64/CE64)^CL64 -1) +1 -> 1.811793045 | CS64: =( CJ64/CE64 ) * CR64 * ( 1/CM64) * ( (1 - 1/CN64) / CK64) -> 1.141468376 | CT64: =(1-CO64-CP64-CQ64) -> -0.2423231127 | CU64: =(1-CO64-CS64) -> -0.2633346193 | CV64: =(1-(1+CJ64*CD64)/(1+CH64)^CC64) -> 0.2616314095 | CW64: =IF(CB64=1,CT64,IF(CB64=2,CU64,IF(CB64=3,CV64,IF(CB64=5,CT64,"ERROR")))) -> -0.2423231127 | CX64: =IF(CW64<0,0,BZ64*CW64) -> 0 | CY64: =J64 -> LTGR private
A65: ; Grant equivalent not reported; type of repayment not available/ not reported; number of repayment not available/not reported; For PSI in ODA, fields on additionality (fields 68-70) should be reported; NUMBER OF ISSUES : 4 | B65: 2023 | C65: 2023-10-12 | D65: 68 | E65: 1 | F65: 2023100026 | G65: Preferred equity | H65: 1 | I65: 229 | K65: 12000 | L65: 1 | M65: 60 | N65: 432 | O65: C01 | P65: text | Q65: 24030 | T65: 00:00:00 | U65: 00:00:00 | V65: Preferred equity | AN65: 918 | AO65: 10000 | AQ65: 10000 | BG65: 8765 | BJ65: 2030-12-31 | BQ65: 21 | BS65: LMICs | BT65: text | BU65: =IFERROR(IF(M65=60,VLOOKUP(VALUE(TEXT(YEAR($C65),"@")&TEXT($I65,"@")),IncomeGroup!$C$2:$F$50000,4,FALSE),VLOOKUP(VALUE(TEXT(YEAR($C65),"@")&TEXT($I65,"@")),IncomeGroup!$C$2:$F$50000,3,FALSE)),"") -> LMICs | BV65: 0.09 | BW65: 12.35512799
A66: ; Guarantee maturity date (field 60) needs to be reported; NUMBER OF ISSUES : 1 | B66: 2023 | C66: 2023-01-01 | D66: 68 | E66: 1 | F66: 2023000003 | G66: Individual loan guarantee | H66: 1 | I66: 645 | J66: new | K66: 12000 | L66: 1 | M66: 60 | N66: 1101 | O66: C01 | P66: text | Q66: 99810 | T66: 00:00:00 | U66: 00:00:00 | AN66: 918 | AR66: 471.694372 | BE66: 1 | BF66: 1 | BG66: text | BH66: 1000 | BI66: 2024-01-02 | BK66: 123 | BL66: 1.002053388 | BM66: 4 | BO66: 10000 | BP66: 50 | BQ66: 20 | BR66: 11 | BS66: text | BT66: text | BU66: =IFERROR(IF(M66=60,VLOOKUP(VALUE(TEXT(YEAR($C66),"@")&TEXT($I66,"@")),IncomeGroup!$C$2:$F$50000,4,FALSE),VLOOKUP(VALUE(TEXT(YEAR($C66),"@")&TEXT($I66,"@")),IncomeGroup!$C$2:$F$50000,3,FALSE)),"") -> LMICs | BV66: 0.03 | BW66: 0
A67: ; Guaranteed amount (field 65) needs to be reported and be positive; NUMBER OF ISSUES : 1 | B67: 2023 | C67: 2023-01-01 | D67: 68 | E67: 1 | F67: 2023000012 | G67: Individual equity guarantee | H67: 1 | I67: 645 | J67: new | K67: 62000 | L67: 1 | M67: 60 | N67: 1105 | O67: C01 | P67: text | Q67: 99810 | T67: 00:00:00 | U67: 00:00:00 | V67: Equity guarantee public | AN67: 918 | AR67: 1215.144987 | BE67: 1 | BF67: 1 | BG67: text | BH67: 1000 | BJ67: 2027-01-01 | BK67: 123 | BL67: 1.002053388 | BM67: 4 | BP67: 50 | BQ67: 20 | BR67: 11 | BS67: text | BT67: text | BU67: =IFERROR(IF(M67=60,VLOOKUP(VALUE(TEXT(YEAR($C67),"@")&TEXT($I67,"@")),IncomeGroup!$C$2:$F$50000,4,FALSE),VLOOKUP(VALUE(TEXT(YEAR($C67),"@")&TEXT($I67,"@")),IncomeGroup!$C$2:$F$50000,3,FALSE)),"") -> LMICs | BV67: 0.065 | BW67: 0
A68: ; Guaranteed amount (field 65) needs to be reported and be positive; NUMBER OF ISSUES : 1 | B68: 2023 | C68: 2023-05-05 | D68: 68 | E68: 1 | F68: 2023100042 | G68: Individual loan guarantee | H68: 1 | I68: 63 | K68: 61000 | L68: 3 | M68: 60 | N68: 1101 | O68: C01 | P68: text | Q68: 24030 | T68: 00:00:00 | U68: 00:00:00 | AN68: 918 | AR68: 52.06362116 | BE68: 1 | BF68: 1 | BG68: 2000 | BI68: 2026-12-07 | BJ68: 2030-12-07 | BO68: -10000 | BQ68: 20 | BR68: 11 | BS68: UMICs | BT68: text | BU68: =IFERROR(IF(M68=60,VLOOKUP(VALUE(TEXT(YEAR($C68),"@")&TEXT($I68,"@")),IncomeGroup!$C$2:$F$50000,4,FALSE),VLOOKUP(VALUE(TEXT(YEAR($C68),"@")&TEXT($I68,"@")),IncomeGroup!$C$2:$F$50000,3,FALSE)),"") -> UMICs | BV68: 0.021 | BW68: 0.5206362116
A69: ; Guaranteed amount (field 65) needs to be reported and be positive; NUMBER OF ISSUES : 1 | B69: 2023 | C69: 2023-05-15 | D69: 68 | E69: 1 | F69: 2023000004a | G69: Loan portfolio guarantee | H69: 1 | I69: 645 | J69: Credit portfolio guarantee private | K69: 62000 | L69: 1 | M69: 60 | N69: 1102 | O69: C01 | P69: Credit portfolio guarantee private | Q69: 24030 | T69: 00:00:00 | U69: 00:00:00 | V69: Credit portfolio guarantee private | W69: 8.4 | Y69: 0 | Z69: 0 | AA69: 0 | AB69: 0 | AC69: 0 | AD69: 0 | AE69: 0 | AJ69: 0 | AK69: 0 | AL69: 0 | AM69: 0 | AN69: 918 | AR69: 751.863293 | AT69: 751.863293 | BE69: 1 | BF69: 4 | BG69: 1500 | BI69: 2024-06-18 | BJ69: 2029-08-31 | BP69: 75 | BQ69: 40 | BR69: 11;13;21 | BT69: text | BU69: =IFERROR(IF(M69=60,VLOOKUP(VALUE(TEXT(YEAR($C69),"@")&TEXT($I69,"@")),IncomeGroup!$C$2:$F$50000,4,FALSE),VLOOKUP(VALUE(TEXT(YEAR($C69),"@")&TEXT($I69,"@")),IncomeGroup!$C$2:$F$50000,3,FALSE)),"") -> LMICs | BV69: 0.035 | BW69: 6.683229271
A70: ; if reporting under new PSI rules, type of flow = 60 and PSI is two digits in 10,20,21,22,30,40,41,42,50. If under provisional methods - type of flow (10,21), PSI flag may only include values NULL,2,3,4; Additionality type (67) may only include values NULL, 1,2,3; NUMBER OF ISSUES : 2 | B70: 2023 | C70: 2023-01-01 | D70: 68 | E70: 1 | F70: 2023000023 | G70: Reflow-based reimbursable grants | H70: 1 | I70: 645 | J70: new | K70: 44001 | L70: 1 | M70: 10 | N70: 4222 | O70: C01 | P70: text | Q70: 99810 | T70: 00:00:00 | U70: 00:00:00 | V70: RBGR multilateral | AN70: 918 | AO70: 10000 | AQ70: 10000 | AR70: 1505.32432 | AT70: 1000 | BE70: 1 | BF70: 1 | BG70: text | BH70: 1000 | BI70: 2024-01-02 | BJ70: 2027-01-01 | BK70: 123 | BL70: 1.002053388 | BM70: 4 | BQ70: 21 | BR70: 11 | BS70: text | BT70: text | BU70: Multi | BV70: 0.08 | BW70: 15.0532432
B71: 2023 | C71: 2019-12-04 | D71: 68 | E71: 1 | F71: 2023100019 | G71: Shares in collective investment vehicles | H71: 1 | I71: 366 | K71: 60000 | L71: 3 | M71: 60 | N71: 520 | O71: C01 | P71: text | Q71: 24030 | T71: 00:00:00 | U71: 00:00:00 | AN71: 918 | AO71: 0 | AQ71: 10000 | AR71: 1188.563345 | AS71: 1188.563345 | BG71: 11251 | BJ71: 2030-03-13 | BQ71: 21 | BR71: 11 | BS71: UMICs | BT71: text | BU71: =IFERROR(IF(M71=60,VLOOKUP(VALUE(TEXT(YEAR($C71),"@")&TEXT($I71,"@")),IncomeGroup!$C$2:$F$50000,4,FALSE),VLOOKUP(VALUE(TEXT(YEAR($C71),"@")&TEXT($I71,"@")),IncomeGroup!$C$2:$F$50000,3,FALSE)),"") -> UMICs | BV71: 0.091 | BW71: 11.88563345 | BY71: LMICs | BZ71: =BO71 -> 0 | CA71: =BG71/100000 -> 0.11251 | CB71: =BE71 -> 0 | CC71: =DATEDIF(C71,BJ71,"D")/365.25 -> 10.27241615 | CD71: =DATEDIF(C71,BI71,"D")/365.25 ->  | CE71: 4 | CF71: =CD71-(1/CE71) ->  | CG71: =CC71-CF71 ->  | CH71: 0.105 | CI71: =CA71 -> 0.11251 | CJ71: =CA71 -> 0.11251 | CK71: =((1+CH71)^(1/CE71))-1 -> 0.02527547619 | CL71: =CE71*CG71 ->  | CM71: =(1+CH71)^CF71 ->  | CN71: =(1+CH71)^CG71 ->  | CO71: =(CI71*(1-(1/CM71)))/(CE71*CK71) ->  | CP71: =(1/CL71)*(1/CM71)*((1-(1/CN71))/CK71) ->  | CQ71: =(CJ71/(CE71*CL71))*(1/CM71)*((1/CN71)-1+CK71*CL71)/(CK71*CK71) ->  | CR71: =1 / ( (1 + CJ71/CE71)^CL71 -1) +1 ->  | CS71: =( CJ71/CE71 ) * CR71 * ( 1/CM71) * ( (1 - 1/CN71) / CK71) ->  | CT71: =(1-CO71-CP71-CQ71) ->  | CU71: =(1-CO71-CS71) ->  | CV71: =(1-(1+CJ71*CD71)/(1+CH71)^CC71) ->  | CW71: =IF(CB71=1,CT71,IF(CB71=2,CU71,IF(CB71=3,CV71,IF(CB71=5,CT71,"ERROR")))) -> ERROR | CX71: =IF(CW71<0,0,BZ71*CW71) ->  | CY71: =J71 -> 0
A72: ; if reporting under new PSI rules, type of flow = 60 and PSI is two digits in 10,20,21,22,30,40,41,42,50. If under provisional methods - type of flow (10,21), PSI flag may only include values NULL,2,3,4; Additionality type (67) may only include values NULL, 1,2,3; NUMBER OF ISSUES : 2 | B72: 2023 | C72: 2020-06-30 | D72: 68 | E72: 1 | F72: 2023107025 | G72: Subordinated loans | H72: 1 | I72: 261 | K72: 62000 | L72: 3 | M72: 10 | N72: 431 | O72: C01 | P72: text | Q72: 24030 | T72: 00:00:00 | U72: 00:00:00 | AN72: 918 | AO72: 0 | AQ72: 0 | AR72: 0 | BE72: 1 | BF72: 4 | BG72: 3660 | BI72: 2023-08-15 | BJ72: 2025-12-31 | BQ72: 20 | BR72: 11 | BS72: LMICs | BT72: text | BU72: =IFERROR(IF(M72=60,VLOOKUP(VALUE(TEXT(YEAR($C72),"@")&TEXT($I72,"@")),IncomeGroup!$C$2:$F$50000,4,FALSE),VLOOKUP(VALUE(TEXT(YEAR($C72),"@")&TEXT($I72,"@")),IncomeGroup!$C$2:$F$50000,3,FALSE)),"") -> LMICs | BV72: 0.09 | BW72: 17.91718392
A73: ; if reporting under new PSI rules, type of flow = 60 and PSI is two digits in 10,20,21,22,30,40,41,42,50. If under provisional methods - type of flow (10,21), PSI flag may only include values NULL,2,3,4; Additionality type (67) may only include values NULL, 1,2,3; NUMBER OF ISSUES : 2 | B73: 2023 | C73: 2020-06-30 | D73: 68 | E73: 1 | F73: 2023150025 | G73: Subordinated loans | H73: 1 | I73: 261 | K73: 62000 | L73: 3 | M73: 21 | N73: 431 | O73: C01 | P73: text | Q73: 24030 | T73: 00:00:00 | U73: 00:00:00 | AN73: 918 | AO73: 0 | AQ73: 0 | AR73: 0 | BE73: 1 | BF73: 4 | BG73: 3660 | BI73: 2023-08-15 | BJ73: 2025-12-31 | BQ73: 20 | BR73: 11 | BS73: LMICs | BT73: text | BU73: =IFERROR(IF(M73=60,VLOOKUP(VALUE(TEXT(YEAR($C73),"@")&TEXT($I73,"@")),IncomeGroup!$C$2:$F$50000,4,FALSE),VLOOKUP(VALUE(TEXT(YEAR($C73),"@")&TEXT($I73,"@")),IncomeGroup!$C$2:$F$50000,3,FALSE)),"") -> LMICs | BV73: 0.09 | BW73: 17.91718392
A74: ; if reporting under new PSI rules, type of flow = 60 and PSI is two digits in 10,20,21,22,30,40,41,42,50. If under provisional methods - type of flow (10,21), PSI flag may only include values NULL,2,3,4; Additionality type (67) may only include values NULL, 1,2,3; NUMBER OF ISSUES : 2 | B74: 2023 | C74: 2020-01-15 | D74: 68 | E74: 1 | F74: 2023006002a | G74: abc | H74: 3 | I74: 645 | J74: Loan guarantee private | K74: 62000 | L74: 1 | M74: 10 | N74: 110 | O74: C01 | P74: Loan guarantee private | Q74: 24030 | T74: 00:00:00 | U74: 00:00:00 | V74: Loan guarantee private | W74: 8.4 | Y74: 0 | Z74: 0 | AA74: 0 | AB74: 0 | AC74: 0 | AD74: 0 | AE74: 0 | AJ74: 0 | AK74: 0 | AL74: 0 | AM74: 0 | AN74: 918 | AQ74: 15000 | BE74: 1 | BF74: 4 | BG74: 1500 | BH74: text | BI74: 2021-02-18 | BJ74: 2026-05-03 | BQ74: 41 | BR74: 11;13;21 | BT74: text | BU74: =IFERROR(IF(M74=60,VLOOKUP(VALUE(TEXT(YEAR($C74),"@")&TEXT($I74,"@")),IncomeGroup!$C$2:$F$50000,4,FALSE),VLOOKUP(VALUE(TEXT(YEAR($C74),"@")&TEXT($I74,"@")),IncomeGroup!$C$2:$F$50000,3,FALSE)),"") -> LMICs | BV74: 0.035 | BW74: 0
A75: ; if reporting under new PSI rules, type of flow = 60 and PSI is two digits in 10,20,21,22,30,40,41,42,50. If under provisional methods - type of flow (10,21), PSI flag may only include values NULL,2,3,4; Additionality type (67) may only include values NULL, 1,2,3; NUMBER OF ISSUES : 2 | B75: 2023 | C75: 2023-05-15 | D75: 68 | E75: 1 | F75: 2023060020a | G75: abc | H75: 1 | I75: 645 | J75: Unspecified type guarantee | K75: 62000 | L75: 1 | M75: 21 | N75: 1100 | O75: C01 | P75: Unspecified type guarantee | Q75: 24030 | T75: 00:00:00 | U75: 00:00:00 | V75: Unspecified type guarantee | W75: 8.4 | Y75: 0 | Z75: 0 | AA75: 0 | AB75: 0 | AC75: 0 | AD75: 0 | AE75: 0 | AJ75: 0 | AK75: 0 | AL75: 0 | AM75: 0 | AN75: 918 | BE75: 1 | BF75: 4 | BG75: 1500 | BI75: 2024-06-18 | BJ75: 2029-08-31 | BO75: 15000 | BQ75: 41 | BR75: 11;13;21 | BT75: text | BU75: =IFERROR(IF(M75=60,VLOOKUP(VALUE(TEXT(YEAR($C75),"@")&TEXT($I75,"@")),IncomeGroup!$C$2:$F$50000,4,FALSE),VLOOKUP(VALUE(TEXT(YEAR($C75),"@")&TEXT($I75,"@")),IncomeGroup!$C$2:$F$50000,3,FALSE)),"") -> LMICs | BW75: 0
A76: ; if reporting under new PSI rules, type of flow = 60 and PSI is two digits in 10,20,21,22,30,40,41,42,50. If under provisional methods - type of flow (10,21), PSI flag may only include values NULL,2,3,4; Additionality type (67) may only include values NULL, 1,2,3; NUMBER OF ISSUES : 2 | B76: 2023 | C76: 2023-05-15 | D76: 68 | E76: 1 | F76: 2023080020a | G76: abc | H76: 1 | I76: 645 | J76: Unspecified type guarantee | K76: 62000 | L76: 1 | M76: 10 | N76: 1100 | O76: C01 | P76: Unspecified type guarantee | Q76: 24030 | T76: 00:00:00 | U76: 00:00:00 | V76: Unspecified type guarantee | W76: 8.4 | Y76: 0 | Z76: 0 | AA76: 0 | AB76: 0 | AC76: 0 | AD76: 0 | AE76: 0 | AJ76: 0 | AK76: 0 | AL76: 0 | AM76: 0 | AN76: 918 | BE76: 1 | BF76: 4 | BG76: 1500 | BI76: 2024-06-18 | BJ76: 2029-08-31 | BO76: 15000 | BQ76: 41 | BR76: 11;13;21 | BT76: text | BU76: =IFERROR(IF(M76=60,VLOOKUP(VALUE(TEXT(YEAR($C76),"@")&TEXT($I76,"@")),IncomeGroup!$C$2:$F$50000,4,FALSE),VLOOKUP(VALUE(TEXT(YEAR($C76),"@")&TEXT($I76,"@")),IncomeGroup!$C$2:$F$50000,3,FALSE)),"") -> LMICs | BW76: 0
A77: ; if reporting under new PSI rules, type of flow = 60 and PSI is two digits in 10,20,21,22,30,40,41,42,50. If under provisional methods - type of flow (10,21), PSI flag may only include values NULL,2,3,4; NUMBER OF ISSUES : 1 | B77: 2023 | C77: 2020-06-30 | D77: 68 | E77: 1 | F77: 2023105030 | G77: Preferred equity | H77: 1 | I77: 261 | K77: 62000 | L77: 3 | M77: 10 | N77: 432 | O77: C01 | P77: text | Q77: 24030 | T77: 00:00:00 | U77: 00:00:00 | AN77: 918 | AO77: 0 | AQ77: 0 | AR77: 0 | BG77: 1236 | BJ77: 2025-12-31 | BQ77: 21 | BS77: LMICs | BU77: =IFERROR(IF(M77=60,VLOOKUP(VALUE(TEXT(YEAR($C77),"@")&TEXT($I77,"@")),IncomeGroup!$C$2:$F$50000,4,FALSE),VLOOKUP(VALUE(TEXT(YEAR($C77),"@")&TEXT($I77,"@")),IncomeGroup!$C$2:$F$50000,3,FALSE)),"") -> LMICs | BV77: 0.09 | BW77: 33.53123873 | BY77: LMICs | BZ77: =BO77 -> 0 | CA77: =BG77/100000 -> 0.01236 | CB77: =BE77 -> 0 | CC77: =DATEDIF(C77,BJ77,"D")/365.25 -> 5.503080082 | CD77: =DATEDIF(C77,BI77,"D")/365.25 ->  | CE77: 4 | CF77: =CD77-(1/CE77) ->  | CG77: =CC77-CF77 ->  | CH77: =VLOOKUP([3]CRSDATA!M25,'[3]Discount rates gua, rg'!$A:$H,MATCH([3]CRSDATA!BW$4,'[3]Discount rates gua, rg'!$A$1:$H$1,0),FALSE) -> 0.035 | CI77: =CA77 -> 0.01236 | CJ77: =CA77 -> 0.01236 | CK77: =((1+CH77)^(1/CE77))-1 -> 0.008637445998 | CL77: =CE77*CG77 ->  | CM77: =(1+CH77)^CF77 ->  | CN77: =(1+CH77)^CG77 ->  | CO77: =(CI77*(1-(1/CM77)))/(CE77*CK77) ->  | CP77: =(1/CL77)*(1/CM77)*((1-(1/CN77))/CK77) ->  | CQ77: =(CJ77/(CE77*CL77))*(1/CM77)*((1/CN77)-1+CK77*CL77)/(CK77*CK77) ->  | CR77: =1 / ( (1 + CJ77/CE77)^CL77 -1) +1 ->  | CS77: =( CJ77/CE77 ) * CR77 * ( 1/CM77) * ( (1 - 1/CN77) / CK77) ->  | CT77: =(1-CO77-CP77-CQ77) ->  | CU77: =(1-CO77-CS77) ->  | CV77: =(1-(1+CJ77*CD77)/(1+CH77)^CC77) ->  | CW77: =IF(CB77=1,CT77,IF(CB77=2,CU77,IF(CB77=3,CV77,IF(CB77=5,CT77,"ERROR")))) -> ERROR | CX77: =IF(CW77<0,0,BZ77*CW77)*75% ->  | CY77: =J77 -> 0
A78: ; if reporting under new PSI rules, type of flow = 60 and PSI is two digits in 10,20,21,22,30,40,41,42,50. If under provisional methods - type of flow (10,21), PSI flag may only include values NULL,2,3,4; NUMBER OF ISSUES : 1 | B78: 2023 | C78: 2020-06-30 | D78: 68 | E78: 1 | F78: 2023106030 | G78: Preferred equity | H78: 1 | I78: 261 | K78: 62000 | L78: 3 | M78: 21 | N78: 432 | O78: C01 | P78: text | Q78: 24030 | T78: 00:00:00 | U78: 00:00:00 | AN78: 918 | AO78: 0 | AQ78: 0 | AR78: 0 | BG78: 1236 | BJ78: 2025-12-31 | BQ78: 21 | BS78: LMICs | BU78: =IFERROR(IF(M78=60,VLOOKUP(VALUE(TEXT(YEAR($C78),"@")&TEXT($I78,"@")),IncomeGroup!$C$2:$F$50000,4,FALSE),VLOOKUP(VALUE(TEXT(YEAR($C78),"@")&TEXT($I78,"@")),IncomeGroup!$C$2:$F$50000,3,FALSE)),"") -> LMICs | BV78: 0.09 | BW78: 33.53123873 | BY78: LMICs | BZ78: =BO78 -> 0 | CA78: =BG78/100000 -> 0.01236 | CB78: =BE78 -> 0 | CC78: =DATEDIF(C78,BJ78,"D")/365.25 -> 5.503080082 | CD78: =DATEDIF(C78,BI78,"D")/365.25 ->  | CE78: 4 | CF78: =CD78-(1/CE78) ->  | CG78: =CC78-CF78 ->  | CH78: =VLOOKUP([3]CRSDATA!M6,'[3]Discount rates gua, rg'!$A:$H,MATCH([3]CRSDATA!BW$4,'[3]Discount rates gua, rg'!$A$1:$H$1,0),FALSE)-0.5% -> 0.03 | CI78: =CA78 -> 0.01236 | CJ78: =CA78 -> 0.01236 | CK78: =((1+CH78)^(1/CE78))-1 -> 0.007417071778 | CL78: =CE78*CG78 ->  | CM78: =(1+CH78)^CF78 ->  | CN78: =(1+CH78)^CG78 ->  | CO78: =(CI78*(1-(1/CM78)))/(CE78*CK78) ->  | CP78: =(1/CL78)*(1/CM78)*((1-(1/CN78))/CK78) ->  | CQ78: =(CJ78/(CE78*CL78))*(1/CM78)*((1/CN78)-1+CK78*CL78)/(CK78*CK78) ->  | CR78: =1 / ( (1 + CJ78/CE78)^CL78 -1) +1 ->  | CS78: =( CJ78/CE78 ) * CR78 * ( 1/CM78) * ( (1 - 1/CN78) / CK78) ->  | CT78: =(1-CO78-CP78-CQ78) ->  | CU78: =(1-CO78-CS78) ->  | CV78: =(1-(1+CJ78*CD78)/(1+CH78)^CC78) ->  | CW78: =IF(CB78=1,CT78,IF(CB78=2,CU78,IF(CB78=3,CV78,IF(CB78=5,CT78,"ERROR")))) -> ERROR | CX78: =IF(CW78<0,0,BZ78*CW78)*75% ->  | CY78: =J78 -> 0
B79: 2023 | C79: 2020-06-30 | D79: 68 | E79: 1 | F79: 2023100020 | G79: Shares in collective investment vehicles | H79: 1 | I79: 261 | K79: 62000 | L79: 3 | M79: 60 | N79: 520 | O79: C01 | P79: text | Q79: 24030 | T79: 00:00:00 | U79: 00:00:00 | AN79: 918 | AO79: 0 | AQ79: 0 | AR79: 0 | BG79: 1236 | BJ79: 2025-12-31 | BQ79: 21 | BR79: 11 | BS79: LMICs | BT79: text | BU79: =IFERROR(IF(M79=60,VLOOKUP(VALUE(TEXT(YEAR($C79),"@")&TEXT($I79,"@")),IncomeGroup!$C$2:$F$50000,4,FALSE),VLOOKUP(VALUE(TEXT(YEAR($C79),"@")&TEXT($I79,"@")),IncomeGroup!$C$2:$F$50000,3,FALSE)),"") -> LMICs | BV79: 0.105 | BW79: 38.3472416 | BY79: LMICs | BZ79: =BO79 -> 0 | CA79: =BG79/100000 -> 0.01236 | CB79: =BE79 -> 0 | CC79: =DATEDIF(C79,BJ79,"D")/365.25 -> 5.503080082 | CD79: =DATEDIF(C79,BI79,"D")/365.25 ->  | CE79: 4 | CF79: =CD79-(1/CE79) ->  | CG79: =CC79-CF79 ->  | CH79: =VLOOKUP([3]CRSDATA!M52,'[3]Discount rates gua, rg'!$A:$H,MATCH([3]CRSDATA!BW$4,'[3]Discount rates gua, rg'!$A$1:$H$1,0),FALSE) ->  | CI79: =CA79 -> 0.01236 | CJ79: =CA79 -> 0.01236 | CK79: =((1+CH79)^(1/CE79))-1 ->  | CL79: =CE79*CG79 ->  | CM79: =(1+CH79)^CF79 ->  | CN79: =(1+CH79)^CG79 ->  | CO79: =(CI79*(1-(1/CM79)))/(CE79*CK79) ->  | CP79: =(1/CL79)*(1/CM79)*((1-(1/CN79))/CK79) ->  | CQ79: =(CJ79/(CE79*CL79))*(1/CM79)*((1/CN79)-1+CK79*CL79)/(CK79*CK79) ->  | CR79: =1 / ( (1 + CJ79/CE79)^CL79 -1) +1 ->  | CS79: =( CJ79/CE79 ) * CR79 * ( 1/CM79) * ( (1 - 1/CN79) / CK79) ->  | CT79: =(1-CO79-CP79-CQ79) ->  | CU79: =(1-CO79-CS79) ->  | CV79: =(1-(1+CJ79*CD79)/(1+CH79)^CC79) ->  | CW79: =IF(CB79=1,CT79,IF(CB79=2,CU79,IF(CB79=3,CV79,IF(CB79=5,CT79,"ERROR")))) -> ERROR | CX79: =IF(CW79<0,0,BZ79*CW79) ->  | CY79: =J79 -> 0
A80: ; More specific financial instrument is needed; For PSI in ODA, fields on additionality (fields 68-70) should be reported; NUMBER OF ISSUES : 2 | B80: 2023 | C80: 2023-05-15 | D80: 68 | E80: 1 | F80: 2023080028a | G80: abc | H80: 1 | I80: 645 | J80: RG | K80: 62000 | L80: 1 | M80: 60 | N80: 422 | O80: C01 | P80: RG | Q80: 24030 | T80: 00:00:00 | U80: 00:00:00 | V80: RG | W80: 8.4 | Y80: 0 | Z80: 0 | AA80: 0 | AB80: 0 | AC80: 0 | AD80: 0 | AE80: 0 | AJ80: 0 | AK80: 0 | AL80: 0 | AM80: 0 | AN80: 918 | AP80: 15000 | AQ80: 15000 | BE80: 1 | BF80: 4 | BG80: 5000 | BI80: 2024-06-18 | BJ80: 2029-08-31 | BQ80: 21 | BR80: 11;13;21 | BT80: text | BU80: =IFERROR(IF(M80=60,VLOOKUP(VALUE(TEXT(YEAR($C80),"@")&TEXT($I80,"@")),IncomeGroup!$C$2:$F$50000,4,FALSE),VLOOKUP(VALUE(TEXT(YEAR($C80),"@")&TEXT($I80,"@")),IncomeGroup!$C$2:$F$50000,3,FALSE)),"") -> LMICs | BW80: 0 | BY80: LMICs | BZ80: =BO80 -> 0 | CA80: =BG80/100000 -> 0.05 | CB80: =BE80 -> 1 | CC80: =DATEDIF(C80,BJ80,"D")/365.25 -> 6.29705681 | CD80: =DATEDIF(C80,BI80,"D")/365.25 -> 1.095140315 | CE80: 4 | CF80: =CD80-(1/CE80) -> 0.8451403149 | CG80: =CC80-CF80 -> 5.451916496 | CH80: =VLOOKUP([3]CRSDATA!M62,'[3]Discount rates gua, rg'!$A:$H,MATCH([3]CRSDATA!BW$4,'[3]Discount rates gua, rg'!$A$1:$H$1,0),FALSE) ->  | CI80: =CA80 -> 0.05 | CJ80: =CA80 -> 0.05 | CK80: =((1+CH80)^(1/CE80))-1 ->  | CL80: =CE80*CG80 -> 21.80766598 | CM80: =(1+CH80)^CF80 ->  | CN80: =(1+CH80)^CG80 ->  | CO80: =(CI80*(1-(1/CM80)))/(CE80*CK80) ->  | CP80: =(1/CL80)*(1/CM80)*((1-(1/CN80))/CK80) ->  | CQ80: =(CJ80/(CE80*CL80))*(1/CM80)*((1/CN80)-1+CK80*CL80)/(CK80*CK80) ->  | CR80: =1 / ( (1 + CJ80/CE80)^CL80 -1) +1 -> 4.213862959 | CS80: =( CJ80/CE80 ) * CR80 * ( 1/CM80) * ( (1 - 1/CN80) / CK80) ->  | CT80: =(1-CO80-CP80-CQ80) ->  | CU80: =(1-CO80-CS80) ->  | CV80: =(1-(1+CJ80*CD80)/(1+CH80)^CC80) ->  | CW80: =IF(CB80=1,CT80,IF(CB80=2,CU80,IF(CB80=3,CV80,IF(CB80=5,CT80,"ERROR")))) ->  | CX80: =IF(CW80<0,0,BZ80*CW80) ->  | CY80: =J80 -> RG
A81: ; More specific financial instrument is needed; NUMBER OF ISSUES : 1 | B81: 2023 | C81: 2023-01-01 | D81: 68 | E81: 1 | F81: 2023000001 | G81: 123 | H81: 1 | I81: 645 | J81: new | K81: 12000 | L81: 1 | M81: 60 | N81: 1100 | O81: C01 | P81: text | Q81: 99810 | T81: 00:00:00 | U81: 00:00:00 | AN81: 918 | BE81: 1 | BF81: 1 | BG81: text | BH81: 1000 | BI81: 2024-01-02 | BJ81: 2027-01-01 | BK81: 123 | BL81: 1.002053388 | BM81: 4 | BO81: 10000 | BP81: 50 | BQ81: 20 | BR81: 11 | BS81: text | BT81: text | BU81: =IFERROR(IF(M81=60,VLOOKUP(VALUE(TEXT(YEAR($C81),"@")&TEXT($I81,"@")),IncomeGroup!$C$2:$F$50000,4,FALSE),VLOOKUP(VALUE(TEXT(YEAR($C81),"@")&TEXT($I81,"@")),IncomeGroup!$C$2:$F$50000,3,FALSE)),"") -> LMICs | BV81: 0.035 | BW81: 0
A82: ; More specific financial instrument is needed; NUMBER OF ISSUES : 1 | B82: 2023 | C82: 2023-05-15 | D82: 68 | E82: 1 | F82: 2023090620a | G82: abc | H82: 1 | I82: 645 | J82: Unspecified type guarantee | K82: 62000 | L82: 1 | M82: 60 | N82: 1100 | O82: C01 | P82: Unspecified type guarantee | Q82: 24030 | T82: 00:00:00 | U82: 00:00:00 | V82: Unspecified type guarantee | W82: 8.4 | Y82: 0 | Z82: 0 | AA82: 0 | AB82: 0 | AC82: 0 | AD82: 0 | AE82: 0 | AJ82: 0 | AK82: 0 | AL82: 0 | AM82: 0 | AN82: 918 | BE82: 1 | BF82: 4 | BG82: 1500 | BI82: 2024-06-18 | BJ82: 2029-08-31 | BO82: 15000 | BQ82: 41 | BR82: 11;13;21 | BT82: text | BU82: =IFERROR(IF(M82=60,VLOOKUP(VALUE(TEXT(YEAR($C82),"@")&TEXT($I82,"@")),IncomeGroup!$C$2:$F$50000,4,FALSE),VLOOKUP(VALUE(TEXT(YEAR($C82),"@")&TEXT($I82,"@")),IncomeGroup!$C$2:$F$50000,3,FALSE)),"") -> LMICs | BW82: 0 | BY82: LMICs | BZ82: =AQ82 -> 0 | CA82: =BG82/100000 -> 0.015 | CB82: =BE82 -> 1 | CC82: =DATEDIF(C82,BJ82,"D")/365.25 -> 6.29705681 | CD82: =DATEDIF(C82,BI82,"D")/365.25 -> 1.095140315 | CE82: 4 | CF82: =CD82-(1/CE82) -> 0.8451403149 | CG82: =CC82-CF82 -> 5.451916496 | CH82: 0.105 | CI82: =CA82 -> 0.015 | CJ82: =CA82 -> 0.015 | CK82: =((1+CH82)^(1/CE82))-1 -> 0.02527547619 | CL82: =CE82*CG82 -> 21.80766598 | CM82: =(1+CH82)^CF82 -> 1.088045881 | CN82: =(1+CH82)^CG82 -> 1.723485043 | CO82: =(CI82*(1-(1/CM82)))/(CE82*CK82) -> 0.01200587332 | CP82: =(1/CL82)*(1/CM82)*((1-(1/CN82))/CK82) -> 0.6999488365 | CQ82: =(CJ82/(CE82*CL82))*(1/CM82)*((1/CN82)-1+CK82*CL82)/(CK82*CK82) -> 0.03251126474 | CR82: =1 / ( (1 + CJ82/CE82)^CL82 -1) +1 -> 12.75783069 | CS82: =( CJ82/CE82 ) * CR82 * ( 1/CM82) * ( (1 - 1/CN82) / CK82) -> 0.7302702096 | CT82: =(1-CO82-CP82-CQ82) -> 0.2555340255 | CU82: =(1-CO82-CS82) -> 0.2577239171 | CV82: =(1-(1+CJ82*CD82)/(1+CH82)^CC82) -> 0.4579722649 | CW82: =IF(CB82=1,CT82,IF(CB82=2,CU82,IF(CB82=3,CV82,IF(CB82=5,CT82,"ERROR")))) -> 0.2555340255 | CX82: =IF(CW82<0,0,BZ82*CW82) -> 0 | CY82: =J82 -> Unspecified type guarantee
A83: ; No commitment date reported; NUMBER OF ISSUES : 1 | B83: 2023 | D83: 68 | E83: 1 | F83: 2023000007 | G83: Individual mezz guarantee | H83: 1 | I83: 645 | J83: new | K83: 12000 | L83: 1 | M83: 60 | N83: 1103 | O83: C01 | P83: text | Q83: 99810 | T83: 00:00:00 | U83: 00:00:00 | AN83: 918 | AR83: 908.4657786 | BE83: 1 | BF83: 1 | BG83: text | BH83: 1000 | BK83: 123 | BL83: 1.002053388 | BM83: 4 | BO83: 10000 | BP83: 50 | BQ83: 20 | BR83: 11 | BS83: text | BT83: text | BU83: =IFERROR(IF(M83=60,VLOOKUP(VALUE(TEXT(YEAR($C83),"@")&TEXT($I83,"@")),IncomeGroup!$C$2:$F$50000,4,FALSE),VLOOKUP(VALUE(TEXT(YEAR($C83),"@")&TEXT($I83,"@")),IncomeGroup!$C$2:$F$50000,3,FALSE)),"") ->  | BV83: 0.05 | BW83: 0 | BY83: LMICs | BZ83: =BO83 -> 10000 | CA83: =BG83/100000 ->  | CB83: =BE83 -> 1 | CC83: =DATEDIF(C83,BJ83,"D")/365.25 -> 0 | CD83: =DATEDIF(C83,BI83,"D")/365.25 -> 0 | CE83: 4 | CF83: =CD83-(1/CE83) -> -0.25 | CG83: =CC83-CF83 -> 0.25 | CH83: =VLOOKUP([3]CRSDATA!M20,'[3]Discount rates gua, rg'!$A:$H,MATCH([3]CRSDATA!BW$4,'[3]Discount rates gua, rg'!$A$1:$H$1,0),FALSE) -> 0.065 | CI83: =CA83 ->  | CJ83: =CA83 ->  | CK83: =((1+CH83)^(1/CE83))-1 -> 0.01586828478 | CL83: =CE83*CG83 -> 1 | CM83: =(1+CH83)^CF83 -> 0.9843795844 | CN83: =(1+CH83)^CG83 -> 1.015868285 | CO83: =(CI83*(1-(1/CM83)))/(CE83*CK83) ->  | CP83: =(1/CL83)*(1/CM83)*((1-(1/CN83))/CK83) -> 1 | CQ83: =(CJ83/(CE83*CL83))*(1/CM83)*((1/CN83)-1+CK83*CL83)/(CK83*CK83) ->  | CR83: =1 / ( (1 + CJ83/CE83)^CL83 -1) +1 ->  | CS83: =( CJ83/CE83 ) * CR83 * ( 1/CM83) * ( (1 - 1/CN83) / CK83) ->  | CT83: =(1-CO83-CP83-CQ83) ->  | CU83: =(1-CO83-CS83) ->  | CV83: =(1-(1+CJ83*CD83)/(1+CH83)^CC83) ->  | CW83: =IF(CB83=1,CT83,IF(CB83=2,CU83,IF(CB83=3,CV83,IF(CB83=5,CT83,"ERROR")))) ->  | CX83: =IF(CW83<0,0,BZ83*CW83) ->  | CY83: =J83 -> new
A84: ; No commitment date reported; NUMBER OF ISSUES : 1 | B84: 2023 | D84: 68 | E84: 1 | F84: 2023000008 | G84: Individual mezz guarantee | H84: 1 | I84: 645 | J84: new | K84: 62000 | L84: 1 | M84: 60 | N84: 1103 | O84: C01 | P84: text | Q84: 99810 | T84: 00:00:00 | U84: 00:00:00 | AN84: 918 | AR84: 908.4657786 | BE84: 1 | BF84: 1 | BG84: text | BH84: 1000 | BI84: 2024-01-02 | BK84: 123 | BL84: 1.002053388 | BM84: 4 | BO84: 10000 | BP84: 50 | BQ84: 20 | BR84: 11 | BS84: text | BT84: text | BU84: =IFERROR(IF(M84=60,VLOOKUP(VALUE(TEXT(YEAR($C84),"@")&TEXT($I84,"@")),IncomeGroup!$C$2:$F$50000,4,FALSE),VLOOKUP(VALUE(TEXT(YEAR($C84),"@")&TEXT($I84,"@")),IncomeGroup!$C$2:$F$50000,3,FALSE)),"") ->  | BV84: 0.05 | BW84: 0
A85: ; No interest rate/Expected return per annum reported; For PSI in ODA, fields on additionality (fields 68-70) should be reported; NUMBER OF ISSUES : 2 | B85: 2023 | C85: 2018-12-14 | D85: 68 | E85: 1 | F85: 2023100007 | G85: PSI loans | H85: 1 | I85: 63 | K85: 61000 | L85: 3 | M85: 60 | N85: 421 | O85: C01 | P85: text | Q85: 24030 | T85: 00:00:00 | U85: 00:00:00 | AN85: 918 | AO85: 0 | AQ85: 10000 | AR85: 634.352854 | AT85: 0 | BE85: 1 | BF85: 1 | BI85: 2023-09-30 | BJ85: 2025-09-15 | BQ85: 20 | BU85: =IFERROR(IF(M85=60,VLOOKUP(VALUE(TEXT(YEAR($C85),"@")&TEXT($I85,"@")),IncomeGroup!$C$2:$F$50000,4,FALSE),VLOOKUP(VALUE(TEXT(YEAR($C85),"@")&TEXT($I85,"@")),IncomeGroup!$C$2:$F$50000,3,FALSE)),"") -> UMICs | BV85: 0.061 | BW85: 0
A86: ; Number of fee payments per annum (fields 56) not available/not reported; NUMBER OF ISSUES : 1 | B86: 2023 | C86: 2023-05-15 | D86: 68 | E86: 1 | F86: 2023000008a | G86: Individual mezz guarantee | H86: 1 | I86: 645 | J86: Mezzanine guarantee public | K86: 62000 | L86: 1 | M86: 60 | N86: 1103 | O86: C01 | P86: Mezzanine guarantee public | Q86: 24030 | T86: 00:00:00 | U86: 00:00:00 | V86: Mezzanine guarantee public | W86: 8.4 | Y86: 0 | Z86: 0 | AA86: 0 | AB86: 0 | AC86: 0 | AD86: 0 | AE86: 0 | AJ86: 0 | AK86: 0 | AL86: 0 | AM86: 0 | AN86: 918 | AR86: 1569.018529 | BE86: 1 | BG86: 1750 | BI86: 2024-06-18 | BJ86: 2029-08-31 | BO86: 15000 | BQ86: 40 | BR86: 11;13;21 | BT86: text | BU86: =IFERROR(IF(M86=60,VLOOKUP(VALUE(TEXT(YEAR($C86),"@")&TEXT($I86,"@")),IncomeGroup!$C$2:$F$50000,4,FALSE),VLOOKUP(VALUE(TEXT(YEAR($C86),"@")&TEXT($I86,"@")),IncomeGroup!$C$2:$F$50000,3,FALSE)),"") -> LMICs | BV86: 0.05 | BW86: 10.46012353
A87: ; Reported grant equivalent is different compared with macro's automatic calculation based only on reported terms; NUMBER OF ISSUES : 1 | B87: 2023 | C87: 17/07/2014 | D87: 68 | E87: 2 | F87: 2014110816 | G87: C200A1 | H87: 3 | I87: 247 | J87: Recipient governement | K87: 12000 | L87: 1 | M87: 10 | N87: 421 | O87: C01 | P87: AMO ALIMENTATION EAU POTABLE REGION GAGNOA | Q87: 14021 | R87: GAGNOA | T87: 2023-01-17 | U87: 2041-09-30 | V87: AMO ALIMENTATION EAU POTABLE REGION GAGNOA | W87: 6.1;6.2 | Y87: 2 | Z87: 0 | AA87: 0 | AB87: 0 | AC87: 0 | AD87: 0 | AE87: 0 | AF87: 1 | AH87: 1 | AJ87: 0 | AK87: 0 | AL87: 0 | AM87: 0 | AN87: 918 | AO87: 0 | AQ87: 88.52561 | AR87: 63 | AS87: 61.35097367 | AT87: 0 | AU87: 0 | AV87: 0 | AW87: 0 | BE87: 1 | BF87: 2 | BG87: 00060 | BI87: 2024-09-30 | BJ87: 2041-06-30 | BK87: 2.12791 | BL87: 3562 | BM87: 0 | BN87: 0 | BU87: =IFERROR(IF(M87=60,VLOOKUP(VALUE(TEXT(YEAR($C87),"@")&TEXT($I87,"@")),IncomeGroup!$C$2:$F$50000,4,FALSE),VLOOKUP(VALUE(TEXT(YEAR($C87),"@")&TEXT($I87,"@")),IncomeGroup!$C$2:$F$50000,3,FALSE)),"") -> LMICs | BV87: 0.07 | BW87: 69.30307927 | BY87: LMICs | BZ87: =BO87 -> 0 | CA87: =BG87/100000 -> 0.0006 | CB87: =BE87 -> 1 | CC87: =DATEDIF(C87,BJ87,"D")/365.25 -> 26.954141 | CD87: =DATEDIF(C87,BI87,"D")/365.25 -> 10.20670773 | CE87: 4 | CF87: =CD87-(1/CE87) -> 9.956707734 | CG87: =CC87-CF87 -> 16.99743326 | CH87: =VLOOKUP([3]CRSDATA!M49,'[3]Discount rates gua, rg'!$A:$H,MATCH([3]CRSDATA!BW$4,'[3]Discount rates gua, rg'!$A$1:$H$1,0),FALSE) ->  | CI87: =CA87 -> 0.0006 | CJ87: =CA87 -> 0.0006 | CK87: =((1+CH87)^(1/CE87))-1 ->  | CL87: =CE87*CG87 -> 67.98973306 | CM87: =(1+CH87)^CF87 ->  | CN87: =(1+CH87)^CG87 ->  | CO87: =(CI87*(1-(1/CM87)))/(CE87*CK87) ->  | CP87: =(1/CL87)*(1/CM87)*((1-(1/CN87))/CK87) ->  | CQ87: =(CJ87/(CE87*CL87))*(1/CM87)*((1/CN87)-1+CK87*CL87)/(CK87*CK87) ->  | CR87: =1 / ( (1 + CJ87/CE87)^CL87 -1) +1 -> 98.56222399 | CS87: =( CJ87/CE87 ) * CR87 * ( 1/CM87) * ( (1 - 1/CN87) / CK87) ->  | CT87: =(1-CO87-CP87-CQ87) ->  | CU87: =(1-CO87-CS87) ->  | CV87: =(1-(1+CJ87*CD87)/(1+CH87)^CC87) ->  | CW87: =IF(CB87=1,CT87,IF(CB87=2,CU87,IF(CB87=3,CV87,IF(CB87=5,CT87,"ERROR")))) ->  | CX87: =IF(CW87<0,0,BZ87*CW87)*75% ->  | CY87: =J87 -> Recipient governement
A88: ; Reported grant equivalent is different compared with macro's automatic calculation based only on reported terms; NUMBER OF ISSUES : 1 | B88: 2023 | C88: 2015-07-12 | D88: 68 | E88: 2 | F88: 2015300311 | G88: C340A1 | H88: 3 | I88: 342 | J88: Recipient governement | K88: 12000 | L88: 1 | M88: 10 | N88: 421 | O88: C01 | P88: EAU POTABLE / RESEAU ADDUCTION DE LAS PAVAS | Q88: 14021 | R88: EL SALVADOR / LAS PAVAS | T88: 2020-12-07 | U88: 2053-03-31 | V88: EAU POTABLE / RESEAU ADDUCTION DE LAS PAVAS | W88: 6.1;6.2 | Y88: 2 | Z88: 0 | AA88: 0 | AB88: 0 | AC88: 0 | AD88: 0 | AE88: 0 | AF88: 1 | AH88: 1 | AJ88: 0 | AK88: 0 | AL88: 0 | AM88: 0 | AN88: 918 | AO88: 0 | AQ88: 1197.17745 | AR88: 893 | AS88: 876.7299166 | AT88: 338.5346 | AU88: 0 | AV88: 0 | AW88: 0 | BE88: 1 | BF88: 2 | BG88: 00115 | BI88: 2023-03-31 | BJ88: 2053-03-31 | BK88: 59.40066 | BL88: 51801 | BM88: 0 | BN88: 0 | BU88: =IFERROR(IF(M88=60,VLOOKUP(VALUE(TEXT(YEAR($C88),"@")&TEXT($I88,"@")),IncomeGroup!$C$2:$F$50000,4,FALSE),VLOOKUP(VALUE(TEXT(YEAR($C88),"@")&TEXT($I88,"@")),IncomeGroup!$C$2:$F$50000,3,FALSE)),"") -> LMICs | BV88: 0.07 | BW88: 73.23307974 | BY88: LMICs | BZ88: =BO88 -> 0 | CA88: =BG88/100000 -> 0.00115 | CB88: =BE88 -> 1 | CC88: =DATEDIF(C88,BJ88,"D")/365.25 -> 37.71937029 | CD88: =DATEDIF(C88,BI88,"D")/365.25 -> 7.718001369 | CE88: 4 | CF88: =CD88-(1/CE88) -> 7.468001369 | CG88: =CC88-CF88 -> 30.25136893 | CH88: =VLOOKUP([3]CRSDATA!M59,'[3]Discount rates gua, rg'!$A:$H,MATCH([3]CRSDATA!BW$4,'[3]Discount rates gua, rg'!$A$1:$H$1,0),FALSE) ->  | CI88: =CA88 -> 0.00115 | CJ88: =CA88 -> 0.00115 | CK88: =((1+CH88)^(1/CE88))-1 ->  | CL88: =CE88*CG88 -> 121.0054757 | CM88: =(1+CH88)^CF88 ->  | CN88: =(1+CH88)^CG88 ->  | CO88: =(CI88*(1-(1/CM88)))/(CE88*CK88) ->  | CP88: =(1/CL88)*(1/CM88)*((1-(1/CN88))/CK88) ->  | CQ88: =(CJ88/(CE88*CL88))*(1/CM88)*((1/CN88)-1+CK88*CL88)/(CK88*CK88) ->  | CR88: =1 / ( (1 + CJ88/CE88)^CL88 -1) +1 -> 29.25168726 | CS88: =( CJ88/CE88 ) * CR88 * ( 1/CM88) * ( (1 - 1/CN88) / CK88) ->  | CT88: =(1-CO88-CP88-CQ88) ->  | CU88: =(1-CO88-CS88) ->  | CV88: =(1-(1+CJ88*CD88)/(1+CH88)^CC88) ->  | CW88: =IF(CB88=1,CT88,IF(CB88=2,CU88,IF(CB88=3,CV88,IF(CB88=5,CT88,"ERROR")))) ->  | CX88: =IF(CW88<0,0,BZ88*CW88) ->  | CY88: =J88 -> Recipient governement
A89: ; Reported grant equivalent is different compared with macro's automatic calculation based only on reported terms; NUMBER OF ISSUES : 1 | B89: 2023 | C89: 2016-05-07 | D89: 68 | E89: 2 | F89: 2016300211 | G89: C390A1 | H89: 3 | I89: 57 | J89: Recipient governement | K89: 12000 | L89: 1 | M89: 10 | N89: 421 | O89: C01 | P89: TRAITEMENT DES EAUX USEES DE PRISTINA | Q89: 14022 | R89: PRISTINA | T89: 2022-07-05 | U89: 2056-12-31 | V89: TRAITEMENT DES EAUX USEES DE PRISTINA | W89: 6.2;6.3 | Y89: 2 | Z89: 0 | AA89: 0 | AB89: 0 | AC89: 0 | AD89: 0 | AE89: 0 | AF89: 1 | AH89: 1 | AJ89: 0 | AK89: 0 | AL89: 0 | AM89: 0 | AN89: 918 | AO89: 0 | AQ89: 528.25431 | AR89: 425 | AS89: 415.9741508 | AT89: 0 | AU89: 0 | AV89: 0 | AW89: 0 | BE89: 1 | BF89: 2 | BG89: 00036 | BI89: 2028-12-31 | BJ89: 2053-06-30 | BK89: 0 | BL89: 528 | BM89: 0 | BN89: 0 | BU89: =IFERROR(IF(M89=60,VLOOKUP(VALUE(TEXT(YEAR($C89),"@")&TEXT($I89,"@")),IncomeGroup!$C$2:$F$50000,4,FALSE),VLOOKUP(VALUE(TEXT(YEAR($C89),"@")&TEXT($I89,"@")),IncomeGroup!$C$2:$F$50000,3,FALSE)),"") -> LMICs | BV89: 0.07 | BW89: 78.74505573 | BY89: LMICs | BZ89: =AQ89 -> 528.25431 | CA89: =BG89/100000 -> 0.00036 | CB89: =BE89 -> 1 | CC89: =DATEDIF(C89,BJ89,"D")/365.25 -> 37.14715948 | CD89: =DATEDIF(C89,BI89,"D")/365.25 -> 12.65160849 | CE89: 4 | CF89: =CD89-(1/CE89) -> 12.40160849 | CG89: =CC89-CF89 -> 24.74555099 | CH89: =VLOOKUP([3]CRSDATA!M35,'[3]Discount rates gua, rg'!$A:$H,MATCH([3]CRSDATA!BW$4,'[3]Discount rates gua, rg'!$A$1:$H$1,0),FALSE) -> 0.075 | CI89: =CA89 -> 0.00036 | CJ89: =CA89 -> 0.00036 | CK89: =((1+CH89)^(1/CE89))-1 -> 0.0182446011 | CL89: =CE89*CG89 -> 98.98220397 | CM89: =(1+CH89)^CF89 -> 2.451971833 | CN89: =(1+CH89)^CG89 -> 5.987144689 | CO89: =(CI89*(1-(1/CM89)))/(CE89*CK89) -> 0.002921129776 | CP89: =(1/CL89)*(1/CM89)*((1-(1/CN89))/CK89) -> 0.1881157878 | CQ89: =(CJ89/(CE89*CL89))*(1/CM89)*((1/CN89)-1+CK89*CL89)/(CK89*CK89) -> 0.001083867577 | CR89: =1 / ( (1 + CJ89/CE89)^CL89 -1) +1 -> 112.7594177 | CS89: =( CJ89/CE89 ) * CR89 * ( 1/CM89) * ( (1 - 1/CN89) / CK89) -> 0.1889634021 | CT89: =(1-CO89-CP89-CQ89) -> 0.8078792148 | CU89: =(1-CO89-CS89) -> 0.8081154681 | CV89: =(1-(1+CJ89*CD89)/(1+CH89)^CC89) -> 0.9315712972 | CW89: =IF(CB89=1,CT89,IF(CB89=2,CU89,IF(CB89=3,CV89,IF(CB89=5,CT89,"ERROR")))) -> 0.8078792148 | CX89: =IF(CW89<0,0,BZ89*CW89) -> 426.7656772 | CY89: =J89 -> Recipient governement
A90: ; Reported grant equivalent is different compared with macro's automatic calculation based only on reported terms; NUMBER OF ISSUES : 1 | B90: 2023 | C90: 27/12/2017 | D90: 68 | E90: 2 | F90: 2017300211 | G90: C510A1 | H90: 3 | I90: 640 | J90: Recipient governement | K90: 12000 | L90: 1 | M90: 10 | N90: 421 | O90: C01 | P90: 6 LAITERIES & 30 CENTRES COLLECTE | Q90: 12240 | R90: SRI LANKA | T90: 2028-12-27 | U90: 2058-12-31 | V90: 6 LAITERIES & 30 CENTRES COLLECTE | W90: 2.1;2.2 | Y90: 0 | Z90: 0 | AA90: 0 | AB90: 0 | AC90: 0 | AD90: 0 | AE90: 0 | AF90: 1 | AH90: 1 | AJ90: 0 | AK90: 0 | AL90: 0 | AM90: 0 | AN90: 918 | AO90: 0 | AQ90: 1205.26812 | AR90: 990 | AS90: 964.588653 | AT90: 0 | AU90: 0 | AV90: 0 | AW90: 0 | BE90: 1 | BF90: 2 | BG90: 00016 | BI90: 2030-03-31 | BJ90: 2057-12-31 | BK90: 0 | BL90: 13766 | BM90: 0 | BN90: 0 | BU90: =IFERROR(IF(M90=60,VLOOKUP(VALUE(TEXT(YEAR($C90),"@")&TEXT($I90,"@")),IncomeGroup!$C$2:$F$50000,4,FALSE),VLOOKUP(VALUE(TEXT(YEAR($C90),"@")&TEXT($I90,"@")),IncomeGroup!$C$2:$F$50000,3,FALSE)),"") -> LMICs | BV90: 0.07 | BW90: 80.03104347
A91: ; Reported grant equivalent is different compared with macro's automatic calculation based only on reported terms; NUMBER OF ISSUES : 1 | B91: 2023 | C91: 29/12/2017 | D91: 68 | E91: 2 | F91: 2017300411 | G91: C530A1 | H91: 3 | I91: 738 | J91: Recipient governement | K91: 12000 | L91: 1 | M91: 10 | N91: 421 | O91: C01 | P91: SYST.INFORMATION METEOROLOGIE MARITIME | Q91: 15110 | R91: INDONESIE | T91: 2028-12-29 | U91: 2059-07-31 | V91: SYST.INFORMATION METEOROLOGIE MARITIME | W91: 16.6;16.7 | Y91: 1 | Z91: 0 | AA91: 0 | AB91: 0 | AC91: 0 | AD91: 0 | AE91: 0 | AF91: 1 | AH91: 1 | AJ91: 0 | AK91: 2 | AL91: 0 | AM91: 0 | AN91: 918 | AO91: 0 | AQ91: 10695.13877 | AR91: 8891 | AS91: 8671.022835 | AT91: 0 | AU91: 0 | AV91: 0 | AW91: 0 | BE91: 1 | BF91: 2 | BG91: 16 | BI91: 2031-06-30 | BJ91: 2057-12-31 | BK91: 0.51187 | BL91: 39361 | BM91: 0 | BN91: 0 | BU91: =IFERROR(IF(M91=60,VLOOKUP(VALUE(TEXT(YEAR($C91),"@")&TEXT($I91,"@")),IncomeGroup!$C$2:$F$50000,4,FALSE),VLOOKUP(VALUE(TEXT(YEAR($C91),"@")&TEXT($I91,"@")),IncomeGroup!$C$2:$F$50000,3,FALSE)),"") -> LMICs | BV91: 0.07 | BW91: 81.07443037 | BY91: LMICs | BZ91: =BO91 -> 0 | CA91: =BG91/100000 -> 0.00016 | CB91: =BE91 -> 1 | CC91: =DATEDIF(C91,BJ91,"D")/365.25 -> 40.0054757 | CD91: =DATEDIF(C91,BI91,"D")/365.25 -> 13.50034223 | CE91: 4 | CF91: =CD91-(1/CE91) -> 13.25034223 | CG91: =CC91-CF91 -> 26.75513347 | CH91: 0.105 | CI91: =CA91 -> 0.00016 | CJ91: =CA91 -> 0.00016 | CK91: =((1+CH91)^(1/CE91))-1 -> 0.02527547619 | CL91: =CE91*CG91 -> 107.0205339 | CM91: =(1+CH91)^CF91 -> 3.754611653 | CN91: =(1+CH91)^CG91 -> 14.45984162 | CO91: =(CI91*(1-(1/CM91)))/(CE91*CK91) -> 0.001161063578 | CP91: =(1/CL91)*(1/CM91)*((1-(1/CN91))/CK91) -> 0.09165262968 | CQ91: =(CJ91/(CE91*CL91))*(1/CM91)*((1/CN91)-1+CK91*CL91)/(CK91*CK91) -> 0.0002764521605 | CR91: =1 / ( (1 + CJ91/CE91)^CL91 -1) +1 -> 234.1050594 | CS91: =( CJ91/CE91 ) * CR91 * ( 1/CM91) * ( (1 - 1/CN91) / CK91) -> 0.09185077695 | CT91: =(1-CO91-CP91-CQ91) -> 0.9069098546 | CU91: =(1-CO91-CS91) -> 0.9069881595 | CV91: =(1-(1+CJ91*CD91)/(1+CH91)^CC91) -> 0.9815409848 | CW91: =IF(CB91=1,CT91,IF(CB91=2,CU91,IF(CB91=3,CV91,IF(CB91=5,CT91,"ERROR")))) -> 0.9069098546 | CX91: =IF(CW91<0,0,BZ91*CW91) -> 0 | CY91: =J91 -> Recipient governement
A92: ; Reported grant equivalent is different compared with macro's automatic calculation based only on reported terms; NUMBER OF ISSUES : 1 | B92: 2023 | C92: 2019-10-16 | D92: 68 | E92: 2 | F92: 2019300311 | G92: C650A1 | H92: 3 | I92: 753 | J92: Recipient governement | K92: 12000 | L92: 1 | M92: 10 | N92: 421 | O92: C01 | P92: CREATION UNITé D'OPéRATIONS DE SECOURS AéRIEN | Q92: 15133 | R92: MONGOLIE | T92: 2030-10-16 | U92: 2054-09-01 | V92: CREATION UNITé D'OPéRATIONS DE SECOURS AéRIEN | W92: 17.1;17.3 | Y92: 2 | Z92: 0 | AA92: 0 | AB92: 0 | AC92: 0 | AD92: 0 | AE92: 0 | AF92: 1 | AH92: 1 | AJ92: 0 | AK92: 0 | AL92: 0 | AM92: 0 | AN92: 918 | AO92: 0 | AQ92: 10239.8 | AR92: 6548 | AS92: 7692.869939 | AT92: 0 | AU92: 0 | AV92: 0 | AW92: 0 | BE92: 1 | BF92: 2 | BG92: 80 | BI92: 2030-11-30 | BJ92: 2053-11-30 | BK92: 39.98339 | BL92: 57985 | BM92: 0 | BN92: 0 | BU92: =IFERROR(IF(M92=60,VLOOKUP(VALUE(TEXT(YEAR($C92),"@")&TEXT($I92,"@")),IncomeGroup!$C$2:$F$50000,4,FALSE),VLOOKUP(VALUE(TEXT(YEAR($C92),"@")&TEXT($I92,"@")),IncomeGroup!$C$2:$F$50000,3,FALSE)),"") -> LMICs | BV92: 0.07 | BW92: 75.12715032 | BY92: LMICs | BZ92: 0 | CA92: 0.0008 | CB92: 1 | CC92: 34.12457221 | CD92: 11.12388775 | CE92: 4 | CF92: 10.87388775 | CG92: 23.25068446 | CH92: =VLOOKUP([3]CRSDATA!M22,'[3]Discount rates gua, rg'!$A:$H,MATCH([3]CRSDATA!BW$4,'[3]Discount rates gua, rg'!$A$1:$H$1,0),FALSE) -> NULL | CI92: 0.0008 | CJ92: 0.0008 | CL92: 93.00273785 | CR92: 54.26878404 | CY92: Recipient governement
A93: ; Reported grant equivalent is different compared with macro's automatic calculation based only on reported terms; NUMBER OF ISSUES : 1 | B93: 2023 | C93: 21/12/2019 | D93: 68 | E93: 2 | F93: 2019300611 | G93: C700A1 | H93: 3 | I93: 247 | J93: Recipient governement | K93: 12000 | L93: 1 | M93: 10 | N93: 421 | O93: C01 | P93: REHAB.1000 POINTS D'EAU AVEC POMPES HYBRIDES | Q93: 14010 | R93: COTE D'IVOIRE | T93: 2030-12-21 | U93: 2054-12-31 | V93: REHAB.1000 POINTS D'EAU AVEC POMPES HYBRIDES | W93: 6.1;6.2;6.5 | Y93: 2 | Z93: 0 | AA93: 0 | AB93: 0 | AC93: 0 | AD93: 0 | AE93: 0 | AF93: 1 | AH93: 1 | AJ93: 1 | AK93: 0 | AL93: 0 | AM93: 1 | AN93: 918 | AO93: 0 | AQ93: 3568.81442 | AR93: 2778 | AS93: 2702.15758 | AT93: 0 | AU93: 0 | AV93: 0 | AW93: 0 | BE93: 1 | BF93: 2 | BG93: 80 | BI93: 2031-09-30 | BJ93: 2053-12-31 | BK93: 9.09802 | BL93: 13239 | BM93: 0 | BN93: 0 | BU93: =IFERROR(IF(M93=60,VLOOKUP(VALUE(TEXT(YEAR($C93),"@")&TEXT($I93,"@")),IncomeGroup!$C$2:$F$50000,4,FALSE),VLOOKUP(VALUE(TEXT(YEAR($C93),"@")&TEXT($I93,"@")),IncomeGroup!$C$2:$F$50000,3,FALSE)),"") -> LMICs | BV93: 0.07 | BW93: 75.71583338 | BY93: LMICs | BZ93: 0 | CA93: 0.0008 | CB93: 1 | CC93: 34.02874743 | CD93: 11.77549624 | CE93: 4 | CF93: 11.52549624 | CG93: 22.5032512 | CH93: =VLOOKUP([3]CRSDATA!M64,'[3]Discount rates gua, rg'!$A:$H,MATCH([3]CRSDATA!BW$4,'[3]Discount rates gua, rg'!$A$1:$H$1,0),FALSE) ->  | CI93: 0.0008 | CJ93: 0.0008 | CL93: 90.01300479 | CR93: 56.05458369 | CY93: Recipient governement
A94: ; Reported grant equivalent is different compared with macro's automatic calculation based only on reported terms; NUMBER OF ISSUES : 1 | B94: 2023 | C94: 27/08/2020 | D94: 68 | E94: 2 | F94: 2020300311 | G94: C780A1 | H94: 3 | I94: 248 | J94: Recipient governement | K94: 12000 | L94: 1 | M94: 10 | N94: 421 | O94: C01 | P94: FOURNITURE EQUIPEMENT MEDICAL SANTE PUBLIQUE | Q94: 12230 | R94: KENYA | T94: 2033-08-27 | U94: 2064-09-27 | V94: FOURNITURE EQUIPEMENT MEDICAL SANTE PUBLIQUE | W94: 3.8;3.c | Y94: 0 | Z94: 0 | AA94: 0 | AB94: 0 | AC94: 0 | AD94: 0 | AE94: 0 | AF94: 1 | AH94: 1 | AJ94: 0 | AK94: 0 | AL94: 0 | AM94: 0 | AN94: 918 | AO94: 0 | AQ94: 6316.73863 | AR94: 5311 | AS94: 5144.593158 | AT94: 0 | AU94: 0 | AV94: 0 | AW94: 0 | BE94: 1 | BF94: 2 | BG94: 76 | BI94: 2033-12-31 | BJ94: 2063-06-30 | BK94: 2.11451 | BL94: 29798 | BM94: 0 | BN94: 0 | BU94: =IFERROR(IF(M94=60,VLOOKUP(VALUE(TEXT(YEAR($C94),"@")&TEXT($I94,"@")),IncomeGroup!$C$2:$F$50000,4,FALSE),VLOOKUP(VALUE(TEXT(YEAR($C94),"@")&TEXT($I94,"@")),IncomeGroup!$C$2:$F$50000,3,FALSE)),"") -> LMICs | BV94: 0.07 | BW94: 81.44381871 | BY94: LMICs | BZ94: 0 | CA94: 0.00076 | CB94: 1 | CC94: 42.83915127 | CD94: 13.34428474 | CE94: 4 | CF94: 13.09428474 | CG94: 29.74486653 | CH94: =VLOOKUP([3]CRSDATA!M18,'[3]Discount rates gua, rg'!$A:$H,MATCH([3]CRSDATA!BW$4,'[3]Discount rates gua, rg'!$A$1:$H$1,0),FALSE) -> 0.065 | CI94: 0.00076 | CJ94: 0.00076 | CK94: 0.01586828478 | CL94: 118.9794661 | CM94: 2.280990895 | CN94: 6.508942469 | CO94: 0.006724284905 | CP94: 0.196531537 | CQ94: 0.002896100036 | CR94: 44.74193658 | CS94: 0.1987799812 | CT94: 0.7938480781 | CU94: 0.7944957339 | CV94: 0.931962508 | CW94: 0.7938480781 | CX94: 0 | CY94: Recipient governement
A95: ; Reported grant equivalent is different compared with macro's automatic calculation based only on reported terms; NUMBER OF ISSUES : 1 | B95: 2023 | C95: 28/05/2021 | D95: 68 | E95: 2 | F95: 2021300611 | G95: C910A1 | H95: 3 | I95: 266 | J95: Recipient governement | K95: 12000 | L95: 1 | M95: 10 | N95: 421 | O95: C01 | P95: EQUIPEMENTS ET SERVICES DE LUTTE CONTRE LA COVID | Q95: 12230 | R95: RWANDA | T95: 2037-05-28 | U95: 2065-05-31 | V95: EQUIPEMENTS ET SERVICES DE LUTTE CONTRE LA COVID | W95: 3.8;3.c | Y95: 0 | Z95: 0 | AA95: 0 | AB95: 0 | AC95: 0 | AD95: 0 | AE95: 0 | AF95: 1 | AH95: 1 | AJ95: 0 | AK95: 0 | AL95: 0 | AM95: 0 | AN95: 918 | AO95: 0 | AQ95: 6450.55425 | AR95: 5974 | AS95: 5795.460401 | AT95: 0 | AU95: 0 | AV95: 0 | AW95: 0 | BE95: 1 | BF95: 2 | BG95: 92 | BI95: 2038-09-30 | BJ95: 2063-12-31 | BK95: 0.14453 | BL95: 6451 | BM95: 0 | BN95: 0 | BU95: =IFERROR(IF(M95=60,VLOOKUP(VALUE(TEXT(YEAR($C95),"@")&TEXT($I95,"@")),IncomeGroup!$C$2:$F$50000,4,FALSE),VLOOKUP(VALUE(TEXT(YEAR($C95),"@")&TEXT($I95,"@")),IncomeGroup!$C$2:$F$50000,3,FALSE)),"") -> LDCs | BV95: 0.09 | BW95: 89.8443789 | BY95: LMICs | BZ95: 0 | CA95: 0.00092 | CB95: 1 | CC95: 42.5927447 | CD95: 17.34154689 | CE95: 4 | CF95: 17.09154689 | CG95: 25.50119781 | CH95: =VLOOKUP([3]CRSDATA!M7,'[3]Discount rates gua, rg'!$A:$H,MATCH([3]CRSDATA!BW$4,'[3]Discount rates gua, rg'!$A$1:$H$1,0),FALSE) -> 0.035 | CI95: 0.00092 | CJ95: 0.00092 | CK95: 0.008637445998 | CL95: 102.0047912 | CM95: 1.80033651 | CN95: 2.404345169 | CO95: 0.01183753923 | CP95: 0.3682285382 | CQ95: 0.004985423977 | CR95: 43.13060018 | CS95: 0.3726072945 | CT95: 0.6149484986 | CU95: 0.6155551663 | CV95: 0.7652943007 | CW95: 0.6149484986 | CX95: 0 | CY95: Recipient governement
A96: ; Reported grant equivalent is different compared with macro's automatic calculation based only on reported terms; NUMBER OF ISSUES : 1 | B96: 2023 | C96: 17/03/2022 | D96: 68 | E96: 2 | F96: 2022300211 | G96: D010A1 | H96: 3 | I96: 248 | J96: Recipient governement | K96: 12000 | L96: 1 | M96: 10 | N96: 421 | O96: C01 | P96: EQUIPEMENT LUTTE CONTRE FEUX DE FORET | Q96: 15133 | R96: KENYA | T96: 2037-03-17 | U96: 2063-12-31 | V96: EQUIPEMENT LUTTE CONTRE FEUX DE FORET | W96: 17.1;17.3 | Y96: 0 | Z96: 0 | AA96: 0 | AB96: 0 | AC96: 0 | AD96: 0 | AE96: 0 | AF96: 1 | AH96: 1 | AJ96: 0 | AK96: 0 | AL96: 0 | AM96: 0 | AN96: 918 | AO96: 0 | AQ96: 11140.914 | AR96: 9263 | AS96: 8855.938748 | AT96: 0 | AU96: 0 | AV96: 0 | AW96: 0 | BE96: 1 | BF96: 2 | BG96: 161 | BI96: 2037-09-30 | BJ96: 2058-12-31 | BK96: 0.31704 | BL96: 11141 | BM96: 0 | BN96: 0 | BU96: =IFERROR(IF(M96=60,VLOOKUP(VALUE(TEXT(YEAR($C96),"@")&TEXT($I96,"@")),IncomeGroup!$C$2:$F$50000,4,FALSE),VLOOKUP(VALUE(TEXT(YEAR($C96),"@")&TEXT($I96,"@")),IncomeGroup!$C$2:$F$50000,3,FALSE)),"") -> LMICs | BV96: 0.07 | BW96: 79.49023526 | BY96: LMICs | BZ96: 0 | CA96: 0.00161 | CB96: 1 | CC96: 36.79123888 | CD96: 15.54004107 | CE96: 4 | CF96: 15.29004107 | CG96: 21.50119781 | CH96: 0.105 | CI96: 0.00161 | CJ96: 0.00161 | CK96: 0.02527547619 | CL96: 86.00479124 | CM96: 4.602682437 | CN96: 8.55738196 | CO96: 0.01246469077 | CP96: 0.08826681403 | CQ96: 0.002054228853 | CR96: 29.39629784 | CS96: 0.08982115199 | CT96: 0.8972142663 | CU96: 0.8977141572 | CV96: 0.9739756324 | CW96: 0.8972142663 | CX96: 0 | CY96: Recipient governement
A97: ; Reported grant equivalent is different compared with macro's automatic calculation based only on reported terms; NUMBER OF ISSUES : 1 | B97: 2023 | C97: 28/03/2022 | D97: 68 | E97: 2 | F97: 2022300311 | G97: D030A1 | H97: 3 | I97: 142 | J97: Recipient governement | K97: 12000 | L97: 1 | M97: 10 | N97: 421 | O97: C01 | P97: LIGNE 1 FOURNITURE 55 TRAINS ET EQUIPEMENTS | Q97: 21030 | R97: EGYPTE | T97: 2038-03-28 | U97: 2068-12-31 | V97: LIGNE 1 FOURNITURE 55 TRAINS ET EQUIPEMENTS | W97: 9.1;9.4 | Y97: 0 | Z97: 0 | AA97: 0 | AB97: 0 | AC97: 0 | AD97: 0 | AE97: 0 | AF97: 1 | AH97: 1 | AJ97: 0 | AK97: 0 | AL97: 0 | AM97: 0 | AN97: 918 | AO97: 0 | AQ97: 259944.6003 | AR97: 221705 | AS97: 214403.4287 | AT97: 0 | AU97: 0 | AV97: 0 | AW97: 0 | BE97: 1 | BF97: 2 | BG97: 92 | BI97: 2038-03-31 | BJ97: 2063-03-31 | BK97: 23.04203 | BL97: 376352 | BM97: 0 | BN97: 0 | BU97: =IFERROR(IF(M97=60,VLOOKUP(VALUE(TEXT(YEAR($C97),"@")&TEXT($I97,"@")),IncomeGroup!$C$2:$F$50000,4,FALSE),VLOOKUP(VALUE(TEXT(YEAR($C97),"@")&TEXT($I97,"@")),IncomeGroup!$C$2:$F$50000,3,FALSE)),"") -> LMICs | BV97: 0.07 | BW97: 82.4804318 | BY97: LMICs | BZ97: 0 | CA97: 0.00092 | CB97: 1 | CC97: 41.00752909 | CD97: 16.00821355 | CE97: 4 | CF97: 15.75821355 | CG97: 25.24931554 | CH97: 0.105 | CI97: 0.00092 | CJ97: 0.00092 | CK97: 0.02527547619 | CL97: 100.9972621 | CM97: 4.822941978 | CN97: 12.44135952 | CO97: 0.007212970549 | CP97: 0.07469453152 | CQ97: 0.001207059053 | CR97: 43.55583597 | CS97: 0.0755740329 | CT97: 0.9168854389 | CU97: 0.9172129965 | CV97: 0.9830889888 | CW97: 0.9168854389 | CX97: 0 | CY97: Recipient governement
A98: ; Reported grant equivalent is different compared with macro's automatic calculation based only on reported terms; NUMBER OF ISSUES : 1 | B98: 2023 | C98: 2023-01-01 | D98: 68 | E98: 1 | F98: 2023000011 | G98: Individual equity guarantee | H98: 1 | I98: 645 | J98: new | K98: 12000 | L98: 1 | M98: 60 | N98: 1105 | O98: C01 | P98: text | Q98: 99810 | T98: 00:00:00 | U98: 00:00:00 | V98: Equity guarantee public | AN98: 918 | AR98: 1215.144987 | AS98: 121.5144987 | BE98: 1 | BF98: 1 | BG98: text | BH98: 1000 | BI98: 2024-01-02 | BJ98: 2027-01-01 | BK98: 123 | BL98: 1.002053388 | BM98: 4 | BO98: 1000 | BP98: 50 | BQ98: 20 | BR98: 11 | BS98: text | BT98: text | BU98: =IFERROR(IF(M98=60,VLOOKUP(VALUE(TEXT(YEAR($C98),"@")&TEXT($I98,"@")),IncomeGroup!$C$2:$F$50000,4,FALSE),VLOOKUP(VALUE(TEXT(YEAR($C98),"@")&TEXT($I98,"@")),IncomeGroup!$C$2:$F$50000,3,FALSE)),"") -> LMICs | BV98: 0.065 | BW98: 12.15144987 | BY98: LMICs | BZ98: 1000 | CB98: 1 | CC98: 4 | CD98: 1.002053388 | CE98: 4 | CF98: 0.7520533881 | CG98: 3.247946612 | CH98: =VLOOKUP([3]CRSDATA!M21,'[3]Discount rates gua, rg'!$A:$H,MATCH([3]CRSDATA!BW$4,'[3]Discount rates gua, rg'!$A$1:$H$1,0),FALSE) -> 0.065 | CK98: 0.01586828478 | CL98: 12.99178645 | CM98: 1.048499832 | CN98: 1.226959043 | CP98: 0.8557564903 | CY98: new
A99: ; Reported grant equivalent is different compared with macro's automatic calculation based only on reported terms; NUMBER OF ISSUES : 1 | B99: 2023 | C99: 2023-01-01 | D99: 68 | E99: 1 | F99: 2023000024 | G99: Reflow-based reimbursable grants | H99: 1 | I99: 645 | J99: new | K99: 62000 | L99: 1 | M99: 60 | N99: 4222 | O99: C01 | P99: text | Q99: 99810 | T99: 00:00:00 | U99: 00:00:00 | V99: RBGR private | AN99: 918 | AO99: 10000 | AQ99: 10000 | AR99: 1955.381468 | AS99: 3225.440038 | AT99: 1000 | BE99: 1 | BF99: 1 | BG99: text | BH99: 1000 | BI99: 2024-01-02 | BJ99: 2027-01-01 | BK99: 123 | BL99: 1.002053388 | BM99: 4 | BQ99: 21 | BR99: 11 | BS99: text | BT99: text | BU99: =IFERROR(IF(M99=60,VLOOKUP(VALUE(TEXT(YEAR($C99),"@")&TEXT($I99,"@")),IncomeGroup!$C$2:$F$50000,4,FALSE),VLOOKUP(VALUE(TEXT(YEAR($C99),"@")&TEXT($I99,"@")),IncomeGroup!$C$2:$F$50000,3,FALSE)),"") -> LMICs | BV99: 0.105 | BW99: 32.25440038
A100: ; Reported grant equivalent is different compared with macro's automatic calculation based only on reported terms; NUMBER OF ISSUES : 1 | B100: 2023 | C100: 14/11/2008 | D100: 68 | E100: 2 | F100: 2008003009d | G100: B590D1 | H100: 3 | I100: 261 | J100: Recipient governement | K100: 12000 | L100: 1 | M100: 10 | N100: 421 | O100: C01 | P100: TGV CASABLANCA TANGER EQPS FERROVIAIRES | Q100: 21030 | R100: CASABLANCA TANGER KENITRA | T100: 2029-11-14 | U100: 2063-12-31 | V100: TGV CASABLANCA TANGER EQPS FERROVIAIRES | W100: 9.1;9.4 | Y100: 0 | Z100: 0 | AA100: 0 | AB100: 0 | AC100: 0 | AD100: 0 | AE100: 0 | AF100: 1 | AH100: 1 | AJ100: 0 | AK100: 0 | AL100: 0 | AM100: 0 | AN100: 918 | AO100: 0 | AQ100: 8938.7215 | AR100: 6995 | AS100: 7410.630652 | AT100: 0 | AU100: 0 | AV100: 0 | AW100: 0 | BE100: 1 | BF100: 2 | BG100: 1200 | BI100: 2034-06-30 | BJ100: 2063-12-31 | BK100: 926.49284 | BL100: 84569 | BM100: 0 | BN100: 0 | BU100: =IFERROR(IF(M100=60,VLOOKUP(VALUE(TEXT(YEAR($C100),"@")&TEXT($I100,"@")),IncomeGroup!$C$2:$F$50000,4,FALSE),VLOOKUP(VALUE(TEXT(YEAR($C100),"@")&TEXT($I100,"@")),IncomeGroup!$C$2:$F$50000,3,FALSE)),"") -> Other LICs | BV100: 0.09 | BW100: 82.90481644 | BY100: LMICs | BZ100: =BO100 -> 0 | CA100: =BG100/100000 -> 0.012 | CB100: =BE100 -> 1 | CC100: =DATEDIF(C100,BJ100,"D")/365.25 -> 55.1266256 | CD100: =DATEDIF(C100,BI100,"D")/365.25 -> 25.62354552 | CE100: 4 | CF100: =CD100-(1/CE100) -> 25.37354552 | CG100: =CC100-CF100 -> 29.75308008 | CH100: =VLOOKUP([3]CRSDATA!M46,'[3]Discount rates gua, rg'!$A:$H,MATCH([3]CRSDATA!BW$4,'[3]Discount rates gua, rg'!$A$1:$H$1,0),FALSE) ->  | CI100: =CA100 -> 0.012 | CJ100: =CA100 -> 0.012 | CK100: =((1+CH100)^(1/CE100))-1 ->  | CL100: =CE100*CG100 -> 119.0123203 | CM100: =(1+CH100)^CF100 ->  | CN100: =(1+CH100)^CG100 ->  | CO100: =(CI100*(1-(1/CM100)))/(CE100*CK100) ->  | CP100: =(1/CL100)*(1/CM100)*((1-(1/CN100))/CK100) ->  | CQ100: =(CJ100/(CE100*CL100))*(1/CM100)*((1/CN100)-1+CK100*CL100)/(CK100*CK100) ->  | CR100: =1 / ( (1 + CJ100/CE100)^CL100 -1) +1 -> 3.33467542 | CS100: =( CJ100/CE100 ) * CR100 * ( 1/CM100) * ( (1 - 1/CN100) / CK100) ->  | CT100: =(1-CO100-CP100-CQ100) ->  | CU100: =(1-CO100-CS100) ->  | CV100: =(1-(1+CJ100*CD100)/(1+CH100)^CC100) ->  | CW100: =IF(CB100=1,CT100,IF(CB100=2,CU100,IF(CB100=3,CV100,IF(CB100=5,CT100,"ERROR")))) ->  | CX100: =IF(CW100<0,0,BZ100*CW100) ->  | CY100: =J100 -> Recipient governement
A101: ; Reported grant equivalent is different compared with macro's automatic calculation based only on reported terms; NUMBER OF ISSUES : 1 | B101: 2023 | C101: 28/12/2017 | D101: 68 | E101: 2 | F101: 2017300311d | G101: C520D1 | H101: 3 | I101: 139 | J101: Recipient governement | K101: 12000 | L101: 1 | M101: 10 | N101: 421 | O101: C01 | P101: PME PMI- AMEN BANK | Q101: 32130 | R101: TUNISIE | T101: 2028-12-28 | U101: 2039-12-31 | V101: PME PMI- AMEN BANK | W101: 2.3 | Y101: 0 | Z101: 0 | AA101: 0 | AB101: 0 | AC101: 0 | AD101: 0 | AE101: 0 | AF101: 1 | AH101: 1 | AJ101: 0 | AK101: 0 | AL101: 0 | AM101: 0 | AN101: 918 | AO101: 0 | AQ101: 105.76 | AR101: 76 | AS101: 67.72831303 | AT101: 0 | AU101: 0 | AV101: 0 | AW101: 0 | BE101: 1 | BF101: 2 | BG101: 0 | BI101: 2032-12-31 | BJ101: 2038-03-31 | BK101: 0 | BL101: 251 | BM101: 0 | BN101: 0 | BU101: =IFERROR(IF(M101=60,VLOOKUP(VALUE(TEXT(YEAR($C101),"@")&TEXT($I101,"@")),IncomeGroup!$C$2:$F$50000,4,FALSE),VLOOKUP(VALUE(TEXT(YEAR($C101),"@")&TEXT($I101,"@")),IncomeGroup!$C$2:$F$50000,3,FALSE)),"") -> UMICs | BV101: 0.06 | BW101: 64.03963032
A102: ; Reported grant equivalent is different compared with macro's automatic calculation based only on reported terms; NUMBER OF ISSUES : 1 | B102: 2023 | C102: 28/12/2017 | D102: 68 | E102: 2 | F102: 2017300311l | G102: C520L1 | H102: 3 | I102: 139 | J102: Recipient governement | K102: 12000 | L102: 1 | M102: 10 | N102: 421 | O102: C01 | P102: PME PMI - UBCI | Q102: 32130 | R102: TUNISIE | T102: 2028-12-28 | U102: 2039-12-31 | V102: PME PMI - UBCI | W102: 2.3 | Y102: 0 | Z102: 0 | AA102: 0 | AB102: 0 | AC102: 0 | AD102: 0 | AE102: 0 | AF102: 1 | AH102: 1 | AJ102: 0 | AK102: 0 | AL102: 0 | AM102: 0 | AN102: 918 | AO102: 0 | AQ102: 149 | AR102: 107 | AS102: 95.82313688 | AT102: 0 | AU102: 0 | AV102: 0 | AW102: 0 | BE102: 1 | BF102: 2 | BG102: 0 | BI102: 2033-03-31 | BJ102: 2038-03-31 | BK102: 0 | BL102: 286 | BM102: 0 | BN102: 0 | BU102: =IFERROR(IF(M102=60,VLOOKUP(VALUE(TEXT(YEAR($C102),"@")&TEXT($I102,"@")),IncomeGroup!$C$2:$F$50000,4,FALSE),VLOOKUP(VALUE(TEXT(YEAR($C102),"@")&TEXT($I102,"@")),IncomeGroup!$C$2:$F$50000,3,FALSE)),"") -> UMICs | BV102: 0.06 | BW102: 64.31083012 | BY102: LMICs | BZ102: =BO102 -> 0 | CA102: =BG102/100000 -> 0 | CB102: =BE102 -> 1 | CC102: =DATEDIF(C102,BJ102,"D")/365.25 -> 20.25462012 | CD102: =DATEDIF(C102,BI102,"D")/365.25 -> 15.25530459 | CE102: 4 | CF102: =CD102-(1/CE102) -> 15.00530459 | CG102: =CC102-CF102 -> 5.249315537 | CH102: =VLOOKUP([3]CRSDATA!M15,'[3]Discount rates gua, rg'!$A:$H,MATCH([3]CRSDATA!BW$4,'[3]Discount rates gua, rg'!$A$1:$H$1,0),FALSE) -> 0.065 | CI102: =CA102 -> 0 | CJ102: =CA102 -> 0 | CK102: =((1+CH102)^(1/CE102))-1 -> 0.01586828478 | CL102: =CE102*CG102 -> 20.99726215 | CM102: =(1+CH102)^CF102 -> 2.572700287 | CN102: =(1+CH102)^CG102 -> 1.391767597 | CO102: =(CI102*(1-(1/CM102)))/(CE102*CK102) -> 0 | CP102: =(1/CL102)*(1/CM102)*((1-(1/CN102))/CK102) -> 0.3283824511 | CQ102: =(CJ102/(CE102*CL102))*(1/CM102)*((1/CN102)-1+CK102*CL102)/(CK102*CK102) -> 0 | CR102: =1 / ( (1 + CJ102/CE102)^CL102 -1) +1 ->  | CS102: =( CJ102/CE102 ) * CR102 * ( 1/CM102) * ( (1 - 1/CN102) / CK102) ->  | CT102: =(1-CO102-CP102-CQ102) -> 0.6716175489 | CU102: =(1-CO102-CS102) ->  | CV102: =(1-(1+CJ102*CD102)/(1+CH102)^CC102) -> 0.7207172681 | CW102: =IF(CB102=1,CT102,IF(CB102=2,CU102,IF(CB102=3,CV102,IF(CB102=5,CT102,"ERROR")))) -> 0.6716175489 | CX102: =IF(CW102<0,0,BZ102*CW102)*75% -> 0 | CY102: =J102 -> Recipient governement
A103: ; Reported grant equivalent is different compared with macro's automatic calculation based only on reported terms; NUMBER OF ISSUES : 1 | B103: 2023 | C103: 2023-05-15 | D103: 68 | E103: 1 | F103: 2023000032a | G103: abc | H103: 1 | I103: 645 | J103: LTRG multilateral | K103: 47046 | L103: 1 | M103: 10 | N103: 4221 | O103: C01 | P103: LTRG multilateral | Q103: 24030 | T103: 00:00:00 | U103: 00:00:00 | V103: LTRG multilateral | W103: 8.4 | Y103: 0 | Z103: 0 | AA103: 0 | AB103: 0 | AC103: 0 | AD103: 0 | AE103: 0 | AJ103: 0 | AK103: 0 | AL103: 0 | AM103: 0 | AN103: 918 | AP103: 15000 | AQ103: 15000 | AR103: 1941.542578 | AS103: 2775.955122 | BE103: 1 | BF103: 4 | BG103: 1000 | BI103: 2024-06-18 | BJ103: 2029-08-31 | BU103: =IFERROR(IF(M103=60,VLOOKUP(VALUE(TEXT(YEAR($C103),"@")&TEXT($I103,"@")),IncomeGroup!$C$2:$F$50000,4,FALSE),VLOOKUP(VALUE(TEXT(YEAR($C103),"@")&TEXT($I103,"@")),IncomeGroup!$C$2:$F$50000,3,FALSE)),"") -> LMICs | BV103: 0.07 | BW103: 18.50636748 | BY103: LMICs | BZ103: =BO103 -> 0 | CA103: =BG103/100000 -> 0.01 | CB103: =BE103 -> 1 | CC103: =DATEDIF(C103,BJ103,"D")/365.25 -> 6.29705681 | CD103: =DATEDIF(C103,BI103,"D")/365.25 -> 1.095140315 | CE103: 4 | CF103: =CD103-(1/CE103) -> 0.8451403149 | CG103: =CC103-CF103 -> 5.451916496 | CH103: =VLOOKUP([3]CRSDATA!M1,'[3]Discount rates gua, rg'!$A:$H,MATCH([3]CRSDATA!BW$4,'[3]Discount rates gua, rg'!$A$1:$H$1,0),FALSE) ->  | CI103: =CA103 -> 0.01 | CJ103: =CA103 -> 0.01 | CK103: =((1+CH103)^(1/CE103))-1 ->  | CL103: =CE103*CG103 -> 21.80766598 | CM103: =(1+CH103)^CF103 ->  | CN103: =(1+CH103)^CG103 ->  | CO103: =(CI103*(1-(1/CM103)))/(CE103*CK103) ->  | CP103: =(1/CL103)*(1/CM103)*((1-(1/CN103))/CK103) ->  | CQ103: =(CJ103/(CE103*CL103))*(1/CM103)*((1/CN103)-1+CK103*CL103)/(CK103*CK103) ->  | CR103: =1 / ( (1 + CJ103/CE103)^CL103 -1) +1 -> 18.86962936 | CS103: =( CJ103/CE103 ) * CR103 * ( 1/CM103) * ( (1 - 1/CN103) / CK103) ->  | CT103: =(1-CO103-CP103-CQ103) ->  | CU103: =(1-CO103-CS103) ->  | CV103: =(1-(1+CJ103*CD103)/(1+CH103)^CC103) ->  | CW103: =IF(CB103=1,CT103,IF(CB103=2,CU103,IF(CB103=3,CV103,IF(CB103=5,CT103,"ERROR")))) ->  | CX103: =IF(CW103<0,0,BZ103*CW103) ->  | CY103: =J103 -> LTRG multilateral
A104: ; second interest rate has to be numeric ; NUMBER OF ISSUES : 1 | B104: 2023 | C104: 2023-01-01 | D104: 68 | E104: 1 | F104: 2023000002 | G104: Individual loan guarantee | H104: 1 | I104: 645 | J104: new | K104: 62000 | L104: 1 | M104: 60 | N104: 1101 | O104: C01 | P104: text | Q104: 99810 | T104: 00:00:00 | U104: 00:00:00 | AN104: 918 | BE104: 1 | BF104: 1 | BG104: text | BH104: text | BI104: 2024-01-02 | BJ104: 2027-01-01 | BK104: 123 | BL104: 1.002053388 | BM104: 4 | BO104: 10000 | BP104: 50 | BQ104: 20 | BR104: 11 | BS104: text | BT104: text | BU104: =IFERROR(IF(M104=60,VLOOKUP(VALUE(TEXT(YEAR($C104),"@")&TEXT($I104,"@")),IncomeGroup!$C$2:$F$50000,4,FALSE),VLOOKUP(VALUE(TEXT(YEAR($C104),"@")&TEXT($I104,"@")),IncomeGroup!$C$2:$F$50000,3,FALSE)),"") -> LMICs | BV104: 0.035 | BW104: 0
A105: ; type of repayment not available/ not reported; number of repayment not available/not reported; NUMBER OF ISSUES : 2 | B105: 2023 | C105: 2018-12-14 | D105: 68 | E105: 1 | F105: 2023100027 | G105: Preferred equity | H105: 1 | I105: 63 | K105: 61000 | L105: 3 | M105: 60 | N105: 432 | O105: C01 | P105: text | Q105: 24030 | T105: 00:00:00 | U105: 00:00:00 | AN105: 918 | AO105: 0 | AQ105: 10000 | AR105: 4270.9603 | BG105: -894 | BJ105: 2025-09-15 | BQ105: 21 | BR105: 11;13;32 | BS105: UMICs | BT105: text | BU105: =IFERROR(IF(M105=60,VLOOKUP(VALUE(TEXT(YEAR($C105),"@")&TEXT($I105,"@")),IncomeGroup!$C$2:$F$50000,4,FALSE),VLOOKUP(VALUE(TEXT(YEAR($C105),"@")&TEXT($I105,"@")),IncomeGroup!$C$2:$F$50000,3,FALSE)),"") -> UMICs | BV105: 0.076 | BW105: 42.709603 | BY105: LMICs | BZ105: =BO105 -> 0 | CA105: =BG105/100000 -> -0.00894 | CB105: =BE105 -> 0 | CC105: =DATEDIF(C105,BJ105,"D")/365.25 -> 6.754277892 | CD105: =DATEDIF(C105,BI105,"D")/365.25 ->  | CE105: 4 | CF105: =CD105-(1/CE105) ->  | CG105: =CC105-CF105 ->  | CH105: =VLOOKUP([3]CRSDATA!M40,'[3]Discount rates gua, rg'!$A:$H,MATCH([3]CRSDATA!BW$4,'[3]Discount rates gua, rg'!$A$1:$H$1,0),FALSE) ->  | CI105: =CA105 -> -0.00894 | CJ105: =CA105 -> -0.00894 | CK105: =((1+CH105)^(1/CE105))-1 ->  | CL105: =CE105*CG105 ->  | CM105: =(1+CH105)^CF105 ->  | CN105: =(1+CH105)^CG105 ->  | CO105: =(CI105*(1-(1/CM105)))/(CE105*CK105) ->  | CP105: =(1/CL105)*(1/CM105)*((1-(1/CN105))/CK105) ->  | CQ105: =(CJ105/(CE105*CL105))*(1/CM105)*((1/CN105)-1+CK105*CL105)/(CK105*CK105) ->  | CR105: =1 / ( (1 + CJ105/CE105)^CL105 -1) +1 ->  | CS105: =( CJ105/CE105 ) * CR105 * ( 1/CM105) * ( (1 - 1/CN105) / CK105) ->  | CT105: =(1-CO105-CP105-CQ105) ->  | CU105: =(1-CO105-CS105) ->  | CV105: =(1-(1+CJ105*CD105)/(1+CH105)^CC105) ->  | CW105: =IF(CB105=1,CT105,IF(CB105=2,CU105,IF(CB105=3,CV105,IF(CB105=5,CT105,"ERROR")))) -> ERROR | CX105: =IF(CW105<0,0,BZ105*CW105) ->  | CY105: =J105 -> 0
A106: ; type of repayment not available/ not reported; number of repayment not available/not reported; NUMBER OF ISSUES : 2 | B106: 2023 | C106: 2019-10-28 | D106: 68 | E106: 1 | F106: 2023100028 | G106: Preferred equity | H106: 1 | I106: 660 | K106: 63000 | L106: 3 | M106: 60 | N106: 432 | O106: C01 | P106: text | Q106: 24030 | T106: 00:00:00 | U106: 00:00:00 | AN106: 918 | AO106: 0 | AQ106: 10000 | AR106: 5096.692955 | BG106: 2587 | BJ106: 2028-03-01 | BQ106: 21 | BR106: 11;13;33 | BS106: LDCs | BT106: text | BU106: =IFERROR(IF(M106=60,VLOOKUP(VALUE(TEXT(YEAR($C106),"@")&TEXT($I106,"@")),IncomeGroup!$C$2:$F$50000,4,FALSE),VLOOKUP(VALUE(TEXT(YEAR($C106),"@")&TEXT($I106,"@")),IncomeGroup!$C$2:$F$50000,3,FALSE)),"") -> LDCs | BV106: 0.115 | BW106: 50.96692955
A107: ; type of repayment not available/ not reported; number of repayment not available/not reported; NUMBER OF ISSUES : 2 | B107: 2023 | C107: 2019-12-04 | D107: 68 | E107: 1 | F107: 2023100029 | G107: Preferred equity | H107: 1 | I107: 366 | K107: 60000 | L107: 3 | M107: 60 | N107: 432 | O107: C01 | P107: text | Q107: 24030 | T107: 00:00:00 | U107: 00:00:00 | AN107: 918 | AO107: 0 | AQ107: 10000 | AR107: -158.0281613 | BG107: 11251 | BJ107: 2030-03-13 | BQ107: 21 | BR107: 11;13;34 | BS107: UMICs | BT107: text | BU107: =IFERROR(IF(M107=60,VLOOKUP(VALUE(TEXT(YEAR($C107),"@")&TEXT($I107,"@")),IncomeGroup!$C$2:$F$50000,4,FALSE),VLOOKUP(VALUE(TEXT(YEAR($C107),"@")&TEXT($I107,"@")),IncomeGroup!$C$2:$F$50000,3,FALSE)),"") -> UMICs | BV107: 0.076 | BW107: -1.580281613 | BY107: LMICs | BZ107: =BO107 -> 0 | CA107: =BG107/100000 -> 0.11251 | CB107: =BE107 -> 0 | CC107: =DATEDIF(C107,BJ107,"D")/365.25 -> 10.27241615 | CD107: =DATEDIF(C107,BI107,"D")/365.25 ->  | CE107: 4 | CF107: =CD107-(1/CE107) ->  | CG107: =CC107-CF107 ->  | CH107: =VLOOKUP([3]CRSDATA!M8,'[3]Discount rates gua, rg'!$A:$H,MATCH([3]CRSDATA!BW$4,'[3]Discount rates gua, rg'!$A$1:$H$1,0),FALSE) -> 0.035 | CI107: =CA107 -> 0.11251 | CJ107: =CA107 -> 0.11251 | CK107: =((1+CH107)^(1/CE107))-1 -> 0.008637445998 | CL107: =CE107*CG107 ->  | CM107: =(1+CH107)^CF107 ->  | CN107: =(1+CH107)^CG107 ->  | CO107: =(CI107*(1-(1/CM107)))/(CE107*CK107) ->  | CP107: =(1/CL107)*(1/CM107)*((1-(1/CN107))/CK107) ->  | CQ107: =(CJ107/(CE107*CL107))*(1/CM107)*((1/CN107)-1+CK107*CL107)/(CK107*CK107) ->  | CR107: =1 / ( (1 + CJ107/CE107)^CL107 -1) +1 ->  | CS107: =( CJ107/CE107 ) * CR107 * ( 1/CM107) * ( (1 - 1/CN107) / CK107) ->  | CT107: =(1-CO107-CP107-CQ107) ->  | CU107: =(1-CO107-CS107) ->  | CV107: =(1-(1+CJ107*CD107)/(1+CH107)^CC107) ->  | CW107: =IF(CB107=1,CT107,IF(CB107=2,CU107,IF(CB107=3,CV107,IF(CB107=5,CT107,"ERROR")))) -> ERROR | CX107: =IF(CW107<0,0,BZ107*CW107) ->  | CY107: =J107 -> 0
A108: ; type of repayment not available/ not reported; number of repayment not available/not reported; NUMBER OF ISSUES : 2 | B108: 2023 | C108: 2020-06-30 | D108: 68 | E108: 1 | F108: 2023100030 | G108: Preferred equity | H108: 1 | I108: 261 | K108: 62000 | L108: 3 | M108: 60 | N108: 432 | O108: C01 | P108: text | Q108: 24030 | T108: 00:00:00 | U108: 00:00:00 | AN108: 918 | AO108: 0 | AQ108: 0 | AR108: 0 | BG108: 1236 | BJ108: 2025-12-31 | BQ108: 21 | BS108: LMICs | BU108: =IFERROR(IF(M108=60,VLOOKUP(VALUE(TEXT(YEAR($C108),"@")&TEXT($I108,"@")),IncomeGroup!$C$2:$F$50000,4,FALSE),VLOOKUP(VALUE(TEXT(YEAR($C108),"@")&TEXT($I108,"@")),IncomeGroup!$C$2:$F$50000,3,FALSE)),"") -> LMICs | BV108: 0.09 | BW108: 33.53123873
B109: 2023 | C109: 2020-06-30 | D109: 68 | E109: 1 | F109: 2023170020 | G109: Shares in collective investment vehicles | H109: 1 | I109: 261 | K109: 62000 | L109: 3 | M109: 60 | N109: 520 | O109: C01 | P109: text | Q109: 24030 | T109: 00:00:00 | U109: 00:00:00 | AN109: 918 | AO109: 0 | AQ109: 0 | AR109: 0 | BG109: 1236 | BJ109: 2025-12-31 | BQ109: 21 | BR109: 11 | BS109: LMICs | BT109: text | BU109: =IFERROR(IF(M109=60,VLOOKUP(VALUE(TEXT(YEAR($C109),"@")&TEXT($I109,"@")),IncomeGroup!$C$2:$F$50000,4,FALSE),VLOOKUP(VALUE(TEXT(YEAR($C109),"@")&TEXT($I109,"@")),IncomeGroup!$C$2:$F$50000,3,FALSE)),"") -> LMICs | BV109: 0.105 | BW109: 38.3472416
B110: 2023 | C110: 2023-01-01 | D110: 68 | E110: 1 | F110: 2023000004 | G110: Individual loan guarantee | H110: 1 | I110: 645 | J110: new | K110: 62000 | L110: 1 | M110: 22 | N110: 1101 | O110: C01 | P110: text | Q110: 99810 | T110: 00:00:00 | U110: 00:00:00 | AN110: 918 | AR110: 584.0240979 | BE110: 1 | BF110: 1 | BG110: text | BH110: 1000 | BI110: 2024-01-02 | BJ110: 2027-01-01 | BK110: 123 | BL110: 1.002053388 | BM110: 4 | BO110: 10000 | BP110: 50 | BR110: 11 | BS110: text | BT110: text | BU110: =IFERROR(IF(M110=60,VLOOKUP(VALUE(TEXT(YEAR($C110),"@")&TEXT($I110,"@")),IncomeGroup!$C$2:$F$50000,4,FALSE),VLOOKUP(VALUE(TEXT(YEAR($C110),"@")&TEXT($I110,"@")),IncomeGroup!$C$2:$F$50000,3,FALSE)),"") -> LMICs | BV110: 0.035 | BW110: 5.840240979 | BY110: LMICs | BZ110: =BO110 -> 10000 | CA110: =BG110/100000 ->  | CB110: =BE110 -> 1 | CC110: =DATEDIF(C110,BJ110,"D")/365.25 -> 4 | CD110: =DATEDIF(C110,BI110,"D")/365.25 -> 1.002053388 | CE110: 4 | CF110: =CD110-(1/CE110) -> 0.7520533881 | CG110: =CC110-CF110 -> 3.247946612 | CH110: =VLOOKUP([3]CRSDATA!M60,'[3]Discount rates gua, rg'!$A:$H,MATCH([3]CRSDATA!BW$4,'[3]Discount rates gua, rg'!$A$1:$H$1,0),FALSE) ->  | CI110: =CA110 ->  | CJ110: =CA110 ->  | CK110: =((1+CH110)^(1/CE110))-1 ->  | CL110: =CE110*CG110 -> 12.99178645 | CM110: =(1+CH110)^CF110 ->  | CN110: =(1+CH110)^CG110 ->  | CO110: =(CI110*(1-(1/CM110)))/(CE110*CK110) ->  | CP110: =(1/CL110)*(1/CM110)*((1-(1/CN110))/CK110) ->  | CQ110: =(CJ110/(CE110*CL110))*(1/CM110)*((1/CN110)-1+CK110*CL110)/(CK110*CK110) ->  | CR110: =1 / ( (1 + CJ110/CE110)^CL110 -1) +1 ->  | CS110: =( CJ110/CE110 ) * CR110 * ( 1/CM110) * ( (1 - 1/CN110) / CK110) ->  | CT110: =(1-CO110-CP110-CQ110) ->  | CU110: =(1-CO110-CS110) ->  | CV110: =(1-(1+CJ110*CD110)/(1+CH110)^CC110) ->  | CW110: =IF(CB110=1,CT110,IF(CB110=2,CU110,IF(CB110=3,CV110,IF(CB110=5,CT110,"ERROR")))) ->  | CX110: =IF(CW110<0,0,BZ110*CW110) ->  | CY110: =J110 -> new
B111: 2023 | C111: 2022-01-01 | D111: 68 | E111: 1 | F111: 2023000009 | G111: Mezz portfolio guarantee | H111: 1 | I111: 645 | J111: new | K111: 12000 | L111: 1 | M111: 60 | N111: 1104 | O111: C01 | P111: text | Q111: 99810 | T111: 00:00:00 | U111: 00:00:00 | V111: Mezzanine portfolio guarantee private | AN111: 918 | AR111: 709.1901008 | BE111: 1 | BF111: 1 | BG111: text | BI111: 2027-01-01 | BJ111: 2027-01-01 | BK111: 123 | BL111: 4 | BM111: 4 | BP111: 50 | BQ111: 20 | BR111: 11 | BS111: text | BT111: text | BU111: =IFERROR(IF(M111=60,VLOOKUP(VALUE(TEXT(YEAR($C111),"@")&TEXT($I111,"@")),IncomeGroup!$C$2:$F$50000,4,FALSE),VLOOKUP(VALUE(TEXT(YEAR($C111),"@")&TEXT($I111,"@")),IncomeGroup!$C$2:$F$50000,3,FALSE)),"") -> LMICs | BV111: 0.05 | BW111: 21.64476672 | BY111: LMICs | BZ111: =BO111 -> 0 | CA111: =BG111/100000 ->  | CB111: =BE111 -> 1 | CC111: =DATEDIF(C111,BJ111,"D")/365.25 -> 4.999315537 | CD111: =DATEDIF(C111,BI111,"D")/365.25 -> 4.999315537 | CE111: 4 | CF111: =CD111-(1/CE111) -> 4.749315537 | CG111: =CC111-CF111 -> 0.25 | CH111: =VLOOKUP([3]CRSDATA!M19,'[3]Discount rates gua, rg'!$A:$H,MATCH([3]CRSDATA!BW$4,'[3]Discount rates gua, rg'!$A$1:$H$1,0),FALSE) -> 0.065 | CI111: =CA111 ->  | CJ111: =CA111 ->  | CK111: =((1+CH111)^(1/CE111))-1 -> 0.01586828478 | CL111: =CE111*CG111 -> 1 | CM111: =(1+CH111)^CF111 -> 1.348627208 | CN111: =(1+CH111)^CG111 -> 1.015868285 | CO111: =(CI111*(1-(1/CM111)))/(CE111*CK111) ->  | CP111: =(1/CL111)*(1/CM111)*((1-(1/CN111))/CK111) -> 0.7299122979 | CQ111: =(CJ111/(CE111*CL111))*(1/CM111)*((1/CN111)-1+CK111*CL111)/(CK111*CK111) ->  | CR111: =1 / ( (1 + CJ111/CE111)^CL111 -1) +1 ->  | CS111: =( CJ111/CE111 ) * CR111 * ( 1/CM111) * ( (1 - 1/CN111) / CK111) ->  | CT111: =(1-CO111-CP111-CQ111) ->  | CU111: =(1-CO111-CS111) ->  | CV111: =(1-(1+CJ111*CD111)/(1+CH111)^CC111) ->  | CW111: =IF(CB111=1,CT111,IF(CB111=2,CU111,IF(CB111=3,CV111,IF(CB111=5,CT111,"ERROR")))) ->  | CX111: =IF(CW111<0,0,BZ111*CW111) ->  | CY111: =J111 -> new
B112: 2023 | C112: 2022-01-01 | D112: 68 | E112: 1 | F112: 2023000010 | G112: Mezz portfolio guarantee | H112: 1 | I112: 645 | J112: new | K112: 62000 | L112: 1 | M112: 60 | N112: 1104 | O112: C01 | P112: text | Q112: 99810 | T112: 00:00:00 | U112: 00:00:00 | V112: Mezzanine portfolio guarantee private | AN112: 918 | AR112: 709.1901008 | BE112: 1 | BF112: 1 | BG112: text | BI112: 2027-01-01 | BJ112: 2027-01-01 | BK112: 123 | BL112: 4 | BM112: 4 | BP112: 50 | BQ112: 20 | BR112: 11 | BT112: text | BU112: =IFERROR(IF(M112=60,VLOOKUP(VALUE(TEXT(YEAR($C112),"@")&TEXT($I112,"@")),IncomeGroup!$C$2:$F$50000,4,FALSE),VLOOKUP(VALUE(TEXT(YEAR($C112),"@")&TEXT($I112,"@")),IncomeGroup!$C$2:$F$50000,3,FALSE)),"") -> LMICs | BV112: 0.05 | BW112: 21.64476672 | BY112: LMICs | BZ112: =BO112 -> 0 | CA112: =BG112/100000 ->  | CB112: =BE112 -> 1 | CC112: =DATEDIF(C112,BJ112,"D")/365.25 -> 4.999315537 | CD112: =DATEDIF(C112,BI112,"D")/365.25 -> 4.999315537 | CE112: 4 | CF112: =CD112-(1/CE112) -> 4.749315537 | CG112: =CC112-CF112 -> 0.25 | CH112: =VLOOKUP([3]CRSDATA!M5,'[3]Discount rates gua, rg'!$A:$H,MATCH([3]CRSDATA!BW$4,'[3]Discount rates gua, rg'!$A$1:$H$1,0),FALSE) -> 0.035 | CI112: =CA112 ->  | CJ112: =CA112 ->  | CK112: =((1+CH112)^(1/CE112))-1 -> 0.008637445998 | CL112: =CE112*CG112 -> 1 | CM112: =(1+CH112)^CF112 -> 1.177487852 | CN112: =(1+CH112)^CG112 -> 1.008637446 | CO112: =(CI112*(1-(1/CM112)))/(CE112*CK112) ->  | CP112: =(1/CL112)*(1/CM112)*((1-(1/CN112))/CK112) -> 0.8419929926 | CQ112: =(CJ112/(CE112*CL112))*(1/CM112)*((1/CN112)-1+CK112*CL112)/(CK112*CK112) ->  | CR112: =1 / ( (1 + CJ112/CE112)^CL112 -1) +1 ->  | CS112: =( CJ112/CE112 ) * CR112 * ( 1/CM112) * ( (1 - 1/CN112) / CK112) ->  | CT112: =(1-CO112-CP112-CQ112) ->  | CU112: =(1-CO112-CS112) ->  | CV112: =(1-(1+CJ112*CD112)/(1+CH112)^CC112) ->  | CW112: =IF(CB112=1,CT112,IF(CB112=2,CU112,IF(CB112=3,CV112,IF(CB112=5,CT112,"ERROR")))) ->  | CX112: =IF(CW112<0,0,BZ112*CW112) ->  | CY112: =J112 -> new
B113: 2023 | C113: 2023-01-01 | D113: 68 | E113: 1 | F113: 2023000013 | G113: Equity portfolio guarantee | H113: 1 | I113: 645 | J113: new | K113: 12000 | L113: 1 | M113: 60 | N113: 1106 | O113: C01 | P113: text | Q113: 99810 | T113: 00:00:00 | U113: 00:00:00 | V113: Equity portfolio guarantee | AN113: 918 | AR113: 942.0946154 | AS113: 942.0946154 | BE113: 1 | BF113: 1 | BG113: text | BH113: 1000 | BI113: 2027-01-01 | BJ113: 2027-01-01 | BK113: 123 | BL113: 4 | BM113: 4 | BO113: 10000 | BP113: 50 | BQ113: 20 | BR113: 11 | BS113: text | BT113: text | BU113: =IFERROR(IF(M113=60,VLOOKUP(VALUE(TEXT(YEAR($C113),"@")&TEXT($I113,"@")),IncomeGroup!$C$2:$F$50000,4,FALSE),VLOOKUP(VALUE(TEXT(YEAR($C113),"@")&TEXT($I113,"@")),IncomeGroup!$C$2:$F$50000,3,FALSE)),"") -> LMICs | BV113: 0.065 | BW113: 18.84189231 | BY113: LMICs | BZ113: =AQ113 -> 0 | CA113: =BG113/100000 ->  | CB113: =BE113 -> 1 | CC113: =DATEDIF(C113,BJ113,"D")/365.25 -> 4 | CD113: =DATEDIF(C113,BI113,"D")/365.25 -> 4 | CE113: 4 | CF113: =CD113-(1/CE113) -> 3.75 | CG113: =CC113-CF113 -> 0.25 | CH113: 0.08 | CI113: =CA113 ->  | CJ113: =CA113 ->  | CK113: =((1+CH113)^(1/CE113))-1 -> 0.01942654691 | CL113: =CE113*CG113 -> 1 | CM113: =(1+CH113)^CF113 -> 1.334563009 | CN113: =(1+CH113)^CG113 -> 1.019426547 | CO113: =(CI113*(1-(1/CM113)))/(CE113*CK113) ->  | CP113: =(1/CL113)*(1/CM113)*((1-(1/CN113))/CK113) -> 0.7350298528 | CQ113: =(CJ113/(CE113*CL113))*(1/CM113)*((1/CN113)-1+CK113*CL113)/(CK113*CK113) ->  | CR113: =1 / ( (1 + CJ113/CE113)^CL113 -1) +1 ->  | CS113: =( CJ113/CE113 ) * CR113 * ( 1/CM113) * ( (1 - 1/CN113) / CK113) ->  | CT113: =(1-CO113-CP113-CQ113) ->  | CU113: =(1-CO113-CS113) ->  | CV113: =(1-(1+CJ113*CD113)/(1+CH113)^CC113) ->  | CW113: =IF(CB113=1,CT113,IF(CB113=2,CU113,IF(CB113=3,CV113,IF(CB113=5,CT113,"ERROR")))) ->  | CX113: =IF(CW113<0,0,BZ113*CW113) ->  | CY113: =J113 -> new
B114: 2023 | C114: 2023-01-01 | D114: 68 | E114: 1 | F114: 2023000014 | G114: Equity portfolio guarantee | H114: 1 | I114: 645 | J114: new | K114: 62000 | L114: 1 | M114: 60 | N114: 1106 | O114: C01 | P114: text | Q114: 99810 | T114: 00:00:00 | U114: 00:00:00 | V114: Equity portfolio guarantee | AN114: 918 | AR114: 942.0946154 | AS114: 942.0946154 | BE114: 1 | BF114: 1 | BG114: text | BH114: 1000 | BI114: 2027-01-01 | BJ114: 2027-01-01 | BK114: 123 | BL114: 4 | BM114: 4 | BO114: 10000 | BP114: 50 | BQ114: 20 | BR114: 11 | BS114: text | BT114: text | BU114: =IFERROR(IF(M114=60,VLOOKUP(VALUE(TEXT(YEAR($C114),"@")&TEXT($I114,"@")),IncomeGroup!$C$2:$F$50000,4,FALSE),VLOOKUP(VALUE(TEXT(YEAR($C114),"@")&TEXT($I114,"@")),IncomeGroup!$C$2:$F$50000,3,FALSE)),"") -> LMICs | BV114: 0.065 | BW114: 18.84189231 | BY114: LMICs | BZ114: =BO114 -> 10000 | CA114: =BG114/100000 ->  | CB114: =BE114 -> 1 | CC114: =DATEDIF(C114,BJ114,"D")/365.25 -> 4 | CD114: =DATEDIF(C114,BI114,"D")/365.25 -> 4 | CE114: 4 | CF114: =CD114-(1/CE114) -> 3.75 | CG114: =CC114-CF114 -> 0.25 | CH114: 0.105 | CI114: =CA114 ->  | CJ114: =CA114 ->  | CK114: =((1+CH114)^(1/CE114))-1 -> 0.02527547619 | CL114: =CE114*CG114 -> 1 | CM114: =(1+CH114)^CF114 -> 1.454147773 | CN114: =(1+CH114)^CG114 -> 1.025275476 | CO114: =(CI114*(1-(1/CM114)))/(CE114*CK114) ->  | CP114: =(1/CL114)*(1/CM114)*((1-(1/CN114))/CK114) -> 0.6707348746 | CQ114: =(CJ114/(CE114*CL114))*(1/CM114)*((1/CN114)-1+CK114*CL114)/(CK114*CK114) ->  | CR114: =1 / ( (1 + CJ114/CE114)^CL114 -1) +1 ->  | CS114: =( CJ114/CE114 ) * CR114 * ( 1/CM114) * ( (1 - 1/CN114) / CK114) ->  | CT114: =(1-CO114-CP114-CQ114) ->  | CU114: =(1-CO114-CS114) ->  | CV114: =(1-(1+CJ114*CD114)/(1+CH114)^CC114) ->  | CW114: =IF(CB114=1,CT114,IF(CB114=2,CU114,IF(CB114=3,CV114,IF(CB114=5,CT114,"ERROR")))) ->  | CX114: =IF(CW114<0,0,BZ114*CW114) ->  | CY114: =J114 -> new
B115: 2023 | C115: 2023-01-01 | D115: 68 | E115: 1 | F115: 2023000015 | G115: First loss guarantee | H115: 1 | I115: 645 | J115: new | K115: 12000 | L115: 1 | M115: 60 | N115: 1107 | O115: C01 | P115: text | Q115: 99810 | T115: 00:00:00 | U115: 00:00:00 | V115: First loss guarantee | AN115: 918 | AR115: 1884.189231 | AS115: 1884.189231 | BE115: 1 | BF115: 1 | BG115: text | BH115: 1000 | BI115: 2027-01-01 | BJ115: 2027-01-01 | BK115: 123 | BL115: 4 | BM115: 4 | BO115: 10000 | BP115: 50 | BQ115: 20 | BR115: 11 | BS115: text | BT115: text | BU115: =IFERROR(IF(M115=60,VLOOKUP(VALUE(TEXT(YEAR($C115),"@")&TEXT($I115,"@")),IncomeGroup!$C$2:$F$50000,4,FALSE),VLOOKUP(VALUE(TEXT(YEAR($C115),"@")&TEXT($I115,"@")),IncomeGroup!$C$2:$F$50000,3,FALSE)),"") -> LMICs | BV115: 0.065 | BW115: 18.84189231
B116: 2023 | C116: 2023-01-01 | D116: 68 | E116: 1 | F116: 2023000016 | G116: First loss guarantee | H116: 1 | I116: 645 | J116: new | K116: 62000 | L116: 1 | M116: 60 | N116: 1107 | O116: C01 | P116: text | Q116: 99810 | T116: 00:00:00 | U116: 00:00:00 | V116: First loss guarantee | AN116: 918 | AR116: 1884.189231 | AS116: 1884.189231 | BE116: 1 | BF116: 1 | BG116: text | BH116: 1000 | BI116: 2027-01-01 | BJ116: 2027-01-01 | BK116: 123 | BL116: 4 | BM116: 4 | BO116: 10000 | BP116: 50 | BQ116: 20 | BR116: 11 | BS116: text | BT116: text | BU116: =IFERROR(IF(M116=60,VLOOKUP(VALUE(TEXT(YEAR($C116),"@")&TEXT($I116,"@")),IncomeGroup!$C$2:$F$50000,4,FALSE),VLOOKUP(VALUE(TEXT(YEAR($C116),"@")&TEXT($I116,"@")),IncomeGroup!$C$2:$F$50000,3,FALSE)),"") -> LMICs | BV116: 0.065 | BW116: 18.84189231
B117: 2023 | C117: 2023-01-01 | D117: 68 | E117: 1 | F117: 2023000017 | G117: Other guarantee | H117: 1 | I117: 645 | J117: new | K117: 12000 | L117: 1 | M117: 60 | N117: 1108 | O117: C01 | P117: text | Q117: 99810 | T117: 00:00:00 | U117: 00:00:00 | V117: Other guarantee | AN117: 918 | BE117: 1 | BF117: 1 | BG117: text | BH117: 1000 | BI117: 2024-01-02 | BJ117: 2027-01-01 | BK117: 123 | BL117: 1.002053388 | BM117: 4 | BO117: 10000 | BP117: 50 | BQ117: 20 | BR117: 11 | BS117: text | BT117: text | BU117: =IFERROR(IF(M117=60,VLOOKUP(VALUE(TEXT(YEAR($C117),"@")&TEXT($I117,"@")),IncomeGroup!$C$2:$F$50000,4,FALSE),VLOOKUP(VALUE(TEXT(YEAR($C117),"@")&TEXT($I117,"@")),IncomeGroup!$C$2:$F$50000,3,FALSE)),"") -> LMICs | BV117: 0.065 | BW117: 0
B118: 2023 | C118: 2023-01-01 | D118: 68 | E118: 1 | F118: 2023000018 | G118: Other guarantee | H118: 1 | I118: 645 | J118: new | K118: 62000 | L118: 1 | M118: 60 | N118: 1108 | O118: C01 | P118: text | Q118: 99810 | T118: 00:00:00 | U118: 00:00:00 | V118: Other guarantee | AN118: 918 | BE118: 1 | BF118: 1 | BG118: text | BH118: 1000 | BI118: 2024-01-02 | BJ118: 2027-01-01 | BK118: 123 | BL118: 1.002053388 | BM118: 4 | BO118: 10000 | BP118: 50 | BQ118: 20 | BR118: 11 | BS118: text | BT118: text | BU118: =IFERROR(IF(M118=60,VLOOKUP(VALUE(TEXT(YEAR($C118),"@")&TEXT($I118,"@")),IncomeGroup!$C$2:$F$50000,4,FALSE),VLOOKUP(VALUE(TEXT(YEAR($C118),"@")&TEXT($I118,"@")),IncomeGroup!$C$2:$F$50000,3,FALSE)),"") -> LMICs | BV118: 0.065 | BW118: 0
B119: 2023 | C119: 2023-01-01 | D119: 68 | E119: 1 | F119: 2023000021 | G119: Loan-type reimbursable grants | H119: 1 | I119: 645 | J119: new | K119: 62000 | L119: 1 | M119: 60 | N119: 4221 | O119: C01 | P119: text | Q119: 99810 | T119: 00:00:00 | U119: 00:00:00 | V119: LTGR private | AN119: 918 | AO119: 10000 | AQ119: 10000 | AR119: 1410.357828 | AS119: 1410.357828 | AT119: 1000 | BE119: 1 | BF119: 1 | BG119: text | BH119: 1000 | BI119: 2024-01-02 | BJ119: 2027-01-01 | BK119: 123 | BL119: 1.002053388 | BM119: 4 | BQ119: 20 | BR119: 11 | BS119: text | BT119: text | BU119: =IFERROR(IF(M119=60,VLOOKUP(VALUE(TEXT(YEAR($C119),"@")&TEXT($I119,"@")),IncomeGroup!$C$2:$F$50000,4,FALSE),VLOOKUP(VALUE(TEXT(YEAR($C119),"@")&TEXT($I119,"@")),IncomeGroup!$C$2:$F$50000,3,FALSE)),"") -> LMICs | BV119: 0.075 | BW119: 14.10357828
B120: 2023 | C120: 2022-01-01 | D120: 68 | E120: 1 | F120: 2023000027 | G120: Loan-type reimbursable grants | H120: 1 | I120: 645 | J120: new | K120: 62000 | L120: 1 | M120: 60 | N120: 4221 | O120: C01 | P120: text | Q120: 99810 | T120: 00:00:00 | U120: 00:00:00 | V120: LTGR private | AN120: 918 | AT120: 1000 | BE120: 1 | BF120: 1 | BG120: text | BH120: 1000 | BI120: 2024-01-02 | BJ120: 2027-01-01 | BK120: 123 | BL120: 1.002053388 | BM120: 4 | BQ120: 20 | BR120: 11 | BS120: text | BT120: text | BU120: =IFERROR(IF(M120=60,VLOOKUP(VALUE(TEXT(YEAR($C120),"@")&TEXT($I120,"@")),IncomeGroup!$C$2:$F$50000,4,FALSE),VLOOKUP(VALUE(TEXT(YEAR($C120),"@")&TEXT($I120,"@")),IncomeGroup!$C$2:$F$50000,3,FALSE)),"") -> LMICs | BV120: 0.075 | BW120: 19.16277792
B121: 2023 | C121: 2022-01-01 | D121: 68 | E121: 1 | F121: 2023000030 | G121: Reflow-based reimbursable grants | H121: 1 | I121: 645 | J121: new | K121: 62000 | L121: 1 | M121: 60 | N121: 4222 | O121: C01 | P121: text | Q121: 99810 | T121: 00:00:00 | U121: 00:00:00 | V121: RBGR private | AN121: 918 | AT121: 1000 | BE121: 1 | BF121: 1 | BG121: text | BH121: 1000 | BI121: 2024-01-02 | BJ121: 2027-01-01 | BK121: 123 | BL121: 1.002053388 | BM121: 4 | BQ121: 21 | BR121: 11 | BS121: text | BT121: text | BU121: =IFERROR(IF(M121=60,VLOOKUP(VALUE(TEXT(YEAR($C121),"@")&TEXT($I121,"@")),IncomeGroup!$C$2:$F$50000,4,FALSE),VLOOKUP(VALUE(TEXT(YEAR($C121),"@")&TEXT($I121,"@")),IncomeGroup!$C$2:$F$50000,3,FALSE)),"") -> LMICs | BV121: 0.105 | BW121: 38.08094921 | BY121: LMICs | BZ121: =AQ121 -> 0 | CA121: =BG121/100000 ->  | CB121: =BE121 -> 1 | CC121: =DATEDIF(C121,BJ121,"D")/365.25 -> 4.999315537 | CD121: =DATEDIF(C121,BI121,"D")/365.25 -> 2.001368925 | CE121: 4 | CF121: =CD121-(1/CE121) -> 1.751368925 | CG121: =CC121-CF121 -> 3.247946612 | CH121: =VLOOKUP([3]CRSDATA!M28,'[3]Discount rates gua, rg'!$A:$H,MATCH([3]CRSDATA!BW$4,'[3]Discount rates gua, rg'!$A$1:$H$1,0),FALSE) -> 0.05 | CI121: =CA121 ->  | CJ121: =CA121 ->  | CK121: =((1+CH121)^(1/CE121))-1 -> 0.01227223443 | CL121: =CE121*CG121 -> 12.99178645 | CM121: =(1+CH121)^CF121 -> 1.089206639 | CN121: =(1+CH121)^CG121 -> 1.171714251 | CO121: =(CI121*(1-(1/CM121)))/(CE121*CK121) ->  | CP121: =(1/CL121)*(1/CM121)*((1-(1/CN121))/CK121) -> 0.8438822112 | CQ121: =(CJ121/(CE121*CL121))*(1/CM121)*((1/CN121)-1+CK121*CL121)/(CK121*CK121) ->  | CR121: =1 / ( (1 + CJ121/CE121)^CL121 -1) +1 ->  | CS121: =( CJ121/CE121 ) * CR121 * ( 1/CM121) * ( (1 - 1/CN121) / CK121) ->  | CT121: =(1-CO121-CP121-CQ121) ->  | CU121: =(1-CO121-CS121) ->  | CV121: =(1-(1+CJ121*CD121)/(1+CH121)^CC121) ->  | CW121: =IF(CB121=1,CT121,IF(CB121=2,CU121,IF(CB121=3,CV121,IF(CB121=5,CT121,"ERROR")))) ->  | CX121: =IF(CW121<0,0,BZ121*CW121) ->  | CY121: =J121 -> new
B122: 2023 | C122: 2023-05-15 | D122: 68 | E122: 1 | F122: 2023000031 | G122: abc | H122: 1 | I122: 645 | J122: LTRG public | K122: 61001 | L122: 1 | M122: 10 | N122: 4221 | O122: C01 | P122: LTRG public | Q122: 24030 | T122: 00:00:00 | U122: 00:00:00 | V122: LTRG public | W122: 8.4 | Y122: 0 | Z122: 0 | AA122: 0 | AB122: 0 | AC122: 0 | AD122: 0 | AE122: 0 | AJ122: 0 | AK122: 0 | AL122: 0 | AM122: 0 | AN122: 918 | AP122: 15000 | AQ122: 15000 | AR122: 2775.955122 | AS122: 2775.955122 | BE122: 1 | BF122: 4 | BG122: 1000 | BI122: 2024-06-18 | BJ122: 2029-08-31 | BU122: =IFERROR(IF(M122=60,VLOOKUP(VALUE(TEXT(YEAR($C122),"@")&TEXT($I122,"@")),IncomeGroup!$C$2:$F$50000,4,FALSE),VLOOKUP(VALUE(TEXT(YEAR($C122),"@")&TEXT($I122,"@")),IncomeGroup!$C$2:$F$50000,3,FALSE)),"") -> LMICs | BV122: 0.07 | BW122: 18.50636748 | BY122: LMICs | BZ122: =BO122 -> 0 | CA122: =BG122/100000 -> 0.01 | CB122: =BE122 -> 1 | CC122: =DATEDIF(C122,BJ122,"D")/365.25 -> 6.29705681 | CD122: =DATEDIF(C122,BI122,"D")/365.25 -> 1.095140315 | CE122: 4 | CF122: =CD122-(1/CE122) -> 0.8451403149 | CG122: =CC122-CF122 -> 5.451916496 | CH122: =VLOOKUP([3]CRSDATA!M15,'[3]Discount rates gua, rg'!$A:$H,MATCH([3]CRSDATA!BW$4,'[3]Discount rates gua, rg'!$A$1:$H$1,0),FALSE) -> 0.065 | CI122: =CA122 -> 0.01 | CJ122: =CA122 -> 0.01 | CK122: =((1+CH122)^(1/CE122))-1 -> 0.01586828478 | CL122: =CE122*CG122 -> 21.80766598 | CM122: =(1+CH122)^CF122 -> 1.054664326 | CN122: =(1+CH122)^CG122 -> 1.409638581 | CO122: =(CI122*(1-(1/CM122)))/(CE122*CK122) -> 0.008165819233 | CP122: =(1/CL122)*(1/CM122)*((1-(1/CN122))/CK122) -> 0.7962320356 | CQ122: =(CJ122/(CE122*CL122))*(1/CM122)*((1/CN122)-1+CK122*CL122)/(CK122*CK122) -> 0.02393720374 | CR122: =1 / ( (1 + CJ122/CE122)^CL122 -1) +1 -> 18.86962936 | CS122: =( CJ122/CE122 ) * CR122 * ( 1/CM122) * ( (1 - 1/CN122) / CK122) -> 0.8191288311 | CT122: =(1-CO122-CP122-CQ122) -> 0.1716649414 | CU122: =(1-CO122-CS122) -> 0.1727053496 | CV122: =(1-(1+CJ122*CD122)/(1+CH122)^CC122) -> 0.3200010447 | CW122: =IF(CB122=1,CT122,IF(CB122=2,CU122,IF(CB122=3,CV122,IF(CB122=5,CT122,"ERROR")))) -> 0.1716649414 | CX122: =IF(CW122<0,0,BZ122*CW122) -> 0 | CY122: =J122 -> LTRG public
B123: 2023 | C123: 2023-01-01 | D123: 68 | E123: 1 | F123: 2023040004 | G123: Individual loan guarantee | H123: 1 | I123: 645 | J123: new | K123: 62000 | L123: 1 | M123: 22 | N123: 1101 | O123: C01 | P123: text | Q123: 99810 | T123: 00:00:00 | U123: 00:00:00 | AN123: 918 | AR123: 584.0240979 | BE123: 1 | BF123: 1 | BG123: text | BH123: 1000 | BI123: 2024-01-02 | BJ123: 2027-01-01 | BK123: 123 | BL123: 1.002053388 | BM123: 4 | BO123: 10000 | BP123: 50 | BR123: 11 | BS123: text | BT123: text | BU123: =IFERROR(IF(M123=60,VLOOKUP(VALUE(TEXT(YEAR($C123),"@")&TEXT($I123,"@")),IncomeGroup!$C$2:$F$50000,4,FALSE),VLOOKUP(VALUE(TEXT(YEAR($C123),"@")&TEXT($I123,"@")),IncomeGroup!$C$2:$F$50000,3,FALSE)),"") -> LMICs | BV123: 0.035 | BW123: 5.840240979 | BY123: LMICs | BZ123: =AQ123 -> 0 | CA123: =BG123/100000 ->  | CB123: =BE123 -> 1 | CC123: =DATEDIF(C123,BJ123,"D")/365.25 -> 4 | CD123: =DATEDIF(C123,BI123,"D")/365.25 -> 1.002053388 | CE123: 4 | CF123: =CD123-(1/CE123) -> 0.7520533881 | CG123: =CC123-CF123 -> 3.247946612 | CH123: 0.05 | CI123: =CA123 ->  | CJ123: =CA123 ->  | CK123: =((1+CH123)^(1/CE123))-1 -> 0.01227223443 | CL123: =CE123*CG123 -> 12.99178645 | CM123: =(1+CH123)^CF123 -> 1.037374299 | CN123: =(1+CH123)^CG123 -> 1.171714251 | CO123: =(CI123*(1-(1/CM123)))/(CE123*CK123) ->  | CP123: =(1/CL123)*(1/CM123)*((1-(1/CN123))/CK123) -> 0.8860467317 | CQ123: =(CJ123/(CE123*CL123))*(1/CM123)*((1/CN123)-1+CK123*CL123)/(CK123*CK123) ->  | CR123: =1 / ( (1 + CJ123/CE123)^CL123 -1) +1 ->  | CS123: =( CJ123/CE123 ) * CR123 * ( 1/CM123) * ( (1 - 1/CN123) / CK123) ->  | CT123: =(1-CO123-CP123-CQ123) ->  | CU123: =(1-CO123-CS123) ->  | CV123: =(1-(1+CJ123*CD123)/(1+CH123)^CC123) ->  | CW123: =IF(CB123=1,CT123,IF(CB123=2,CU123,IF(CB123=3,CV123,IF(CB123=5,CT123,"ERROR")))) ->  | CX123: =IF(CW123<0,0,BZ123*CW123) ->  | CY123: =J123 -> new
B124: 2023 | C124: 2023-01-01 | D124: 68 | E124: 1 | F124: 2023060007 | G124: 137 | H124: 1 | I124: 998 | J124: Institution name | K124: 11004 | L124: 1 | M124: 60 | N124: 110 | O124: B05 | P124: o. Decapitalisation | Q124: 99810 | T124: 00:00:00 | U124: 00:00:00 | V124: [text] | AN124: 918 | AR124: -2500 | BQ124: 10 | BU124: =IFERROR(IF(M124=60,VLOOKUP(VALUE(TEXT(YEAR($C124),"@")&TEXT($I124,"@")),IncomeGroup!$C$2:$F$50000,4,FALSE),VLOOKUP(VALUE(TEXT(YEAR($C124),"@")&TEXT($I124,"@")),IncomeGroup!$C$2:$F$50000,3,FALSE)),"") -> UMICs
B125: 2023 | C125: 2023-10-12 | D125: 68 | E125: 1 | F125: 2023100001 | G125: Sovereign loans | H125: 1 | I125: 229 | K125: 12000 | L125: 1 | M125: 21 | N125: 421 | O125: C01 | P125: text | Q125: 24030 | T125: 00:00:00 | U125: 00:00:00 | V125: Sovereign loans | AN125: 918 | AO125: 10000 | AQ125: 10000 | BE125: 1 | BF125: 1 | BG125: 5660 | BI125: 2024-06-01 | BJ125: 2030-12-31 | BR125: 1 | BS125: LMICs | BU125: =IFERROR(IF(M125=60,VLOOKUP(VALUE(TEXT(YEAR($C125),"@")&TEXT($I125,"@")),IncomeGroup!$C$2:$F$50000,4,FALSE),VLOOKUP(VALUE(TEXT(YEAR($C125),"@")&TEXT($I125,"@")),IncomeGroup!$C$2:$F$50000,3,FALSE)),"") -> LMICs | BY125: LMICs | BZ125: =BO125 -> 0 | CA125: =BG125/100000 -> 0.0566 | CB125: =BE125 -> 1 | CC125: =DATEDIF(C125,BJ125,"D")/365.25 -> 7.219712526 | CD125: =DATEDIF(C125,BI125,"D")/365.25 -> 0.6379192334 | CE125: 4 | CF125: =CD125-(1/CE125) -> 0.3879192334 | CG125: =CC125-CF125 -> 6.831793292 | CH125: =VLOOKUP([3]CRSDATA!M39,'[3]Discount rates gua, rg'!$A:$H,MATCH([3]CRSDATA!BW$4,'[3]Discount rates gua, rg'!$A$1:$H$1,0),FALSE) -> 0.105 | CI125: =CA125 -> 0.0566 | CJ125: =CA125 -> 0.0566 | CK125: =((1+CH125)^(1/CE125))-1 -> 0.02527547619 | CL125: =CE125*CG125 -> 27.32717317 | CM125: =(1+CH125)^CF125 -> 1.039491785 | CN125: =(1+CH125)^CG125 -> 1.978072112 | CO125: =(CI125*(1-(1/CM125)))/(CE125*CK125) -> 0.02126879081 | CP125: =(1/CL125)*(1/CM125)*((1-(1/CN125))/CK125) -> 0.6886739237 | CQ125: =(CJ125/(CE125*CL125))*(1/CM125)*((1/CN125)-1+CK125*CL125)/(CK125*CK125) -> 0.153021258 | CR125: =1 / ( (1 + CJ125/CE125)^CL125 -1) +1 -> 3.136294112 | CS125: =( CJ125/CE125 ) * CR125 * ( 1/CM125) * ( (1 - 1/CN125) / CK125) -> 0.8351828549 | CT125: =(1-CO125-CP125-CQ125) -> 0.1370360275 | CU125: =(1-CO125-CS125) -> 0.1435483543 | CV125: =(1-(1+CJ125*CD125)/(1+CH125)^CC125) -> 0.4961037774 | CW125: =IF(CB125=1,CT125,IF(CB125=2,CU125,IF(CB125=3,CV125,IF(CB125=5,CT125,"ERROR")))) -> 0.1370360275 | CX125: =IF(CW125<0,0,BZ125*CW125) -> 0 | CY125: =J125 -> 0
B126: 2023 | C126: 2018-12-14 | D126: 68 | E126: 1 | F126: 2023100002 | G126: Sovereign loans | H126: 1 | I126: 63 | K126: 12000 | L126: 3 | M126: 10 | N126: 421 | O126: C01 | P126: text | Q126: 24030 | T126: 00:00:00 | U126: 00:00:00 | V126: Sovereign loans | AN126: 918 | AO126: 0 | AQ126: 10000 | AR126: 1179.611651 | AS126: 1179.611651 | AT126: 0 | BE126: 1 | BF126: 1 | BG126: 4760 | BI126: 2023-09-30 | BJ126: 2045-09-15 | BR126: 2 | BT126: 0.06 | BU126: =IFERROR(IF(M126=60,VLOOKUP(VALUE(TEXT(YEAR($C126),"@")&TEXT($I126,"@")),IncomeGroup!$C$2:$F$50000,4,FALSE),VLOOKUP(VALUE(TEXT(YEAR($C126),"@")&TEXT($I126,"@")),IncomeGroup!$C$2:$F$50000,3,FALSE)),"") -> UMICs | BV126: 0.06 | BW126: 11.79611651
B127: 2023 | C127: 2019-10-28 | D127: 68 | E127: 1 | F127: 2023100003 | G127: Sovereign loans | H127: 1 | I127: 660 | K127: 21000 | L127: 3 | M127: 21 | N127: 421 | O127: C01 | P127: text | Q127: 24030 | T127: 00:00:00 | U127: 00:00:00 | AN127: 918 | AO127: 0 | AQ127: 10000 | BE127: 1 | BF127: 1 | BG127: 5293 | BI127: 2025-09-25 | BJ127: 2028-03-01 | BR127: 3 | BS127: LDCs | BU127: =IFERROR(IF(M127=60,VLOOKUP(VALUE(TEXT(YEAR($C127),"@")&TEXT($I127,"@")),IncomeGroup!$C$2:$F$50000,4,FALSE),VLOOKUP(VALUE(TEXT(YEAR($C127),"@")&TEXT($I127,"@")),IncomeGroup!$C$2:$F$50000,3,FALSE)),"") -> LDCs | BY127: LMICs | BZ127: =BO127 -> 0 | CA127: =BG127/100000 -> 0.05293 | CB127: =BE127 -> 1 | CC127: =DATEDIF(C127,BJ127,"D")/365.25 -> 8.342231348 | CD127: =DATEDIF(C127,BI127,"D")/365.25 -> 5.911019849 | CE127: 4 | CF127: =CD127-(1/CE127) -> 5.661019849 | CG127: =CC127-CF127 -> 2.681211499 | CH127: =VLOOKUP([3]CRSDATA!M16,'[3]Discount rates gua, rg'!$A:$H,MATCH([3]CRSDATA!BW$4,'[3]Discount rates gua, rg'!$A$1:$H$1,0),FALSE) -> 0.065 | CI127: =CA127 -> 0.05293 | CJ127: =CA127 -> 0.05293 | CK127: =((1+CH127)^(1/CE127))-1 -> 0.01586828478 | CL127: =CE127*CG127 -> 10.724846 | CM127: =(1+CH127)^CF127 -> 1.428323799 | CN127: =(1+CH127)^CG127 -> 1.183941061 | CO127: =(CI127*(1-(1/CM127)))/(CE127*CK127) -> 0.2500676137 | CP127: =(1/CL127)*(1/CM127)*((1-(1/CN127))/CK127) -> 0.6391471861 | CQ127: =(CJ127/(CE127*CL127))*(1/CM127)*((1/CN127)-1+CK127*CL127)/(CK127*CK127) -> 0.05084612246 | CR127: =1 / ( (1 + CJ127/CE127)^CL127 -1) +1 -> 7.604659274 | CS127: =( CJ127/CE127 ) * CR127 * ( 1/CM127) * ( (1 - 1/CN127) / CK127) -> 0.6897847821 | CT127: =(1-CO127-CP127-CQ127) -> 0.05993907777 | CU127: =(1-CO127-CS127) -> 0.06014760419 | CV127: =(1-(1+CJ127*CD127)/(1+CH127)^CC127) -> 0.2236365845 | CW127: =IF(CB127=1,CT127,IF(CB127=2,CU127,IF(CB127=3,CV127,IF(CB127=5,CT127,"ERROR")))) -> 0.05993907777 | CX127: =IF(CW127<0,0,BZ127*CW127) -> 0 | CY127: =J127 -> 0
B128: 2023 | C128: 2020-06-30 | D128: 68 | E128: 1 | F128: 2023100005 | G128: Sovereign loans | H128: 1 | I128: 261 | K128: 12000 | L128: 3 | M128: 21 | N128: 421 | O128: C01 | P128: text | Q128: 24030 | T128: 00:00:00 | U128: 00:00:00 | V128: Sovereign loans | AN128: 918 | AO128: 0 | AQ128: 0 | BE128: 1 | BF128: 4 | BG128: 3660 | BI128: 2023-08-15 | BJ128: 2025-12-31 | BR128: 1;2;3 | BS128: LMICs | BU128: =IFERROR(IF(M128=60,VLOOKUP(VALUE(TEXT(YEAR($C128),"@")&TEXT($I128,"@")),IncomeGroup!$C$2:$F$50000,4,FALSE),VLOOKUP(VALUE(TEXT(YEAR($C128),"@")&TEXT($I128,"@")),IncomeGroup!$C$2:$F$50000,3,FALSE)),"") -> LMICs | BY128: LMICs | BZ128: =BO128 -> 0 | CA128: =BG128/100000 -> 0.0366 | CB128: =BE128 -> 1 | CC128: =DATEDIF(C128,BJ128,"D")/365.25 -> 5.503080082 | CD128: =DATEDIF(C128,BI128,"D")/365.25 -> 3.123887748 | CE128: 4 | CF128: =CD128-(1/CE128) -> 2.873887748 | CG128: =CC128-CF128 -> 2.629192334 | CH128: =VLOOKUP([3]CRSDATA!M78,'[3]Discount rates gua, rg'!$A:$H,MATCH([3]CRSDATA!BW$4,'[3]Discount rates gua, rg'!$A$1:$H$1,0),FALSE) ->  | CI128: =CA128 -> 0.0366 | CJ128: =CA128 -> 0.0366 | CK128: =((1+CH128)^(1/CE128))-1 ->  | CL128: =CE128*CG128 -> 10.51676934 | CM128: =(1+CH128)^CF128 ->  | CN128: =(1+CH128)^CG128 ->  | CO128: =(CI128*(1-(1/CM128)))/(CE128*CK128) ->  | CP128: =(1/CL128)*(1/CM128)*((1-(1/CN128))/CK128) ->  | CQ128: =(CJ128/(CE128*CL128))*(1/CM128)*((1/CN128)-1+CK128*CL128)/(CK128*CK128) ->  | CR128: =1 / ( (1 + CJ128/CE128)^CL128 -1) +1 -> 10.94739054 | CS128: =( CJ128/CE128 ) * CR128 * ( 1/CM128) * ( (1 - 1/CN128) / CK128) ->  | CT128: =(1-CO128-CP128-CQ128) ->  | CU128: =(1-CO128-CS128) ->  | CV128: =(1-(1+CJ128*CD128)/(1+CH128)^CC128) ->  | CW128: =IF(CB128=1,CT128,IF(CB128=2,CU128,IF(CB128=3,CV128,IF(CB128=5,CT128,"ERROR")))) ->  | CX128: =IF(CW128<0,0,BZ128*CW128) ->  | CY128: =J128 -> 0
B129: 2023 | C129: 2020-06-30 | D129: 68 | E129: 1 | F129: 2023100010 | G129: PSI loans | H129: 1 | I129: 261 | K129: 62000 | L129: 3 | M129: 60 | N129: 421 | O129: C01 | P129: text | Q129: 24030 | T129: 00:00:00 | U129: 00:00:00 | AN129: 918 | AO129: 0 | AQ129: 0 | AR129: 0 | BE129: 1 | BF129: 4 | BG129: 3660 | BI129: 2023-08-15 | BJ129: 2025-12-31 | BQ129: 20 | BU129: =IFERROR(IF(M129=60,VLOOKUP(VALUE(TEXT(YEAR($C129),"@")&TEXT($I129,"@")),IncomeGroup!$C$2:$F$50000,4,FALSE),VLOOKUP(VALUE(TEXT(YEAR($C129),"@")&TEXT($I129,"@")),IncomeGroup!$C$2:$F$50000,3,FALSE)),"") -> LMICs | BV129: 0.075 | BW129: 13.30405685 | BY129: LMICs | BZ129: =BO129 -> 0 | CA129: =BG129/100000 -> 0.0366 | CB129: =BE129 -> 1 | CC129: =DATEDIF(C129,BJ129,"D")/365.25 -> 5.503080082 | CD129: =DATEDIF(C129,BI129,"D")/365.25 -> 3.123887748 | CE129: 4 | CF129: =CD129-(1/CE129) -> 2.873887748 | CG129: =CC129-CF129 -> 2.629192334 | CH129: 0.105 | CI129: =CA129 -> 0.0366 | CJ129: =CA129 -> 0.0366 | CK129: =((1+CH129)^(1/CE129))-1 -> 0.02527547619 | CL129: =CE129*CG129 -> 10.51676934 | CM129: =(1+CH129)^CF129 -> 1.332349979 | CN129: =(1+CH129)^CG129 -> 1.300192837 | CO129: =(CI129*(1-(1/CM129)))/(CE129*CK129) -> 0.09030235661 | CP129: =(1/CL129)*(1/CM129)*((1-(1/CN129))/CK129) -> 0.6519173523 | CQ129: =(CJ129/(CE129*CL129))*(1/CM129)*((1/CN129)-1+CK129*CL129)/(CK129*CK129) -> 0.03570738511 | CR129: =1 / ( (1 + CJ129/CE129)^CL129 -1) +1 -> 10.94739054 | CS129: =( CJ129/CE129 ) * CR129 * ( 1/CM129) * ( (1 - 1/CN129) / CK129) -> 0.6867625352 | CT129: =(1-CO129-CP129-CQ129) -> 0.222072906 | CU129: =(1-CO129-CS129) -> 0.2229351082 | CV129: =(1-(1+CJ129*CD129)/(1+CH129)^CC129) -> 0.3567357632 | CW129: =IF(CB129=1,CT129,IF(CB129=2,CU129,IF(CB129=3,CV129,IF(CB129=5,CT129,"ERROR")))) -> 0.222072906 | CX129: =IF(CW129<0,0,BZ129*CW129) -> 0 | CY129: =J129 -> 0
A130: ; CRSid length should be between 10 and 15 characters; CRSid duplicate (or not reported); For PSI in ODA, fields on additionality (fields 68-70) should be reported; NUMBER OF ISSUES : 3 | B130: 2023 | C130: 2023-05-15 | D130: 68 | E130: 1 | F130: 5 | G130: abc | H130: 1 | I130: 645 | J130: RBGR multilateral | K130: 44001 | L130: 1 | M130: 60 | N130: 4222 | O130: C01 | P130: RBGR multilateral | Q130: 24030 | T130: 00:00:00 | U130: 00:00:00 | V130: RBGR multilateral | W130: 8.4 | Y130: 0 | Z130: 0 | AA130: 0 | AB130: 0 | AC130: 0 | AD130: 0 | AE130: 0 | AJ130: 0 | AK130: 0 | AL130: 0 | AM130: 0 | AN130: 918 | AP130: 15000 | AQ130: 15000 | AR130: 1294.580146 | AS130: 0 | BE130: 1 | BF130: 4 | BG130: 5000 | BI130: 2024-06-18 | BJ130: 2029-08-31 | BQ130: 42 | BR130: 11;13;22 | BT130: text | BU130: Multi
A131: ; CRSid length should be between 10 and 15 characters; For PSI in ODA, fields on additionality (fields 68-70) should be reported; Reported grant equivalent is different compared with macro's automatic calculation based only on reported terms; NUMBER OF ISSUES : 3 | B131: 2023 | C131: 2023-05-15 | D131: 68 | E131: 1 | F131: 2 | G131: abc | H131: 1 | I131: 645 | J131: RBGR private | K131: 62000 | L131: 1 | M131: 60 | N131: 4222 | O131: C01 | P131: RBGR private | Q131: 24030 | T131: 00:00:00 | U131: 00:00:00 | V131: RBGR private | W131: 8.4 | Y131: 0 | Z131: 0 | AA131: 0 | AB131: 0 | AC131: 0 | AD131: 0 | AE131: 0 | AJ131: 0 | AK131: 0 | AL131: 0 | AM131: 0 | AN131: 918 | AP131: 15000 | AQ131: 15000 | AR131: 2274.91055 | AS131: 6562.982426 | BE131: 1 | BF131: 4 | BG131: 5000 | BI131: 2024-06-18 | BJ131: 2029-08-31 | BQ131: 41 | BR131: 11;13;21 | BT131: text | BU131: =IFERROR(IF(M131=60,VLOOKUP(VALUE(TEXT(YEAR($C131),"@")&TEXT($I131,"@")),IncomeGroup!$C$2:$F$50000,4,FALSE),VLOOKUP(VALUE(TEXT(YEAR($C131),"@")&TEXT($I131,"@")),IncomeGroup!$C$2:$F$50000,3,FALSE)),"") -> LMICs | BV131: 0.105 | BW131: 43.75321618 | BY131: LMICs | BZ131: =BO131 -> 0 | CA131: =BG131/100000 -> 0.05 | CB131: =BE131 -> 1 | CC131: =DATEDIF(C131,BJ131,"D")/365.25 -> 6.29705681 | CD131: =DATEDIF(C131,BI131,"D")/365.25 -> 1.095140315 | CE131: 4 | CF131: =CD131-(1/CE131) -> 0.8451403149 | CG131: =CC131-CF131 -> 5.451916496 | CH131: =VLOOKUP([3]CRSDATA!M24,'[3]Discount rates gua, rg'!$A:$H,MATCH([3]CRSDATA!BW$4,'[3]Discount rates gua, rg'!$A$1:$H$1,0),FALSE) -> 0.035 | CI131: =CA131 -> 0.05 | CJ131: =CA131 -> 0.05 | CK131: =((1+CH131)^(1/CE131))-1 -> 0.008637445998 | CL131: =CE131*CG131 -> 21.80766598 | CM131: =(1+CH131)^CF131 -> 1.029500808 | CN131: =(1+CH131)^CG131 -> 1.206295033 | CO131: =(CI131*(1-(1/CM131)))/(CE131*CK131) -> 0.04146979526 | CP131: =(1/CL131)*(1/CM131)*((1-(1/CN131))/CK131) -> 0.8818891668 | CQ131: =(CJ131/(CE131*CL131))*(1/CM131)*((1/CN131)-1+CK131*CL131)/(CK131*CK131) -> 0.1294586732 | CR131: =1 / ( (1 + CJ131/CE131)^CL131 -1) +1 -> 4.213862959 | CS131: =( CJ131/CE131 ) * CR131 * ( 1/CM131) * ( (1 - 1/CN131) / CK131) -> 1.013009726 | CT131: =(1-CO131-CP131-CQ131) -> -0.05281763519 | CU131: =(1-CO131-CS131) -> -0.05447952108 | CV131: =(1-(1+CJ131*CD131)/(1+CH131)^CC131) -> 0.1506783567 | CW131: =IF(CB131=1,CT131,IF(CB131=2,CU131,IF(CB131=3,CV131,IF(CB131=5,CT131,"ERROR")))) -> -0.05281763519 | CX131: =IF(CW131<0,0,BZ131*CW131) -> 0 | CY131: =J131 -> RBGR private
A132: ; CRSid length should be between 10 and 15 characters; For PSI in ODA, fields on additionality (fields 68-70) should be reported; Reported grant equivalent is different compared with macro's automatic calculation based only on reported terms; NUMBER OF ISSUES : 3 | B132: 2023 | C132: 2023-05-15 | D132: 68 | E132: 1 | F132: 3 | G132: abc | H132: 1 | I132: 645 | J132: RBGR private | K132: 62000 | L132: 1 | M132: 60 | N132: 4222 | O132: C01 | P132: RBGR private | Q132: 24030 | T132: 00:00:00 | U132: 00:00:00 | V132: RBGR private | W132: 8.4 | Y132: 0 | Z132: 0 | AA132: 0 | AB132: 0 | AC132: 0 | AD132: 0 | AE132: 0 | AJ132: 0 | AK132: 0 | AL132: 0 | AM132: 0 | AN132: 918 | AP132: 15000 | AQ132: 15000 | AR132: -2176.803256 | AS132: 5686.978006 | BE132: 1 | BF132: 4 | BG132: 15000 | BI132: 2024-06-18 | BJ132: 2029-08-31 | BQ132: 21 | BR132: 11;13;21 | BT132: text | BU132: =IFERROR(IF(M132=60,VLOOKUP(VALUE(TEXT(YEAR($C132),"@")&TEXT($I132,"@")),IncomeGroup!$C$2:$F$50000,4,FALSE),VLOOKUP(VALUE(TEXT(YEAR($C132),"@")&TEXT($I132,"@")),IncomeGroup!$C$2:$F$50000,3,FALSE)),"") -> LMICs | BV132: 0.105 | BW132: 37.91318671 | BY132: LMICs | BZ132: =BO132 -> 0 | CA132: =BG132/100000 -> 0.15 | CB132: =BE132 -> 1 | CC132: =DATEDIF(C132,BJ132,"D")/365.25 -> 6.29705681 | CD132: =DATEDIF(C132,BI132,"D")/365.25 -> 1.095140315 | CE132: 4 | CF132: =CD132-(1/CE132) -> 0.8451403149 | CG132: =CC132-CF132 -> 5.451916496 | CH132: =VLOOKUP([3]CRSDATA!M60,'[3]Discount rates gua, rg'!$A:$H,MATCH([3]CRSDATA!BW$4,'[3]Discount rates gua, rg'!$A$1:$H$1,0),FALSE) ->  | CI132: =CA132 -> 0.15 | CJ132: =CA132 -> 0.15 | CK132: =((1+CH132)^(1/CE132))-1 ->  | CL132: =CE132*CG132 -> 21.80766598 | CM132: =(1+CH132)^CF132 ->  | CN132: =(1+CH132)^CG132 ->  | CO132: =(CI132*(1-(1/CM132)))/(CE132*CK132) ->  | CP132: =(1/CL132)*(1/CM132)*((1-(1/CN132))/CK132) ->  | CQ132: =(CJ132/(CE132*CL132))*(1/CM132)*((1/CN132)-1+CK132*CL132)/(CK132*CK132) ->  | CR132: =1 / ( (1 + CJ132/CE132)^CL132 -1) +1 -> 1.811793045 | CS132: =( CJ132/CE132 ) * CR132 * ( 1/CM132) * ( (1 - 1/CN132) / CK132) ->  | CT132: =(1-CO132-CP132-CQ132) ->  | CU132: =(1-CO132-CS132) ->  | CV132: =(1-(1+CJ132*CD132)/(1+CH132)^CC132) ->  | CW132: =IF(CB132=1,CT132,IF(CB132=2,CU132,IF(CB132=3,CV132,IF(CB132=5,CT132,"ERROR")))) ->  | CX132: =IF(CW132<0,0,BZ132*CW132) ->  | CY132: =J132 -> RBGR private
A133: ; CRSid length should be between 10 and 15 characters; For PSI in ODA, fields on additionality (fields 68-70) should be reported; Reported grant equivalent is different compared with macro's automatic calculation based only on reported terms; NUMBER OF ISSUES : 3 | B133: 2023 | C133: 2023-05-15 | D133: 68 | E133: 1 | F133: 4 | G133: abc | H133: 1 | I133: 645 | J133: RBGR public | K133: 12000 | L133: 1 | M133: 60 | N133: 4222 | O133: C01 | P133: RBGR public | Q133: 24030 | T133: 00:00:00 | U133: 00:00:00 | V133: RBGR public | W133: 8.4 | Y133: 0 | Z133: 0 | AA133: 0 | AB133: 0 | AC133: 0 | AD133: 0 | AE133: 0 | AJ133: 0 | AK133: 0 | AL133: 0 | AM133: 0 | AN133: 918 | AP133: 15000 | AQ133: 15000 | AR133: 2274.91055 | AS133: 6562.982426 | BE133: 1 | BF133: 4 | BG133: 5000 | BI133: 2024-06-18 | BJ133: 2029-08-31 | BQ133: 41 | BR133: 11;13;21 | BT133: text | BU133: =IFERROR(IF(M133=60,VLOOKUP(VALUE(TEXT(YEAR($C133),"@")&TEXT($I133,"@")),IncomeGroup!$C$2:$F$50000,4,FALSE),VLOOKUP(VALUE(TEXT(YEAR($C133),"@")&TEXT($I133,"@")),IncomeGroup!$C$2:$F$50000,3,FALSE)),"") -> LMICs | BV133: 0.105 | BW133: 43.75321618 | BY133: LMICs | BZ133: =AQ133 -> 15000 | CA133: =BG133/100000 -> 0.05 | CB133: =BE133 -> 1 | CC133: =DATEDIF(C133,BJ133,"D")/365.25 -> 6.29705681 | CD133: =DATEDIF(C133,BI133,"D")/365.25 -> 1.095140315 | CE133: 4 | CF133: =CD133-(1/CE133) -> 0.8451403149 | CG133: =CC133-CF133 -> 5.451916496 | CH133: =VLOOKUP([3]CRSDATA!M66,'[3]Discount rates gua, rg'!$A:$H,MATCH([3]CRSDATA!BW$4,'[3]Discount rates gua, rg'!$A$1:$H$1,0),FALSE) ->  | CI133: =CA133 -> 0.05 | CJ133: =CA133 -> 0.05 | CK133: =((1+CH133)^(1/CE133))-1 ->  | CL133: =CE133*CG133 -> 21.80766598 | CM133: =(1+CH133)^CF133 ->  | CN133: =(1+CH133)^CG133 ->  | CO133: =(CI133*(1-(1/CM133)))/(CE133*CK133) ->  | CP133: =(1/CL133)*(1/CM133)*((1-(1/CN133))/CK133) ->  | CQ133: =(CJ133/(CE133*CL133))*(1/CM133)*((1/CN133)-1+CK133*CL133)/(CK133*CK133) ->  | CR133: =1 / ( (1 + CJ133/CE133)^CL133 -1) +1 -> 4.213862959 | CS133: =( CJ133/CE133 ) * CR133 * ( 1/CM133) * ( (1 - 1/CN133) / CK133) ->  | CT133: =(1-CO133-CP133-CQ133) ->  | CU133: =(1-CO133-CS133) ->  | CV133: =(1-(1+CJ133*CD133)/(1+CH133)^CC133) ->  | CW133: =IF(CB133=1,CT133,IF(CB133=2,CU133,IF(CB133=3,CV133,IF(CB133=5,CT133,"ERROR")))) ->  | CX133: =IF(CW133<0,0,BZ133*CW133) ->  | CY133: =J133 -> RBGR public
A134: ; For PSI in ODA, fields on additionality (fields 68-70) should be reported; Reported grant equivalent is different compared with macro's automatic calculation based only on reported terms; NUMBER OF ISSUES : 2 | B134: 2023 | C134: 2023-05-15 | D134: 68 | E134: 1 | F134: 2023000033 | G134: Reflow-based reimbursable grants | H134: 1 | I134: 645 | J134: RBGR private | K134: 62000 | L134: 1 | M134: 60 | N134: 4222 | O134: C01 | P134: RBGR private | Q134: 24030 | T134: 00:00:00 | U134: 00:00:00 | V134: RBGR private | W134: 8.4 | Y134: 0 | Z134: 0 | AA134: 0 | AB134: 0 | AC134: 0 | AD134: 0 | AE134: 0 | AJ134: 0 | AK134: 0 | AL134: 0 | AM134: 0 | AN134: 918 | AP134: 15000 | AQ134: 15000 | AR134: 2274.91055 | AS134: 6562.982426 | BE134: 1 | BF134: 4 | BG134: 5000 | BI134: 2024-06-18 | BJ134: 2029-08-31 | BQ134: 41 | BR134: 11;13;21 | BT134: text | BU134: =IFERROR(IF(M134=60,VLOOKUP(VALUE(TEXT(YEAR($C134),"@")&TEXT($I134,"@")),IncomeGroup!$C$2:$F$50000,4,FALSE),VLOOKUP(VALUE(TEXT(YEAR($C134),"@")&TEXT($I134,"@")),IncomeGroup!$C$2:$F$50000,3,FALSE)),"") -> LMICs | BV134: 0.105 | BW134: 43.75321618 | BY134: LMICs | BZ134: =BO134 -> 0 | CA134: =BG134/100000 -> 0.05 | CB134: =BE134 -> 1 | CC134: =DATEDIF(C134,BJ134,"D")/365.25 -> 6.29705681 | CD134: =DATEDIF(C134,BI134,"D")/365.25 -> 1.095140315 | CE134: 4 | CF134: =CD134-(1/CE134) -> 0.8451403149 | CG134: =CC134-CF134 -> 5.451916496 | CH134: =VLOOKUP([3]CRSDATA!M51,'[3]Discount rates gua, rg'!$A:$H,MATCH([3]CRSDATA!BW$4,'[3]Discount rates gua, rg'!$A$1:$H$1,0),FALSE) ->  | CI134: =CA134 -> 0.05 | CJ134: =CA134 -> 0.05 | CK134: =((1+CH134)^(1/CE134))-1 ->  | CL134: =CE134*CG134 -> 21.80766598 | CM134: =(1+CH134)^CF134 ->  | CN134: =(1+CH134)^CG134 ->  | CO134: =(CI134*(1-(1/CM134)))/(CE134*CK134) ->  | CP134: =(1/CL134)*(1/CM134)*((1-(1/CN134))/CK134) ->  | CQ134: =(CJ134/(CE134*CL134))*(1/CM134)*((1/CN134)-1+CK134*CL134)/(CK134*CK134) ->  | CR134: =1 / ( (1 + CJ134/CE134)^CL134 -1) +1 -> 4.213862959 | CS134: =( CJ134/CE134 ) * CR134 * ( 1/CM134) * ( (1 - 1/CN134) / CK134) ->  | CT134: =(1-CO134-CP134-CQ134) ->  | CU134: =(1-CO134-CS134) ->  | CV134: =(1-(1+CJ134*CD134)/(1+CH134)^CC134) ->  | CW134: =IF(CB134=1,CT134,IF(CB134=2,CU134,IF(CB134=3,CV134,IF(CB134=5,CT134,"ERROR")))) ->  | CX134: =IF(CW134<0,0,BZ134*CW134) ->  | CY134: =J134 -> RBGR private
A135: ; For PSI in ODA, fields on additionality (fields 68-70) should be reported; Reported grant equivalent is different compared with macro's automatic calculation based only on reported terms; NUMBER OF ISSUES : 2 | B135: 2023 | C135: 2023-05-15 | D135: 68 | E135: 1 | F135: 2023000034 | G135: Reflow-based reimbursable grants | H135: 1 | I135: 645 | J135: RBGR private | K135: 62000 | L135: 1 | M135: 60 | N135: 4222 | O135: C01 | P135: RBGR private | Q135: 24030 | T135: 00:00:00 | U135: 00:00:00 | V135: RBGR private | W135: 8.4 | Y135: 0 | Z135: 0 | AA135: 0 | AB135: 0 | AC135: 0 | AD135: 0 | AE135: 0 | AJ135: 0 | AK135: 0 | AL135: 0 | AM135: 0 | AN135: 918 | AP135: 15000 | AQ135: 15000 | AR135: -2176.803256 | AS135: 5686.978006 | BE135: 1 | BF135: 4 | BG135: 15000 | BI135: 2024-06-18 | BJ135: 2029-08-31 | BQ135: 21 | BR135: 11;13;21 | BT135: text | BU135: =IFERROR(IF(M135=60,VLOOKUP(VALUE(TEXT(YEAR($C135),"@")&TEXT($I135,"@")),IncomeGroup!$C$2:$F$50000,4,FALSE),VLOOKUP(VALUE(TEXT(YEAR($C135),"@")&TEXT($I135,"@")),IncomeGroup!$C$2:$F$50000,3,FALSE)),"") -> LMICs | BV135: 0.105 | BW135: 37.91318671
A136: ; For PSI in ODA, fields on additionality (fields 68-70) should be reported; Reported grant equivalent is different compared with macro's automatic calculation based only on reported terms; NUMBER OF ISSUES : 2 | B136: 2023 | C136: 2023-05-15 | D136: 68 | E136: 1 | F136: 2023000035 | G136: Reflow-based reimbursable grants | H136: 1 | I136: 645 | J136: RBGR public | K136: 12000 | L136: 1 | M136: 60 | N136: 4222 | O136: C01 | P136: RBGR public | Q136: 24030 | T136: 00:00:00 | U136: 00:00:00 | V136: RBGR public | W136: 8.4 | Y136: 0 | Z136: 0 | AA136: 0 | AB136: 0 | AC136: 0 | AD136: 0 | AE136: 0 | AJ136: 0 | AK136: 0 | AL136: 0 | AM136: 0 | AN136: 918 | AP136: 15000 | AQ136: 15000 | AR136: 2274.91055 | AS136: 6562.982426 | BE136: 1 | BF136: 4 | BG136: 5000 | BI136: 2024-06-18 | BJ136: 2029-08-31 | BQ136: 41 | BR136: 11;13;21 | BT136: text | BU136: =IFERROR(IF(M136=60,VLOOKUP(VALUE(TEXT(YEAR($C136),"@")&TEXT($I136,"@")),IncomeGroup!$C$2:$F$50000,4,FALSE),VLOOKUP(VALUE(TEXT(YEAR($C136),"@")&TEXT($I136,"@")),IncomeGroup!$C$2:$F$50000,3,FALSE)),"") -> LMICs | BV136: 0.105 | BW136: 43.75321618
A137: ; For PSI in ODA, fields on additionality (fields 68-70) should be reported; Reported grant equivalent is different compared with macro's automatic calculation based only on reported terms; NUMBER OF ISSUES : 2 | B137: 2023 | C137: 2023-10-12 | D137: 68 | E137: 1 | F137: 2023100036 | G137: Reflow-based reimbursable grants | H137: 1 | I137: 229 | K137: 12000 | L137: 1 | M137: 60 | N137: 4222 | O137: C01 | P137: text | Q137: 24030 | T137: 00:00:00 | U137: 00:00:00 | V137: RBGR public | AN137: 918 | AO137: 10000 | AQ137: 10000 | AR137: 2059.060535 | AS137: 57901.23273 | BG137: 8765 | BJ137: 2030-12-31 | BQ137: 21 | BS137: LMICs | BU137: =IFERROR(IF(M137=60,VLOOKUP(VALUE(TEXT(YEAR($C137),"@")&TEXT($I137,"@")),IncomeGroup!$C$2:$F$50000,4,FALSE),VLOOKUP(VALUE(TEXT(YEAR($C137),"@")&TEXT($I137,"@")),IncomeGroup!$C$2:$F$50000,3,FALSE)),"") -> LMICs | BV137: 0.105 | BW137: 579.0123273 | BY137: LMICs | BZ137: =BO137 -> 0 | CA137: =BG137/100000 -> 0.08765 | CB137: =BE137 -> 0 | CC137: =DATEDIF(C137,BJ137,"D")/365.25 -> 7.219712526 | CD137: =DATEDIF(C137,BI137,"D")/365.25 ->  | CE137: 4 | CF137: =CD137-(1/CE137) ->  | CG137: =CC137-CF137 ->  | CH137: 0.105 | CI137: =CA137 -> 0.08765 | CJ137: =CA137 -> 0.08765 | CK137: =((1+CH137)^(1/CE137))-1 -> 0.02527547619 | CL137: =CE137*CG137 ->  | CM137: =(1+CH137)^CF137 ->  | CN137: =(1+CH137)^CG137 ->  | CO137: =(CI137*(1-(1/CM137)))/(CE137*CK137) ->  | CP137: =(1/CL137)*(1/CM137)*((1-(1/CN137))/CK137) ->  | CQ137: =(CJ137/(CE137*CL137))*(1/CM137)*((1/CN137)-1+CK137*CL137)/(CK137*CK137) ->  | CR137: =1 / ( (1 + CJ137/CE137)^CL137 -1) +1 ->  | CS137: =( CJ137/CE137 ) * CR137 * ( 1/CM137) * ( (1 - 1/CN137) / CK137) ->  | CT137: =(1-CO137-CP137-CQ137) ->  | CU137: =(1-CO137-CS137) ->  | CV137: =(1-(1+CJ137*CD137)/(1+CH137)^CC137) ->  | CW137: =IF(CB137=1,CT137,IF(CB137=2,CU137,IF(CB137=3,CV137,IF(CB137=5,CT137,"ERROR")))) -> ERROR | CX137: =IF(CW137<0,0,BZ137*CW137) ->  | CY137: =J137 -> 0
A138: ; For PSI in ODA, fields on additionality (fields 68-70) should be reported; Reported grant equivalent is different compared with macro's automatic calculation based only on reported terms; NUMBER OF ISSUES : 2 | B138: 2023 | C138: 2018-12-14 | D138: 68 | E138: 1 | F138: 2023100037 | G138: Reflow-based reimbursable grants | H138: 1 | I138: 63 | K138: 61000 | L138: 3 | M138: 60 | N138: 4222 | O138: C01 | P138: text | Q138: 24030 | T138: 00:00:00 | U138: 00:00:00 | AN138: 918 | AO138: 0 | AQ138: 10000 | AR138: 1486.36489 | AS138: 56590.29942 | BG138: 7894 | BJ138: 2025-09-15 | BQ138: 21 | BS138: UMICs | BU138: =IFERROR(IF(M138=60,VLOOKUP(VALUE(TEXT(YEAR($C138),"@")&TEXT($I138,"@")),IncomeGroup!$C$2:$F$50000,4,FALSE),VLOOKUP(VALUE(TEXT(YEAR($C138),"@")&TEXT($I138,"@")),IncomeGroup!$C$2:$F$50000,3,FALSE)),"") -> UMICs | BV138: 0.091 | BW138: 565.9029942 | BY138: LMICs | BZ138: =BO138 -> 0 | CA138: =BG138/100000 -> 0.07894 | CB138: =BE138 -> 0 | CC138: =DATEDIF(C138,BJ138,"D")/365.25 -> 6.754277892 | CD138: =DATEDIF(C138,BI138,"D")/365.25 ->  | CE138: 4 | CF138: =CD138-(1/CE138) ->  | CG138: =CC138-CF138 ->  | CH138: 0.105 | CI138: =CA138 -> 0.07894 | CJ138: =CA138 -> 0.07894 | CK138: =((1+CH138)^(1/CE138))-1 -> 0.02527547619 | CL138: =CE138*CG138 ->  | CM138: =(1+CH138)^CF138 ->  | CN138: =(1+CH138)^CG138 ->  | CO138: =(CI138*(1-(1/CM138)))/(CE138*CK138) ->  | CP138: =(1/CL138)*(1/CM138)*((1-(1/CN138))/CK138) ->  | CQ138: =(CJ138/(CE138*CL138))*(1/CM138)*((1/CN138)-1+CK138*CL138)/(CK138*CK138) ->  | CR138: =1 / ( (1 + CJ138/CE138)^CL138 -1) +1 ->  | CS138: =( CJ138/CE138 ) * CR138 * ( 1/CM138) * ( (1 - 1/CN138) / CK138) ->  | CT138: =(1-CO138-CP138-CQ138) ->  | CU138: =(1-CO138-CS138) ->  | CV138: =(1-(1+CJ138*CD138)/(1+CH138)^CC138) ->  | CW138: =IF(CB138=1,CT138,IF(CB138=2,CU138,IF(CB138=3,CV138,IF(CB138=5,CT138,"ERROR")))) -> ERROR | CX138: =IF(CW138<0,0,BZ138*CW138) ->  | CY138: =J138 -> 0
B139: 2023 | C139: 2018-12-14 | D139: 68 | E139: 1 | F139: 2023100022 | G139: Subordinated loans | H139: 1 | I139: 63 | K139: 61000 | L139: 3 | M139: 60 | N139: 431 | O139: C01 | P139: text | Q139: 24030 | T139: 00:00:00 | U139: 00:00:00 | AN139: 918 | AO139: 0 | AQ139: 10000 | AR139: 1284.561888 | AS139: 1284.561888 | BE139: 1 | BF139: 1 | BG139: 4760 | BI139: 2023-09-30 | BJ139: 2025-09-15 | BQ139: 20 | BR139: 11 | BS139: UMICs | BT139: text | BU139: =IFERROR(IF(M139=60,VLOOKUP(VALUE(TEXT(YEAR($C139),"@")&TEXT($I139,"@")),IncomeGroup!$C$2:$F$50000,4,FALSE),VLOOKUP(VALUE(TEXT(YEAR($C139),"@")&TEXT($I139,"@")),IncomeGroup!$C$2:$F$50000,3,FALSE)),"") -> UMICs | BV139: 0.076 | BW139: 12.84561888 | BY139: LMICs | BZ139: =BO139 -> 0 | CA139: =BG139/100000 -> 0.0476 | CB139: =BE139 -> 1 | CC139: =DATEDIF(C139,BJ139,"D")/365.25 -> 6.754277892 | CD139: =DATEDIF(C139,BI139,"D")/365.25 -> 4.793976728 | CE139: 4 | CF139: =CD139-(1/CE139) -> 4.543976728 | CG139: =CC139-CF139 -> 2.210301164 | CH139: =VLOOKUP([3]CRSDATA!M77,'[3]Discount rates gua, rg'!$A:$H,MATCH([3]CRSDATA!BW$4,'[3]Discount rates gua, rg'!$A$1:$H$1,0),FALSE) ->  | CI139: =CA139 -> 0.0476 | CJ139: =CA139 -> 0.0476 | CK139: =((1+CH139)^(1/CE139))-1 ->  | CL139: =CE139*CG139 -> 8.841204654 | CM139: =(1+CH139)^CF139 ->  | CN139: =(1+CH139)^CG139 ->  | CO139: =(CI139*(1-(1/CM139)))/(CE139*CK139) ->  | CP139: =(1/CL139)*(1/CM139)*((1-(1/CN139))/CK139) ->  | CQ139: =(CJ139/(CE139*CL139))*(1/CM139)*((1/CN139)-1+CK139*CL139)/(CK139*CK139) ->  | CR139: =1 / ( (1 + CJ139/CE139)^CL139 -1) +1 -> 10.06992569 | CS139: =( CJ139/CE139 ) * CR139 * ( 1/CM139) * ( (1 - 1/CN139) / CK139) ->  | CT139: =(1-CO139-CP139-CQ139) ->  | CU139: =(1-CO139-CS139) ->  | CV139: =(1-(1+CJ139*CD139)/(1+CH139)^CC139) ->  | CW139: =IF(CB139=1,CT139,IF(CB139=2,CU139,IF(CB139=3,CV139,IF(CB139=5,CT139,"ERROR")))) ->  | CX139: =IF(CW139<0,0,BZ139*CW139) ->  | CY139: =J139 -> 0
B140: 2023 | C140: 2019-10-28 | D140: 68 | E140: 1 | F140: 2023100023 | G140: Subordinated loans | H140: 1 | I140: 660 | K140: 63000 | L140: 3 | M140: 60 | N140: 431 | O140: C01 | P140: text | Q140: 24030 | T140: 00:00:00 | U140: 00:00:00 | AN140: 918 | AO140: 0 | AQ140: 10000 | AR140: 2899.458744 | AS140: 2899.458744 | BE140: 1 | BF140: 1 | BG140: 5293 | BI140: 2025-09-25 | BJ140: 2028-03-01 | BQ140: 20 | BR140: 11 | BS140: LDCs | BT140: text | BU140: =IFERROR(IF(M140=60,VLOOKUP(VALUE(TEXT(YEAR($C140),"@")&TEXT($I140,"@")),IncomeGroup!$C$2:$F$50000,4,FALSE),VLOOKUP(VALUE(TEXT(YEAR($C140),"@")&TEXT($I140,"@")),IncomeGroup!$C$2:$F$50000,3,FALSE)),"") -> LDCs | BV140: 0.115 | BW140: 28.99458744 | BY140: LMICs | BZ140: =BO140 -> 0 | CA140: =BG140/100000 -> 0.05293 | CB140: =BE140 -> 1 | CC140: =DATEDIF(C140,BJ140,"D")/365.25 -> 8.342231348 | CD140: =DATEDIF(C140,BI140,"D")/365.25 -> 5.911019849 | CE140: 4 | CF140: =CD140-(1/CE140) -> 5.661019849 | CG140: =CC140-CF140 -> 2.681211499 | CH140: =VLOOKUP([3]CRSDATA!M56,'[3]Discount rates gua, rg'!$A:$H,MATCH([3]CRSDATA!BW$4,'[3]Discount rates gua, rg'!$A$1:$H$1,0),FALSE) ->  | CI140: =CA140 -> 0.05293 | CJ140: =CA140 -> 0.05293 | CK140: =((1+CH140)^(1/CE140))-1 ->  | CL140: =CE140*CG140 -> 10.724846 | CM140: =(1+CH140)^CF140 ->  | CN140: =(1+CH140)^CG140 ->  | CO140: =(CI140*(1-(1/CM140)))/(CE140*CK140) ->  | CP140: =(1/CL140)*(1/CM140)*((1-(1/CN140))/CK140) ->  | CQ140: =(CJ140/(CE140*CL140))*(1/CM140)*((1/CN140)-1+CK140*CL140)/(CK140*CK140) ->  | CR140: =1 / ( (1 + CJ140/CE140)^CL140 -1) +1 -> 7.604659274 | CS140: =( CJ140/CE140 ) * CR140 * ( 1/CM140) * ( (1 - 1/CN140) / CK140) ->  | CT140: =(1-CO140-CP140-CQ140) ->  | CU140: =(1-CO140-CS140) ->  | CV140: =(1-(1+CJ140*CD140)/(1+CH140)^CC140) ->  | CW140: =IF(CB140=1,CT140,IF(CB140=2,CU140,IF(CB140=3,CV140,IF(CB140=5,CT140,"ERROR")))) ->  | CX140: =IF(CW140<0,0,BZ140*CW140) ->  | CY140: =J140 -> 0
B141: 2023 | C141: 2019-12-04 | D141: 68 | E141: 1 | F141: 2023100024 | G141: Subordinated loans | H141: 1 | I141: 366 | K141: 60000 | L141: 3 | M141: 60 | N141: 431 | O141: C01 | P141: text | Q141: 24030 | T141: 00:00:00 | U141: 00:00:00 | AN141: 918 | AO141: 0 | AQ141: 10000 | AR141: 1965.455181 | AS141: 1965.455181 | BE141: 1 | BF141: 1 | BG141: 3200 | BI141: 2021-07-15 | BJ141: 2030-03-13 | BQ141: 20 | BR141: 11 | BS141: UMICs | BT141: text | BU141: =IFERROR(IF(M141=60,VLOOKUP(VALUE(TEXT(YEAR($C141),"@")&TEXT($I141,"@")),IncomeGroup!$C$2:$F$50000,4,FALSE),VLOOKUP(VALUE(TEXT(YEAR($C141),"@")&TEXT($I141,"@")),IncomeGroup!$C$2:$F$50000,3,FALSE)),"") -> UMICs | BV141: 0.076 | BW141: 19.65455181 | BY141: LMICs | BZ141: =BO141 -> 0 | CA141: =BG141/100000 -> 0.032 | CB141: =BE141 -> 1 | CC141: =DATEDIF(C141,BJ141,"D")/365.25 -> 10.27241615 | CD141: =DATEDIF(C141,BI141,"D")/365.25 -> 1.612594114 | CE141: 4 | CF141: =CD141-(1/CE141) -> 1.362594114 | CG141: =CC141-CF141 -> 8.90982204 | CH141: 0.105 | CI141: =CA141 -> 0.032 | CJ141: =CA141 -> 0.032 | CK141: =((1+CH141)^(1/CE141))-1 -> 0.02527547619 | CL141: =CE141*CG141 -> 35.63928816 | CM141: =(1+CH141)^CF141 -> 1.14573765 | CN141: =(1+CH141)^CG141 -> 2.434165935 | CO141: =(CI141*(1-(1/CM141)))/(CE141*CK141) -> 0.04026031969 | CP141: =(1/CL141)*(1/CM141)*((1-(1/CN141))/CK141) -> 0.5708679615 | CQ141: =(CJ141/(CE141*CL141))*(1/CM141)*((1/CN141)-1+CK141*CL141)/(CK141*CK141) -> 0.09556526406 | CR141: =1 / ( (1 + CJ141/CE141)^CL141 -1) +1 -> 4.045009301 | CS141: =( CJ141/CE141 ) * CR141 * ( 1/CM141) * ( (1 - 1/CN141) / CK141) -> 0.6583763208 | CT141: =(1-CO141-CP141-CQ141) -> 0.2933064548 | CU141: =(1-CO141-CS141) -> 0.3013633595 | CV141: =(1-(1+CJ141*CD141)/(1+CH141)^CC141) -> 0.6229347969 | CW141: =IF(CB141=1,CT141,IF(CB141=2,CU141,IF(CB141=3,CV141,IF(CB141=5,CT141,"ERROR")))) -> 0.2933064548 | CX141: =IF(CW141<0,0,BZ141*CW141) -> 0 | CY141: =J141 -> 0
B142: 2023 | C142: 2020-06-30 | D142: 68 | E142: 1 | F142: 2023100025 | G142: Subordinated loans | H142: 1 | I142: 261 | K142: 62000 | L142: 3 | M142: 60 | N142: 431 | O142: C01 | P142: text | Q142: 24030 | T142: 00:00:00 | U142: 00:00:00 | AN142: 918 | AO142: 0 | AQ142: 0 | AR142: 0 | BE142: 1 | BF142: 4 | BG142: 3660 | BI142: 2023-08-15 | BJ142: 2025-12-31 | BQ142: 20 | BR142: 11 | BS142: LMICs | BT142: text | BU142: =IFERROR(IF(M142=60,VLOOKUP(VALUE(TEXT(YEAR($C142),"@")&TEXT($I142,"@")),IncomeGroup!$C$2:$F$50000,4,FALSE),VLOOKUP(VALUE(TEXT(YEAR($C142),"@")&TEXT($I142,"@")),IncomeGroup!$C$2:$F$50000,3,FALSE)),"") -> LMICs | BV142: 0.09 | BW142: 17.91718392
B143: 2023 | C143: 2018-12-14 | D143: 68 | E143: 1 | F143: 2023100032 | G143: Loan-type reimbursable grants | H143: 1 | I143: 63 | K143: 61000 | L143: 3 | M143: 60 | N143: 4221 | O143: C01 | P143: text | Q143: 24030 | T143: 00:00:00 | U143: 00:00:00 | V143: LTGR private | AN143: 918 | AO143: 0 | AQ143: 10000 | AR143: 634.352854 | AS143: 634.352854 | BE143: 1 | BF143: 1 | BG143: 4760 | BI143: 2023-09-30 | BJ143: 2025-09-15 | BQ143: 20 | BR143: 11;13;29 | BS143: UMICs | BT143: text | BU143: =IFERROR(IF(M143=60,VLOOKUP(VALUE(TEXT(YEAR($C143),"@")&TEXT($I143,"@")),IncomeGroup!$C$2:$F$50000,4,FALSE),VLOOKUP(VALUE(TEXT(YEAR($C143),"@")&TEXT($I143,"@")),IncomeGroup!$C$2:$F$50000,3,FALSE)),"") -> UMICs | BV143: 0.061 | BW143: 6.34352854 | BY143: LMICs | BZ143: =BO143 -> 0 | CA143: =BG143/100000 -> 0.0476 | CB143: =BE143 -> 1 | CC143: =DATEDIF(C143,BJ143,"D")/365.25 -> 6.754277892 | CD143: =DATEDIF(C143,BI143,"D")/365.25 -> 4.793976728 | CE143: 4 | CF143: =CD143-(1/CE143) -> 4.543976728 | CG143: =CC143-CF143 -> 2.210301164 | CH143: =VLOOKUP([3]CRSDATA!M2,'[3]Discount rates gua, rg'!$A:$H,MATCH([3]CRSDATA!BW$4,'[3]Discount rates gua, rg'!$A$1:$H$1,0),FALSE) ->  | CI143: =CA143 -> 0.0476 | CJ143: =CA143 -> 0.0476 | CK143: =((1+CH143)^(1/CE143))-1 ->  | CL143: =CE143*CG143 -> 8.841204654 | CM143: =(1+CH143)^CF143 ->  | CN143: =(1+CH143)^CG143 ->  | CO143: =(CI143*(1-(1/CM143)))/(CE143*CK143) ->  | CP143: =(1/CL143)*(1/CM143)*((1-(1/CN143))/CK143) ->  | CQ143: =(CJ143/(CE143*CL143))*(1/CM143)*((1/CN143)-1+CK143*CL143)/(CK143*CK143) ->  | CR143: =1 / ( (1 + CJ143/CE143)^CL143 -1) +1 -> 10.06992569 | CS143: =( CJ143/CE143 ) * CR143 * ( 1/CM143) * ( (1 - 1/CN143) / CK143) ->  | CT143: =(1-CO143-CP143-CQ143) ->  | CU143: =(1-CO143-CS143) ->  | CV143: =(1-(1+CJ143*CD143)/(1+CH143)^CC143) ->  | CW143: =IF(CB143=1,CT143,IF(CB143=2,CU143,IF(CB143=3,CV143,IF(CB143=5,CT143,"ERROR")))) ->  | CX143: =IF(CW143<0,0,BZ143*CW143) ->  | CY143: =J143 -> 0
B144: 2023 | C144: 2019-10-28 | D144: 68 | E144: 1 | F144: 2023100033 | G144: Loan-type reimbursable grants | H144: 1 | I144: 660 | K144: 63000 | L144: 3 | M144: 60 | N144: 4221 | O144: C01 | P144: text | Q144: 24030 | T144: 00:00:00 | U144: 00:00:00 | V144: LTGR private | AN144: 918 | AO144: 0 | AQ144: 10000 | AR144: 2310.799079 | AS144: 2310.799079 | BE144: 1 | BF144: 1 | BG144: 5293 | BI144: 2025-09-25 | BJ144: 2028-03-01 | BQ144: 20 | BR144: 11;13;30 | BS144: LDCs | BT144: text | BU144: =IFERROR(IF(M144=60,VLOOKUP(VALUE(TEXT(YEAR($C144),"@")&TEXT($I144,"@")),IncomeGroup!$C$2:$F$50000,4,FALSE),VLOOKUP(VALUE(TEXT(YEAR($C144),"@")&TEXT($I144,"@")),IncomeGroup!$C$2:$F$50000,3,FALSE)),"") -> LDCs | BV144: 0.1 | BW144: 23.10799079 | BY144: LMICs | BZ144: =BO144 -> 0 | CA144: 0.05293 | CB144: 1 | CC144: 8.342231348 | CD144: 5.911019849 | CE144: 4 | CF144: 5.661019849 | CG144: 2.681211499 | CH144: 0.105 | CI144: 0.05293 | CJ144: 0.05293 | CK144: 0.02527547619 | CL144: 10.724846 | CM144: 1.759846208 | CN144: 1.306963438 | CO144: 0.2260442894 | CP144: 0.4923320223 | CQ144: 0.03973572853 | CR144: 7.604659274 | CS144: 0.5313379205 | CT144: 0.2418879598 | CU144: 0.2426177901 | CV144: 0.4292003971 | CW144: 0.2418879598 | CX144: 0 | CY144: 0
B145: 2023 | C145: 2019-12-04 | D145: 68 | E145: 1 | F145: 2023100034 | G145: Loan-type reimbursable grants | H145: 1 | I145: 366 | K145: 60000 | L145: 3 | M145: 60 | N145: 4221 | O145: C01 | P145: text | Q145: 24030 | T145: 00:00:00 | U145: 00:00:00 | V145: LTGR private | AN145: 918 | AO145: 0 | AQ145: 10000 | AR145: 1364.915833 | AS145: 1364.915833 | BE145: 1 | BF145: 1 | BG145: 3200 | BI145: 2021-07-15 | BJ145: 2030-03-13 | BQ145: 20 | BR145: 11;13;31 | BS145: UMICs | BT145: text | BU145: =IFERROR(IF(M145=60,VLOOKUP(VALUE(TEXT(YEAR($C145),"@")&TEXT($I145,"@")),IncomeGroup!$C$2:$F$50000,4,FALSE),VLOOKUP(VALUE(TEXT(YEAR($C145),"@")&TEXT($I145,"@")),IncomeGroup!$C$2:$F$50000,3,FALSE)),"") -> UMICs | BV145: 0.061 | BW145: 13.64915833 | BY145: LMICs | BZ145: =AQ145 -> 10000 | CA145: 0.032 | CB145: 1 | CC145: 10.27241615 | CD145: 1.612594114 | CE145: 4 | CF145: 1.362594114 | CG145: 8.90982204 | CH145: 0.105 | CI145: 0.032 | CJ145: 0.032 | CK145: 0.02527547619 | CL145: 35.63928816 | CM145: 1.14573765 | CN145: 2.434165935 | CO145: 0.04026031969 | CP145: 0.5708679615 | CQ145: 0.09556526406 | CR145: 4.045009301 | CS145: 0.6583763208 | CT145: 0.2933064548 | CU145: 0.3013633595 | CV145: 0.6229347969 | CW145: 0.2933064548 | CX145: 2933.064548 | CY145: 0
B146: 2023 | C146: 2020-06-30 | D146: 68 | E146: 1 | F146: 2023100035 | G146: Loan-type reimbursable grants | H146: 1 | I146: 261 | K146: 62000 | L146: 3 | M146: 60 | N146: 4221 | O146: C01 | P146: text | Q146: 24030 | T146: 00:00:00 | U146: 00:00:00 | V146: LTGR private | AN146: 918 | AO146: 0 | AQ146: 0 | AR146: 0 | BE146: 1 | BF146: 4 | BG146: 3660 | BI146: 2023-08-15 | BJ146: 2025-12-31 | BQ146: 20 | BS146: LMICs | BU146: =IFERROR(IF(M146=60,VLOOKUP(VALUE(TEXT(YEAR($C146),"@")&TEXT($I146,"@")),IncomeGroup!$C$2:$F$50000,4,FALSE),VLOOKUP(VALUE(TEXT(YEAR($C146),"@")&TEXT($I146,"@")),IncomeGroup!$C$2:$F$50000,3,FALSE)),"") -> LMICs | BV146: 0.075 | BW146: 13.30405685 | BY146: LMICs | BZ146: =BO146 -> 0 | CA146: 0.0366 | CB146: 1 | CC146: 5.503080082 | CD146: 3.123887748 | CE146: 4 | CF146: 2.873887748 | CG146: 2.629192334 | CH146: =VLOOKUP([3]CRSDATA!M17,'[3]Discount rates gua, rg'!$A:$H,MATCH([3]CRSDATA!BW$4,'[3]Discount rates gua, rg'!$A$1:$H$1,0),FALSE) -> 0.065 | CI146: 0.0366 | CJ146: 0.0366 | CK146: 0.01586828478 | CL146: 10.51676934 | CM146: 1.198394212 | CN146: 1.180068938 | CO146: 0.09545977415 | CP146: 0.762990952 | CQ146: 0.04120482565 | CR146: 10.94739054 | CS146: 0.803773053 | CT146: 0.1003444482 | CU146: 0.1007671728 | CV146: 0.2120323035 | CW146: 0.1003444482 | CX146: 0 | CY146: 0
A147: ; For PSI in ODA, fields on additionality (fields 68-70) should be reported; Reported grant equivalent is different compared with macro's automatic calculation based only on reported terms; NUMBER OF ISSUES : 2 | B147: 2023 | C147: 2019-10-28 | D147: 68 | E147: 1 | F147: 2023100038 | G147: Reflow-based reimbursable grants | H147: 1 | I147: 660 | K147: 63000 | L147: 3 | M147: 60 | N147: 4222 | O147: C01 | P147: text | Q147: 24030 | T147: 00:00:00 | U147: 00:00:00 | AN147: 918 | AO147: 0 | AQ147: 10000 | AR147: 5613.942558 | AS147: 17575.28772 | BG147: 2587 | BJ147: 2028-03-01 | BQ147: 21 | BS147: LDCs | BU147: =IFERROR(IF(M147=60,VLOOKUP(VALUE(TEXT(YEAR($C147),"@")&TEXT($I147,"@")),IncomeGroup!$C$2:$F$50000,4,FALSE),VLOOKUP(VALUE(TEXT(YEAR($C147),"@")&TEXT($I147,"@")),IncomeGroup!$C$2:$F$50000,3,FALSE)),"") -> LDCs | BV147: 0.13 | BW147: 175.7528772 | BY147: LMICs | BZ147: =BO147 -> 0 | CA147: 0.02587 | CB147: 0 | CC147: 8.342231348 | CE147: 4 | CH147: 0.105 | CI147: 0.02587 | CJ147: 0.02587 | CK147: 0.02527547619 | CW147: ERROR | CY147: 0
B148: 2023 | C148: 2023-05-05 | D148: 68 | E148: 1 | F148: 2023100043 | G148: Individual loan guarantee | H148: 1 | I148: 660 | K148: 63000 | L148: 3 | M148: 60 | N148: 1101 | O148: C01 | P148: text | Q148: 24030 | T148: 00:00:00 | U148: 00:00:00 | AN148: 918 | AR148: 2725.319184 | AS148: 2725.319184 | BE148: 1 | BF148: 1 | BG148: 500 | BI148: 2027-12-07 | BJ148: 2030-12-07 | BO148: 10000 | BQ148: 20 | BR148: 11 | BS148: LDCs | BT148: text | BU148: =IFERROR(IF(M148=60,VLOOKUP(VALUE(TEXT(YEAR($C148),"@")&TEXT($I148,"@")),IncomeGroup!$C$2:$F$50000,4,FALSE),VLOOKUP(VALUE(TEXT(YEAR($C148),"@")&TEXT($I148,"@")),IncomeGroup!$C$2:$F$50000,3,FALSE)),"") -> LDCs | BV148: 0.06 | BW148: 27.25319184 | BY148: LMICs | BZ148: =BO148 -> 10000 | CA148: 0.005 | CB148: 1 | CC148: 7.592060233 | CD148: 4.59137577 | CE148: 4 | CF148: 4.34137577 | CG148: 3.250684463 | CH148: =VLOOKUP([3]CRSDATA!M27,'[3]Discount rates gua, rg'!$A:$H,MATCH([3]CRSDATA!BW$4,'[3]Discount rates gua, rg'!$A$1:$H$1,0),FALSE) -> 0.05 | CI148: 0.005 | CJ148: 0.005 | CK148: 0.01227223443 | CL148: 13.00273785 | CM148: 1.235920994 | CN148: 1.171870779 | CO148: 0.01944295409 | CP148: 0.7436578421 | CQ148: 0.006667017917 | CR148: 62.06530306 | CS148: 0.7501823849 | CT148: 0.2302321859 | CU148: 0.230374661 | CV148: 0.2937037633 | CW148: 0.2302321859 | CX148: 2302.321859 | CY148: 0
B149: 2023 | C149: 2023-05-05 | D149: 68 | E149: 1 | F149: 2023100044 | G149: Individual loan guarantee | H149: 1 | I149: 366 | K149: 60000 | L149: 3 | M149: 60 | N149: 1101 | O149: C01 | P149: text | Q149: 24030 | T149: 00:00:00 | U149: 00:00:00 | AN149: 918 | AR149: 0 | AS149: 0 | BE149: 1 | BF149: 1 | BG149: 2800 | BI149: 2028-12-07 | BJ149: 2030-12-07 | BO149: 10000 | BQ149: 20 | BR149: 11 | BS149: UMICs | BT149: text | BU149: =IFERROR(IF(M149=60,VLOOKUP(VALUE(TEXT(YEAR($C149),"@")&TEXT($I149,"@")),IncomeGroup!$C$2:$F$50000,4,FALSE),VLOOKUP(VALUE(TEXT(YEAR($C149),"@")&TEXT($I149,"@")),IncomeGroup!$C$2:$F$50000,3,FALSE)),"") -> UMICs | BV149: 0.021 | BW149: -4.263884898 | BY149: LMICs | BZ149: =BO149 -> 10000 | CA149: 0.028 | CB149: 1 | CC149: 7.592060233 | CD149: 5.593429158 | CE149: 4 | CF149: 5.343429158 | CG149: 2.248631075 | CH149: =VLOOKUP([3]CRSDATA!M11,'[3]Discount rates gua, rg'!$A:$H,MATCH([3]CRSDATA!BW$4,'[3]Discount rates gua, rg'!$A$1:$H$1,0),FALSE) -> 0.05 | CI149: 0.028 | CJ149: 0.028 | CK149: 0.01227223443 | CL149: 8.994524298 | CM149: 1.297847063 | CN149: 1.115955601 | CO149: 0.1309013725 | CP149: 0.7253029685 | CQ149: 0.02578396721 | CR149: 16.44343201 | CS149: 0.7509104725 | CT149: 0.1180116918 | CU149: 0.1181881551 | CV149: 0.2014193788 | CW149: 0.1180116918 | CX149: =IF(CW149<0,0,BZ149*CW149)*75% -> 885.0876883 | CY149: 0
B150: 2023 | C150: 2023-05-05 | D150: 68 | E150: 1 | F150: 2023100045 | G150: Individual loan guarantee | H150: 1 | I150: 261 | K150: 62000 | L150: 3 | M150: 60 | N150: 1101 | O150: C01 | P150: text | Q150: 24030 | T150: 00:00:00 | U150: 00:00:00 | AN150: 918 | AR150: 1112.85134 | AS150: 1112.85134 | BE150: 1 | BF150: 1 | BG150: 1700 | BI150: 2029-12-07 | BJ150: 2030-12-07 | BO150: 10000 | BQ150: 20 | BR150: 11 | BS150: LMICs | BT150: text | BU150: =IFERROR(IF(M150=60,VLOOKUP(VALUE(TEXT(YEAR($C150),"@")&TEXT($I150,"@")),IncomeGroup!$C$2:$F$50000,4,FALSE),VLOOKUP(VALUE(TEXT(YEAR($C150),"@")&TEXT($I150,"@")),IncomeGroup!$C$2:$F$50000,3,FALSE)),"") -> LMICs | BV150: 0.035 | BW150: 11.1285134 | BY150: LMICs | BZ150: =BO150 -> 10000 | CA150: 0.017 | CB150: 1 | CC150: 7.592060233 | CD150: 6.592744695 | CE150: 4 | CF150: 6.342744695 | CG150: 1.249315537 | CH150: 0.105 | CI150: 0.017 | CJ150: 0.017 | CK150: 0.02527547619 | CL150: 4.997262149 | CM150: 1.883804625 | CN150: 1.132851979 | CO150: 0.07888782725 | CP150: 0.4928644825 | CQ150: 0.006385578994 | CR150: 47.68635582 | CS150: 0.4991633838 | CT150: 0.4218621112 | CU150: 0.4219487889 | CV150: 0.4788944491 | CW150: 0.4218621112 | CX150: =IF(CW150<0,0,BZ150*CW150) -> 4218.621112 | CY150: 0
B151: 2023 | C151: 2023-05-05 | D151: 68 | E151: 1 | F151: 2023100055 | G151: First loss guarantee | H151: 1 | I151: 229 | K151: 62000 | L151: 1 | M151: 60 | N151: 1107 | O151: C01 | P151: text | Q151: 24030 | T151: 00:00:00 | U151: 00:00:00 | V151: First loss guarantee | AN151: 918 | AR151: 2923.423478 | AS151: 2923.423478 | BE151: 1 | BF151: 1 | BG151: 1500 | BI151: 2030-12-07 | BJ151: 2030-12-07 | BO151: 10000 | BQ151: 20 | BR151: 11 | BS151: LMICs | BT151: text | BU151: =IFERROR(IF(M151=60,VLOOKUP(VALUE(TEXT(YEAR($C151),"@")&TEXT($I151,"@")),IncomeGroup!$C$2:$F$50000,4,FALSE),VLOOKUP(VALUE(TEXT(YEAR($C151),"@")&TEXT($I151,"@")),IncomeGroup!$C$2:$F$50000,3,FALSE)),"") -> LMICs | BV151: 0.065 | BW151: 29.23423478
A152: ; For PSI in ODA, fields on additionality (fields 68-70) should be reported; Reported grant equivalent is different compared with macro's automatic calculation based only on reported terms; NUMBER OF ISSUES : 2 | B152: 2023 | C152: 2019-12-04 | D152: 68 | E152: 1 | F152: 2023100039 | G152: Reflow-based reimbursable grants | H152: 1 | I152: 366 | K152: 60000 | L152: 3 | M152: 60 | N152: 4222 | O152: C01 | P152: text | Q152: 24030 | T152: 00:00:00 | U152: 00:00:00 | AN152: 918 | AO152: 0 | AQ152: 10000 | AR152: 1188.563345 | AS152: 61063.56069 | BG152: 11251 | BJ152: 2030-03-13 | BQ152: 21 | BS152: UMICs | BU152: =IFERROR(IF(M152=60,VLOOKUP(VALUE(TEXT(YEAR($C152),"@")&TEXT($I152,"@")),IncomeGroup!$C$2:$F$50000,4,FALSE),VLOOKUP(VALUE(TEXT(YEAR($C152),"@")&TEXT($I152,"@")),IncomeGroup!$C$2:$F$50000,3,FALSE)),"") -> UMICs | BV152: 0.091 | BW152: 610.6356069
B153: 2023 | C153: 2020-06-30 | D153: 68 | E153: 1 | F153: 2023106035 | G153: Loan-type reimbursable grants | H153: 1 | I153: 261 | K153: 62000 | L153: 3 | M153: 60 | N153: 4221 | O153: C01 | P153: text | Q153: 24030 | T153: 00:00:00 | U153: 00:00:00 | V153: LTGR private | AN153: 918 | AO153: 0 | AQ153: 0 | AR153: 0 | BE153: 1 | BF153: 4 | BG153: 3660 | BI153: 2023-08-15 | BJ153: 2025-12-31 | BQ153: 20 | BS153: LMICs | BU153: =IFERROR(IF(M153=60,VLOOKUP(VALUE(TEXT(YEAR($C153),"@")&TEXT($I153,"@")),IncomeGroup!$C$2:$F$50000,4,FALSE),VLOOKUP(VALUE(TEXT(YEAR($C153),"@")&TEXT($I153,"@")),IncomeGroup!$C$2:$F$50000,3,FALSE)),"") -> LMICs | BV153: 0.075 | BW153: 13.30405685
B154: 2023 | C154: 2020-06-30 | D154: 68 | E154: 1 | F154: 2023100040 | G154: Reflow-based reimbursable grants | H154: 1 | I154: 261 | K154: 62000 | L154: 3 | M154: 60 | N154: 4222 | O154: C01 | P154: text | Q154: 24030 | T154: 00:00:00 | U154: 00:00:00 | V154: RBGR private | AN154: 918 | AO154: 0 | AQ154: 0 | AR154: 0 | BG154: 1236 | BJ154: 2025-12-31 | BQ154: 21 | BS154: LMICs | BU154: =IFERROR(IF(M154=60,VLOOKUP(VALUE(TEXT(YEAR($C154),"@")&TEXT($I154,"@")),IncomeGroup!$C$2:$F$50000,4,FALSE),VLOOKUP(VALUE(TEXT(YEAR($C154),"@")&TEXT($I154,"@")),IncomeGroup!$C$2:$F$50000,3,FALSE)),"") -> LMICs | BV154: 0.105 | BW154: 128.2488881
B155: 2023 | C155: 2020-01-15 | D155: 68 | E155: 1 | F155: 2023000005a | G155: Loan portfolio guarantee | H155: 3 | I155: 645 | J155: Credit portfolio guarantee private | K155: 62000 | L155: 1 | M155: 60 | N155: 1102 | O155: C01 | P155: Credit portfolio guarantee private | Q155: 24030 | T155: 00:00:00 | U155: 00:00:00 | V155: Credit portfolio guarantee private | W155: 8.4 | Y155: 0 | Z155: 0 | AA155: 0 | AB155: 0 | AC155: 0 | AD155: 0 | AE155: 0 | AJ155: 0 | AK155: 0 | AL155: 0 | AM155: 0 | AN155: 918 | BE155: 1 | BF155: 4 | BG155: 1500 | BI155: 2021-02-18 | BJ155: 2026-05-03 | BQ155: 20 | BR155: 11;13;21 | BT155: text | BU155: =IFERROR(IF(M155=60,VLOOKUP(VALUE(TEXT(YEAR($C155),"@")&TEXT($I155,"@")),IncomeGroup!$C$2:$F$50000,4,FALSE),VLOOKUP(VALUE(TEXT(YEAR($C155),"@")&TEXT($I155,"@")),IncomeGroup!$C$2:$F$50000,3,FALSE)),"") -> LMICs | BV155: 0.035 | BW155: 6.683229271 | BY155: LMICs | BZ155: =BO155 -> 0 | CA155: =BG155/100000 -> 0.015 | CB155: =BE155 -> 1 | CC155: =DATEDIF(C155,BJ155,"D")/365.25 -> 6.29705681 | CD155: =DATEDIF(C155,BI155,"D")/365.25 -> 1.095140315 | CE155: 4 | CF155: =CD155-(1/CE155) -> 0.8451403149 | CG155: =CC155-CF155 -> 5.451916496 | CH155: =VLOOKUP([3]CRSDATA!M13,'[3]Discount rates gua, rg'!$A:$H,MATCH([3]CRSDATA!BW$4,'[3]Discount rates gua, rg'!$A$1:$H$1,0),FALSE) -> 0.05 | CI155: =CA155 -> 0.015 | CJ155: =CA155 -> 0.015 | CK155: =((1+CH155)^(1/CE155))-1 -> 0.01227223443 | CL155: =CE155*CG155 -> 21.80766598 | CM155: =(1+CH155)^CF155 -> 1.042096485 | CN155: =(1+CH155)^CG155 -> 1.304734929 | CO155: =(CI155*(1-(1/CM155)))/(CE155*CK155) -> 0.01234370475 | CP155: =(1/CL155)*(1/CM155)*((1-(1/CN155))/CK155) -> 0.8374505794 | CQ155: =(CJ155/(CE155*CL155))*(1/CM155)*((1/CN155)-1+CK155*CL155)/(CK155*CK155) -> 0.0373261684 | CR155: =1 / ( (1 + CJ155/CE155)^CL155 -1) +1 -> 12.75783069 | CS155: =( CJ155/CE155 ) * CR155 * ( 1/CM155) * ( (1 - 1/CN155) / CK155) -> 0.8737284473 | CT155: =(1-CO155-CP155-CQ155) -> 0.1128795475 | CU155: =(1-CO155-CS155) -> 0.1139278479 | CV155: =(1-(1+CJ155*CD155)/(1+CH155)^CC155) -> 0.2524400648 | CW155: =IF(CB155=1,CT155,IF(CB155=2,CU155,IF(CB155=3,CV155,IF(CB155=5,CT155,"ERROR")))) -> 0.1128795475 | CX155: =IF(CW155<0,0,BZ155*CW155) -> 0 | CY155: =J155 -> Credit portfolio guarantee private
B156: 2023 | C156: 2023-05-15 | D156: 68 | E156: 1 | F156: 2023000007a | G156: Individual mezz guarantee | H156: 1 | I156: 645 | J156: Mezzanine guarantee private | K156: 62000 | L156: 1 | M156: 60 | N156: 1103 | O156: C01 | P156: Mezzanine guarantee private | Q156: 24030 | T156: 00:00:00 | U156: 00:00:00 | V156: Mezzanine guarantee private | W156: 8.4 | Y156: 0 | Z156: 0 | AA156: 0 | AB156: 0 | AC156: 0 | AD156: 0 | AE156: 0 | AJ156: 0 | AK156: 0 | AL156: 0 | AM156: 0 | AN156: 918 | AR156: 1569.018529 | AS156: 1569.018529 | BE156: 1 | BF156: 4 | BG156: 1750 | BI156: 2024-06-18 | BJ156: 2029-08-31 | BO156: 15000 | BQ156: 20 | BR156: 11;13;21 | BT156: text | BU156: =IFERROR(IF(M156=60,VLOOKUP(VALUE(TEXT(YEAR($C156),"@")&TEXT($I156,"@")),IncomeGroup!$C$2:$F$50000,4,FALSE),VLOOKUP(VALUE(TEXT(YEAR($C156),"@")&TEXT($I156,"@")),IncomeGroup!$C$2:$F$50000,3,FALSE)),"") -> LMICs | BV156: 0.05 | BW156: 10.46012353 | BY156: LMICs | BZ156: =BO156 -> 15000 | CA156: 0.0175 | CB156: 1 | CC156: 6.29705681 | CD156: 1.095140315 | CE156: 4 | CF156: 0.8451403149 | CG156: 5.451916496 | CH156: 0.105 | CI156: 0.0175 | CJ156: 0.0175 | CK156: 0.02527547619 | CL156: 21.80766598 | CM156: 1.088045881 | CN156: 1.723485043 | CO156: 0.01400685221 | CP156: 0.6999488365 | CQ156: 0.03792980886 | CR156: 11.01208539 | CS156: 0.7353991275 | CT156: 0.2481145025 | CU156: 0.2505940203 | CV156: 0.4565122575 | CW156: 0.2481145025 | CX156: =IF(CW156<0,0,BZ156*CW156) -> 3721.717537 | CY156: Mezzanine guarantee private
B157: 2023 | C157: 2023-05-15 | D157: 68 | E157: 1 | F157: 2023000010a | G157: Mezz portfolio guarantee | H157: 1 | I157: 645 | J157: Mezzanine portfolio guarantee private | K157: 62000 | L157: 1 | M157: 60 | N157: 1104 | O157: C01 | P157: Mezzanine portfolio guarantee private | Q157: 24030 | T157: 00:00:00 | U157: 00:00:00 | V157: Mezzanine portfolio guarantee private | W157: 8.4 | Y157: 0 | Z157: 0 | AA157: 0 | AB157: 0 | AC157: 0 | AD157: 0 | AE157: 0 | AJ157: 0 | AK157: 0 | AL157: 0 | AM157: 0 | AN157: 918 | AR157: 1176.763897 | AS157: 1176.763897 | BE157: 1 | BF157: 4 | BG157: 1750 | BI157: 2024-06-18 | BJ157: 2029-08-31 | BO157: 15000 | BP157: 75 | BQ157: 40 | BR157: 11;13;21 | BT157: text | BU157: =IFERROR(IF(M157=60,VLOOKUP(VALUE(TEXT(YEAR($C157),"@")&TEXT($I157,"@")),IncomeGroup!$C$2:$F$50000,4,FALSE),VLOOKUP(VALUE(TEXT(YEAR($C157),"@")&TEXT($I157,"@")),IncomeGroup!$C$2:$F$50000,3,FALSE)),"") -> LMICs | BV157: 0.05 | BW157: 10.46012353 | BY157: LMICs | BZ157: =AQ157 -> 0 | CA157: 0.0175 | CB157: 1 | CC157: 6.29705681 | CD157: 1.095140315 | CE157: 4 | CF157: 0.8451403149 | CG157: 5.451916496 | CH157: =VLOOKUP([3]CRSDATA!M69,'[3]Discount rates gua, rg'!$A:$H,MATCH([3]CRSDATA!BW$4,'[3]Discount rates gua, rg'!$A$1:$H$1,0),FALSE)-0.5% ->  | CI157: 0.0175 | CJ157: 0.0175 | CL157: 21.80766598 | CR157: 11.01208539 | CX157: =IF(CW157<0,0,BZ157*CW157) ->  | CY157: Mezzanine portfolio guarantee private
B158: 2023 | C158: 2023-05-15 | D158: 68 | E158: 1 | F158: 2023000012a | G158: Individual equity guarantee | H158: 1 | I158: 645 | J158: Equity guarantee private | K158: 12000 | L158: 1 | M158: 60 | N158: 1105 | O158: C01 | P158: Equity guarantee private | Q158: 24030 | T158: 00:00:00 | U158: 00:00:00 | V158: Equity guarantee public | W158: 8.4 | Y158: 0 | Z158: 0 | AA158: 0 | AB158: 0 | AC158: 0 | AD158: 0 | AE158: 0 | AJ158: 0 | AK158: 0 | AL158: 0 | AM158: 0 | AN158: 918 | AR158: 1611.883432 | AS158: 1611.883432 | BE158: 1 | BF158: 4 | BG158: 3000 | BI158: 2024-06-18 | BJ158: 2029-08-31 | BO158: 15000 | BQ158: 40 | BR158: 11;13;21 | BT158: text | BU158: =IFERROR(IF(M158=60,VLOOKUP(VALUE(TEXT(YEAR($C158),"@")&TEXT($I158,"@")),IncomeGroup!$C$2:$F$50000,4,FALSE),VLOOKUP(VALUE(TEXT(YEAR($C158),"@")&TEXT($I158,"@")),IncomeGroup!$C$2:$F$50000,3,FALSE)),"") -> LMICs | BV158: 0.065 | BW158: 10.74588955 | BY158: LMICs | BZ158: =BO158 -> 15000 | CA158: 0.03 | CB158: 1 | CC158: 6.29705681 | CD158: 1.095140315 | CE158: 4 | CF158: 0.8451403149 | CG158: 5.451916496 | CH158: =VLOOKUP([3]CRSDATA!M43,'[3]Discount rates gua, rg'!$A:$H,MATCH([3]CRSDATA!BW$4,'[3]Discount rates gua, rg'!$A$1:$H$1,0),FALSE) ->  | CI158: 0.03 | CJ158: 0.03 | CL158: 21.80766598 | CR158: 6.650530032 | CX158: =IF(CW158<0,0,BZ158*CW158) ->  | CY158: Equity guarantee private
B159: 2023 | C159: 2020-01-15 | D159: 68 | E159: 1 | F159: 2023000013a | G159: Individual equity guarantee | H159: 3 | I159: 645 | J159: Equity guarantee private | K159: 62000 | L159: 1 | M159: 60 | N159: 1105 | O159: C01 | P159: Equity guarantee private | Q159: 24030 | T159: 00:00:00 | U159: 00:00:00 | V159: Equity guarantee public | W159: 8.4 | Y159: 0 | Z159: 0 | AA159: 0 | AB159: 0 | AC159: 0 | AD159: 0 | AE159: 0 | AJ159: 0 | AK159: 0 | AL159: 0 | AM159: 0 | AN159: 918 | BF159: 4 | BG159: 3000 | BI159: 2021-02-18 | BJ159: 2026-05-03 | BQ159: 20 | BR159: 11;13;21 | BT159: text | BU159: =IFERROR(IF(M159=60,VLOOKUP(VALUE(TEXT(YEAR($C159),"@")&TEXT($I159,"@")),IncomeGroup!$C$2:$F$50000,4,FALSE),VLOOKUP(VALUE(TEXT(YEAR($C159),"@")&TEXT($I159,"@")),IncomeGroup!$C$2:$F$50000,3,FALSE)),"") -> LMICs | BV159: 0.065 | BW159: 10.74588955 | BY159: LMICs | BZ159: =BO159 -> 0 | CA159: 0.03 | CB159: 0 | CC159: 6.29705681 | CD159: 1.095140315 | CE159: 4 | CF159: 0.8451403149 | CG159: 5.451916496 | CH159: =VLOOKUP([3]CRSDATA!M42,'[3]Discount rates gua, rg'!$A:$H,MATCH([3]CRSDATA!BW$4,'[3]Discount rates gua, rg'!$A$1:$H$1,0),FALSE) ->  | CI159: 0.03 | CJ159: 0.03 | CL159: 21.80766598 | CR159: 6.650530032 | CW159: ERROR | CX159: =IF(CW159<0,0,BZ159*CW159)*75% ->  | CY159: Equity guarantee private
B160: 2023 | C160: 2020-01-15 | D160: 68 | E160: 1 | F160: 2023000016a | G160: Equity portfolio guarantee | H160: 3 | I160: 645 | J160: Equity portfolio guarantee | K160: 62000 | L160: 1 | M160: 60 | N160: 1106 | O160: C01 | P160: Equity portfolio guarantee | Q160: 24030 | T160: 00:00:00 | U160: 00:00:00 | V160: Equity portfolio guarantee | W160: 8.4 | Y160: 0 | Z160: 0 | AA160: 0 | AB160: 0 | AC160: 0 | AD160: 0 | AE160: 0 | AJ160: 0 | AK160: 0 | AL160: 0 | AM160: 0 | AN160: 918 | BE160: 1 | BF160: 4 | BG160: 3000 | BI160: 2021-02-18 | BJ160: 2026-05-03 | BQ160: 40 | BR160: 11;13;21 | BT160: text | BU160: =IFERROR(IF(M160=60,VLOOKUP(VALUE(TEXT(YEAR($C160),"@")&TEXT($I160,"@")),IncomeGroup!$C$2:$F$50000,4,FALSE),VLOOKUP(VALUE(TEXT(YEAR($C160),"@")&TEXT($I160,"@")),IncomeGroup!$C$2:$F$50000,3,FALSE)),"") -> LMICs | BV160: 0.065 | BW160: 10.74588955 | BY160: LMICs | BZ160: =BO160 -> 0 | CA160: 0.03 | CB160: 1 | CC160: 6.29705681 | CD160: 1.095140315 | CE160: 4 | CF160: 0.8451403149 | CG160: 5.451916496 | CH160: =VLOOKUP([3]CRSDATA!M26,'[3]Discount rates gua, rg'!$A:$H,MATCH([3]CRSDATA!BW$4,'[3]Discount rates gua, rg'!$A$1:$H$1,0),FALSE) -> 0.035 | CI160: 0.03 | CJ160: 0.03 | CK160: 0.008637445998 | CL160: 21.80766598 | CM160: 1.029500808 | CN160: 1.206295033 | CO160: 0.02488187715 | CP160: 0.8818891668 | CQ160: 0.0776752039 | CR160: 6.650530032 | CS160: 0.9592696777 | CT160: 0.01555375218 | CU160: 0.01584844518 | CV160: 0.1683151462 | CW160: 0.01555375218 | CX160: =IF(CW160<0,0,BZ160*CW160) -> 0 | CY160: Equity portfolio guarantee
B161: 2023 | C161: 2023-05-15 | D161: 68 | E161: 1 | F161: 2023000019a | G161: Other guarantee | H161: 1 | I161: 645 | J161: Other | K161: 62000 | L161: 1 | M161: 60 | N161: 1108 | O161: C01 | P161: Other | Q161: 24030 | T161: 00:00:00 | U161: 00:00:00 | V161: Other guarantee | W161: 8.4 | Y161: 0 | Z161: 0 | AA161: 0 | AB161: 0 | AC161: 0 | AD161: 0 | AE161: 0 | AJ161: 0 | AK161: 0 | AL161: 0 | AM161: 0 | AN161: 918 | BE161: 1 | BF161: 4 | BG161: 1500 | BI161: 2024-06-18 | BJ161: 2029-08-31 | BO161: 15000 | BQ161: 20 | BR161: 11;13;21 | BT161: text | BU161: =IFERROR(IF(M161=60,VLOOKUP(VALUE(TEXT(YEAR($C161),"@")&TEXT($I161,"@")),IncomeGroup!$C$2:$F$50000,4,FALSE),VLOOKUP(VALUE(TEXT(YEAR($C161),"@")&TEXT($I161,"@")),IncomeGroup!$C$2:$F$50000,3,FALSE)),"") -> LMICs | BW161: 0 | BY161: LMICs | BZ161: =AQ161 -> 0 | CA161: =BG161/100000 -> 0.015 | CB161: =BE161 -> 1 | CC161: 6.29705681 | CD161: 1.095140315 | CE161: 4 | CF161: =CD161-(1/CE161) -> 0.8451403149 | CG161: =CC161-CF161 -> 5.451916496 | CH161: =VLOOKUP([3]CRSDATA!M161,'[3]Discount rates gua, rg'!$A:$H,MATCH([3]CRSDATA!BW$4,'[3]Discount rates gua, rg'!$A$1:$H$1,0),FALSE) ->  | CI161: =CA161 -> 0.015 | CJ161: =CA161 -> 0.015 | CK161: =((1+CH161)^(1/CE161))-1 ->  | CL161: =CE161*CG161 -> 21.80766598 | CM161: =(1+CH161)^CF161 ->  | CN161: =(1+CH161)^CG161 ->  | CO161: =(CI161*(1-(1/CM161)))/(CE161*CK161) ->  | CP161: =(1/CL161)*(1/CM161)*((1-(1/CN161))/CK161) ->  | CQ161: =(CJ161/(CE161*CL161))*(1/CM161)*((1/CN161)-1+CK161*CL161)/(CK161*CK161) ->  | CR161: =1 / ( (1 + CJ161/CE161)^CL161 -1) +1 -> 12.75783069 | CS161: =( CJ161/CE161 ) * CR161 * ( 1/CM161) * ( (1 - 1/CN161) / CK161) ->  | CT161: =(1-CO161-CP161-CQ161) ->  | CU161: =(1-CO161-CS161) ->  | CV161: =(1-(1+CJ161*CD161)/(1+CH161)^CC161) ->  | CW161: =IF(CB161=1,CT161,IF(CB161=2,CU161,IF(CB161=3,CV161,IF(CB161=5,CT161,"ERROR")))) ->  | CX161: =IF(CW161<0,0,BZ161*CW161) ->  | CY161: Other
B162: 2023 | C162: 2023-05-15 | D162: 68 | E162: 1 | F162: 2023000025a | G162: Mezz portfolio guarantee | H162: 1 | I162: 645 | J162: Mezzanine portfolio guarantee private | K162: 62000 | L162: 1 | M162: 60 | N162: 1104 | O162: C01 | P162: Mezzanine portfolio guarantee private | Q162: 24030 | T162: 00:00:00 | U162: 00:00:00 | V162: Mezzanine portfolio guarantee private | W162: 8.4 | Y162: 0 | Z162: 0 | AA162: 0 | AB162: 0 | AC162: 0 | AD162: 0 | AE162: 0 | AJ162: 0 | AK162: 0 | AL162: 0 | AM162: 0 | AN162: 918 | AR162: 0 | AS162: 0 | BE162: 1 | BF162: 4 | BG162: 8000 | BI162: 2024-06-18 | BJ162: 2029-08-31 | BO162: 15000 | BP162: 75 | BQ162: 20 | BR162: 11;13;21 | BT162: text | BU162: =IFERROR(IF(M162=60,VLOOKUP(VALUE(TEXT(YEAR($C162),"@")&TEXT($I162,"@")),IncomeGroup!$C$2:$F$50000,4,FALSE),VLOOKUP(VALUE(TEXT(YEAR($C162),"@")&TEXT($I162,"@")),IncomeGroup!$C$2:$F$50000,3,FALSE)),"") -> LMICs | BV162: 0.05 | BW162: -10.23565695 | BY162: LMICs | BZ162: =AQ162 -> 0 | CA162: 0.08 | CB162: 1 | CC162: 6.29705681 | CD162: 1.095140315 | CE162: 4 | CF162: 0.8451403149 | CG162: 5.451916496 | CH162: =VLOOKUP([3]CRSDATA!M162,'[3]Discount rates gua, rg'!$A:$H,MATCH([3]CRSDATA!BW$4,'[3]Discount rates gua, rg'!$A$1:$H$1,0),FALSE) ->  | CI162: 0.08 | CJ162: 0.08 | CL162: 21.80766598 | CR162: 2.851499834 | CX162: =CW162*BZ162 ->  | CY162: Mezzanine portfolio guarantee private
B163: 2023 | C163: 2023-05-15 | D163: 68 | E163: 1 | F163: 2023000026a | G163: Individual equity guarantee | H163: 1 | I163: 645 | J163: Equity guarantee private | K163: 12000 | L163: 1 | M163: 60 | N163: 1105 | O163: C01 | P163: Equity guarantee private | Q163: 24030 | T163: 00:00:00 | U163: 00:00:00 | V163: Equity guarantee public | W163: 8.4 | Y163: 0 | Z163: 0 | AA163: 0 | AB163: 0 | AC163: 0 | AD163: 0 | AE163: 0 | AJ163: 0 | AK163: 0 | AL163: 0 | AM163: 0 | AN163: 918 | AR163: 0 | AS163: 0 | BE163: 1 | BF163: 4 | BG163: 8000 | BI163: 2024-06-18 | BJ163: 2029-08-31 | BO163: 15000 | BQ163: 40 | BR163: 11;13;21 | BT163: text | BU163: =IFERROR(IF(M163=60,VLOOKUP(VALUE(TEXT(YEAR($C163),"@")&TEXT($I163,"@")),IncomeGroup!$C$2:$F$50000,4,FALSE),VLOOKUP(VALUE(TEXT(YEAR($C163),"@")&TEXT($I163,"@")),IncomeGroup!$C$2:$F$50000,3,FALSE)),"") -> LMICs | BV163: 0.065 | BW163: -5.305621941 | BY163: LMICs | BZ163: =AQ163 -> 0 | CA163: 0.08 | CB163: 1 | CC163: 6.29705681 | CD163: 1.095140315 | CE163: 4 | CF163: 0.8451403149 | CG163: 5.451916496 | CH163: =VLOOKUP([3]CRSDATA!M163,'[3]Discount rates gua, rg'!$A:$H,MATCH([3]CRSDATA!BW$4,'[3]Discount rates gua, rg'!$A$1:$H$1,0),FALSE) ->  | CI163: 0.08 | CJ163: 0.08 | CL163: 21.80766598 | CR163: 2.851499834 | CX163: =IF(CW163<0,0,BZ163*CW163) ->  | CY163: Equity guarantee private
B164: 2023 | C164: 2023-05-15 | D164: 68 | E164: 1 | F164: 2023000027a | G164: First loss guarantee | H164: 1 | I164: 645 | J164: First-loss guarantee | K164: 62000 | L164: 1 | M164: 60 | N164: 1107 | O164: C01 | P164: First-loss guarantee | Q164: 24030 | T164: 00:00:00 | U164: 00:00:00 | V164: First loss guarantee | W164: 8.4 | Y164: 0 | Z164: 0 | AA164: 0 | AB164: 0 | AC164: 0 | AD164: 0 | AE164: 0 | AJ164: 0 | AK164: 0 | AL164: 0 | AM164: 0 | AN164: 918 | AR164: 0 | AS164: 0 | BE164: 1 | BF164: 4 | BG164: 8000 | BI164: 2024-06-18 | BJ164: 2029-08-31 | BO164: 15000 | BQ164: 20 | BR164: 11;13;21 | BT164: text | BU164: =IFERROR(IF(M164=60,VLOOKUP(VALUE(TEXT(YEAR($C164),"@")&TEXT($I164,"@")),IncomeGroup!$C$2:$F$50000,4,FALSE),VLOOKUP(VALUE(TEXT(YEAR($C164),"@")&TEXT($I164,"@")),IncomeGroup!$C$2:$F$50000,3,FALSE)),"") -> LMICs | BV164: 0.065 | BW164: -5.305621941 | BY164: LMICs | BZ164: =AQ164 -> 0 | CA164: 0.08 | CB164: 1 | CC164: 6.29705681 | CD164: 1.095140315 | CE164: 4 | CF164: 0.8451403149 | CG164: 5.451916496 | CH164: 0.08 | CI164: 0.08 | CJ164: 0.08 | CK164: 0.01942654691 | CL164: 21.80766598 | CM164: 1.067204784 | CN164: 1.521330331 | CO164: 0.06483161021 | CP164: 0.7579436308 | CQ164: 0.1843700315 | CR164: 2.851499834 | CS164: 0.9426477621 | CT164: -0.007145272596 | CU164: -0.007479372326 | CV164: 0.3301116977 | CW164: -0.007145272596 | CX164: =IF(CW164<0,0,BZ164*CW164) -> 0 | CY164: First-loss guarantee

Sheet Sheet1 (hidden)
A1: 2023100001
A2: 2023100002
A3: 2023100003
A4: 2023100004
A5: 2023100005
A6: 2023100006
A7: 2023100007
A8: 2023100008
A9: 2023100009
A10: 2023100010
A11: 2023100011
A12: 2023100012
A13: 2023100013
A14: 2023100014
A15: 2023100015
A16: 2023100016
A17: 2023100017
A18: 2023100018
A19: 2023100019
A20: 2023100020
A21: 2023100021
A22: 2023100022
A23: 2023100023
A24: 2023100024
A25: 2023100025
A26: 2023100026
A27: 2023100027
A28: 2023100028
A29: 2023100029
A30: 2023100030
A31: 2023100031
A32: 2023100032
A33: 2023100033
A34: 2023100034
A35: 2023100035
A36: 2023100036
A37: 2023100037
A38: 2023100038
A39: 2023100039
A40: 2023100040
A41: 2023100041
A42: 2023100042
A43: 2023100043
A44: 2023100044
A45: 2023100045
A46: 2023100046
A47: 2023100047
A48: 2023100048
A49: 2023100049
A50: 2023100050
A51: 2023100051
A52: 2023100052
A53: 2023100053
A54: 2023100054
A55: 2023100055
A56: 2023100056
A57: 2023100057
A58: 2023100058
A59: 2023100059
A60: 2023100060
A61: 2023100061
A62: 2023100062

Sheet Sheet2 (hidden)
A1: Cheks | B1: A. Identification data | I1: B.Basic data | O1: 15 | R1: C. Supplementary data | W1: Asterisk (*) means that reporting in the field is optional | AN1: D. Volume data | AS1: FOR OECD USE ONLY | AT1: FOR OECD USE ONLY | BE1: E. For non-grant instruments | BQ1: F. For PSI | BU1: FOR OECD USE ONLY (not to be filled) | BV1: FOR OECD USE ONLY (not to be filled) | BW1: FOR OECD USE ONLY (not to be filled)
A2: List of issues | B2: Reporting year | C2: Commitment date (dd-mm-yyyy) | D2: Reporting country / organisation | E2: Extending agency | F2: CRS Identification N° | G2: Donor project N° | H2: Nature of submission | I2: Recipient code | J2: Channel of delivery name | K2: Channel code | L2: Bi/Multi | M2: Type of flow (main DAC 1 category) | N2: Type of finance | O2: Co-operation modality (replaces the type of aid) | P2: Short description / Project title | Q2: Sector / Purpose code and corresponding shares | R2: Geographical target area | S2: Regional aid to LDCs (codes 1-5) | T2: Expected starting date | U2: Expected completion date | V2: Description | W2: SDG focus* | X2: Keywords* | Y2: Gender equality | Z2: Aid to environment | AA2: DIG | AB2: RMNCH | AC2: Disaster Risk Reduction | AD2: Nutrition* | AE2: Inclusion and empowerment of persons with disabilities* | AF2: FTC | AG2: PBA | AH2: Investment | AI2: Type of blended finance (codes 1-4) | AJ2: Biodiversity | AK2: Climate change - mitigation | AL2: Climate change - adaptation | AM2: Desertification | AN2: Currency | AO2: Commitments | AP2: Capital Expenditure %* | AQ2: Amounts extended | AR2: ODA grant equivalent | AS2: OECD grant equivalent estimate | AT2: Amounts received (for loans:principal only) | AU2: Amount untied | AV2: Amount partially untied | AW2: Amount tied | AX2: Amount of IRTC | AY2: If project type, amount of experts-commitments* | AZ2: If project type, amount of experts-extended* | BA2: Amount of export credit | BB2: Leveraging mechanism and role/position | BC2: Amounts mobilised from the private sector | BD2: Origin of the funds mobilised | BE2: Type or repayment or type of fee payment | BF2: Number of repayment or fee payment per annum | BG2: Interest rate / Fee rate / Expected return per annum | BH2: Second interest rate | BI2: First repayment date / Exposure reduction starting date (dd-mm-yyyy) | BJ2: Final repayment date / Guarantee maturity date / Expected maturity (dd-mm-yyyy) | BK2: Interest received / Guarantee fee received / Dividends received per annum | BL2: Principal disbursed and still outstanding / Equity disbursed and still held | BM2: Arrears of principal (included in the item 62) | BN2: Arrears of interest / Arrears of guarantee fee | BO2: Guaranteed amount | BP2: Average use of portfolio guarantee % | BQ2: PSI flag | BR2: Additionality type | BS2: Additionality description | BT2: Additionality – development objective | BU2: Income Group | BV2: Discount Rate | BW2: Grant Element
B3: 1 | C3: 2 | D3: 3 | E3: 4 | F3: 5 | G3: 6 | H3: 7 | I3: 8 | J3: 9 | K3: 10 | L3: 11 | M3: 12 | N3: 13 | O3: 14 | P3: 15 | Q3: 16 | R3: 17 | S3: 18 | T3: 19 | U3: 20 | V3: 21 | W3: 22 | X3: 23 | Y3: 24 | Z3: 25 | AA3: 26 | AB3: 27 | AC3: 28 | AD3: 29 | AE3: 30 | AF3: 31 | AG3: 32 | AH3: 33 | AI3: 34 | AJ3: 35 | AK3: 36 | AL3: 37 | AM3: 38 | AN3: 39 | AO3: 40 | AP3: 41 | AQ3: 42 | AR3: 43 | AS3: 43b | AT3: 44 | AU3: 45 | AV3: 46 | AW3: 47 | AX3: 48 | AY3: 49 | AZ3: 50 | BA3: 51 | BB3: 52 | BC3: 53 | BD3: 54 | BE3: 55 | BF3: 56 | BG3: 57 | BH3: 58 | BI3: 59 | BJ3: 60 | BK3: 61 | BL3: 62 | BM3: 63 | BN3: 64 | BO3: 65 | BP3: 66 | BQ3: 67 | BR3: 68 | BS3: 69 | BT3: 70 | BU3: 71 | BV3: 72
A4: ; Additionality type (67) may only include values NULL, 1,2,3; Reported grant equivalent is different compared with macro's automatic calculation based only on reported terms; NUMBER OF ISSUES : 2 | B4: 2023 | C4: 2019-12-04 | D4: 68 | E4: 1 | F4: 2023100004 | G4: Sovereign loans | H4: 1 | I4: 366 | K4: 44001 | L4: 3 | M4: 10 | N4: 421 | O4: C01 | P4: text | Q4: 24030 | T4: 00:00:00 | U4: 00:00:00 | V4: Sovereign loans | AN4: 918 | AO4: 0 | AQ4: 10000 | AR4: 1726.090197 | AS4: 1164.470289 | AT4: 0 | BE4: 1 | BF4: 1 | BG4: 3200 | BI4: 2021-07-15 | BJ4: 2035-03-13 | BR4: 11 | BS4: UMICs | BT4: 0.06 | BU4: Multi | BV4: 0.05 | BW4: 11.64470289 | BY4: LMICs | BZ4: =BO4 -> 0 | CA4: =BG4/100000 -> 0.032 | CB4: =BE4 -> 1 | CC4: =DATEDIF(C4,BJ4,"D")/365.25 -> 15.27173169 | CD4: =DATEDIF(C4,BI4,"D")/365.25 -> 1.612594114 | CE4: 4 | CF4: =CD4-(1/CE4) -> 1.362594114 | CG4: =CC4-CF4 -> 13.90913758 | CH4: 0.105 | CI4: =CA4 -> 0.032 | CJ4: =CA4 -> 0.032 | CK4: =((1+CH4)^(1/CE4))-1 -> 0.02527547619 | CL4: =CE4*CG4 -> 55.63655031 | CM4: =(1+CH4)^CF4 -> 1.14573765 | CN4: =(1+CH4)^CG4 -> 4.009884751 | CO4: =(CI4*(1-(1/CM4)))/(CE4*CK4) -> 0.04026031969 | CP4: =(1/CL4)*(1/CM4)*((1-(1/CN4))/CK4) -> 0.4658791245 | CQ4: =(CJ4/(CE4*CL4))*(1/CM4)*((1/CN4)-1+CK4*CL4)/(CK4*CK4) -> 0.128795526 | CR4: =1 / ( (1 + CJ4/CE4)^CL4 -1) +1 -> 2.79252246 | CS4: =( CJ4/CE4 ) * CR4 * ( 1/CM4) * ( (1 - 1/CN4) / CK4) -> 0.5790553874 | CT4: =(1-CO4-CP4-CQ4) -> 0.3650650298 | CU4: =(1-CO4-CS4) -> 0.3806842929 | CV4: =(1-(1+CJ4*CD4)/(1+CH4)^CC4) -> 0.7711058223 | CW4: =IF(CB4=1,CT4,IF(CB4=2,CU4,IF(CB4=3,CV4,IF(CB4=5,CT4,"ERROR")))) -> 0.3650650298 | CX4: =IF(CW4<0,0,BZ4*CW4) -> 0 | CY4: =J4 -> 0
A5: ; if reporting under new PSI rules, type of flow = 60 and PSI is two digits in 10,20,21,22,30,40,41,42,50. If under provisional methods - type of flow (10,21), PSI flag may only include values NULL,2,3,4; Additionality type (67) may only include values NULL, 1,2,3; NUMBER OF ISSUES : 2 | B5: 2023 | C5: 2023-05-15 | D5: 68 | E5: 1 | F5: 2023060020a | G5: abc | H5: 1 | I5: 645 | J5: Unspecified type guarantee | K5: 62000 | L5: 1 | M5: 21 | N5: 1100 | O5: C01 | P5: Unspecified type guarantee | Q5: 24030 | T5: 00:00:00 | U5: 00:00:00 | V5: Unspecified type guarantee | W5: 8.4 | Y5: 0 | Z5: 0 | AA5: 0 | AB5: 0 | AC5: 0 | AD5: 0 | AE5: 0 | AJ5: 0 | AK5: 0 | AL5: 0 | AM5: 0 | AN5: 918 | BE5: 1 | BF5: 4 | BG5: 1500 | BI5: 2024-06-18 | BJ5: 2029-08-31 | BO5: 15000 | BQ5: 41 | BR5: 11;13;21 | BT5: text | BU5: =IFERROR(IF(M5=60,VLOOKUP(VALUE(TEXT(YEAR($C5),"@")&TEXT($I5,"@")),IncomeGroup!$C$2:$F$50000,4,FALSE),VLOOKUP(VALUE(TEXT(YEAR($C5),"@")&TEXT($I5,"@")),IncomeGroup!$C$2:$F$50000,3,FALSE)),"") -> LMICs | BW5: 0 | BY5: LMICs | BZ5: =BO5 -> 15000 | CA5: =BG5/100000 -> 0.015 | CB5: =BE5 -> 1 | CC5: =DATEDIF(C5,BJ5,"D")/365.25 -> 6.29705681 | CD5: =DATEDIF(C5,BI5,"D")/365.25 -> 1.095140315 | CE5: 4 | CF5: =CD5-(1/CE5) -> 0.8451403149 | CG5: =CC5-CF5 -> 5.451916496 | CH5: 0.105 | CI5: =CA5 -> 0.015 | CJ5: =CA5 -> 0.015 | CK5: =((1+CH5)^(1/CE5))-1 -> 0.02527547619 | CL5: =CE5*CG5 -> 21.80766598 | CM5: =(1+CH5)^CF5 -> 1.088045881 | CN5: =(1+CH5)^CG5 -> 1.723485043 | CO5: =(CI5*(1-(1/CM5)))/(CE5*CK5) -> 0.01200587332 | CP5: =(1/CL5)*(1/CM5)*((1-(1/CN5))/CK5) -> 0.6999488365 | CQ5: =(CJ5/(CE5*CL5))*(1/CM5)*((1/CN5)-1+CK5*CL5)/(CK5*CK5) -> 0.03251126474 | CR5: =1 / ( (1 + CJ5/CE5)^CL5 -1) +1 -> 12.75783069 | CS5: =( CJ5/CE5 ) * CR5 * ( 1/CM5) * ( (1 - 1/CN5) / CK5) -> 0.7302702096 | CT5: =(1-CO5-CP5-CQ5) -> 0.2555340255 | CU5: =(1-CO5-CS5) -> 0.2577239171 | CV5: =(1-(1+CJ5*CD5)/(1+CH5)^CC5) -> 0.4579722649 | CW5: =IF(CB5=1,CT5,IF(CB5=2,CU5,IF(CB5=3,CV5,IF(CB5=5,CT5,"ERROR")))) -> 0.2555340255 | CX5: =IF(CW5<0,0,BZ5*CW5) -> 3833.010382 | CY5: =J5 -> Unspecified type guarantee
A6: ; if reporting under new PSI rules, type of flow = 60 and PSI is two digits in 10,20,21,22,30,40,41,42,50. If under provisional methods - type of flow (10,21), PSI flag may only include values NULL,2,3,4; Additionality type (67) may only include values NULL, 1,2,3; NUMBER OF ISSUES : 2 | B6: 2023 | C6: 2023-05-15 | D6: 68 | E6: 1 | F6: 2023080020a | G6: abc | H6: 1 | I6: 645 | J6: Unspecified type guarantee | K6: 62000 | L6: 1 | M6: 10 | N6: 1100 | O6: C01 | P6: Unspecified type guarantee | Q6: 24030 | T6: 00:00:00 | U6: 00:00:00 | V6: Unspecified type guarantee | W6: 8.4 | Y6: 0 | Z6: 0 | AA6: 0 | AB6: 0 | AC6: 0 | AD6: 0 | AE6: 0 | AJ6: 0 | AK6: 0 | AL6: 0 | AM6: 0 | AN6: 918 | BE6: 1 | BF6: 4 | BG6: 1500 | BI6: 2024-06-18 | BJ6: 2029-08-31 | BO6: 15000 | BQ6: 41 | BR6: 11;13;21 | BT6: text | BU6: =IFERROR(IF(M6=60,VLOOKUP(VALUE(TEXT(YEAR($C6),"@")&TEXT($I6,"@")),IncomeGroup!$C$2:$F$50000,4,FALSE),VLOOKUP(VALUE(TEXT(YEAR($C6),"@")&TEXT($I6,"@")),IncomeGroup!$C$2:$F$50000,3,FALSE)),"") -> LMICs | BW6: 0 | BY6: LMICs | BZ6: =BO6 -> 15000 | CA6: =BG6/100000 -> 0.015 | CB6: =BE6 -> 1 | CC6: =DATEDIF(C6,BJ6,"D")/365.25 -> 6.29705681 | CD6: =DATEDIF(C6,BI6,"D")/365.25 -> 1.095140315 | CE6: 4 | CF6: =CD6-(1/CE6) -> 0.8451403149 | CG6: =CC6-CF6 -> 5.451916496 | CH6: =VLOOKUP([3]CRSDATA!M30,'[3]Discount rates gua, rg'!$A:$H,MATCH([3]CRSDATA!BW$4,'[3]Discount rates gua, rg'!$A$1:$H$1,0),FALSE) -> 0.065 | CI6: =CA6 -> 0.015 | CJ6: =CA6 -> 0.015 | CK6: =((1+CH6)^(1/CE6))-1 -> 0.01586828478 | CL6: =CE6*CG6 -> 21.80766598 | CM6: =(1+CH6)^CF6 -> 1.054664326 | CN6: =(1+CH6)^CG6 -> 1.409638581 | CO6: =(CI6*(1-(1/CM6)))/(CE6*CK6) -> 0.01224872885 | CP6: =(1/CL6)*(1/CM6)*((1-(1/CN6))/CK6) -> 0.7962320356 | CQ6: =(CJ6/(CE6*CL6))*(1/CM6)*((1/CN6)-1+CK6*CL6)/(CK6*CK6) -> 0.03590580561 | CR6: =1 / ( (1 + CJ6/CE6)^CL6 -1) +1 -> 12.75783069 | CS6: =( CJ6/CE6 ) * CR6 * ( 1/CM6) * ( (1 - 1/CN6) / CK6) -> 0.8307243405 | CT6: =(1-CO6-CP6-CQ6) -> 0.1556134299 | CU6: =(1-CO6-CS6) -> 0.1570269307 | CV6: =(1-(1+CJ6*CD6)/(1+CH6)^CC6) -> 0.3163179089 | CW6: =IF(CB6=1,CT6,IF(CB6=2,CU6,IF(CB6=3,CV6,IF(CB6=5,CT6,"ERROR")))) -> 0.1556134299 | CX6: =IF(CW6<0,0,BZ6*CW6) -> 2334.201449 | CY6: =J6 -> Unspecified type guarantee
A7: ; Column ODA grant equivalent not reported whereas new disbursement; if reporting under new PSI rules, type of flow = 60 and PSI is two digits in 10,20,21,22,30,40,41,42,50. If under provisional methods - type of flow (10,21), PSI flag may only include values NULL,2,3,4; Additionality type (67) may only include values NULL, 1,2,3; NUMBER OF ISSUES : 3 | B7: 2023 | C7: 2023-05-15 | D7: 68 | E7: 1 | F7: 2023000028a | G7: abc | H7: 1 | I7: 645 | J7: RG | K7: 62000 | L7: 1 | M7: 10 | N7: 422 | O7: C01 | P7: RG | Q7: 24030 | T7: 00:00:00 | U7: 00:00:00 | V7: RG | W7: 8.4 | Y7: 0 | Z7: 0 | AA7: 0 | AB7: 0 | AC7: 0 | AD7: 0 | AE7: 0 | AJ7: 0 | AK7: 0 | AL7: 0 | AM7: 0 | AN7: 918 | AP7: 15000 | AQ7: 15000 | BE7: 1 | BF7: 4 | BG7: 5000 | BI7: 2024-06-18 | BJ7: 2029-08-31 | BQ7: 21 | BR7: 11;13;21 | BT7: text | BU7: =IFERROR(IF(M7=60,VLOOKUP(VALUE(TEXT(YEAR($C7),"@")&TEXT($I7,"@")),IncomeGroup!$C$2:$F$50000,4,FALSE),VLOOKUP(VALUE(TEXT(YEAR($C7),"@")&TEXT($I7,"@")),IncomeGroup!$C$2:$F$50000,3,FALSE)),"") -> LMICs | BW7: 0
A8: ; Donor country different from 68; Reported grant equivalent is different compared with macro's automatic calculation based only on reported terms; NUMBER OF ISSUES : 2 | B8: 2023 | C8: 14/11/2008 | D8: 68 | E8: 2 | F8: 2008003009d | G8: B590D1 | H8: 3 | I8: 136 | J8: Recipient governement | K8: 12000 | L8: 1 | M8: 10 | N8: 421 | O8: C01 | P8: TGV CASABLANCA TANGER EQPS FERROVIAIRES | Q8: 21030 | R8: CASABLANCA TANGER KENITRA | T8: 2029-11-14 | U8: 2063-12-31 | V8: TGV CASABLANCA TANGER EQPS FERROVIAIRES | W8: 9.1;9.4 | Y8: 0 | Z8: 0 | AA8: 0 | AB8: 0 | AC8: 0 | AD8: 0 | AE8: 0 | AF8: 1 | AH8: 1 | AJ8: 0 | AK8: 0 | AL8: 0 | AM8: 0 | AN8: 918 | AO8: 0 | AQ8: 8938.7215 | AR8: 6995 | AS8: 6812.689077 | AT8: 0 | AU8: 0 | AV8: 0 | AW8: 0 | BE8: 1 | BF8: 2 | BG8: 1200 | BI8: 2034-06-30 | BJ8: 2063-12-31 | BK8: 926.49284 | BL8: 84569 | BM8: 0 | BN8: 0 | BU8: =IFERROR(IF(M8=60,VLOOKUP(VALUE(TEXT(YEAR($C8),"@")&TEXT($I8,"@")),IncomeGroup!$C$2:$F$50000,4,FALSE),VLOOKUP(VALUE(TEXT(YEAR($C8),"@")&TEXT($I8,"@")),IncomeGroup!$C$2:$F$50000,3,FALSE)),"") -> LMICs | BV8: 0.07 | BW8: 76.2154753
A9: ; Donor country different from 68; Reported grant equivalent is different compared with macro's automatic calculation based only on reported terms; NUMBER OF ISSUES : 2 | B9: 2023 | C9: 17/07/2014 | D9: 68 | E9: 2 | F9: 2014110816 | G9: C200A1 | H9: 3 | I9: 247 | J9: Recipient governement | K9: 12000 | L9: 1 | M9: 10 | N9: 421 | O9: C01 | P9: AMO ALIMENTATION EAU POTABLE REGION GAGNOA | Q9: 14021 | R9: GAGNOA | T9: 2023-01-17 | U9: 2041-09-30 | V9: AMO ALIMENTATION EAU POTABLE REGION GAGNOA | W9: 6.1;6.2 | Y9: 2 | Z9: 0 | AA9: 0 | AB9: 0 | AC9: 0 | AD9: 0 | AE9: 0 | AF9: 1 | AH9: 1 | AJ9: 0 | AK9: 0 | AL9: 0 | AM9: 0 | AN9: 918 | AO9: 0 | AQ9: 88.52561 | AR9: 63 | AS9: 61.35097367 | AT9: 0 | AU9: 0 | AV9: 0 | AW9: 0 | BE9: 1 | BF9: 2 | BG9: 60 | BI9: 2024-09-30 | BJ9: 2041-06-30 | BK9: 2.12791 | BL9: 3562 | BM9: 0 | BN9: 0 | BU9: =IFERROR(IF(M9=60,VLOOKUP(VALUE(TEXT(YEAR($C9),"@")&TEXT($I9,"@")),IncomeGroup!$C$2:$F$50000,4,FALSE),VLOOKUP(VALUE(TEXT(YEAR($C9),"@")&TEXT($I9,"@")),IncomeGroup!$C$2:$F$50000,3,FALSE)),"") -> LMICs | BV9: 0.07 | BW9: 69.30307927 | BY9: LMICs | BZ9: =BO9 -> 0 | CA9: =BG9/100000 -> 0.0006 | CB9: =BE9 -> 1 | CC9: =DATEDIF(C9,BJ9,"D")/365.25 -> 26.954141 | CD9: =DATEDIF(C9,BI9,"D")/365.25 -> 10.20670773 | CE9: 4 | CF9: =CD9-(1/CE9) -> 9.956707734 | CG9: =CC9-CF9 -> 16.99743326 | CH9: =VLOOKUP([3]CRSDATA!M26,'[3]Discount rates gua, rg'!$A:$H,MATCH([3]CRSDATA!BW$4,'[3]Discount rates gua, rg'!$A$1:$H$1,0),FALSE) -> 0.035 | CI9: =CA9 -> 0.0006 | CJ9: =CA9 -> 0.0006 | CK9: =((1+CH9)^(1/CE9))-1 -> 0.008637445998 | CL9: =CE9*CG9 -> 67.98973306 | CM9: =(1+CH9)^CF9 -> 1.408499497 | CN9: =(1+CH9)^CG9 -> 1.79451709 | CO9: =(CI9*(1-(1/CM9)))/(CE9*CK9) -> 0.005036638073 | CP9: =(1/CL9)*(1/CM9)*((1-(1/CN9))/CK9) -> 0.5352667506 | CQ9: =(CJ9/(CE9*CL9))*(1/CM9)*((1/CN9)-1+CK9*CL9)/(CK9*CK9) -> 0.003034033215 | CR9: =1 / ( (1 + CJ9/CE9)^CL9 -1) +1 -> 98.56222399 | CS9: =( CJ9/CE9 ) * CR9 * ( 1/CM9) * ( (1 - 1/CN9) / CK9) -> 0.5380409818 | CT9: =(1-CO9-CP9-CQ9) -> 0.4566625781 | CU9: =(1-CO9-CS9) -> 0.4569223801 | CV9: =(1-(1+CJ9*CD9)/(1+CH9)^CC9) -> 0.6019412045 | CW9: =IF(CB9=1,CT9,IF(CB9=2,CU9,IF(CB9=3,CV9,IF(CB9=5,CT9,"ERROR")))) -> 0.4566625781 | CX9: =IF(CW9<0,0,BZ9*CW9)*75% -> 0 | CY9: =J9 -> Recipient governement
A10: ; Donor country different from 68; Reported grant equivalent is different compared with macro's automatic calculation based only on reported terms; NUMBER OF ISSUES : 2 | B10: 2023 | C10: 2015-07-12 | D10: 68 | E10: 2 | F10: 2015300311 | G10: C340A1 | H10: 3 | I10: 342 | J10: Recipient governement | K10: 12000 | L10: 1 | M10: 10 | N10: 421 | O10: C01 | P10: EAU POTABLE / RESEAU ADDUCTION DE LAS PAVAS | Q10: 14021 | R10: EL SALVADOR / LAS PAVAS | T10: 2020-12-07 | U10: 2053-03-31 | V10: EAU POTABLE / RESEAU ADDUCTION DE LAS PAVAS | W10: 6.1;6.2 | Y10: 2 | Z10: 0 | AA10: 0 | AB10: 0 | AC10: 0 | AD10: 0 | AE10: 0 | AF10: 1 | AH10: 1 | AJ10: 0 | AK10: 0 | AL10: 0 | AM10: 0 | AN10: 918 | AO10: 0 | AQ10: 1197.17745 | AR10: 893 | AS10: 876.7299166 | AT10: 338.5346 | AU10: 0 | AV10: 0 | AW10: 0 | BE10: 1 | BF10: 2 | BG10: 115 | BI10: 2023-03-31 | BJ10: 2053-03-31 | BK10: 59.40066 | BL10: 51801 | BM10: 0 | BN10: 0 | BU10: =IFERROR(IF(M10=60,VLOOKUP(VALUE(TEXT(YEAR($C10),"@")&TEXT($I10,"@")),IncomeGroup!$C$2:$F$50000,4,FALSE),VLOOKUP(VALUE(TEXT(YEAR($C10),"@")&TEXT($I10,"@")),IncomeGroup!$C$2:$F$50000,3,FALSE)),"") -> LMICs | BV10: 0.07 | BW10: 73.23307974
A11: ; Donor country different from 68; Reported grant equivalent is different compared with macro's automatic calculation based only on reported terms; NUMBER OF ISSUES : 2 | B11: 2023 | C11: 2016-05-07 | D11: 68 | E11: 2 | F11: 2016300211 | G11: C390A1 | H11: 3 | I11: 57 | J11: Recipient governement | K11: 12000 | L11: 1 | M11: 10 | N11: 421 | O11: C01 | P11: TRAITEMENT DES EAUX USEES DE PRISTINA | Q11: 14022 | R11: PRISTINA | T11: 2022-07-05 | U11: 2056-12-31 | V11: TRAITEMENT DES EAUX USEES DE PRISTINA | W11: 6.2;6.3 | Y11: 2 | Z11: 0 | AA11: 0 | AB11: 0 | AC11: 0 | AD11: 0 | AE11: 0 | AF11: 1 | AH11: 1 | AJ11: 0 | AK11: 0 | AL11: 0 | AM11: 0 | AN11: 918 | AO11: 0 | AQ11: 528.25431 | AR11: 425 | AS11: 415.9741508 | AT11: 0 | AU11: 0 | AV11: 0 | AW11: 0 | BE11: 1 | BF11: 2 | BG11: 36 | BI11: 2028-12-31 | BJ11: 2053-06-30 | BK11: 0 | BL11: 528 | BM11: 0 | BN11: 0 | BU11: =IFERROR(IF(M11=60,VLOOKUP(VALUE(TEXT(YEAR($C11),"@")&TEXT($I11,"@")),IncomeGroup!$C$2:$F$50000,4,FALSE),VLOOKUP(VALUE(TEXT(YEAR($C11),"@")&TEXT($I11,"@")),IncomeGroup!$C$2:$F$50000,3,FALSE)),"") -> LMICs | BV11: 0.07 | BW11: 78.74505573 | BY11: LMICs | BZ11: =BO11 -> 0 | CA11: =BG11/100000 -> 0.00036 | CB11: =BE11 -> 1 | CC11: =DATEDIF(C11,BJ11,"D")/365.25 -> 37.14715948 | CD11: =DATEDIF(C11,BI11,"D")/365.25 -> 12.65160849 | CE11: 4 | CF11: =CD11-(1/CE11) -> 12.40160849 | CG11: =CC11-CF11 -> 24.74555099 | CH11: =VLOOKUP([3]CRSDATA!M169,'[3]Discount rates gua, rg'!$A:$H,MATCH([3]CRSDATA!BW$4,'[3]Discount rates gua, rg'!$A$1:$H$1,0),FALSE) ->  | CI11: =CA11 -> 0.00036 | CJ11: =CA11 -> 0.00036 | CK11: =((1+CH11)^(1/CE11))-1 ->  | CL11: =CE11*CG11 -> 98.98220397 | CM11: =(1+CH11)^CF11 ->  | CN11: =(1+CH11)^CG11 ->  | CO11: =(CI11*(1-(1/CM11)))/(CE11*CK11) ->  | CP11: =(1/CL11)*(1/CM11)*((1-(1/CN11))/CK11) ->  | CQ11: =(CJ11/(CE11*CL11))*(1/CM11)*((1/CN11)-1+CK11*CL11)/(CK11*CK11) ->  | CR11: =1 / ( (1 + CJ11/CE11)^CL11 -1) +1 -> 112.7594177 | CS11: =( CJ11/CE11 ) * CR11 * ( 1/CM11) * ( (1 - 1/CN11) / CK11) ->  | CT11: =(1-CO11-CP11-CQ11) ->  | CU11: =(1-CO11-CS11) ->  | CV11: =(1-(1+CJ11*CD11)/(1+CH11)^CC11) ->  | CW11: =IF(CB11=1,CT11,IF(CB11=2,CU11,IF(CB11=3,CV11,IF(CB11=5,CT11,"ERROR")))) ->  | CX11: =IF(CW11<0,0,BZ11*CW11) ->  | CY11: =J11 -> Recipient governement
A12: ; Donor country different from 68; Reported grant equivalent is different compared with macro's automatic calculation based only on reported terms; NUMBER OF ISSUES : 2 | B12: 2023 | C12: 27/12/2017 | D12: 68 | E12: 2 | F12: 2017300211 | G12: C510A1 | H12: 3 | I12: 640 | J12: Recipient governement | K12: 12000 | L12: 1 | M12: 10 | N12: 421 | O12: C01 | P12: 6 LAITERIES & 30 CENTRES COLLECTE | Q12: 12240 | R12: SRI LANKA | T12: 2028-12-27 | U12: 2058-12-31 | V12: 6 LAITERIES & 30 CENTRES COLLECTE | W12: 2.1;2.2 | Y12: 0 | Z12: 0 | AA12: 0 | AB12: 0 | AC12: 0 | AD12: 0 | AE12: 0 | AF12: 1 | AH12: 1 | AJ12: 0 | AK12: 0 | AL12: 0 | AM12: 0 | AN12: 918 | AO12: 0 | AQ12: 1205.26812 | AR12: 990 | AS12: 964.588653 | AT12: 0 | AU12: 0 | AV12: 0 | AW12: 0 | BE12: 1 | BF12: 2 | BG12: 16 | BI12: 2030-03-31 | BJ12: 2057-12-31 | BK12: 0 | BL12: 13766 | BM12: 0 | BN12: 0 | BU12: =IFERROR(IF(M12=60,VLOOKUP(VALUE(TEXT(YEAR($C12),"@")&TEXT($I12,"@")),IncomeGroup!$C$2:$F$50000,4,FALSE),VLOOKUP(VALUE(TEXT(YEAR($C12),"@")&TEXT($I12,"@")),IncomeGroup!$C$2:$F$50000,3,FALSE)),"") -> LMICs | BV12: 0.07 | BW12: 80.03104347
A13: ; Donor country different from 68; Reported grant equivalent is different compared with macro's automatic calculation based only on reported terms; NUMBER OF ISSUES : 2 | B13: 2023 | C13: 28/12/2017 | D13: 68 | E13: 2 | F13: 2017300311d | G13: C520D1 | H13: 3 | I13: 139 | J13: Recipient governement | K13: 12000 | L13: 1 | M13: 10 | N13: 421 | O13: C01 | P13: PME PMI- AMEN BANK | Q13: 32130 | R13: TUNISIE | T13: 2028-12-28 | U13: 2039-12-31 | V13: PME PMI- AMEN BANK | W13: 2.3 | Y13: 0 | Z13: 0 | AA13: 0 | AB13: 0 | AC13: 0 | AD13: 0 | AE13: 0 | AF13: 1 | AH13: 1 | AJ13: 0 | AK13: 0 | AL13: 0 | AM13: 0 | AN13: 918 | AO13: 0 | AQ13: 105.76 | AR13: 76 | AS13: 67.72831303 | AT13: 0 | AU13: 0 | AV13: 0 | AW13: 0 | BE13: 1 | BF13: 2 | BG13: 0 | BI13: 2032-12-31 | BJ13: 2038-03-31 | BK13: 0 | BL13: 251 | BM13: 0 | BN13: 0 | BU13: =IFERROR(IF(M13=60,VLOOKUP(VALUE(TEXT(YEAR($C13),"@")&TEXT($I13,"@")),IncomeGroup!$C$2:$F$50000,4,FALSE),VLOOKUP(VALUE(TEXT(YEAR($C13),"@")&TEXT($I13,"@")),IncomeGroup!$C$2:$F$50000,3,FALSE)),"") -> UMICs | BV13: 0.06 | BW13: 64.03963032
A14: ; Donor country different from 68; Reported grant equivalent is different compared with macro's automatic calculation based only on reported terms; NUMBER OF ISSUES : 2 | B14: 2023 | C14: 28/12/2017 | D14: 68 | E14: 2 | F14: 2017300311l | G14: C520L1 | H14: 3 | I14: 139 | J14: Recipient governement | K14: 12000 | L14: 1 | M14: 10 | N14: 421 | O14: C01 | P14: PME PMI - UBCI | Q14: 32130 | R14: TUNISIE | T14: 2028-12-28 | U14: 2039-12-31 | V14: PME PMI - UBCI | W14: 2.3 | Y14: 0 | Z14: 0 | AA14: 0 | AB14: 0 | AC14: 0 | AD14: 0 | AE14: 0 | AF14: 1 | AH14: 1 | AJ14: 0 | AK14: 0 | AL14: 0 | AM14: 0 | AN14: 918 | AO14: 0 | AQ14: 149 | AR14: 107 | AS14: 95.82313688 | AT14: 0 | AU14: 0 | AV14: 0 | AW14: 0 | BE14: 1 | BF14: 2 | BG14: 0 | BI14: 2033-03-31 | BJ14: 2038-03-31 | BK14: 0 | BL14: 286 | BM14: 0 | BN14: 0 | BU14: =IFERROR(IF(M14=60,VLOOKUP(VALUE(TEXT(YEAR($C14),"@")&TEXT($I14,"@")),IncomeGroup!$C$2:$F$50000,4,FALSE),VLOOKUP(VALUE(TEXT(YEAR($C14),"@")&TEXT($I14,"@")),IncomeGroup!$C$2:$F$50000,3,FALSE)),"") -> UMICs | BV14: 0.06 | BW14: 64.31083012 | BY14: LMICs | BZ14: =BO14 -> 0 | CA14: =BG14/100000 -> 0 | CB14: =BE14 -> 1 | CC14: =DATEDIF(C14,BJ14,"D")/365.25 -> 20.25462012 | CD14: =DATEDIF(C14,BI14,"D")/365.25 -> 15.25530459 | CE14: 4 | CF14: =CD14-(1/CE14) -> 15.00530459 | CG14: =CC14-CF14 -> 5.249315537 | CH14: =VLOOKUP([3]CRSDATA!M44,'[3]Discount rates gua, rg'!$A:$H,MATCH([3]CRSDATA!BW$4,'[3]Discount rates gua, rg'!$A$1:$H$1,0),FALSE)-0.5% ->  | CI14: =CA14 -> 0 | CJ14: =CA14 -> 0 | CK14: =((1+CH14)^(1/CE14))-1 ->  | CL14: =CE14*CG14 -> 20.99726215 | CM14: =(1+CH14)^CF14 ->  | CN14: =(1+CH14)^CG14 ->  | CO14: =(CI14*(1-(1/CM14)))/(CE14*CK14) ->  | CP14: =(1/CL14)*(1/CM14)*((1-(1/CN14))/CK14) ->  | CQ14: =(CJ14/(CE14*CL14))*(1/CM14)*((1/CN14)-1+CK14*CL14)/(CK14*CK14) ->  | CR14: =1 / ( (1 + CJ14/CE14)^CL14 -1) +1 ->  | CS14: =( CJ14/CE14 ) * CR14 * ( 1/CM14) * ( (1 - 1/CN14) / CK14) ->  | CT14: =(1-CO14-CP14-CQ14) ->  | CU14: =(1-CO14-CS14) ->  | CV14: =(1-(1+CJ14*CD14)/(1+CH14)^CC14) ->  | CW14: =IF(CB14=1,CT14,IF(CB14=2,CU14,IF(CB14=3,CV14,IF(CB14=5,CT14,"ERROR")))) ->  | CX14: =IF(CW14<0,0,BZ14*CW14) ->  | CY14: =J14 -> Recipient governement
A15: ; Donor country different from 68; Reported grant equivalent is different compared with macro's automatic calculation based only on reported terms; NUMBER OF ISSUES : 2 | B15: 2023 | C15: 29/12/2017 | D15: 68 | E15: 2 | F15: 2017300411 | G15: C530A1 | H15: 3 | I15: 738 | J15: Recipient governement | K15: 12000 | L15: 1 | M15: 10 | N15: 421 | O15: C01 | P15: SYST.INFORMATION METEOROLOGIE MARITIME | Q15: 15110 | R15: INDONESIE | T15: 2028-12-29 | U15: 2059-07-31 | V15: SYST.INFORMATION METEOROLOGIE MARITIME | W15: 16.6;16.7 | Y15: 1 | Z15: 0 | AA15: 0 | AB15: 0 | AC15: 0 | AD15: 0 | AE15: 0 | AF15: 1 | AH15: 1 | AJ15: 0 | AK15: 2 | AL15: 0 | AM15: 0 | AN15: 918 | AO15: 0 | AQ15: 10695.13877 | AR15: 8891 | AS15: 8671.022835 | AT15: 0 | AU15: 0 | AV15: 0 | AW15: 0 | BE15: 1 | BF15: 2 | BG15: 16 | BI15: 2031-06-30 | BJ15: 2057-12-31 | BK15: 0.51187 | BL15: 39361 | BM15: 0 | BN15: 0 | BU15: =IFERROR(IF(M15=60,VLOOKUP(VALUE(TEXT(YEAR($C15),"@")&TEXT($I15,"@")),IncomeGroup!$C$2:$F$50000,4,FALSE),VLOOKUP(VALUE(TEXT(YEAR($C15),"@")&TEXT($I15,"@")),IncomeGroup!$C$2:$F$50000,3,FALSE)),"") -> LMICs | BV15: 0.07 | BW15: 81.07443037 | BY15: LMICs | BZ15: =BO15 -> 0 | CA15: =BG15/100000 -> 0.00016 | CB15: =BE15 -> 1 | CC15: =DATEDIF(C15,BJ15,"D")/365.25 -> 40.0054757 | CD15: =DATEDIF(C15,BI15,"D")/365.25 -> 13.50034223 | CE15: 4 | CF15: =CD15-(1/CE15) -> 13.25034223 | CG15: =CC15-CF15 -> 26.75513347 | CH15: =VLOOKUP([3]CRSDATA!M13,'[3]Discount rates gua, rg'!$A:$H,MATCH([3]CRSDATA!BW$4,'[3]Discount rates gua, rg'!$A$1:$H$1,0),FALSE) -> 0.05 | CI15: =CA15 -> 0.00016 | CJ15: =CA15 -> 0.00016 | CK15: =((1+CH15)^(1/CE15))-1 -> 0.01227223443 | CL15: =CE15*CG15 -> 107.0205339 | CM15: =(1+CH15)^CF15 -> 1.908822143 | CN15: =(1+CH15)^CG15 -> 3.689117813 | CO15: =(CI15*(1-(1/CM15)))/(CE15*CK15) -> 0.001551850156 | CP15: =(1/CL15)*(1/CM15)*((1-(1/CN15))/CK15) -> 0.2907576061 | CQ15: =(CJ15/(CE15*CL15))*(1/CM15)*((1/CN15)-1+CK15*CL15)/(CK15*CK15) -> 0.000759847516 | CR15: =1 / ( (1 + CJ15/CE15)^CL15 -1) +1 -> 234.1050594 | CS15: =( CJ15/CE15 ) * CR15 * ( 1/CM15) * ( (1 - 1/CN15) / CK15) -> 0.2913862059 | CT15: =(1-CO15-CP15-CQ15) -> 0.7069306962 | CU15: =(1-CO15-CS15) -> 0.7070619439 | CV15: =(1-(1+CJ15*CD15)/(1+CH15)^CC15) -> 0.8576855171 | CW15: =IF(CB15=1,CT15,IF(CB15=2,CU15,IF(CB15=3,CV15,IF(CB15=5,CT15,"ERROR")))) -> 0.7069306962 | CX15: =IF(CW15<0,0,BZ15*CW15)*75% -> 0 | CY15: =J15 -> Recipient governement
A16: ; Donor country different from 68; Reported grant equivalent is different compared with macro's automatic calculation based only on reported terms; NUMBER OF ISSUES : 2 | B16: 2023 | C16: 2019-10-16 | D16: 68 | E16: 2 | F16: 2019300311 | G16: C650A1 | H16: 3 | I16: 753 | J16: Recipient governement | K16: 12000 | L16: 1 | M16: 10 | N16: 421 | O16: C01 | P16: CREATION UNITé D'OPéRATIONS DE SECOURS AéRIEN | Q16: 15133 | R16: MONGOLIE | T16: 2030-10-16 | U16: 2054-09-01 | V16: CREATION UNITé D'OPéRATIONS DE SECOURS AéRIEN | W16: 17.1;17.3 | Y16: 2 | Z16: 0 | AA16: 0 | AB16: 0 | AC16: 0 | AD16: 0 | AE16: 0 | AF16: 1 | AH16: 1 | AJ16: 0 | AK16: 0 | AL16: 0 | AM16: 0 | AN16: 918 | AO16: 0 | AQ16: 10239.8 | AR16: 6548 | AS16: 7692.869939 | AT16: 0 | AU16: 0 | AV16: 0 | AW16: 0 | BE16: 1 | BF16: 2 | BG16: 80 | BI16: 2030-11-30 | BJ16: 2053-11-30 | BK16: 39.98339 | BL16: 57985 | BM16: 0 | BN16: 0 | BU16: =IFERROR(IF(M16=60,VLOOKUP(VALUE(TEXT(YEAR($C16),"@")&TEXT($I16,"@")),IncomeGroup!$C$2:$F$50000,4,FALSE),VLOOKUP(VALUE(TEXT(YEAR($C16),"@")&TEXT($I16,"@")),IncomeGroup!$C$2:$F$50000,3,FALSE)),"") -> LMICs | BV16: 0.07 | BW16: 75.12715032 | BY16: LMICs | BZ16: =BO16 -> 0 | CA16: =BG16/100000 -> 0.0008 | CB16: =BE16 -> 1 | CC16: =DATEDIF(C16,BJ16,"D")/365.25 -> 34.12457221 | CD16: =DATEDIF(C16,BI16,"D")/365.25 -> 11.12388775 | CE16: 4 | CF16: =CD16-(1/CE16) -> 10.87388775 | CG16: =CC16-CF16 -> 23.25068446 | CH16: =VLOOKUP([3]CRSDATA!M42,'[3]Discount rates gua, rg'!$A:$H,MATCH([3]CRSDATA!BW$4,'[3]Discount rates gua, rg'!$A$1:$H$1,0),FALSE) ->  | CI16: =CA16 -> 0.0008 | CJ16: =CA16 -> 0.0008 | CK16: =((1+CH16)^(1/CE16))-1 ->  | CL16: =CE16*CG16 -> 93.00273785 | CM16: =(1+CH16)^CF16 ->  | CN16: =(1+CH16)^CG16 ->  | CO16: =(CI16*(1-(1/CM16)))/(CE16*CK16) ->  | CP16: =(1/CL16)*(1/CM16)*((1-(1/CN16))/CK16) ->  | CQ16: =(CJ16/(CE16*CL16))*(1/CM16)*((1/CN16)-1+CK16*CL16)/(CK16*CK16) ->  | CR16: =1 / ( (1 + CJ16/CE16)^CL16 -1) +1 -> 54.26878404 | CS16: =( CJ16/CE16 ) * CR16 * ( 1/CM16) * ( (1 - 1/CN16) / CK16) ->  | CT16: =(1-CO16-CP16-CQ16) ->  | CU16: =(1-CO16-CS16) ->  | CV16: =(1-(1+CJ16*CD16)/(1+CH16)^CC16) ->  | CW16: =IF(CB16=1,CT16,IF(CB16=2,CU16,IF(CB16=3,CV16,IF(CB16=5,CT16,"ERROR")))) ->  | CX16: =IF(CW16<0,0,BZ16*CW16) ->  | CY16: =J16 -> Recipient governement
A17: ; Donor country different from 68; Reported grant equivalent is different compared with macro's automatic calculation based only on reported terms; NUMBER OF ISSUES : 2 | B17: 2023 | C17: 21/12/2019 | D17: 68 | E17: 2 | F17: 2019300611 | G17: C700A1 | H17: 3 | I17: 247 | J17: Recipient governement | K17: 12000 | L17: 1 | M17: 10 | N17: 421 | O17: C01 | P17: REHAB.1000 POINTS D'EAU AVEC POMPES HYBRIDES | Q17: 14010 | R17: COTE D'IVOIRE | T17: 2030-12-21 | U17: 2054-12-31 | V17: REHAB.1000 POINTS D'EAU AVEC POMPES HYBRIDES | W17: 6.1;6.2;6.5 | Y17: 2 | Z17: 0 | AA17: 0 | AB17: 0 | AC17: 0 | AD17: 0 | AE17: 0 | AF17: 1 | AH17: 1 | AJ17: 1 | AK17: 0 | AL17: 0 | AM17: 1 | AN17: 918 | AO17: 0 | AQ17: 3568.81442 | AR17: 2778 | AS17: 2702.15758 | AT17: 0 | AU17: 0 | AV17: 0 | AW17: 0 | BE17: 1 | BF17: 2 | BG17: 80 | BI17: 2031-09-30 | BJ17: 2053-12-31 | BK17: 9.09802 | BL17: 13239 | BM17: 0 | BN17: 0 | BU17: =IFERROR(IF(M17=60,VLOOKUP(VALUE(TEXT(YEAR($C17),"@")&TEXT($I17,"@")),IncomeGroup!$C$2:$F$50000,4,FALSE),VLOOKUP(VALUE(TEXT(YEAR($C17),"@")&TEXT($I17,"@")),IncomeGroup!$C$2:$F$50000,3,FALSE)),"") -> LMICs | BV17: 0.07 | BW17: 75.71583338
A18: ; Donor country different from 68; Reported grant equivalent is different compared with macro's automatic calculation based only on reported terms; NUMBER OF ISSUES : 2 | B18: 2023 | C18: 27/08/2020 | D18: 68 | E18: 2 | F18: 2020300311 | G18: C780A1 | H18: 3 | I18: 248 | J18: Recipient governement | K18: 12000 | L18: 1 | M18: 10 | N18: 421 | O18: C01 | P18: FOURNITURE EQUIPEMENT MEDICAL SANTE PUBLIQUE | Q18: 12230 | R18: KENYA | T18: 2033-08-27 | U18: 2064-09-27 | V18: FOURNITURE EQUIPEMENT MEDICAL SANTE PUBLIQUE | W18: 3.8;3.c | Y18: 0 | Z18: 0 | AA18: 0 | AB18: 0 | AC18: 0 | AD18: 0 | AE18: 0 | AF18: 1 | AH18: 1 | AJ18: 0 | AK18: 0 | AL18: 0 | AM18: 0 | AN18: 918 | AO18: 0 | AQ18: 6316.73863 | AR18: 5311 | AS18: 5144.593158 | AT18: 0 | AU18: 0 | AV18: 0 | AW18: 0 | BE18: 1 | BF18: 2 | BG18: 76 | BI18: 2033-12-31 | BJ18: 2063-06-30 | BK18: 2.11451 | BL18: 29798 | BM18: 0 | BN18: 0 | BU18: =IFERROR(IF(M18=60,VLOOKUP(VALUE(TEXT(YEAR($C18),"@")&TEXT($I18,"@")),IncomeGroup!$C$2:$F$50000,4,FALSE),VLOOKUP(VALUE(TEXT(YEAR($C18),"@")&TEXT($I18,"@")),IncomeGroup!$C$2:$F$50000,3,FALSE)),"") -> LMICs | BV18: 0.07 | BW18: 81.44381871
A19: ; Donor country different from 68; Reported grant equivalent is different compared with macro's automatic calculation based only on reported terms; NUMBER OF ISSUES : 2 | B19: 2023 | C19: 28/05/2021 | D19: 68 | E19: 2 | F19: 2021300611 | G19: C910A1 | H19: 3 | I19: 266 | J19: Recipient governement | K19: 12000 | L19: 1 | M19: 10 | N19: 421 | O19: C01 | P19: EQUIPEMENTS ET SERVICES DE LUTTE CONTRE LA COVID | Q19: 12230 | R19: RWANDA | T19: 2037-05-28 | U19: 2065-05-31 | V19: EQUIPEMENTS ET SERVICES DE LUTTE CONTRE LA COVID | W19: 3.8;3.c | Y19: 0 | Z19: 0 | AA19: 0 | AB19: 0 | AC19: 0 | AD19: 0 | AE19: 0 | AF19: 1 | AH19: 1 | AJ19: 0 | AK19: 0 | AL19: 0 | AM19: 0 | AN19: 918 | AO19: 0 | AQ19: 6450.55425 | AR19: 5974 | AS19: 5795.460401 | AT19: 0 | AU19: 0 | AV19: 0 | AW19: 0 | BE19: 1 | BF19: 2 | BG19: 92 | BI19: 2038-09-30 | BJ19: 2063-12-31 | BK19: 0.14453 | BL19: 6451 | BM19: 0 | BN19: 0 | BU19: =IFERROR(IF(M19=60,VLOOKUP(VALUE(TEXT(YEAR($C19),"@")&TEXT($I19,"@")),IncomeGroup!$C$2:$F$50000,4,FALSE),VLOOKUP(VALUE(TEXT(YEAR($C19),"@")&TEXT($I19,"@")),IncomeGroup!$C$2:$F$50000,3,FALSE)),"") -> LDCs | BV19: 0.09 | BW19: 89.8443789 | BY19: LMICs | BZ19: =BO19 -> 0 | CA19: =BG19/100000 -> 0.00092 | CB19: =BE19 -> 1 | CC19: =DATEDIF(C19,BJ19,"D")/365.25 -> 42.5927447 | CD19: =DATEDIF(C19,BI19,"D")/365.25 -> 17.34154689 | CE19: 4 | CF19: =CD19-(1/CE19) -> 17.09154689 | CG19: =CC19-CF19 -> 25.50119781 | CH19: =VLOOKUP([3]CRSDATA!M18,'[3]Discount rates gua, rg'!$A:$H,MATCH([3]CRSDATA!BW$4,'[3]Discount rates gua, rg'!$A$1:$H$1,0),FALSE) -> 0.065 | CI19: =CA19 -> 0.00092 | CJ19: =CA19 -> 0.00092 | CK19: =((1+CH19)^(1/CE19))-1 -> 0.01586828478 | CL19: =CE19*CG19 -> 102.0047912 | CM19: =(1+CH19)^CF19 -> 2.933912136 | CN19: =(1+CH19)^CG19 -> 4.982505169 | CO19: =(CI19*(1-(1/CM19)))/(CE19*CK19) -> 0.00955404946 | CP19: =(1/CL19)*(1/CM19)*((1-(1/CN19))/CK19) -> 0.1683103911 | CQ19: =(CJ19/(CE19*CL19))*(1/CM19)*((1/CN19)-1+CK19*CL19)/(CK19*CK19) -> 0.002500726003 | CR19: =1 / ( (1 + CJ19/CE19)^CL19 -1) +1 -> 43.13060018 | CS19: =( CJ19/CE19 ) * CR19 * ( 1/CM19) * ( (1 - 1/CN19) / CK19) -> 0.1703118389 | CT19: =(1-CO19-CP19-CQ19) -> 0.8196348334 | CU19: =(1-CO19-CS19) -> 0.8201341116 | CV19: =(1-(1+CJ19*CD19)/(1+CH19)^CC19) -> 0.9305008843 | CW19: =IF(CB19=1,CT19,IF(CB19=2,CU19,IF(CB19=3,CV19,IF(CB19=5,CT19,"ERROR")))) -> 0.8196348334 | CX19: =IF(CW19<0,0,BZ19*CW19) -> 0 | CY19: =J19 -> Recipient governement
A20: ; Donor country different from 68; Reported grant equivalent is different compared with macro's automatic calculation based only on reported terms; NUMBER OF ISSUES : 2 | B20: 2023 | C20: 17/03/2022 | D20: 68 | E20: 2 | F20: 2022300211 | G20: D010A1 | H20: 3 | I20: 248 | J20: Recipient governement | K20: 12000 | L20: 1 | M20: 10 | N20: 421 | O20: C01 | P20: EQUIPEMENT LUTTE CONTRE FEUX DE FORET | Q20: 15133 | R20: KENYA | T20: 2037-03-17 | U20: 2063-12-31 | V20: EQUIPEMENT LUTTE CONTRE FEUX DE FORET | W20: 17.1;17.3 | Y20: 0 | Z20: 0 | AA20: 0 | AB20: 0 | AC20: 0 | AD20: 0 | AE20: 0 | AF20: 1 | AH20: 1 | AJ20: 0 | AK20: 0 | AL20: 0 | AM20: 0 | AN20: 918 | AO20: 0 | AQ20: 11140.914 | AR20: 9263 | AS20: 8855.938748 | AT20: 0 | AU20: 0 | AV20: 0 | AW20: 0 | BE20: 1 | BF20: 2 | BG20: 161 | BI20: 2037-09-30 | BJ20: 2058-12-31 | BK20: 0.31704 | BL20: 11141 | BM20: 0 | BN20: 0 | BU20: =IFERROR(IF(M20=60,VLOOKUP(VALUE(TEXT(YEAR($C20),"@")&TEXT($I20,"@")),IncomeGroup!$C$2:$F$50000,4,FALSE),VLOOKUP(VALUE(TEXT(YEAR($C20),"@")&TEXT($I20,"@")),IncomeGroup!$C$2:$F$50000,3,FALSE)),"") -> LMICs | BV20: 0.07 | BW20: 79.49023526
A21: ; Donor country different from 68; Reported grant equivalent is different compared with macro's automatic calculation based only on reported terms; NUMBER OF ISSUES : 2 | B21: 2023 | C21: 28/03/2022 | D21: 68 | E21: 2 | F21: 2022300311 | G21: D030A1 | H21: 3 | I21: 142 | J21: Recipient governement | K21: 12000 | L21: 1 | M21: 10 | N21: 421 | O21: C01 | P21: LIGNE 1 FOURNITURE 55 TRAINS ET EQUIPEMENTS | Q21: 21030 | R21: EGYPTE | T21: 2038-03-28 | U21: 2068-12-31 | V21: LIGNE 1 FOURNITURE 55 TRAINS ET EQUIPEMENTS | W21: 9.1;9.4 | Y21: 0 | Z21: 0 | AA21: 0 | AB21: 0 | AC21: 0 | AD21: 0 | AE21: 0 | AF21: 1 | AH21: 1 | AJ21: 0 | AK21: 0 | AL21: 0 | AM21: 0 | AN21: 918 | AO21: 0 | AQ21: 259944.6003 | AR21: 221705 | AS21: 214403.4287 | AT21: 0 | AU21: 0 | AV21: 0 | AW21: 0 | BE21: 1 | BF21: 2 | BG21: 92 | BI21: 2038-03-31 | BJ21: 2063-03-31 | BK21: 23.04203 | BL21: 376352 | BM21: 0 | BN21: 0 | BU21: =IFERROR(IF(M21=60,VLOOKUP(VALUE(TEXT(YEAR($C21),"@")&TEXT($I21,"@")),IncomeGroup!$C$2:$F$50000,4,FALSE),VLOOKUP(VALUE(TEXT(YEAR($C21),"@")&TEXT($I21,"@")),IncomeGroup!$C$2:$F$50000,3,FALSE)),"") -> LMICs | BV21: 0.07 | BW21: 82.4804318 | BY21: LMICs | BZ21: =AQ21 -> 259944.6003 | CA21: =BG21/100000 -> 0.00092 | CB21: =BE21 -> 1 | CC21: =DATEDIF(C21,BJ21,"D")/365.25 -> 41.00752909 | CD21: =DATEDIF(C21,BI21,"D")/365.25 -> 16.00821355 | CE21: 4 | CF21: =CD21-(1/CE21) -> 15.75821355 | CG21: =CC21-CF21 -> 25.24931554 | CH21: 0.05 | CI21: =CA21 -> 0.00092 | CJ21: =CA21 -> 0.00092 | CK21: =((1+CH21)^(1/CE21))-1 -> 0.01227223443 | CL21: =CE21*CG21 -> 100.9972621 | CM21: =(1+CH21)^CF21 -> 2.157274946 | CN21: =(1+CH21)^CG21 -> 3.427798609 | CO21: =(CI21*(1-(1/CM21)))/(CE21*CK21) -> 0.01005391582 | CP21: =(1/CL21)*(1/CM21)*((1-(1/CN21))/CK21) -> 0.264885763 | CQ21: =(CJ21/(CE21*CL21))*(1/CM21)*((1/CN21)-1+CK21*CL21)/(CK21*CK21) -> 0.003723222767 | CR21: =1 / ( (1 + CJ21/CE21)^CL21 -1) +1 -> 43.55583597 | CS21: =( CJ21/CE21 ) * CR21 * ( 1/CM21) * ( (1 - 1/CN21) / CK21) -> 0.268004698 | CT21: =(1-CO21-CP21-CQ21) -> 0.7213370985 | CU21: =(1-CO21-CS21) -> 0.7219413862 | CV21: =(1-(1+CJ21*CD21)/(1+CH21)^CC21) -> 0.8627764481 | CW21: =IF(CB21=1,CT21,IF(CB21=2,CU21,IF(CB21=3,CV21,IF(CB21=5,CT21,"ERROR")))) -> 0.7213370985 | CX21: =IF(CW21<0,0,BZ21*CW21) -> 187507.6837 | CY21: =J21 -> Recipient governement
A22: ; Final repayment date not reported; For PSI in ODA, fields on additionality (fields 68-70) should be reported; NUMBER OF ISSUES : 2 | B22: 2023 | C22: 2019-10-28 | D22: 68 | E22: 1 | F22: 2023100008 | G22: PSI loans | H22: 1 | I22: 660 | K22: 63000 | L22: 3 | M22: 60 | N22: 421 | O22: C01 | P22: text | Q22: 24030 | T22: 00:00:00 | U22: 00:00:00 | AN22: 918 | AO22: 0 | AQ22: 10000 | AR22: 2310.799079 | AT22: 0 | BE22: 1 | BF22: 1 | BG22: 5293 | BI22: 2025-09-25 | BQ22: 20 | BS22: LDCs | BU22: =IFERROR(IF(M22=60,VLOOKUP(VALUE(TEXT(YEAR($C22),"@")&TEXT($I22,"@")),IncomeGroup!$C$2:$F$50000,4,FALSE),VLOOKUP(VALUE(TEXT(YEAR($C22),"@")&TEXT($I22,"@")),IncomeGroup!$C$2:$F$50000,3,FALSE)),"") -> LDCs | BV22: 0.1 | BW22: 0
A23: ; More specific financial instrument is needed; NUMBER OF ISSUES : 1 | B23: 2023 | C23: 2023-01-01 | D23: 68 | E23: 1 | F23: 2023000001 | G23: 123 | H23: 1 | I23: 645 | J23: new | K23: 12000 | L23: 1 | M23: 60 | N23: 1100 | O23: C01 | P23: text | Q23: 99810 | T23: 00:00:00 | U23: 00:00:00 | AN23: 918 | BE23: 1 | BF23: 1 | BG23: text | BH23: 1000 | BI23: 2024-01-02 | BJ23: 2027-01-01 | BK23: 123 | BL23: 1.002053388 | BM23: 4 | BO23: 10000 | BP23: 50 | BQ23: 20 | BR23: 11 | BS23: text | BT23: text | BU23: =IFERROR(IF(M23=60,VLOOKUP(VALUE(TEXT(YEAR($C23),"@")&TEXT($I23,"@")),IncomeGroup!$C$2:$F$50000,4,FALSE),VLOOKUP(VALUE(TEXT(YEAR($C23),"@")&TEXT($I23,"@")),IncomeGroup!$C$2:$F$50000,3,FALSE)),"") -> LMICs | BV23: 0.035 | BW23: 0 | BY23: LMICs | BZ23: =BO23 -> 10000 | CA23: =BG23/100000 ->  | CB23: =BE23 -> 1 | CC23: =DATEDIF(C23,BJ23,"D")/365.25 -> 4 | CD23: =DATEDIF(C23,BI23,"D")/365.25 -> 1.002053388 | CE23: 4 | CF23: =CD23-(1/CE23) -> 0.7520533881 | CG23: =CC23-CF23 -> 3.247946612 | CH23: =VLOOKUP([3]CRSDATA!M10,'[3]Discount rates gua, rg'!$A:$H,MATCH([3]CRSDATA!BW$4,'[3]Discount rates gua, rg'!$A$1:$H$1,0),FALSE) -> 0.05 | CI23: =CA23 ->  | CJ23: =CA23 ->  | CK23: =((1+CH23)^(1/CE23))-1 -> 0.01227223443 | CL23: =CE23*CG23 -> 12.99178645 | CM23: =(1+CH23)^CF23 -> 1.037374299 | CN23: =(1+CH23)^CG23 -> 1.171714251 | CO23: =(CI23*(1-(1/CM23)))/(CE23*CK23) ->  | CP23: =(1/CL23)*(1/CM23)*((1-(1/CN23))/CK23) -> 0.8860467317 | CQ23: =(CJ23/(CE23*CL23))*(1/CM23)*((1/CN23)-1+CK23*CL23)/(CK23*CK23) ->  | CR23: =1 / ( (1 + CJ23/CE23)^CL23 -1) +1 ->  | CS23: =( CJ23/CE23 ) * CR23 * ( 1/CM23) * ( (1 - 1/CN23) / CK23) ->  | CT23: =(1-CO23-CP23-CQ23) ->  | CU23: =(1-CO23-CS23) ->  | CV23: =(1-(1+CJ23*CD23)/(1+CH23)^CC23) ->  | CW23: =IF(CB23=1,CT23,IF(CB23=2,CU23,IF(CB23=3,CV23,IF(CB23=5,CT23,"ERROR")))) ->  | CX23: =IF(CW23<0,0,BZ23*CW23) ->  | CY23: =J23 -> new
A24: ; More specific financial instrument is needed; NUMBER OF ISSUES : 1 | B24: 2023 | C24: 2023-05-15 | D24: 68 | E24: 1 | F24: 2023090620a | G24: abc | H24: 1 | I24: 645 | J24: Unspecified type guarantee | K24: 62000 | L24: 1 | M24: 60 | N24: 1100 | O24: C01 | P24: Unspecified type guarantee | Q24: 24030 | T24: 00:00:00 | U24: 00:00:00 | V24: Unspecified type guarantee | W24: 8.4 | Y24: 0 | Z24: 0 | AA24: 0 | AB24: 0 | AC24: 0 | AD24: 0 | AE24: 0 | AJ24: 0 | AK24: 0 | AL24: 0 | AM24: 0 | AN24: 918 | BE24: 1 | BF24: 4 | BG24: 1500 | BI24: 2024-06-18 | BJ24: 2029-08-31 | BO24: 15000 | BQ24: 41 | BR24: 11;13;21 | BT24: text | BU24: =IFERROR(IF(M24=60,VLOOKUP(VALUE(TEXT(YEAR($C24),"@")&TEXT($I24,"@")),IncomeGroup!$C$2:$F$50000,4,FALSE),VLOOKUP(VALUE(TEXT(YEAR($C24),"@")&TEXT($I24,"@")),IncomeGroup!$C$2:$F$50000,3,FALSE)),"") -> LMICs | BW24: 0
A25: ; First repayment date not reported; For PSI in ODA, fields on additionality (fields 68-70) should be reported; NUMBER OF ISSUES : 2 | B25: 2023 | C25: 2023-10-12 | D25: 68 | E25: 1 | F25: 2023100006 | G25: PSI loans | H25: 1 | I25: 229 | K25: 62000 | L25: 1 | M25: 60 | N25: 421 | O25: C01 | P25: text | Q25: 24030 | T25: 00:00:00 | U25: 00:00:00 | AN25: 918 | AO25: 10000 | AQ25: 10000 | AR25: 583.9825007 | AT25: 0 | BE25: 1 | BF25: 1 | BG25: 5660 | BJ25: 2030-12-31 | BQ25: 20 | BS25: LMICs | BU25: =IFERROR(IF(M25=60,VLOOKUP(VALUE(TEXT(YEAR($C25),"@")&TEXT($I25,"@")),IncomeGroup!$C$2:$F$50000,4,FALSE),VLOOKUP(VALUE(TEXT(YEAR($C25),"@")&TEXT($I25,"@")),IncomeGroup!$C$2:$F$50000,3,FALSE)),"") -> LMICs | BV25: 0.075 | BW25: 0
A26: ; For Bonds (Type of finance 423) please contact the Secretariat; NUMBER OF ISSUES : 1 | B26: 2023 | C26: 2020-06-30 | D26: 68 | E26: 1 | F26: 2023104015 | G26: Common equity | H26: 1 | I26: 261 | K26: 62000 | L26: 3 | M26: 60 | N26: 423 | O26: C01 | P26: text | Q26: 24030 | T26: 00:00:00 | U26: 00:00:00 | AN26: 918 | AO26: 0 | AQ26: 0 | AR26: 0 | BG26: 1236 | BJ26: 2025-12-31 | BQ26: 21 | BS26: LMICs | BU26: =IFERROR(IF(M26=60,VLOOKUP(VALUE(TEXT(YEAR($C26),"@")&TEXT($I26,"@")),IncomeGroup!$C$2:$F$50000,4,FALSE),VLOOKUP(VALUE(TEXT(YEAR($C26),"@")&TEXT($I26,"@")),IncomeGroup!$C$2:$F$50000,3,FALSE)),"") -> LMICs | BV26: 0.105 | BW26: 38.3472416
A27: ; Final repayment date not reported; NUMBER OF ISSUES : 1 | B27: 2023 | C27: 2023-01-01 | D27: 68 | E27: 1 | F27: 2023000003 | G27: Individual loan guarantee | H27: 1 | I27: 645 | J27: new | K27: 12000 | L27: 1 | M27: 60 | N27: 1101 | O27: C01 | P27: text | Q27: 99810 | T27: 00:00:00 | U27: 00:00:00 | AN27: 918 | AR27: 471.694372 | BE27: 1 | BF27: 1 | BG27: text | BH27: 1000 | BI27: 2024-01-02 | BK27: 123 | BL27: 1.002053388 | BM27: 4 | BO27: 10000 | BP27: 50 | BQ27: 20 | BR27: 11 | BS27: text | BT27: text | BU27: =IFERROR(IF(M27=60,VLOOKUP(VALUE(TEXT(YEAR($C27),"@")&TEXT($I27,"@")),IncomeGroup!$C$2:$F$50000,4,FALSE),VLOOKUP(VALUE(TEXT(YEAR($C27),"@")&TEXT($I27,"@")),IncomeGroup!$C$2:$F$50000,3,FALSE)),"") -> LMICs | BV27: 0.03 | BW27: 0 | BY27: LMICs | BZ27: =BO27 -> 10000 | CA27: =BG27/100000 ->  | CB27: =BE27 -> 1 | CC27: =DATEDIF(C27,BJ27,"D")/365.25 ->  | CD27: =DATEDIF(C27,BI27,"D")/365.25 -> 1.002053388 | CE27: 4 | CF27: =CD27-(1/CE27) -> 0.7520533881 | CG27: =CC27-CF27 ->  | CH27: =VLOOKUP([3]CRSDATA!M21,'[3]Discount rates gua, rg'!$A:$H,MATCH([3]CRSDATA!BW$4,'[3]Discount rates gua, rg'!$A$1:$H$1,0),FALSE) -> 0.065 | CI27: =CA27 ->  | CJ27: =CA27 ->  | CK27: =((1+CH27)^(1/CE27))-1 -> 0.01586828478 | CL27: =CE27*CG27 ->  | CM27: =(1+CH27)^CF27 -> 1.048499832 | CN27: =(1+CH27)^CG27 ->  | CO27: =(CI27*(1-(1/CM27)))/(CE27*CK27) ->  | CP27: =(1/CL27)*(1/CM27)*((1-(1/CN27))/CK27) ->  | CQ27: =(CJ27/(CE27*CL27))*(1/CM27)*((1/CN27)-1+CK27*CL27)/(CK27*CK27) ->  | CR27: =1 / ( (1 + CJ27/CE27)^CL27 -1) +1 ->  | CS27: =( CJ27/CE27 ) * CR27 * ( 1/CM27) * ( (1 - 1/CN27) / CK27) ->  | CT27: =(1-CO27-CP27-CQ27) ->  | CU27: =(1-CO27-CS27) ->  | CV27: =(1-(1+CJ27*CD27)/(1+CH27)^CC27) ->  | CW27: =IF(CB27=1,CT27,IF(CB27=2,CU27,IF(CB27=3,CV27,IF(CB27=5,CT27,"ERROR")))) ->  | CX27: =IF(CW27<0,0,BZ27*CW27) ->  | CY27: =J27 -> new
